Workbook

Sheet South Sudan
C1: Aggregate Consumer Price Index Series South Sudan | D1: Weights from June 2011- | I1: June 2011 = 100 | U1: June 2011 = 100 | AG1: June 2011 = 100 | AS1: June 2011 = 100 | BE1: June 2011 = 100 | BQ1: June 2011 = 100
A2: No | B2: Coicop | C2: Item description | D2: Weight Coicop 3 | E2: Weight Coicop 2 | F2: Weight Coicop 4 | G2: Apr 2007 | H2: May 2007 | I2: June 2007 | J2: July 2007 | K2: Aug 2007 | L2: Sep 2007 | M2: Oct 2007 | N2: Nov 2007 | O2: Dec 2007 | P2: Jan 2008 | Q2: Feb 2008 | R2: Mar 2008 | S2: Apr 2008 | T2: May 2008 | U2: June 2008 | V2: July 2008 | W2: Aug 2008 | X2: Sep 2008 | Y2: Oct 2008 | Z2: Nov 2008 | AA2: Dec 2008 | AB2: Jan 2009 | AC2: Feb 2009 | AD2: Mar 2009 | AE2: Apr 2009 | AF2: May 2009 | AG2: June 2009 | AH2: July 2009 | AI2: Aug 2009 | AJ2: Sep 2009 | AK2: Oct 2009 | AL2: Nov 2009 | AM2: Dec 2009 | AN2: Jan 2010 | AO2: Feb 2010 | AP2: Mar 2010 | AQ2: Apr 2010 | AR2: May 2010 | AS2: June 2010 | AT2: July 2010 | AU2: Aug 2010 | AV2: Sep 2010 | AW2: Oct 2010 | AX2: Nov 2010 | AY2: Dec 2010 | AZ2: Jan 2011 | BA2: Feb 2011 | BB2: Mar 2011 | BC2: Apr 2011 | BD2: May 2011 | BE2: June 2011 | BF2: July 2011 | BG2: Aug 2011 | BH2: Sep 2011 | BI2: Oct 2011 | BJ2: Nov 2011 | BK2: Dec 2011 | BL2: Jan 2012 | BM2: Feb 2012 | BN2: Mar 2012 | BO2: Apr 2012 | BP2: May 2012 | BQ2: June 2012 | BR2: July 2012 | BS2: Aug 2012 | BT2: Sep 2012 | BU2: Oct 2012 | BV2: Nov 2012 | BW2: Dec 2012 | BX2: Jan 2013 | BY2: Feb 2013 | BZ2: Mar 2013 | CA2: Apr 2013 | CB2: May 2013 | CC2: June 2013 | CD2: July 2013 | CE2: Aug 2013 | CF2: Sep 2013 | CG2: Oct 2013 | CH2: Nov 2013 | CI2: Dec 2013 | CJ2: Jan 2014 | CK2: Feb 2014 | CL2: Mar 2014 | CM2: Apr 2014 | CN2: May 2014 | CO2: June 2014 | CP2: July 2014 | CQ2: Aug 2014 | CR2: Sep 2014 | CS2: Oct 2014 | CT2: Nov 2014 | CU2: Dec 2014 | CV2: Jan 2015 | CW2: Feb 2015 | CX2: Mar 2015 | CY2: Apr 2015 | CZ2: May 2015 | DA2: Jun 2015 | DB2: July 2015 | DC2: Aug 2015 | DD2: Sep 2015 | DE2: Oct 2015 | DF2: Nov 2015 | DG2: Dec 2015 | DH2: Jan 2016 | DI2: Feb 2016 | DJ2: Mar 2016 | DK2: Apr 2016 | DL2: May 2016 | DM2: Jun 2016 | DN2: July 2016 | DO2: Aug 2016 | DP2: Sep 2016 | DQ2: Oct 2016 | DR2: Nov 2016 | DS2: Dec 2016 | DT2: Jan 2017 | DU2: Feb 2017 | DV2: Mar 2017 | DW2: Apr 2017 | DX2: May 2017 | DY2: Jun 2017 | DZ2: July 2017 | EA2: Aug 2017 | EB2: Sep 2017 | EC2: Oct 2017 | ED2: Nov 2017 | EE2: Dec 2017 | EF2: Jan 2018 | EG2: Feb 2018 | EH2: Mar 2018 | EI2: Apr 2018 | EJ2: May 2018 | EK2: Jun 2018 | EL2: July 2018 | EM2: Aug 2018 | EN2: Sep 2018 | EO2: Oct 2018 | EP2: Nov 2018 | EQ2: Dec 2018 | ER2: Jan 2019 | ES2: Feb 2019 | ET2: Mar 2019 | EU2: Apr 2019 | EV2: May 2019 | EW2: Jun 2019 | EX2: July 2019 | EY2: Aug 2019 | EZ2: Sep 2019 | FA2: Oct 2019 | FB2: Nov 2019 | FC2: Dec 2019 | FD2: Jan 2020 | FE2: Feb 2020 | FF2: Mar 2020 | FG2: Apr 2020 | FH2: May 2020 | FI2: June 2020 | FJ2: July 2020 | FK2: Aug 2020 | FL2: Sep 2020 | FM2: Oct 2020 | FN2: Nov 2020 | FO2: Dec 2020 | FP2: Jan 2021 | FQ2: Feb 2021 | FR2: Mar 2021 | FS2: Apr 2021 | FT2: May 2021 | FU2: June 2021 | FV2: July 2021 | FW2: Aug 2021 | FX2: Sep 2021 | FY2: Oct 2021 | FZ2: Nov 2021 | GA2: Dec 2021 | GB2: Jan 2022 | GC2: Feb 2022 | GD2: Mar 2022 | GE2: Apr 2022 | GF2: May 2022 | GG2: June 2022 | GH2: July 2022 | GI2: Aug 2022 | GJ2: Sep 2022 | GK2: Oct 2022 | GL2: Nov 2022 | GM2: Dec 2022 | GN2: Jan 2023 | GO2: Feb 2023 | GP2: Mar 2023 | GQ2: Apr 2023 | GR2: May 2023 | GS2: June 2023 | GT2: July 2023 | GU2: Aug 2023 | GV2: Sep 2023 | GW2: Oct 2023 | GX2: Nov 2023 | GY2: Dec 2023 | GZ2: Jan 2024 | HA2: Feb 2024 | HB2: Mar 2024 | HC2: Apr 2024 | HD2: May 2024 | HE2: June 2024 | HF2: July 2024 | HG2: Aug 2024 | HH2: Sep 2024 | HI2: Oct 2024 | HJ2: Nov 2024 | HK2: Dec 2024
A3: 1 | C3: All item index | G3: 53.486 | H3: 56.447 | I3: 56.2 | J3: 57.874 | K3: 58.87 | L3: 62.164 | M3: 65.497 | N3: 65.528 | O3: 62.925 | P3: 71.159 | Q3: 65.555 | R3: 65.439 | S3: 67.257 | T3: 69.773 | U3: 69.122 | V3: 72.388 | W3: 72.264 | X3: 72.35 | Y3: 72.214 | Z3: 71.533 | AA3: 70.972 | AB3: 75.612 | AC3: 69.611 | AD3: 71.17 | AE3: 73.224 | AF3: 72.583 | AG3: 73.733 | AH3: 72.467 | AI3: 72.65 | AJ3: 73.443 | AK3: 77.143 | AL3: 77.906 | AM3: 72.538 | AN3: 74.748 | AO3: 73.413 | AP3: 73.171 | AQ3: 73.983 | AR3: 73.593 | AS3: 73.791 | AT3: 72.418 | AU3: 73.491 | AV3: 72.005 | AW3: 74.761 | AX3: 75.211 | AY3: 81.812 | AZ3: 91.71 | BA3: 91.822 | BB3: 88.566 | BC3: 101.97 | BD3: 95.337 | BE3: 100 | BF3: 105.848 | BG3: 118.85 | BH3: 119.545 | BI3: 130.957 | BJ3: 134.5 | BK3: 135.443 | BL3: 135.563 | BM3: 130.771 | BN3: 133.604 | BO3: 132.172 | BP3: 171.142 | BQ3: 174.061 | BR3: 170.256 | BS3: 170.329 | BT3: 170.795 | BU3: 159.143 | BV3: 189.66 | BW3: 169.628 | BX3: 183 | BY3: 162.232 | BZ3: 152.433 | CA3: 153.328 | CB3: 155.316 | CC3: 154.739 | CD3: 153.955 | CE3: 153.606 | CF3: 158.508 | CG3: 161.015 | CH3: 163.162 | CI3: 154.723 | CJ3: 166.825 | CK3: 157.518 | CL3: 153.018 | CM3: 151.459 | CN3: 150.723 | CO3: 155.671 | CP3: 157.98 | CQ3: 166.897 | CR3: 159.02 | CS3: 152.864 | CT3: 195.942 | CU3: 170.01 | CV3: 164.645 | CW3: 170.954 | CX3: 174.044 | CY3: 186.513 | CZ3: 208.61 | DA3: 250.895 | DB3: 239.906 | DC3: 264.799 | DD3: 304.132 | DE3: 299.106 | DF3: 340.119 | DG3: 356.777 | DH3: 436.232 | DI3: 517.192 | DJ3: 600.835 | DK3: 683.322 | DL3: 824.072 | DM3: 720.077 | DN3: 1318.198 | DO3: 1391.927 | DP3: 1975.116 | DQ3: 1779.765 | DR3: 1895.296 | DS3: 2068.361 | DT3: 2058.171 | DU3: 2720.103 | DV3: 2430.713 | DW3: 2546.339 | DX3: 3576.183 | DY3: 3326.316 | DZ3: 3354.61 | EA3: 3688.203 | EB3: 3987.03 | EC3: 4127.663 | ED3: 4587.307 | EE3: 4502.211 | EF3: 4631.81 | EG3: 5785.029 | EH3: 6349.072 | EI3: 7298.459 | EJ3: 6574.995 | EK3: 6270.976 | EL3: 7479.135 | EM3: 6445.616 | EN3: 5942.895 | EO3: 5853.2 | EP3: 6123.856 | EQ3: 6305.983 | ER3: 7980.048 | ES3: 9181.412 | ET3: 10343.705 | EU3: 11087.321 | EV3: 11674.88 | EW3: 11682.727 | EX3: 12851.055 | EY3: 13385.832 | EZ3: 15292.416 | FA3: 15832.584 | FB3: 10576.793 | FC3: 10656.516 | FD3: 10881.366 | FE3: 14153.439 | FF3: 14524.303 | FG3: 15471.553 | FH3: 16075.489 | FI3: 12821.965 | FJ3: 13821.192 | FK3: 14932.304 | FL3: 16210.044 | FM3: 17657.916 | FN3: 18863.119 | FO3: 16840.598 | FP3: 15977.66 | FQ3: 16747.46 | FR3: 17277.613 | FS3: 17811.508 | FT3: 18325.406 | FU3: 15173.582 | FV3: 15444.954 | FW3: 16622.438 | FX3: 17028.779 | FY3: 18684.206 | FZ3: 16922.054 | GA3: 15404.688 | GB3: 14066.245 | GC3: 14520.608 | GD3: 15859.61 | GE3: 17048.113 | GF3: 17123.545 | GG3: 15659.863 | GH3: 16438.557 | GI3: 16199.664 | GJ3: 15539.215 | GK3: 16306.462 | GL3: 15566.59801 | GM3: 13622.24254 | GN3: 16087.56447
A4: 2 | B4: 01 | C4: Food and Non-alcholic beverages | E4: 71.39 | G4: 48.103 | H4: 50.988 | I4: 51.328 | J4: 51.186 | K4: 53.22 | L4: 55.645 | M4: 61.415 | N4: 60.359 | O4: 59.298 | P4: 69.463 | Q4: 62.267 | R4: 61.216 | S4: 62.47 | T4: 64.649 | U4: 64.325 | V4: 68.348 | W4: 66.724 | X4: 68.67 | Y4: 67.444 | Z4: 67.55 | AA4: 66.379 | AB4: 73.99 | AC4: 66.324 | AD4: 68.267 | AE4: 67.996 | AF4: 66.349 | AG4: 68.429 | AH4: 67.138 | AI4: 67.865 | AJ4: 68.477 | AK4: 72.682 | AL4: 74.656 | AM4: 67.415 | AN4: 69.364 | AO4: 67.389 | AP4: 68.933 | AQ4: 70.508 | AR4: 67.844 | AS4: 67.856 | AT4: 66.63 | AU4: 67.247 | AV4: 67.197 | AW4: 70.865 | AX4: 69.86 | AY4: 80.854 | AZ4: 90.233 | BA4: 90.897 | BB4: 85.62 | BC4: 101.536 | BD4: 93.777 | BE4: 2.466 | BF4: 4238.796 | BG4: 4599.717 | BH4: 4622.848 | BI4: 5257.734 | BJ4: 5305.571 | BK4: 5161.674 | BL4: 5147.037 | BM4: 5031.669 | BN4: 5108.741 | BO4: 5089.988 | BP4: 7024.453 | BQ4: 7007.889 | BR4: 6806.586 | BS4: 6726.044 | BT4: 6731.534 | BU4: 6124.918 | BV4: 7571.301 | BW4: 6504.623 | BX4: 6861.776 | BY4: 5763.695 | BZ4: 5629.789 | CA4: 5844.605 | CB4: 5798.598 | CC4: 5918.515 | CD4: 5842.162 | CE4: 5837.353 | CF4: 5979.107 | CG4: 6337.28 | CH4: 6226.042 | CI4: 5846.047 | CJ4: 6399.863 | CK4: 6121.055 | CL4: 5799.829 | CM4: 5787.372 | CN4: 5818.865 | CO4: 6030.313 | CP4: 6094.321 | CQ4: 6338.903 | CR4: 5914.229 | CS4: 5618.821 | CT4: 7591.562 | CU4: 6251.45 | CV4: 5967.314 | CW4: 6440.804 | CX4: 6676.693 | CY4: 6978.602 | CZ4: 8212.277 | DA4: 9906.927 | DB4: 9789.657 | DC4: 10909.984 | DD4: 12908.818 | DE4: 12233.948 | DF4: 13793.517 | DG4: 14380.327 | DH4: 17822.718 | DI4: 21070.337 | DJ4: 23409.467 | DK4: 27238.217 | DL4: 30692.044 | DM4: 29638.448 | DN4: 57548.09 | DO4: 59585.107 | DP4: 68034.72 | DQ4: 67202.715 | DR4: 71754.269 | DS4: 88175.956 | DT4: 83683.702 | DU4: 121780.36 | DV4: 104830.211 | DW4: 100110.699 | DX4: 147941.091 | DY4: 128886.792 | DZ4: 128834.522 | EA4: 133901.819 | EB4: 143366.821 | EC4: 134452.313 | ED4: 157590.744 | EE4: 162840.814 | EF4: 177870.182 | EG4: 180569.229 | EH4: 201376.688 | EI4: 265675.812 | EJ4: 234412.18 | EK4: 217904.159 | EL4: 290736.142 | EM4: 233378.961 | EN4: 206355.864 | EO4: 202914.54 | EP4: 214544.612 | EQ4: 211647.411 | ER4: 297281.546 | ES4: 360162.358 | ET4: 411161.023 | EU4: 438019.192 | EV4: 460856.571 | EW4: 470158.121 | EX4: 525164.448 | EY4: 544841.525 | EZ4: 562463.829 | FA4: 585422.065 | FB4: 401459.711 | FC4: 427651.006 | FD4: 439626.144 | FE4: 485188.273 | FF4: 507810.87 | FG4: 551780.262 | FH4: 568899.732 | FI4: 451333.861 | FJ4: 519666.113 | FK4: 594612.109 | FL4: 686410.931 | FM4: 704866.492 | FN4: 665759.314 | FO4: 610000.959 | FP4: 624064.559 | FQ4: 670063.941 | FR4: 686136.181 | FS4: 722403.941 | FT4: 715109.9 | FU4: 617307.726 | FV4: 648824.336 | FW4: 704156.059 | FX4: 690790.057 | FY4: 782989.732 | FZ4: 678490.802 | GA4: 631656.077 | GB4: 532742.565 | GC4: 545378.115 | GD4: 612918.693 | GE4: 723002.367 | GF4: 727547.892 | GG4: 631524.869 | GH4: 659627.906 | GI4: 666744.357 | GJ4: 617539.351 | GK4: 656073.612 | GL4: 14981.04233 | GM4: 11683.06903 | GN4: 14626.44879
A5: 3 | B5: 02 | C5: Alcoholic beverages and Tobacco | E5: 3.12 | G5: 67.265 | H5: 67.265 | I5: 67.542 | J5: 67.542 | K5: 66.556 | L5: 81.904 | M5: 77.873 | N5: 70.737 | O5: 65.632 | P5: 67.334 | Q5: 67.472 | R5: 68.842 | S5: 65.913 | T5: 70.183 | U5: 67.957 | V5: 67.957 | W5: 68.096 | X5: 68.581 | Y5: 70.589 | Z5: 69.585 | AA5: 84.98 | AB5: 68.996 | AC5: 68.581 | AD5: 67.819 | AE5: 68.581 | AF5: 73.349 | AG5: 72.542 | AH5: 68.234 | AI5: 67.957 | AJ5: 68.581 | AK5: 85.257 | AL5: 68.227 | AM5: 69.799 | AN5: 68.858 | AO5: 71.43 | AP5: 79.845 | AQ5: 82.417 | AR5: 87.829 | AS5: 71.43 | AT5: 71.43 | AU5: 71.43 | AV5: 68.858 | AW5: 71.43 | AX5: 71.43 | AY5: 71.43 | AZ5: 71.43 | BA5: 84.299 | BB5: 89.711 | BC5: 106.11 | BD5: 94.856 | BE5: 591.56 | BF5: 16.425 | BG5: 22.811 | BH5: 22.701 | BI5: 29.693 | BJ5: 31.237 | BK5: 48.604 | BL5: 36.838 | BM5: 35.093 | BN5: 27.583 | BO5: 36.949 | BP5: 48.037 | BQ5: 55.403 | BR5: 62.244 | BS5: 58.377 | BT5: 52.622 | BU5: 56.327 | BV5: 73.58 | BW5: 74.898 | BX5: 122.063 | BY5: 100 | BZ5: 60.512 | CA5: 60.284 | CB5: 64.814 | CC5: 58.337 | CD5: 59.464 | CE5: 58.534 | CF5: 55.296 | CG5: 55.311 | CH5: 70.049 | CI5: 58.073 | CJ5: 64.07 | CK5: 58.545 | CL5: 62.406 | CM5: 55.745 | CN5: 50.51 | CO5: 58.292 | CP5: 49.694 | CQ5: 62.676 | CR5: 54.737 | CS5: 50.753 | CT5: 79.469 | CU5: 67.077 | CV5: 66.532 | CW5: 57.732 | CX5: 51.064 | CY5: 83.979 | CZ5: 61.021 | DA5: 73.455 | DB5: 46.01 | DC5: 50.623 | DD5: 62.238 | DE5: 58.97 | DF5: 79.432 | DG5: 82.949 | DH5: 100.104 | DI5: 103.721 | DJ5: 301.211 | DK5: 214.944 | DL5: 358.31 | DM5: 124.011 | DN5: 221.639 | DO5: 369.331 | DP5: 432.954 | DQ5: 366.346 | DR5: 455.271 | DS5: 390.327 | DT5: 349.915 | DU5: 644.239 | DV5: 555.584 | DW5: 540.778 | DX5: 660.54 | DY5: 801.242 | DZ5: 782.69 | EA5: 1047.378 | EB5: 962.892 | EC5: 867.422 | ED5: 829.412 | EE5: 869.598 | EF5: 683.757 | EG5: 6470.114 | EH5: 5423.687 | EI5: 5095.348 | EJ5: 3073.183 | EK5: 1673.793 | EL5: 1170.686 | EM5: 1168.486 | EN5: 1424.622 | EO5: 1228.703 | EP5: 1454.046 | EQ5: 1094.613 | ER5: 1919.989 | ES5: 1964.67 | ET5: 2353.555 | EU5: 2438.475 | EV5: 3631.277 | EW5: 3800.127 | EX5: 4274.457 | EY5: 4229.18 | EZ5: 11468.408 | FA5: 11491.999 | FB5: 7247.928 | FC5: 3745.829 | FD5: 3995.088 | FE5: 15602.758 | FF5: 14912.351 | FG5: 15563.733 | FH5: 16074.045 | FI5: 5509.71 | FJ5: 4433.788 | FK5: 5179.154 | FL5: 4635.195 | FM5: 8400.755 | FN5: 16992.289 | FO5: 12779.675 | FP5: 6766.264 | FQ5: 6937.047 | FR5: 6955.287 | FS5: 6448.233 | FT5: 5245.35 | FU5: 1711.759 | FV5: 2526.61 | FW5: 2493.41 | FX5: 6694.293 | FY5: 7429.207 | FZ5: 4994.223 | GA5: 3289.331 | GB5: 5836.237 | GC5: 5675.076 | GD5: 5773.952 | GE5: 3206.505 | GF5: 2993.307 | GG5: 2763.725 | GH5: 3004.93 | GI5: 2756.427 | GJ5: 2321.191 | GK5: 2355.691 | GL5: 15630.28856 | GM5: 16961.58676 | GN5: 16833.43378
A6: 4 | B6: 03 | C6: Clothing and footwear | E6: 2.49 | BE6: 175.293 | BF6: 57.057 | BG6: 61.4 | BH6: 65.159 | BI6: 66.294 | BJ6: 69.537 | BK6: 89.129 | BL6: 80.488 | BM6: 76.425 | BN6: 79.87 | BO6: 70.803 | BP6: 80.395 | BQ6: 85.908 | BR6: 94.073 | BS6: 92.841 | BT6: 93.551 | BU6: 93.506 | BV6: 96.346 | BW6: 93.349 | BX6: 91.79 | BY6: 100 | BZ6: 94.791 | CA6: 94.711 | CB6: 86.249 | CC6: 88.963 | CD6: 95.056 | CE6: 98.438 | CF6: 91.057 | CG6: 95.378 | CH6: 102.212 | CI6: 107.667 | CJ6: 97.719 | CK6: 88.785 | CL6: 90.266 | CM6: 98.211 | CN6: 89.021 | CO6: 81.612 | CP6: 87.236 | CQ6: 84.165 | CR6: 85.301 | CS6: 86.873 | CT6: 114.7 | CU6: 125.839 | CV6: 104.735 | CW6: 114.64 | CX6: 107.955 | CY6: 116.215 | CZ6: 122.709 | DA6: 158.196 | DB6: 140.913 | DC6: 142.876 | DD6: 207.306 | DE6: 246.209 | DF6: 312.057 | DG6: 362.84 | DH6: 369.18 | DI6: 529.229 | DJ6: 475.874 | DK6: 642.721 | DL6: 656.444 | DM6: 663.662 | DN6: 935.22 | DO6: 917.807 | DP6: 1156.512 | DQ6: 1512.288 | DR6: 1420.154 | DS6: 1729.217 | DT6: 1733.088 | DU6: 1780.424 | DV6: 2040.827 | DW6: 2529.743 | DX6: 2550.123 | DY6: 2866.214 | DZ6: 3029.806 | EA6: 3414.944 | EB6: 3321.884 | EC6: 3418.644 | ED6: 4094.664 | EE6: 4700.73 | EF6: 4741.369 | EG6: 4571.162 | EH6: 4217.291 | EI6: 5056.127 | EJ6: 5549 | EK6: 6175.721 | EL6: 5584.645 | EM6: 6090.143 | EN6: 4719.333 | EO6: 5472.998 | EP6: 6115.249 | EQ6: 6204.768 | ER6: 6337.349 | ES6: 5516.063 | ET6: 5876.513 | EU6: 6174.047 | EV6: 6260.39 | EW6: 6326.746 | EX6: 6355.272 | EY6: 6502.625 | EZ6: 6945.227 | FA6: 6992.794 | FB6: 4973.249 | FC6: 6097.497 | FD6: 6361.004 | FE6: 6494.719 | FF6: 6720.509 | FG6: 6685.357 | FH6: 6523.968 | FI6: 6647.497 | FJ6: 7052.07 | FK6: 7500.987 | FL6: 6890.617 | FM6: 7433.175 | FN6: 9015.229 | FO6: 8939.289 | FP6: 7863.78 | FQ6: 9268.86 | FR6: 9692.73 | FS6: 9017.319 | FT6: 10375.705 | FU6: 8728.071 | FV6: 8517.702 | FW6: 9369.916 | FX6: 6391.777 | FY6: 7877.974 | FZ6: 10543.353 | GA6: 9150.49 | GB6: 7495.191 | GC6: 7857.415 | GD6: 6499.45 | GE6: 6636.9 | GF6: 6580.639 | GG6: 7996.331 | GH6: 7528.46 | GI6: 7633.03 | GJ6: 7289.453 | GK6: 7158.689 | GL6: 13440.15224 | GM6: 13383.01414 | GN6: 15641.62293
A7: 5 | B7: 04 | C7: Housing, Water, Electricity, Gas and other fuel | E7: 2.59 | G7: 65.751 | H7: 73.227 | I7: 65.926 | J7: 76.785 | K7: 77.314 | L7: 87.36 | M7: 78.986 | N7: 89.977 | O7: 74.291 | P7: 76.463 | Q7: 71.938 | R7: 79.301 | S7: 77.141 | T7: 82.593 | U7: 78.299 | V7: 81.338 | W7: 84.558 | X7: 77.868 | Y7: 79.238 | Z7: 77.372 | AA7: 78.93 | AB7: 79.578 | AC7: 74.562 | AD7: 77.166 | AE7: 88.13 | AF7: 85.808 | AG7: 90.562 | AH7: 87.812 | AI7: 85.063 | AJ7: 81.037 | AK7: 84.326 | AL7: 81.577 | AM7: 80.59 | AN7: 86.131 | AO7: 81.766 | AP7: 76.023 | AQ7: 71.678 | AR7: 79.392 | AS7: 84.369 | AT7: 81.947 | AU7: 86.331 | AV7: 79.548 | AW7: 79.351 | AX7: 80.628 | AY7: 76.574 | AZ7: 82.313 | BA7: 88.928 | BB7: 88.73 | BC7: 95.477 | BD7: 89.864 | BE7: 129.553 | BF7: 77.22 | BG7: 91.562 | BH7: 91.42 | BI7: 89.131 | BJ7: 85.283 | BK7: 79.762 | BL7: 84.02 | BM7: 83.806 | BN7: 88.564 | BO7: 87.9 | BP7: 90.79 | BQ7: 93.391 | BR7: 114.895 | BS7: 150.218 | BT7: 138.864 | BU7: 128.657 | BV7: 116.265 | BW7: 133.776 | BX7: 95.48 | BY7: 100 | BZ7: 101.27 | CA7: 96.032 | CB7: 91.644 | CC7: 116.6 | CD7: 103.336 | CE7: 107.435 | CF7: 98.589 | CG7: 98.257 | CH7: 115.434 | CI7: 83.759 | CJ7: 80.86 | CK7: 87.787 | CL7: 81.938 | CM7: 82.367 | CN7: 125.447 | CO7: 116.289 | CP7: 131.536 | CQ7: 126.24 | CR7: 132.913 | CS7: 133.218 | CT7: 132.643 | CU7: 125.568 | CV7: 116.109 | CW7: 148.074 | CX7: 129.706 | CY7: 136.469 | CZ7: 134.389 | DA7: 144.884 | DB7: 121.487 | DC7: 134.234 | DD7: 146.675 | DE7: 153.081 | DF7: 183.736 | DG7: 192.915 | DH7: 225.408 | DI7: 267.535 | DJ7: 314.767 | DK7: 416.099 | DL7: 407.016 | DM7: 519.116 | DN7: 891.643 | DO7: 1195.336 | DP7: 1200.394 | DQ7: 1068.764 | DR7: 1131.521 | DS7: 850.458 | DT7: 900.741 | DU7: 1133.875 | DV7: 1209.232 | DW7: 1223.58 | DX7: 1566.845 | DY7: 1723.438 | DZ7: 2541.808 | EA7: 3152.868 | EB7: 3373.597 | EC7: 3449.091 | ED7: 3468.005 | EE7: 3079.681 | EF7: 2701.673 | EG7: 2678.557 | EH7: 13217.678 | EI7: 3719.412 | EJ7: 3987.806 | EK7: 3913.254 | EL7: 3780.293 | EM7: 4858.437 | EN7: 4036.337 | EO7: 5062.772 | EP7: 3976.675 | EQ7: 3859.018 | ER7: 5653.376 | ES7: 6961.982 | ET7: 8494.513 | EU7: 9289.15 | EV7: 9419.812 | EW7: 10016.324 | EX7: 10846.876 | EY7: 11499.963 | EZ7: 15142.987 | FA7: 15669.741 | FB7: 4490.686 | FC7: 10379.529 | FD7: 12115.625 | FE7: 14017.802 | FF7: 14861.993 | FG7: 18138.372 | FH7: 18829.988 | FI7: 6575.727 | FJ7: 7338.867 | FK7: 8299.47 | FL7: 7579.128 | FM7: 8783.416 | FN7: 9410.415 | FO7: 9520.295 | FP7: 12296.691 | FQ7: 15170.353 | FR7: 15429.111 | FS7: 7996.01 | FT7: 27899.776 | FU7: 19719.899 | FV7: 8594.39 | FW7: 8918.735 | FX7: 8919.062 | FY7: 8927.699 | FZ7: 8771.575 | GA7: 8512.523 | GB7: 9608.379 | GC7: 8912.463 | GD7: 10125.568 | GE7: 10020.513 | GF7: 10272.767 | GG7: 11057.471 | GH7: 9246.626 | GI7: 10127.977 | GJ7: 9942.957 | GK7: 11377.156 | GL7: 15259.93277 | GM7: 17028.79962 | GN7: 18097.29202
A8: 6 | B8: 05 | C8: Furnishings, household equipment and routine household maintenance | E8: 3.52 | G8: 53.046 | H8: 53.691 | I8: 66.006 | J8: 60.035 | K8: 68.599 | L8: 61.508 | M8: 62.038 | N8: 62.376 | O8: 67.525 | P8: 63.821 | Q8: 65.486 | R8: 69.494 | S8: 67.941 | T8: 69.283 | U8: 70.817 | V8: 69.641 | W8: 70.019 | X8: 73.355 | Y8: 73.86 | Z8: 68.901 | AA8: 74.148 | AB8: 71.777 | AC8: 71.893 | AD8: 70.149 | AE8: 75.442 | AF8: 75.211 | AG8: 73.817 | AH8: 74.083 | AI8: 74.758 | AJ8: 76.578 | AK8: 84.084 | AL8: 83.44 | AM8: 82.327 | AN8: 82.997 | AO8: 99.264 | AP8: 83.373 | AQ8: 84.317 | AR8: 82.35 | AS8: 82.692 | AT8: 82.982 | AU8: 76.198 | AV8: 75.512 | AW8: 74.769 | AX8: 77.541 | AY8: 75.831 | AZ8: 81.936 | BA8: 113.367 | BB8: 123.334 | BC8: 138.345 | BD8: 149.224 | BE8: 242.384 | BF8: 42.957 | BG8: 56.964 | BH8: 65.075 | BI8: 54.863 | BJ8: 65.503 | BK8: 62.527 | BL8: 71.324 | BM8: 59.162 | BN8: 64.138 | BO8: 61.692 | BP8: 85.38 | BQ8: 83.836 | BR8: 87.885 | BS8: 85.395 | BT8: 85.78 | BU8: 83.209 | BV8: 82.808 | BW8: 82.644 | BX8: 79.228 | BY8: 100 | BZ8: 75.057 | CA8: 74.696 | CB8: 79.385 | CC8: 75.288 | CD8: 71.711 | CE8: 73.827 | CF8: 76.175 | CG8: 70.032 | CH8: 74.419 | CI8: 80.851 | CJ8: 76.747 | CK8: 80.82 | CL8: 81.534 | CM8: 78.477 | CN8: 71.243 | CO8: 75.93 | CP8: 75.629 | CQ8: 71.671 | CR8: 76.773 | CS8: 84.643 | CT8: 93.876 | CU8: 87.62 | CV8: 85.813 | CW8: 93.179 | CX8: 87.195 | CY8: 95.396 | CZ8: 108.02 | DA8: 135.851 | DB8: 136.901 | DC8: 145.817 | DD8: 152.087 | DE8: 176.656 | DF8: 180.148 | DG8: 210.121 | DH8: 247.827 | DI8: 342.41 | DJ8: 356.42 | DK8: 448.579 | DL8: 380.075 | DM8: 492.793 | DN8: 650.307 | DO8: 723.603 | DP8: 807.732 | DQ8: 888.04 | DR8: 882.398 | DS8: 1199.648 | DT8: 1142.979 | DU8: 1198.617 | DV8: 1274.277 | DW8: 1435.729 | DX8: 1782.532 | DY8: 1762.355 | DZ8: 1777.353 | EA8: 1852.934 | EB8: 2027.499 | EC8: 2221.427 | ED8: 2279.483 | EE8: 2423.488 | EF8: 2604.606 | EG8: 2886.453 | EH8: 3708.703 | EI8: 3596.314 | EJ8: 3919.436 | EK8: 4745.631 | EL8: 3282.395 | EM8: 3110.088 | EN8: 3002.672 | EO8: 2753.892 | EP8: 2843.746 | EQ8: 2995.894 | ER8: 3170.749 | ES8: 3918.284 | ET8: 3641.348 | EU8: 3819.883 | EV8: 4112.073 | EW8: 4374.081 | EX8: 4903.694 | EY8: 5352.591 | EZ8: 5459.397 | FA8: 5492.178 | FB8: 3547.442 | FC8: 6361.703 | FD8: 3934.139 | FE8: 4426.755 | FF8: 4641.421 | FG8: 4551.219 | FH8: 5587.091 | FI8: 5150.681 | FJ8: 5773.695 | FK8: 6577.053 | FL8: 5641.774 | FM8: 7160.434 | FN8: 6840.742 | FO8: 6917.992 | FP8: 6728.054 | FQ8: 7944.883 | FR8: 8127.601 | FS8: 9113.973 | FT8: 6811.813 | FU8: 6218.505 | FV8: 6397.487 | FW8: 6916.902 | FX8: 7791.744 | FY8: 6627.626 | FZ8: 6318.793 | GA8: 6324.534 | GB8: 5960.858 | GC8: 7324.683 | GD8: 8519.637 | GE8: 7306.475 | GF8: 7497.149 | GG8: 8719.224 | GH8: 8948.919 | GI8: 8591.835 | GJ8: 8817.148 | GK8: 9443.248 | GL8: 22277.24727 | GM8: 22703.79933 | GN8: 22371.08338
A9: 7 | B9: 06 | C9: Health | E9: 4.47 | BE9: 158.445 | BF9: 89.945 | BG9: 125.337 | BH9: 122.359 | BI9: 114.342 | BJ9: 118.839 | BK9: 115.908 | BL9: 142.281 | BM9: 129.297 | BN9: 167.176 | BO9: 118.664 | BP9: 93.895 | BQ9: 97.929 | BR9: 81.906 | BS9: 88.993 | BT9: 117.926 | BU9: 104.507 | BV9: 121.221 | BW9: 111.554 | BX9: 107.449 | BY9: 100 | BZ9: 131.606 | CA9: 92.071 | CB9: 123.59 | CC9: 80.604 | CD9: 83.996 | CE9: 90.45 | CF9: 150.504 | CG9: 98.615 | CH9: 91.823 | CI9: 106.834 | CJ9: 135.999 | CK9: 88.449 | CL9: 95.481 | CM9: 94.309 | CN9: 83.475 | CO9: 82.09 | CP9: 95.699 | CQ9: 152.849 | CR9: 155.049 | CS9: 136.717 | CT9: 136.717 | CU9: 146.005 | CV9: 162.798 | CW9: 130.592 | CX9: 142.373 | CY9: 133.037 | CZ9: 148.064 | DA9: 202.773 | DB9: 168.649 | DC9: 168.649 | DD9: 168.649 | DE9: 159.516 | DF9: 171.14 | DG9: 171.14 | DH9: 178.508 | DI9: 171.089 | DJ9: 171.089 | DK9: 273.941 | DL9: 871.734 | DM9: 268.129 | DN9: 538.825 | DO9: 379.192 | DP9: 5534.084 | DQ9: 3157.425 | DR9: 3362.545 | DS9: 1058.867 | DT9: 1863.27 | DU9: 553.839 | DV9: 498.206 | DW9: 2178.988 | DX9: 3236.92 | DY9: 3273.217 | DZ9: 2924.455 | EA9: 3361.056 | EB9: 5805.481 | EC9: 9790.181 | ED9: 9142.851 | EE9: 5335.812 | EF9: 4784.527 | EG9: 5207.679 | EH9: 5048.024 | EI9: 6218.593 | EJ9: 6984.253 | EK9: 8300.375 | EL9: 8443.362 | EM9: 8810.956 | EN9: 8746.158 | EO9: 9455.387 | EP9: 9623.243 | EQ9: 11146.793 | ER9: 10895.835 | ES9: 10895.835 | ET9: 11458.395 | EU9: 13213.212 | EV9: 13279.956 | EW9: 9672 | EX9: 9459.423 | EY9: 10964.335 | EZ9: 12086.414 | FA9: 13383.084 | FB9: 7397.942 | FC9: 4310.73 | FD9: 5054.144 | FE9: 7301.972 | FF9: 7428.619 | FG9: 4991.457 | FH9: 5529.26 | FI9: 6136.843 | FJ9: 17970.921 | FK9: 9621.681 | FL9: 10355.64 | FM9: 10991.711 | FN9: 12994.906 | FO9: 9824.617 | FP9: 7874.925 | FQ9: 7767.51 | FR9: 8059.592 | FS9: 7617.515 | FT9: 8199.933 | FU9: 8162.423 | FV9: 7889.267 | FW9: 7346.654 | FX9: 9531.486 | FY9: 7007.419 | FZ9: 12431.862 | GA9: 8076.853 | GB9: 7842.531 | GC9: 8085.9 | GD9: 8172.634 | GE9: 8058.981 | GF9: 8098.858 | GG9: 8138.735 | GH9: 8638.198 | GI9: 10394.085 | GJ9: 11553.133 | GK9: 10206.344 | GL9: 19077.03783 | GM9: 19686.61227 | GN9: 24392.98563
A10: 8 | B10: 07 | C10: Transport | E10: 2.67 | G10: 57.951 | H10: 57.951 | I10: 57.951 | J10: 44.037 | K10: 42.049 | L10: 46.025 | M10: 46.025 | N10: 43.639 | O10: 46.025 | P10: 72.172 | Q10: 76.147 | R10: 76.147 | S10: 76.147 | T10: 80.123 | U10: 80.123 | V10: 80.123 | W10: 80.123 | X10: 76.147 | Y10: 86.086 | Z10: 80.123 | AA10: 76.147 | AB10: 72.172 | AC10: 70.979 | AD10: 72.172 | AE10: 83.656 | AF10: 86.041 | AG10: 71.615 | AH10: 71.615 | AI10: 71.615 | AJ10: 78.771 | AK10: 72.967 | AL10: 82.906 | AM10: 78.771 | AN10: 78.771 | AO10: 78.771 | AP10: 80.123 | AQ10: 80.123 | AR10: 80.123 | AS10: 80.123 | AT10: 80.123 | AU10: 78.771 | AV10: 80.123 | AW10: 80.123 | AX10: 80.123 | AY10: 80.123 | AZ10: 134.803 | BA10: 88.869 | BB10: 88.074 | BC10: 88.074 | BD10: 88.074 | BE10: 133.933 | BF10: 81.974 | BG10: 81.511 | BH10: 86.877 | BI10: 90.338 | BJ10: 92.333 | BK10: 93.153 | BL10: 91.229 | BM10: 91.387 | BN10: 90.567 | BO10: 104.172 | BP10: 110.447 | BQ10: 130.382 | BR10: 100.426 | BS10: 100.41 | BT10: 99.842 | BU10: 92.261 | BV10: 112.01 | BW10: 100.666 | BX10: 96.194 | BY10: 100 | BZ10: 100.021 | CA10: 100.946 | CB10: 100.652 | CC10: 100.273 | CD10: 112.315 | CE10: 103.175 | CF10: 85.109 | CG10: 101.682 | CH10: 102.618 | CI10: 90.415 | CJ10: 90.415 | CK10: 90.446 | CL10: 90.446 | CM10: 90.385 | CN10: 90.506 | CO10: 90.385 | CP10: 90.567 | CQ10: 90.476 | CR10: 90.476 | CS10: 90.657 | CT10: 102.87 | CU10: 88.996 | CV10: 90.657 | CW10: 90.203 | CX10: 101.72 | CY10: 101.599 | CZ10: 101.636 | DA10: 102.488 | DB10: 102.488 | DC10: 102.853 | DD10: 102.853 | DE10: 102.853 | DF10: 119.881 | DG10: 117.446 | DH10: 288.073 | DI10: 339.602 | DJ10: 340.728 | DK10: 371.983 | DL10: 365.895 | DM10: 361.755 | DN10: 375.635 | DO10: 496.16 | DP10: 460.541 | DQ10: 505.029 | DR10: 496.672 | DS10: 548.403 | DT10: 559.545 | DU10: 794.499 | DV10: 852.684 | DW10: 929.225 | DX10: 881.37 | DY10: 880.255 | DZ10: 1355.274 | EA10: 1481.019 | EB10: 1640.845 | EC10: 2083.193 | ED10: 1980.551 | EE10: 2188.303 | EF10: 2066.184 | EG10: 2687.668 | EH10: 2162.551 | EI10: 2435.858 | EJ10: 3832.112 | EK10: 3698.414 | EL10: 3282.067 | EM10: 3823.685 | EN10: 4086.114 | EO10: 4082.273 | EP10: 3778.64 | EQ10: 4949.697 | ER10: 4084.717 | ES10: 4141.983 | ET10: 4170.333 | EU10: 4609.961 | EV10: 4631.34 | EW10: 5302.261 | EX10: 5842.121 | EY10: 5843.098 | EZ10: 5843.098 | FA10: 5921.117 | FB10: 5015.856 | FC10: 5150.127 | FD10: 5521.164 | FE10: 5777.324 | FF10: 5792.29 | FG10: 7387.382 | FH10: 7773.557 | FI10: 38155.848 | FJ10: 10054.619 | FK10: 10179.686 | FL10: 10107.12 | FM10: 8290.685 | FN10: 9881.166 | FO10: 10326.8 | FP10: 9179.596 | FQ10: 9794.47 | FR10: 13198.155 | FS10: 13419.965 | FT10: 20777.92 | FU10: 11193.005 | FV10: 12551.044 | FW10: 12708.864 | FX10: 12150.206 | FY10: 10134.694 | FZ10: 10855.8 | GA10: 11887.355 | GB10: 11892.028 | GC10: 11771.201 | GD10: 13103.223 | GE10: 13354.197 | GF10: 13354.197 | GG10: 13669.505 | GH10: 17103.012 | GI10: 16601 | GJ10: 16595.393 | GK10: 15141.234 | GL10: 20192.94038 | GM10: 24956.51407 | GN10: 22987.3057
A11: 9 | B11: 08 | C11: Communication | E11: 1.4 | BE11: 97.105 | BF11: 94.038 | BG11: 117.028 | BH11: 93.406 | BI11: 94.377 | BJ11: 94.377 | BK11: 94.444 | BL11: 92.164 | BM11: 101.22 | BN11: 100.203 | BO11: 96.206 | BP11: 110.253 | BQ11: 103.026 | BR11: 100.813 | BS11: 101.671 | BT11: 105.059 | BU11: 103.32 | BV11: 95.461 | BW11: 85.027 | BX11: 92.276 | BY11: 100 | BZ11: 99.503 | CA11: 91.915 | CB11: 104.472 | CC11: 110.818 | CD11: 99.526 | CE11: 103.704 | CF11: 90.763 | CG11: 96.161 | CH11: 98.103 | CI11: 95.122 | CJ11: 100.102 | CK11: 97.003 | CL11: 93.628 | CM11: 96.45 | CN11: 91.879 | CO11: 92.695 | CP11: 94.477 | CQ11: 91.471 | CR11: 90.079 | CS11: 89.856 | CT11: 90.97 | CU11: 85.736 | CV11: 93.698 | CW11: 96.203 | CX11: 96.871 | CY11: 100.044 | CZ11: 89.65 | DA11: 88.986 | DB11: 124.348 | DC11: 101.936 | DD11: 121.028 | DE11: 126.34 | DF11: 160.928 | DG11: 135.804 | DH11: 134.807 | DI11: 196.068 | DJ11: 230.49 | DK11: 281.734 | DL11: 224.956 | DM11: 237.075 | DN11: 376.033 | DO11: 385.678 | DP11: 852.085 | DQ11: 948.393 | DR11: 1074.084 | DS11: 1092.04 | DT11: 1380.965 | DU11: 1330.363 | DV11: 1061.884 | DW11: 1245.48 | DX11: 2042.066 | DY11: 2056.757 | DZ11: 1952.287 | EA11: 2409.344 | EB11: 2173.742 | EC11: 2107.36 | ED11: 2246.109 | EE11: 3096.017 | EF11: 2402.814 | EG11: 3313.664 | EH11: 3438.055 | EI11: 4403.124 | EJ11: 3680.189 | EK11: 3690.577 | EL11: 3927.22 | EM11: 3640.077 | EN11: 2874.363 | EO11: 3078.123 | EP11: 3328.272 | EQ11: 4271.909 | ER11: 4564.336 | ES11: 4853.241 | ET11: 4953.922 | EU11: 4983.818 | EV11: 4983.818 | EW11: 4983.818 | EX11: 5002.71 | EY11: 5010.84 | EZ11: 5014.905 | FA11: 5014.905 | FB11: 3113.369 | FC11: 3297.2 | FD11: 4004.065 | FE11: 4013.55 | FF11: 4316.17 | FG11: 4268.293 | FH11: 4420.054 | FI11: 6880.759 | FJ11: 9607.046 | FK11: 12520.325 | FL11: 4517.164 | FM11: 10860.885 | FN11: 16142.728 | FO11: 15623.306 | FP11: 26684.734 | FQ11: 4448.526 | FR11: 4651.169 | FS11: 5302.62 | FT11: 7068.654 | FU11: 5907.859 | FV11: 5785.908 | FW11: 4977.416 | FX11: 4859.982 | FY11: 5605.691 | FZ11: 4738.031 | GA11: 4857.724 | GB11: 4381.476 | GC11: 4884.824 | GD11: 5487.805 | GE11: 4579.946 | GF11: 4424.119 | GG11: 5162.602 | GH11: 5853.659 | GI11: 6077.236 | GJ11: 6111.111 | GK11: 5975.61 | GL11: 3802.631579 | GM11: 4250 | GN11: 6247.807018
A12: 10 | B12: 09 | C12: Recreation and culture | E12: 0.46 | G12: 65.887 | H12: 65.887 | I12: 57.944 | J12: 59.532 | K12: 59.532 | L12: 59.532 | M12: 59.532 | N12: 62.71 | O12: 65.887 | P12: 59.532 | Q12: 59.532 | R12: 59.532 | S12: 59.532 | T12: 59.532 | U12: 59.532 | V12: 59.532 | W12: 59.532 | X12: 79.766 | Y12: 80.592 | Z12: 82.944 | AA12: 81.355 | AB12: 79.766 | AC12: 86.121 | AD12: 79.766 | AE12: 79.766 | AF12: 79.766 | AG12: 79.766 | AH12: 79.766 | AI12: 79.766 | AJ12: 100 | AK12: 100 | AL12: 100 | AM12: 89.883 | AN12: 89.883 | AO12: 100 | AP12: 93.12 | AQ12: 93.12 | AR12: 100 | AS12: 86.646 | AT12: 100 | AU12: 65.887 | AV12: 106.355 | AW12: 100 | AX12: 100 | AY12: 100 | AZ12: 100 | BA12: 100 | BB12: 100 | BC12: 100 | BD12: 100 | BE12: 165.916 | BF12: 61.363 | BG12: 76.346 | BH12: 68.755 | BI12: 67.207 | BJ12: 68.003 | BK12: 81.233 | BL12: 86.658 | BM12: 88.169 | BN12: 66.155 | BO12: 84.607 | BP12: 98.19 | BQ12: 85.602 | BR12: 82.451 | BS12: 90.164 | BT12: 81.261 | BU12: 85.564 | BV12: 98.842 | BW12: 99.226 | BX12: 79.148 | BY12: 100 | BZ12: 94.861 | CA12: 91.3 | CB12: 99.063 | CC12: 102.663 | CD12: 89.395 | CE12: 89.353 | CF12: 104.006 | CG12: 100.28 | CH12: 113.379 | CI12: 107.012 | CJ12: 111.14 | CK12: 109.107 | CL12: 105.987 | CM12: 101.172 | CN12: 101.453 | CO12: 109.899 | CP12: 107.789 | CQ12: 107.789 | CR12: 116.837 | CS12: 121.484 | CT12: 122.952 | CU12: 124.5 | CV12: 118.526 | CW12: 116.104 | CX12: 127.109 | CY12: 120.272 | CZ12: 125.413 | DA12: 148.186 | DB12: 143.504 | DC12: 158.356 | DD12: 169.232 | DE12: 183.596 | DF12: 180.697 | DG12: 201.162 | DH12: 188.824 | DI12: 274.457 | DJ12: 332.688 | DK12: 316.671 | DL12: 324.221 | DM12: 386.567 | DN12: 317.273 | DO12: 665.389 | DP12: 669.296 | DQ12: 763.08 | DR12: 608.441 | DS12: 921.771 | DT12: 996.104 | DU12: 1085.575 | DV12: 989.427 | DW12: 1219.621 | DX12: 1235.604 | DY12: 1512.481 | DZ12: 1535.23 | EA12: 1546.122 | EB12: 1693.419 | EC12: 1656.331 | ED12: 1670.458 | EE12: 1761.052 | EF12: 2014.618 | EG12: 2356.802 | EH12: 2314.261 | EI12: 2745.76 | EJ12: 2594.221 | EK12: 2672.483 | EL12: 3842.267 | EM12: 3871.761 | EN12: 3290.003 | EO12: 3449.579 | EP12: 3740.716 | EQ12: 4533.563 | ER12: 2986.675 | ES12: 9079.312 | ET12: 15849.774 | EU12: 15918.769 | EV12: 4477.349 | EW12: 5209.656 | EX12: 5236.359 | EY12: 5506.349 | EZ12: 5540.144 | FA12: 5765.445 | FB12: 4499.865 | FC12: 4529.869 | FD12: 5109.666 | FE12: 5256.988 | FF12: 5635.262 | FG12: 5464.439 | FH12: 6515.772 | FI12: 8268.628 | FJ12: 7001.85 | FK12: 6710.75 | FL12: 6745.635 | FM12: 7155.238 | FN12: 6879.212 | FO12: 6865.986 | FP12: 7926.458 | FQ12: 7324.561 | FR12: 7141.893 | FS12: 9498.014 | FT12: 6582.675 | FU12: 5075.102 | FV12: 5989.057 | FW12: 5760.849 | FX12: 5899.107 | FY12: 7926.846 | FZ12: 6420.857 | GA12: 4824.489 | GB12: 6424.34 | GC12: 5958.745 | GD12: 5454.412 | GE12: 6137.078 | GF12: 6096.069 | GG12: 5293.732 | GH12: 6123.124 | GI12: 7869.006 | GJ12: 7520.236 | GK12: 7216.48 | GL12: 10967.50554 | GM12: 10171.61604 | GN12: 14687.59607
A13: 11 | B13: 10 | C13: Education | E13: 1.29 | BE13: 154.01 | BF13: 64.931 | BG13: 62.485 | BH13: 62.485 | BI13: 62.485 | BJ13: 62.485 | BK13: 62.485 | BL13: 62.485 | BM13: 62.485 | BN13: 62.485 | BO13: 100 | BP13: 100 | BQ13: 100 | BR13: 100 | BS13: 100 | BT13: 100 | BU13: 100 | BV13: 100 | BW13: 100 | BX13: 100 | BY13: 100 | BZ13: 100 | CA13: 100 | CB13: 100 | CC13: 100 | CD13: 100.159 | CE13: 104.283 | CF13: 104.283 | CG13: 104.283 | CH13: 104.283 | CI13: 104.283 | CJ13: 104.283 | CK13: 105.772 | CL13: 105.772 | CM13: 105.772 | CN13: 105.772 | CO13: 105.772 | CP13: 105.772 | CQ13: 105.772 | CR13: 105.772 | CS13: 105.772 | CT13: 105.772 | CU13: 105.772 | CV13: 105.772 | CW13: 105.772 | CX13: 105.772 | CY13: 105.772 | CZ13: 105.772 | DA13: 105.772 | DB13: 105.772 | DC13: 105.772 | DD13: 105.772 | DE13: 105.772 | DF13: 105.772 | DG13: 105.772 | DH13: 105.772 | DI13: 105.772 | DJ13: 105.772 | DK13: 105.772 | DL13: 105.772 | DM13: 105.772 | DN13: 105.772 | DO13: 105.772 | DP13: 105.772 | DQ13: 105.772 | DR13: 105.772 | DS13: 105.772 | DT13: 105.772 | DU13: 105.772 | DV13: 105.772 | DW13: 733.654 | DX13: 495.688 | DY13: 495.688 | DZ13: 495.688 | EA13: 495.688 | EB13: 495.688 | EC13: 495.688 | ED13: 495.688 | EE13: 495.688 | EF13: 495.688 | EG13: 495.688 | EH13: 495.688 | EI13: 495.688 | EJ13: 481.685 | EK13: 481.685 | EL13: 481.685 | EM13: 481.685 | EN13: 481.685 | EO13: 481.685 | EP13: 481.685 | EQ13: 481.685 | ER13: 481.685 | ES13: 481.685 | ET13: 481.685 | EU13: 481.685 | EV13: 481.685 | EW13: 481.685 | EX13: 481.685 | EY13: 481.685 | EZ13: 481.685 | FA13: 481.685 | FB13: 481.685 | FC13: 462.732 | FD13: 481.685 | FE13: 481.685 | FF13: 481.685 | FG13: 481.685 | FH13: 481.685 | FI13: 481.685 | FJ13: 481.685 | FK13: 2300.877 | FL13: 2300.877 | FM13: 2300.877 | FN13: 2300.877 | FO13: 2300.877 | FP13: 2300.877 | FQ13: 481.685 | FR13: 507.345 | FS13: 507.345 | FT13: 507.345 | FU13: 507.345 | FV13: 507.345 | FW13: 507.345 | FX13: 507.345 | FY13: 507.345 | FZ13: 507.345 | GA13: 507.345 | GB13: 507.345 | GC13: 507.345 | GD13: 507.345 | GE13: 507.345 | GF13: 507.345 | GG13: 507.345 | GH13: 507.345 | GI13: 507.345 | GJ13: 507.345 | GK13: 507.345 | GL13: 781.3601901 | GM13: 781.3601901 | GN13: 781.3601901
A14: 12 | B14: 11 | C14: Restaurants and hotels | E14: 4.02 | G14: 73.896 | H14: 73.712 | I14: 78.4 | J14: 69.547 | K14: 75.871 | L14: 74.523 | M14: 72.273 | N14: 74.644 | O14: 73.604 | P14: 77.475 | Q14: 78.431 | R14: 77.436 | S14: 74.264 | T14: 74.928 | U14: 73.827 | V14: 73.827 | W14: 76.345 | X14: 79.447 | Y14: 80.388 | Z14: 80.436 | AA14: 79.853 | AB14: 76.506 | AC14: 80.709 | AD14: 84.357 | AE14: 80.887 | AF14: 82.454 | AG14: 87.7 | AH14: 94.23 | AI14: 98.847 | AJ14: 85.616 | AK14: 86.066 | AL14: 84.357 | AM14: 92.19 | AN14: 92.259 | AO14: 86.985 | AP14: 72.791 | AQ14: 91.481 | AR14: 91.682 | AS14: 100.591 | AT14: 89.332 | AU14: 95.598 | AV14: 87.765 | AW14: 91.682 | AX14: 91.682 | AY14: 106.858 | AZ14: 107.037 | BA14: 97.157 | BB14: 99.204 | BC14: 107.833 | BD14: 107.833 | BE14: 182.218 | BF14: 62.389 | BG14: 66.537 | BH14: 63.208 | BI14: 68.395 | BJ14: 80.362 | BK14: 74.305 | BL14: 77.398 | BM14: 71.712 | BN14: 73.459 | BO14: 68.881 | BP14: 87.646 | BQ14: 94.143 | BR14: 85.459 | BS14: 95.388 | BT14: 90.763 | BU14: 90.15 | BV14: 95.118 | BW14: 88.259 | BX14: 88.779 | BY14: 100 | BZ14: 96.685 | CA14: 100.889 | CB14: 97.962 | CC14: 103.392 | CD14: 109.229 | CE14: 99.971 | CF14: 99.76 | CG14: 95.762 | CH14: 102.177 | CI14: 101.685 | CJ14: 102.848 | CK14: 100.284 | CL14: 99.174 | CM14: 97.973 | CN14: 97.443 | CO14: 99.291 | CP14: 113.488 | CQ14: 98.189 | CR14: 100.855 | CS14: 104.983 | CT14: 110.041 | CU14: 110.833 | CV14: 110.657 | CW14: 106.646 | CX14: 107.478 | CY14: 112.486 | CZ14: 130.831 | DA14: 138.759 | DB14: 136.274 | DC14: 153.926 | DD14: 144.039 | DE14: 175.307 | DF14: 206.92 | DG14: 217.814 | DH14: 269.002 | DI14: 266.421 | DJ14: 294.137 | DK14: 312.206 | DL14: 513.547 | DM14: 323.071 | DN14: 592.036 | DO14: 636.94 | DP14: 879.852 | DQ14: 767.385 | DR14: 650.759 | DS14: 984.965 | DT14: 1129.875 | DU14: 973.147 | DV14: 1095.001 | DW14: 1340.23 | DX14: 1935.086 | DY14: 2249.973 | DZ14: 2446.956 | EA14: 2743.717 | EB14: 2960.619 | EC14: 2684.31 | ED14: 3416.391 | EE14: 3338.323 | EF14: 2526.645 | EG14: 2568.082 | EH14: 2288.524 | EI14: 3092.899 | EJ14: 3616.27 | EK14: 4410.837 | EL14: 6893.277 | EM14: 5280.994 | EN14: 5378.14 | EO14: 4983.139 | EP14: 4650.356 | EQ14: 6096.49 | ER14: 6140.537 | ES14: 5470.13 | ET14: 6252.413 | EU14: 6797.893 | EV14: 6814.982 | EW14: 6723.889 | EX14: 7099.945 | EY14: 7221.334 | EZ14: 7564.567 | FA14: 7618.824 | FB14: 6238.456 | FC14: 5353.178 | FD14: 5475.092 | FE14: 6014.996 | FF14: 6312.375 | FG14: 7258.659 | FH14: 7690.106 | FI14: 8165.656 | FJ14: 8521.155 | FK14: 8758.591 | FL14: 8843.34 | FM14: 10556.788 | FN14: 9875.374 | FO14: 8773.545 | FP14: 9121.743 | FQ14: 10324.295 | FR14: 10517.661 | FS14: 10481.143 | FT14: 11646.425 | FU14: 11555.364 | FV14: 10622.511 | FW14: 11799.569 | FX14: 9416.655 | FY14: 11045.857 | FZ14: 11156.211 | GA14: 11409.655 | GB14: 11485.89 | GC14: 12995.038 | GD14: 13668.33 | GE14: 10962.171 | GF14: 11209.834 | GG14: 11632.741 | GH14: 13456.628 | GI14: 9096.273 | GJ14: 11348.717 | GK14: 12478.902 | GL14: 21864.11854 | GM14: 24401.6468 | GN14: 26072.31743
A15: 13 | B15: 12 | C15: Miscellaneous goods and services | E15: 2.58 | G15: 68.923 | H15: 68.923 | I15: 70.64 | J15: 90.825 | K15: 79.686 | L15: 77.905 | M15: 88.911 | N15: 81.525 | O15: 83.211 | P15: 82.326 | Q15: 76.447 | R15: 68.141 | S15: 91.498 | T15: 90.885 | U15: 93.851 | V15: 96.565 | W15: 104.471 | X15: 96.722 | Y15: 96.49 | Z15: 94.938 | AA15: 88.365 | AB15: 91.633 | AC15: 88.438 | AD15: 86.73 | AE15: 89.663 | AF15: 97.895 | AG15: 93.064 | AH15: 92.77 | AI15: 92.111 | AJ15: 102.35 | AK15: 101.139 | AL15: 100.185 | AM15: 96.311 | AN15: 98.959 | AO15: 100.185 | AP15: 98.567 | AQ15: 96.48 | AR15: 100.185 | AS15: 99.583 | AT15: 97.734 | AU15: 104.865 | AV15: 94.378 | AW15: 97.734 | AX15: 112.033 | AY15: 103.181 | AZ15: 107.094 | BA15: 101.828 | BB15: 100.185 | BC15: 110.354 | BD15: 100.994 | BE15: 154.238 | BF15: 64.116 | BG15: 74.989 | BH15: 77.476 | BI15: 75.135 | BJ15: 80.759 | BK15: 90.176 | BL15: 90.104 | BM15: 89.55 | BN15: 77.707 | BO15: 83.962 | BP15: 88.928 | BQ15: 98.36 | BR15: 97.05 | BS15: 96.703 | BT15: 98.742 | BU15: 102.813 | BV15: 101.605 | BW15: 96.288 | BX15: 108.662 | BY15: 100 | BZ15: 105.243 | CA15: 104.12 | CB15: 100.116 | CC15: 111.368 | CD15: 111.126 | CE15: 107.371 | CF15: 104.748 | CG15: 101.639 | CH15: 101.316 | CI15: 107.221 | CJ15: 104.164 | CK15: 104.484 | CL15: 108.647 | CM15: 107.645 | CN15: 110.418 | CO15: 108.231 | CP15: 108.695 | CQ15: 108.278 | CR15: 107.102 | CS15: 106.734 | CT15: 112.708 | CU15: 114.428 | CV15: 110.183 | CW15: 111.209 | CX15: 115.899 | CY15: 118.442 | CZ15: 144.104 | DA15: 175.139 | DB15: 168.716 | DC15: 217.293 | DD15: 182.709 | DE15: 223.432 | DF15: 258.336 | DG15: 260.164 | DH15: 281.463 | DI15: 383.114 | DJ15: 448.109 | DK15: 502.664 | DL15: 575.337 | DM15: 583.148 | DN15: 842.565 | DO15: 738.281 | DP15: 1164.687 | DQ15: 827.234 | DR15: 1208.863 | DS15: 1185.41 | DT15: 1357.257 | DU15: 1815.446 | DV15: 1873.035 | DW15: 2108.36 | DX15: 2129.329 | DY15: 2489.004 | DZ15: 2270.096 | EA15: 4489.854 | EB15: 2904.957 | EC15: 3288.248 | ED15: 3745.299 | EE15: 4877.231 | EF15: 5007.163 | EG15: 3792.8 | EH15: 4591.653 | EI15: 4639.015 | EJ15: 4908.742 | EK15: 4961.817 | EL15: 4583.073 | EM15: 4816.96 | EN15: 5449.673 | EO15: 3835.818 | EP15: 4911.979 | EQ15: 5211.739 | ER15: 4880.525 | ES15: 5159.515 | ET15: 5112.426 | EU15: 5600.325 | EV15: 5925.223 | EW15: 5933.185 | EX15: 6084.547 | EY15: 6397.55 | EZ15: 6515.266 | FA15: 6737.46 | FB15: 6426.813 | FC15: 7800.226 | FD15: 8206.405 | FE15: 8378.706 | FF15: 8512.089 | FG15: 8527.025 | FH15: 8785.496 | FI15: 8722.926 | FJ15: 9023.145 | FK15: 9775.562 | FL15: 8415.342 | FM15: 9405.23 | FN15: 10070.937 | FO15: 10722.716 | FP15: 9831.077 | FQ15: 7509.17 | FR15: 8581.661 | FS15: 13181.883 | FT15: 11726.377 | FU15: 11681.625 | FV15: 10858.635 | FW15: 12783.139 | FX15: 11826.455 | FY15: 12755.389 | FZ15: 13939.14 | GA15: 12788.538 | GB15: 12892.641 | GC15: 13549.234 | GD15: 12069.017 | GE15: 12827.44 | GF15: 12675.676 | GG15: 13366.108 | GH15: 13205.674 | GI15: 10056.168 | GJ15: 11143.536 | GK15: 12539.162 | GL15: 18810.70363 | GM15: 20751.77073 | GN15: 21609.87072
C16: CPI excluding unprocessed food and petrol | F16: 43.68 | G16: 75.08795388 | H16: 77.10015918 | I16: 77.94769982 | J16: 78.87759724 | K16: 80.47576204 | L16: 86.08756627 | M16: 83.86651872 | N16: 84.53980093 | O16: 81.99319006 | P16: 86.52729248 | Q16: 85.36282481 | R16: 86.70771716 | S16: 86.76669532 | T16: 87.9905538 | U16: 88.956474 | V16: 89.72143105 | W16: 91.76972428 | X16: 91.26196858 | Y16: 91.49650189 | Z16: 87.81077129 | AA16: 88.04929108 | AB16: 90.04895674 | AC16: 92.43840155 | AD16: 89.21179718 | AE16: 95.07306317 | AF16: 92.93293055 | AG16: 94.46315371 | AH16: 92.27930808 | AI16: 89.95976802 | AJ16: 89.80806824 | AK16: 93.56391816 | AL16: 91.26496927 | AM16: 88.1139285 | AN16: 88.58272431 | AO16: 87.92657918 | AP16: 85.97402553 | AQ16: 87.05565585 | AR16: 89.21181193 | AS16: 89.365818 | AT16: 89.72057922 | AU16: 89.47913678 | AV16: 85.91579135 | AW16: 87.28980821 | AX16: 91.94227441 | AY16: 90.85785522 | AZ16: 98.98524884 | BA16: 100.1999555 | BB16: 100.7719921 | BC16: 107.1686106 | BD16: 99.90746186 | BE16: 190.684 | BF16: 57.407 | BG16: 69.083 | BH16: 72.096 | BI16: 71.853 | BJ16: 74.676 | BK16: 80.071 | BL16: 77.455 | BM16: 74.013 | BN16: 76.159 | BO16: 77.421 | BP16: 85.151 | BQ16: 89.396 | BR16: 88.147 | BS16: 91.147 | BT16: 92.204 | BU16: 90.007 | BV16: 97.782 | BW16: 94.638 | BX16: 101.478 | BY16: 100 | BZ16: 91.313 | CA16: 87.25 | CB16: 91.037 | CC16: 86.312 | CD16: 87.075 | CE16: 85.876 | CF16: 88.568 | CG16: 89.039 | CH16: 90.136 | CI16: 86.973 | CJ16: 91.269 | CK16: 86.199 | CL16: 87.529 | CM16: 84.012 | CN16: 84.042 | CO16: 84.538 | CP16: 85.638 | CQ16: 91.875 | CR16: 90.478 | CS16: 91.247 | CT16: 104.188 | CU16: 99.289 | CV16: 99.252 | CW16: 97.067 | CX16: 98.293 | CY16: 109.689 | CZ16: 113.851 | DA16: 136.717 | DB16: 125.377 | DC16: 137.5 | DD16: 149.271 | DE16: 158.679 | DF16: 185.495 | DG16: 197.38 | DH16: 234.379 | DI16: 280.245 | DJ16: 346.301 | DK16: 386.838 | DL16: 482.434 | DM16: 394.769 | DN16: 646.629 | DO16: 673.506 | DP16: 1282.119 | DQ16: 1056.283 | DR16: 1083.57 | DS16: 1007.181 | DT16: 1119.59 | DU16: 1240.153 | DV16: 1195.093 | DW16: 1480.753 | DX16: 2081.032 | DY16: 1881.123 | DZ16: 1952.288 | EA16: 2287.216 | EB16: 2503.477 | EC16: 2794.857 | ED16: 3260.276 | EE16: 2749.455 | EF16: 2667.357 | EG16: 4016.647 | EH16: 4625.743 | EI16: 4992.733 | EJ16: 4143.458 | EK16: 4070.66 | EL16: 4051.832 | EM16: 3854.179 | EN16: 3762.732 | EO16: 3704.557 | EP16: 3922.386 | EQ16: 4210.279 | ER16: 5984.443 | ES16: 6502.428 | ET16: 6843.267 | EU16: 7312.394 | EV16: 7585.74 | EW16: 7306.399 | EX16: 7484.818 | EY16: 7892.235 | EZ16: 10007.303 | FA16: 10188.802 | FB16: 6125.613 | FC16: 5887.65 | FD16: 6490.996 | FE16: 9852.026 | FF16: 9875.9 | FG16: 9547.409 | FH16: 9894.819 | FI16: 7971.275 | FJ16: 7931.275 | FK16: 7862.203 | FL16: 7720.984 | FM16: 9325.431 | FN16: 11739.47 | FO16: 10861.756 | FP16: 9289.491 | FQ16: 9528.18 | FR16: 10027.243 | FS16: 10953.209 | FT16: 10440.813 | FU16: 8740.825 | FV16: 8055.274 | FW16: 8141.534 | FX16: 8727.565 | FY16: 9549.655 | FZ16: 9712.135 | GA16: 8179.876 | GB16: 8630.004 | GC16: 9086.829 | GD16: 9493.241 | GE16: 9306.96 | GF16: 9344.741 | GG16: 9396.329 | GH16: 9619.737 | GI16: 9730.655 | GJ16: 8906.005 | GK16: 9295.09 | GL16: 18285.14086 | GM16: 19702.74866 | GN16: 20289.77076
A17: 14 | B17: 011 | C17: Food | D17: 69.22 | G17: 45.754 | H17: 48.895 | I17: 49.098 | J17: 48.986 | K17: 51.137 | L17: 53.548 | M17: 59.583 | N17: 58.508 | O17: 57.33 | P17: 67.893 | Q17: 60.435 | R17: 59.319 | S17: 60.615 | T17: 62.863 | U17: 62.526 | V17: 66.683 | W17: 64.928 | X17: 66.762 | Y17: 65.746 | Z17: 65.78 | AA17: 64.575 | AB17: 72.433 | AC17: 64.515 | AD17: 66.517 | AE17: 66.233 | AF17: 64.542 | AG17: 66.688 | AH17: 65.351 | AI17: 66.099 | AJ17: 67.246 | AK17: 71.408 | AL17: 73.763 | AM17: 66.258 | AN17: 68.321 | AO17: 66.284 | AP17: 67.849 | AQ17: 69.494 | AR17: 66.758 | AS17: 66.763 | AT17: 65.511 | AU17: 66.079 | AV17: 66.055 | AW17: 69.858 | AX17: 68.808 | AY17: 80.073 | AZ17: 89.752 | BA17: 90.314 | BB17: 84.245 | BC17: 100.967 | BD17: 92.929 | BE17: 141.434 | BF17: 73.853 | BG17: 79.961 | BH17: 80.052 | BI17: 91.612 | BJ17: 92.212 | BK17: 89.751 | BL17: 89.695 | BM17: 87.464 | BN17: 88.914 | BO17: 88.521 | BP17: 122.982 | BQ17: 122.566 | BR17: 118.749 | BS17: 117.223 | BT17: 117.524 | BU17: 106.517 | BV17: 132.394 | BW17: 113.608 | BX17: 119.831 | BY17: 100 | BZ17: 97.728 | CA17: 101.648 | CB17: 100.556 | CC17: 103.011 | CD17: 101.681 | CE17: 101.65 | CF17: 104.013 | CG17: 110.392 | CH17: 108.63 | CI17: 101.676 | CJ17: 111.508 | CK17: 106.595 | CL17: 100.752 | CM17: 100.686 | CN17: 101.172 | CO17: 105.155 | CP17: 106.27 | CQ17: 110.719 | CR17: 102.997 | CS17: 97.533 | CT17: 132.9 | CU17: 108.662 | CV17: 103.464 | CW17: 112.091 | CX17: 116.255 | CY17: 121.257 | CZ17: 143.078 | DA17: 172.912 | DB17: 170.688 | DC17: 190.123 | DD17: 225.793 | DE17: 212.532 | DF17: 239.788 | DG17: 249.799 | DH17: 309.683 | DI17: 366.524 | DJ17: 406.452 | DK17: 473.936 | DL17: 536.917 | DM17: 514.786 | DN17: 1009.516 | DO17: 1044.418 | DP17: 1188.133 | DQ17: 1145.05 | DR17: 1248.432 | DS17: 1541.587 | DT17: 1453.799 | DU17: 2127.624 | DV17: 1821.195 | DW17: 1726.515 | DX17: 2573.107 | DY17: 2229.717 | DZ17: 2231.518 | EA17: 2321.426 | EB17: 2476.839 | EC17: 2320.74 | ED17: 2737.448 | EE17: 2829.909 | EF17: 3085.35 | EG17: 3125.729 | EH17: 3500.799 | EI17: 4635.483 | EJ17: 4051.604 | EK17: 3752.447 | EL17: 5078.702 | EM17: 4053.812 | EN17: 3558.08 | EO17: 3487.077 | EP17: 3713.739 | EQ17: 3657.23 | ER17: 5201.633 | ES17: 6302.479 | ET17: 7218.608 | EU17: 7690.795 | EV17: 8092.19 | EW17: 8257.798 | EX17: 9236.768 | EY17: 9566.967 | EZ17: 9882.086 | FA17: 10293.737 | FB17: 7055.89 | FC17: 7512.973 | FD17: 7725.861 | FE17: 8536.814 | FF17: 8940.699 | FG17: 9724.306 | FH17: 10035.335 | FI17: 7898.091 | FJ17: 9119.067 | FK17: 10425.598 | FL17: 12120.924 | FM17: 12423.574 | FN17: 11693.902 | FO17: 10697.559 | FP17: 10958.676 | FQ17: 11752.463 | FR17: 12027.257 | FS17: 12668.713 | FT17: 12555.562 | FU17: 10808.841 | FV17: 11391.175 | FW17: 12357.987 | FX17: 12151.955 | FY17: 13787.267 | FZ17: 11903.433 | GA17: 11036.194 | GB17: 9305.715 | GC17: 9488.284 | GD17: 10705.675 | GE17: 12701.809 | GF17: 12787.418 | GG17: 11055.424 | GH17: 11518.287 | GI17: 11614.588 | GJ17: 10734.75 | GK17: 11417.934 | GL17: 14901.30826 | GM17: 11473.61929 | GN17: 14468.10396
A18: 15 | B18: 0111 | C18: Bread & Cereals | F18: 31.51 | G18: 53.714 | H18: 55.315 | I18: 59.62 | J18: 58.871 | K18: 62.649 | L18: 67.188 | M18: 64.598 | N18: 67.747 | O18: 68.047 | P18: 83.774 | Q18: 70.626 | R18: 67.688 | S18: 70.066 | T18: 72.881 | U18: 75.396 | V18: 82.948 | W18: 88.186 | X18: 88.31 | Y18: 88.935 | Z18: 77.484 | AA18: 74.396 | AB18: 92.806 | AC18: 88.654 | AD18: 83.589 | AE18: 90.738 | AF18: 77.636 | AG18: 88.074 | AH18: 88.145 | AI18: 89.406 | AJ18: 85.4 | AK18: 90.898 | AL18: 87.408 | AM18: 76.024 | AN18: 78.083 | AO18: 73.934 | AP18: 78.78 | AQ18: 77.981 | AR18: 73.805 | AS18: 72.493 | AT18: 75.93 | AU18: 73.879 | AV18: 75.248 | AW18: 88.052 | AX18: 78.849 | AY18: 92.065 | AZ18: 99.712 | BA18: 98.123 | BB18: 93.703 | BC18: 122.455 | BD18: 108.326 | BE18: 100 | BF18: 110.505 | BG18: 109.965 | BH18: 108.004 | BI18: 130.283 | BJ18: 125.601 | BK18: 121.768 | BL18: 115.7 | BM18: 104.348 | BN18: 120.911 | BO18: 111.525 | BP18: 170.655 | BQ18: 180.73 | BR18: 151.059 | BS18: 160.118 | BT18: 183.773 | BU18: 146.712 | BV18: 169.809 | BW18: 161.008 | BX18: 155.473 | BY18: 140.07 | BZ18: 130.791 | CA18: 146.798 | CB18: 130.218 | CC18: 139.781 | CD18: 132.745 | CE18: 137.555 | CF18: 152.006 | CG18: 168.396 | CH18: 155.525 | CI18: 142.352 | CJ18: 160.733 | CK18: 139.139 | CL18: 133.807 | CM18: 142.082 | CN18: 143.935 | CO18: 138.016 | CP18: 140.75 | CQ18: 144.557 | CR18: 145.031 | CS18: 122.809 | CT18: 145.152 | CU18: 143.877 | CV18: 134.731 | CW18: 155.944 | CX18: 158.338 | CY18: 162.104 | CZ18: 199.379 | DA18: 233.937 | DB18: 220.532 | DC18: 278.913 | DD18: 290.93 | DE18: 261.308 | DF18: 333.367 | DG18: 348.271 | DH18: 465.05 | DI18: 529.221 | DJ18: 581.939 | DK18: 673.402 | DL18: 784.971 | DM18: 718.646 | DN18: 1641.199 | DO18: 1838.939 | DP18: 1730.003 | DQ18: 1850.161 | DR18: 1919.418 | DS18: 2549.811 | DT18: 2254.125 | DU18: 3233.396 | DV18: 2504.197 | DW18: 2256.731 | DX18: 3213.273 | DY18: 3059.129 | DZ18: 2964.589 | EA18: 3135.633 | EB18: 2728.417 | EC18: 2720.606 | ED18: 3405.964 | EE18: 3654.181 | EF18: 3768.516 | EG18: 4296.089 | EH18: 4595.454 | EI18: 6777.627 | EJ18: 5150.524 | EK18: 4030.978 | EL18: 8113.233 | EM18: 5440.742 | EN18: 4467.498 | EO18: 4386.324 | EP18: 4648.864 | EQ18: 3942.155 | ER18: 4841.319 | ES18: 7796.097 | ET18: 8096.165 | EU18: 8779.503 | EV18: 9238.939 | EW18: 9269.273 | EX18: 11605.766 | EY18: 12111.664 | EZ18: 12476.448 | FA18: 12874.176 | FB18: 7938.806 | FC18: 6113.494 | FD18: 7409.029 | FE18: 7823.154 | FF18: 8683.539 | FG18: 8856.851 | FH18: 9094.282 | FI18: 6962.417 | FJ18: 9253.957 | FK18: 9959.851 | FL18: 11618.22 | FM18: 11884.675 | FN18: 13327.682 | FO18: 13879.408 | FP18: 14328.651 | FQ18: 16484.888 | FR18: 16631.219 | FS18: 16967.867 | FT18: 17810.637 | FU18: 14595.896 | FV18: 15935.323 | FW18: 11930.019 | FX18: 10983.001 | FY18: 10938.274 | FZ18: 12260.273 | GA18: 15561.62 | GB18: 9921.841 | GC18: 10556.564 | GD18: 11195.405 | GE18: 12623.98 | GF18: 13167.385 | GG18: 14267.376 | GH18: 14981.462 | GI18: 14184.501 | GJ18: 14608.244 | GK18: 16863.189 | GL18: 14213.33247 | GM18: 7632.392581 | GN18: 11588.82462
A19: 16 | B19: 0112 | C19: Meat | F19: 7.49 | G19: 61.911 | H19: 61.225 | I19: 62.853 | J19: 60.831 | K19: 64.402 | L19: 70.628 | M19: 66.69 | N19: 69.711 | O19: 61.485 | P19: 72.969 | Q19: 67.117 | R19: 74.277 | S19: 74.24 | T19: 75.001 | U19: 73.235 | V19: 73.426 | W19: 70.311 | X19: 71.142 | Y19: 74.542 | Z19: 70.488 | AA19: 72.253 | AB19: 70.541 | AC19: 72.467 | AD19: 75.435 | AE19: 67.545 | AF19: 76.562 | AG19: 72.038 | AH19: 72.038 | AI19: 72.038 | AJ19: 71.691 | AK19: 71.913 | AL19: 71.913 | AM19: 72.377 | AN19: 70.137 | AO19: 73.265 | AP19: 77.042 | AQ19: 82.807 | AR19: 84.502 | AS19: 85.594 | AT19: 71.087 | AU19: 81.366 | AV19: 83.027 | AW19: 79.908 | AX19: 84.363 | AY19: 87.844 | AZ19: 87.719 | BA19: 84.239 | BB19: 89.687 | BC19: 99.733 | BD19: 93.244 | BE19: 100 | BF19: 114.151 | BG19: 118.81 | BH19: 115.235 | BI19: 124.944 | BJ19: 120.285 | BK19: 126.175 | BL19: 128.293 | BM19: 126.461 | BN19: 128.523 | BO19: 137.536 | BP19: 156.096 | BQ19: 150.08 | BR19: 155.707 | BS19: 153.469 | BT19: 160.711 | BU19: 162.364 | BV19: 165.319 | BW19: 164.189 | BX19: 165.401 | BY19: 167.712 | BZ19: 168.631 | CA19: 167.613 | CB19: 161.78 | CC19: 167.745 | CD19: 165.266 | CE19: 167.407 | CF19: 163.512 | CG19: 167.305 | CH19: 168.319 | CI19: 160.275 | CJ19: 177.887 | CK19: 168.441 | CL19: 168.052 | CM19: 165.299 | CN19: 164.811 | CO19: 165.476 | CP19: 164.638 | CQ19: 169.022 | CR19: 171.107 | CS19: 170.597 | CT19: 189.659 | CU19: 193.492 | CV19: 194.838 | CW19: 194.334 | CX19: 199.216 | CY19: 226.694 | CZ19: 245.826 | DA19: 283.202 | DB19: 282.786 | DC19: 286.853 | DD19: 356.842 | DE19: 312.592 | DF19: 372.282 | DG19: 396.664 | DH19: 500.009 | DI19: 527.807 | DJ19: 520.079 | DK19: 656.534 | DL19: 669.298 | DM19: 704.311 | DN19: 929.333 | DO19: 1017.789 | DP19: 1295.086 | DQ19: 1415.077 | DR19: 1518.461 | DS19: 1621.614 | DT19: 1991.58 | DU19: 2265.163 | DV19: 2249.862 | DW19: 2225.819 | DX19: 2616.247 | DY19: 2660.859 | DZ19: 2560.315 | EA19: 3225.246 | EB19: 3976.425 | EC19: 3448.18 | ED19: 4167.097 | EE19: 4394.093 | EF19: 4936.055 | EG19: 4609.487 | EH19: 5463.356 | EI19: 6597.3 | EJ19: 6666.963 | EK19: 6609.494 | EL19: 7110.731 | EM19: 6364.698 | EN19: 6291.487 | EO19: 6195.762 | EP19: 6661.649 | EQ19: 6700.566 | ER19: 7225.437 | ES19: 6000.582 | ET19: 7887.702 | EU19: 8011.168 | EV19: 8085.332 | EW19: 8531.858 | EX19: 9026.423 | EY19: 9814.79 | EZ19: 10611.952 | FA19: 11326.22 | FB19: 8143.707 | FC19: 8475.084 | FD19: 9465.343 | FE19: 9813.999 | FF19: 10091.689 | FG19: 9373.452 | FH19: 9700.105 | FI19: 10894.079 | FJ19: 11574.127 | FK19: 12011.585 | FL19: 13077.301 | FM19: 14400.214 | FN19: 15504.9 | FO19: 14973.273 | FP19: 15251.261 | FQ19: 16943.357 | FR19: 17377.596 | FS19: 17820.81 | FT19: 18163.145 | FU19: 17229.214 | FV19: 17794.914 | FW19: 16323.534 | FX19: 15222.9 | FY19: 16691.427 | FZ19: 16188.713 | GA19: 15079.247 | GB19: 14647.915 | GC19: 16347.646 | GD19: 14891.868 | GE19: 16928.359 | GF19: 16879.056 | GG19: 17243.797 | GH19: 16243.975 | GI19: 17167.758 | GJ19: 17416.39 | GK19: 17773.676 | GL19: 17917.84351 | GM19: 16705.55704 | GN19: 19869.95019
A20: 17 | B20: 0113 | C20: Fish & Sea foods | F20: 5.74 | G20: 58.795 | H20: 56.487 | I20: 63.175 | J20: 65.374 | K20: 65.597 | L20: 87.702 | M20: 76.949 | N20: 72.948 | O20: 72.363 | P20: 91.642 | Q20: 78.727 | R20: 72.863 | S20: 76.352 | T20: 71.927 | U20: 79.734 | V20: 76.755 | W20: 70.208 | X20: 69.98 | Y20: 72.474 | Z20: 83.424 | AA20: 47.275 | AB20: 70.621 | AC20: 74.677 | AD20: 83.504 | AE20: 74.654 | AF20: 95.096 | AG20: 98.525 | AH20: 84.403 | AI20: 83.942 | AJ20: 77.209 | AK20: 82.283 | AL20: 76.981 | AM20: 75.423 | AN20: 71.873 | AO20: 72.367 | AP20: 72.51 | AQ20: 78.772 | AR20: 84.657 | AS20: 80.492 | AT20: 86.907 | AU20: 86.254 | AV20: 86.254 | AW20: 84.293 | AX20: 98.844 | AY20: 103.262 | AZ20: 103.262 | BA20: 108.671 | BB20: 98.934 | BC20: 134.462 | BD20: 111.892 | BE20: 100 | BF20: 84.383 | BG20: 135.084 | BH20: 114.085 | BI20: 134.823 | BJ20: 146.537 | BK20: 107.141 | BL20: 133.496 | BM20: 127.015 | BN20: 148.373 | BO20: 122.887 | BP20: 145.915 | BQ20: 144.049 | BR20: 155.102 | BS20: 206.213 | BT20: 127.772 | BU20: 153.376 | BV20: 171.683 | BW20: 156.902 | BX20: 151.031 | BY20: 111.107 | BZ20: 107.768 | CA20: 131.584 | CB20: 130.266 | CC20: 172.56 | CD20: 161.557 | CE20: 165.255 | CF20: 123.107 | CG20: 142.223 | CH20: 118.147 | CI20: 131.15 | CJ20: 131.292 | CK20: 160.028 | CL20: 106.51 | CM20: 124.875 | CN20: 136.814 | CO20: 151.701 | CP20: 164.146 | CQ20: 206.582 | CR20: 151.624 | CS20: 150.425 | CT20: 126.966 | CU20: 124.519 | CV20: 129.697 | CW20: 124.735 | CX20: 130.757 | CY20: 161.702 | CZ20: 176.36 | DA20: 204.601 | DB20: 225.376 | DC20: 185.406 | DD20: 398.313 | DE20: 210.706 | DF20: 282.618 | DG20: 286.131 | DH20: 304.819 | DI20: 523.454 | DJ20: 491.546 | DK20: 602.849 | DL20: 670.481 | DM20: 574.786 | DN20: 1237.41 | DO20: 1458.37 | DP20: 1534.588 | DQ20: 988.089 | DR20: 1008.956 | DS20: 1474.397 | DT20: 1142.318 | DU20: 1163.954 | DV20: 2152.401 | DW20: 1217.368 | DX20: 2157.107 | DY20: 2785.522 | DZ20: 2647.368 | EA20: 2955.798 | EB20: 3191.583 | EC20: 2691.796 | ED20: 3372.082 | EE20: 3815.382 | EF20: 4259.848 | EG20: 3786.312 | EH20: 5190.56 | EI20: 6097.284 | EJ20: 6289.835 | EK20: 4401.273 | EL20: 5723.891 | EM20: 3396.776 | EN20: 3113.903 | EO20: 4984.494 | EP20: 4855.018 | EQ20: 8415.705 | ER20: 6622.875 | ES20: 7482.543 | ET20: 12833.679 | EU20: 13360.515 | EV20: 13796.184 | EW20: 14258.103 | EX20: 14391.392 | EY20: 14655.736 | EZ20: 15184.336 | FA20: 16406.682 | FB20: 14076.127 | FC20: 10805.375 | FD20: 11463.362 | FE20: 12245.148 | FF20: 12638.859 | FG20: 14052.432 | FH20: 15823.014 | FI20: 11411.328 | FJ20: 12968.064 | FK20: 16785.786 | FL20: 8047.984 | FM20: 8598.769 | FN20: 9945.056 | FO20: 12294.497 | FP20: 12260.11 | FQ20: 14128.867 | FR20: 14245.75 | FS20: 14165.024 | FT20: 15343.259 | FU20: 5470.255 | FV20: 11845.791 | FW20: 12400.822 | FX20: 16712.559 | FY20: 15184.5 | FZ20: 12374.23 | GA20: 10308.9 | GB20: 8323.199 | GC20: 9555.949 | GD20: 9676.378 | GE20: 10586.834 | GF20: 11785.216 | GG20: 8191.833 | GH20: 9482.44 | GI20: 6576.51 | GJ20: 7011.236 | GK20: 3359.983 | GL20: 5078.060437 | GM20: 3690.57003 | GN20: 6092.012348
A21: 18 | B21: 0114 | C21: Milk,Cheese & Eggs | F21: 3.48 | G21: 51.916 | H21: 51.916 | I21: 53.102 | J21: 52.251 | K21: 56.05 | L21: 57.017 | M21: 59.094 | N21: 53.811 | O21: 53.129 | P21: 64.74 | Q21: 60.235 | R21: 68.248 | S21: 64.163 | T21: 62.809 | U21: 65.893 | V21: 68.483 | W21: 72.482 | X21: 68.973 | Y21: 68.257 | Z21: 69.17 | AA21: 67.277 | AB21: 71.574 | AC21: 67.206 | AD21: 70.581 | AE21: 70.018 | AF21: 67.538 | AG21: 68.344 | AH21: 68.344 | AI21: 68.344 | AJ21: 72.111 | AK21: 73.138 | AL21: 70.581 | AM21: 69.858 | AN21: 70.744 | AO21: 75.46 | AP21: 71.182 | AQ21: 70.252 | AR21: 70.02 | AS21: 79.608 | AT21: 73.714 | AU21: 74.559 | AV21: 71.697 | AW21: 76.677 | AX21: 80.422 | AY21: 85.614 | AZ21: 87.598 | BA21: 89.095 | BB21: 94.412 | BC21: 102.404 | BD21: 82.375 | BE21: 100 | BF21: 94.252 | BG21: 101.232 | BH21: 106.014 | BI21: 121.839 | BJ21: 133.222 | BK21: 105.738 | BL21: 135.638 | BM21: 137.244 | BN21: 119.256 | BO21: 179.225 | BP21: 165.962 | BQ21: 117.934 | BR21: 251.624 | BS21: 112.103 | BT21: 126.522 | BU21: 127.531 | BV21: 128.348 | BW21: 139.557 | BX21: 119.516 | BY21: 130.085 | BZ21: 163.975 | CA21: 154.637 | CB21: 161.241 | CC21: 119.293 | CD21: 159.719 | CE21: 156.126 | CF21: 124.755 | CG21: 127.975 | CH21: 139.659 | CI21: 145.586 | CJ21: 171.822 | CK21: 149.146 | CL21: 134.385 | CM21: 131.561 | CN21: 134.76 | CO21: 132.107 | CP21: 141.341 | CQ21: 140.733 | CR21: 120.571 | CS21: 162.214 | CT21: 205.854 | CU21: 199.365 | CV21: 138.859 | CW21: 142.225 | CX21: 163.992 | CY21: 168.607 | CZ21: 210.565 | DA21: 273.355 | DB21: 229.297 | DC21: 270.444 | DD21: 291.05 | DE21: 312.995 | DF21: 390.295 | DG21: 400.607 | DH21: 431.714 | DI21: 469.196 | DJ21: 610.604 | DK21: 651.427 | DL21: 807.006 | DM21: 731.263 | DN21: 1034.147 | DO21: 1086.63 | DP21: 1369.265 | DQ21: 1429.343 | DR21: 1541.481 | DS21: 1821.459 | DT21: 1726.237 | DU21: 2121.338 | DV21: 2208.273 | DW21: 2383.742 | DX21: 2972.986 | DY21: 2878.645 | DZ21: 3510.555 | EA21: 2936.344 | EB21: 8320.19 | EC21: 3565.178 | ED21: 3611.402 | EE21: 5447.347 | EF21: 4841.439 | EG21: 5603.928 | EH21: 5190.52 | EI21: 10876.565 | EJ21: 8657.562 | EK21: 7821.994 | EL21: 7612.592 | EM21: 7085.653 | EN21: 6358.542 | EO21: 5818.683 | EP21: 7030.045 | EQ21: 7063.367 | ER21: 6290.054 | ES21: 6603.697 | ET21: 7490.12 | EU21: 9124.247 | EV21: 9695.472 | EW21: 9974.76 | EX21: 10128.456 | EY21: 10676.666 | EZ21: 10873.281 | FA21: 10890.983 | FB21: 6559.951 | FC21: 6385.019 | FD21: 6978.546 | FE21: 8581.244 | FF21: 9278.015 | FG21: 9378.161 | FH21: 9520.311 | FI21: 9631.49 | FJ21: 10180.732 | FK21: 11253.644 | FL21: 8524.417 | FM21: 9473.749 | FN21: 10147.556 | FO21: 10552.187 | FP21: 10391.507 | FQ21: 11178.804 | FR21: 11752.238 | FS21: 14264.08 | FT21: 13973.797 | FU21: 10127.025 | FV21: 11431.072 | FW21: 13262.56 | FX21: 11543.048 | FY21: 11863.752 | FZ21: 11057.332 | GA21: 11261.764 | GB21: 12146.964 | GC21: 11156.354 | GD21: 10511.525 | GE21: 11414.669 | GF21: 11108.75 | GG21: 11381.213 | GH21: 12177.089 | GI21: 12828.009 | GJ21: 12347.843 | GK21: 15161.101 | GL21: 13090.55068 | GM21: 14381.35938 | GN21: 15017.05029
A22: 19 | B22: 0115 | C22: Oils & Fats | F22: 3.07 | G22: 50 | H22: 50 | I22: 50 | J22: 50 | K22: 50 | L22: 75 | M22: 65.625 | N22: 53.125 | O22: 59.375 | P22: 59.375 | Q22: 43.75 | R22: 62.5 | S22: 59.375 | T22: 68.75 | U22: 75 | V22: 75 | W22: 75 | X22: 75 | Y22: 75 | Z22: 78.25 | AA22: 75 | AB22: 71.875 | AC22: 75 | AD22: 72 | AE22: 65.75 | AF22: 72 | AG22: 62.5 | AH22: 62.5 | AI22: 62.5 | AJ22: 75 | AK22: 68.75 | AL22: 62.5 | AM22: 70.75 | AN22: 70.75 | AO22: 70.875 | AP22: 75 | AQ22: 75 | AR22: 70.75 | AS22: 58.25 | AT22: 75 | AU22: 70.75 | AV22: 62.5 | AW22: 75 | AX22: 70.75 | AY22: 62.5 | AZ22: 100 | BA22: 100 | BB22: 100 | BC22: 100 | BD22: 100 | BE22: 100 | BF22: 100.592 | BG22: 132.347 | BH22: 136.489 | BI22: 114.398 | BJ22: 139.842 | BK22: 176.923 | BL22: 136.095 | BM22: 132.295 | BN22: 144.97 | BO22: 147.321 | BP22: 132.544 | BQ22: 132.544 | BR22: 141.005 | BS22: 140.994 | BT22: 140.994 | BU22: 140.994 | BV22: 145.224 | BW22: 162.154 | BX22: 137.87 | BY22: 136.095 | BZ22: 155.621 | CA22: 120.888 | CB22: 135.323 | CC22: 132.544 | CD22: 136.095 | CE22: 112.426 | CF22: 117.949 | CG22: 123.471 | CH22: 127.022 | CI22: 121.499 | CJ22: 126.485 | CK22: 138.556 | CL22: 136.194 | CM22: 121.499 | CN22: 126.485 | CO22: 132.556 | CP22: 125.278 | CQ22: 134.895 | CR22: 120.34 | CS22: 129.957 | CT22: 148.67 | CU22: 129.957 | CV22: 134.895 | CW22: 144.512 | CX22: 137.234 | CY22: 163.745 | CZ22: 175.835 | DA22: 198.814 | DB22: 226.787 | DC22: 270.746 | DD22: 282.485 | DE22: 266.001 | DF22: 316.953 | DG22: 388.136 | DH22: 466.562 | DI22: 538.745 | DJ22: 580.955 | DK22: 821.23 | DL22: 711.832 | DM22: 893.162 | DN22: 1363.721 | DO22: 1362.049 | DP22: 1626.151 | DQ22: 1291.572 | DR22: 1321.094 | DS22: 1720.867 | DT22: 1639.682 | DU22: 2361.733 | DV22: 2199.363 | DW22: 2509.341 | DX22: 11272.352 | DY22: 3025.97 | DZ22: 3097.314 | EA22: 3021.05 | EB22: 3097.314 | EC22: 2959.546 | ED22: 11018.958 | EE22: 3586.881 | EF22: 3697.587 | EG22: 3554.899 | EH22: 3394.682 | EI22: 4503.099 | EJ22: 5351.149 | EK22: 5406.376 | EL22: 4283.551 | EM22: 4192.043 | EN22: 3915.047 | EO22: 3368.474 | EP22: 4476.459 | EQ22: 3942.252 | ER22: 27265.729 | ES22: 28481.164 | ET22: 28900.375 | EU22: 29709.451 | EV22: 29902.288 | EW22: 27047.464 | EX22: 27047.464 | EY22: 27084.813 | EZ22: 29077.759 | FA22: 29194.991 | FB22: 13473.373 | FC22: 14672.584 | FD22: 17228.797 | FE22: 17646.943 | FF22: 17692.308 | FG22: 15571.992 | FH22: 14349.112 | FI22: 14418.146 | FJ22: 17406.312 | FK22: 17589.744 | FL22: 21577.909 | FM22: 26187.377 | FN22: 29500.986 | FO22: 34595.661 | FP22: 31617.357 | FQ22: 31656.805 | FR22: 32110.454 | FS22: 59980.276 | FT22: 34082.84 | FU22: 33165.68 | FV22: 31104.536 | FW22: 27771.203 | FX22: 25276.134 | FY22: 45463.511 | FZ22: 38067.061 | GA22: 30808.679 | GB22: 30474.838 | GC22: 35946.746 | GD22: 39526.627 | GE22: 45857.988 | GF22: 46656.805 | GG22: 45976.331 | GH22: 53846.154 | GI22: 57041.42 | GJ22: 27810.651 | GK22: 40453.649 | GL22: 44792.89941 | GM22: 49733.72781 | GN22: 37337.27811
A23: 20 | B23: 0116 | C23: Fruits | F23: 2.71 | G23: 35.929 | H23: 41.001 | I23: 38.746 | J23: 43.995 | K23: 46.522 | L23: 41.282 | M23: 47.1 | N23: 60.917 | O23: 46.107 | P23: 55.217 | Q23: 47.819 | R23: 51.762 | S23: 53.545 | T23: 55.874 | U23: 55.104 | V23: 61.638 | W23: 53.457 | X23: 56.907 | Y23: 48.335 | Z23: 61.658 | AA23: 56.549 | AB23: 54.986 | AC23: 45.312 | AD23: 51.589 | AE23: 48.636 | AF23: 58.744 | AG23: 58.435 | AH23: 56.779 | AI23: 54.441 | AJ23: 61.142 | AK23: 53.877 | AL23: 85.379 | AM23: 58 | AN23: 64.29 | AO23: 58.983 | AP23: 56.962 | AQ23: 58.871 | AR23: 60.145 | AS23: 61.677 | AT23: 57.69 | AU23: 62.431 | AV23: 56.74 | AW23: 53.28 | AX23: 65.834 | AY23: 60.551 | AZ23: 74.441 | BA23: 74.646 | BB23: 69.142 | BC23: 77.899 | BD23: 79.497 | BE23: 100 | BF23: 104.014 | BG23: 106.667 | BH23: 104.372 | BI23: 156.969 | BJ23: 165.994 | BK23: 236.636 | BL23: 219.807 | BM23: 299.012 | BN23: 155.133 | BO23: 137.874 | BP23: 413.294 | BQ23: 458.692 | BR23: 480.039 | BS23: 449.781 | BT23: 299.439 | BU23: 317.891 | BV23: 926.394 | BW23: 301.334 | BX23: 680.373 | BY23: 180.504 | BZ23: 186.23 | CA23: 131.694 | CB23: 282.219 | CC23: 260.99 | CD23: 263.013 | CE23: 263.185 | CF23: 271.803 | CG23: 276.07 | CH23: 275.622 | CI23: 269.976 | CJ23: 275.449 | CK23: 272.945 | CL23: 256.937 | CM23: 267.8 | CN23: 264.439 | CO23: 414.195 | CP23: 438.381 | CQ23: 412.35 | CR23: 326.976 | CS23: 289.904 | CT23: 1075.535 | CU23: 292.353 | CV23: 248.417 | CW23: 339.707 | CX23: 270.972 | CY23: 168.102 | CZ23: 221.164 | DA23: 328.112 | DB23: 622.434 | DC23: 485.537 | DD23: 842.28 | DE23: 1015.429 | DF23: 483.814 | DG23: 386.027 | DH23: 400.842 | DI23: 380.678 | DJ23: 578.446 | DK23: 570.406 | DL23: 903.064 | DM23: 674.607 | DN23: 1253.984 | DO23: 346.705 | DP23: 1770.512 | DQ23: 1283.173 | DR23: 4549.411 | DS23: 4086.904 | DT23: 3869.313 | DU23: 10592.153 | DV23: 7346.327 | DW23: 5399.253 | DX23: 10010.433 | DY23: 7772.728 | DZ23: 8605.978 | EA23: 9350.345 | EB23: 8997.137 | EC23: 12027.665 | ED23: 5448.275 | EE23: 4888.467 | EF23: 8540.188 | EG23: 6222.538 | EH23: 9126.209 | EI23: 10976.584 | EJ23: 7968.551 | EK23: 14100.77 | EL23: 15027.995 | EM23: 17407.773 | EN23: 13433.082 | EO23: 8586.432 | EP23: 9989.515 | EQ23: 8456.021 | ER23: 21098.003 | ES23: 18710.576 | ET23: 21036.91 | EU23: 23959.522 | EV23: 30213.297 | EW23: 32565.625 | EX23: 33018.01 | EY23: 34717.625 | EZ23: 35125.833 | FA23: 35252.692 | FB23: 12624.081 | FC23: 7962.418 | FD23: 38384.726 | FE23: 41661.84 | FF23: 38470.64 | FG23: 40415.818 | FH23: 44823.857 | FI23: 49002.705 | FJ23: 52130.655 | FK23: 63644.834 | FL23: 77695.926 | FM23: 92195.679 | FN23: 72039.949 | FO23: 20162.542 | FP23: 25145.029 | FQ23: 32739.633 | FR23: 32890.463 | FS23: 25861.44 | FT23: 41959.227 | FU23: 48810.353 | FV23: 35654.928 | FW23: 106259.355 | FX23: 98209.839 | FY23: 106914.076 | FZ23: 55118.472 | GA23: 26088.076 | GB23: 23025.456 | GC23: 19965.283 | GD23: 27669.544 | GE23: 68588.002 | GF23: 57390.354 | GG23: 16075.644 | GH23: 18060.613 | GI23: 20533.285 | GJ23: 20113.747 | GK23: 20283.504 | GL23: 15846.45022 | GM23: 9695.809551 | GN23: 22344.71183
A24: 21 | B24: 0117 | C24: Vegetables | F24: 9.53 | G24: 32.594 | H24: 39.351 | I24: 35.565 | J24: 33.827 | K24: 34.393 | L24: 33.769 | M24: 56.307 | N24: 46.036 | O24: 49.387 | P24: 58.475 | Q24: 53.828 | R24: 46.049 | S24: 48.625 | T24: 51.117 | U24: 43.639 | V24: 49.09 | W24: 41.56 | X24: 48.252 | Y24: 46.777 | Z24: 50.535 | AA24: 59.502 | AB24: 64.012 | AC24: 45.205 | AD24: 49.877 | AE24: 45.318 | AF24: 42.165 | AG24: 43.862 | AH24: 42.3 | AI24: 44.216 | AJ24: 45.628 | AK24: 57.147 | AL24: 53.08 | AM24: 53.133 | AN24: 55.261 | AO24: 53.245 | AP24: 55.737 | AQ24: 56.502 | AR24: 49.25 | AS24: 49.253 | AT24: 45.513 | AU24: 46.61 | AV24: 47.982 | AW24: 50.855 | AX24: 45.921 | AY24: 71.511 | AZ24: 84.9 | BA24: 87.416 | BB24: 68.635 | BC24: 86.728 | BD24: 80.312 | BE24: 299.439 | BF24: 30.83 | BG24: 31.317 | BH24: 34.237 | BI24: 36.408 | BJ24: 40.116 | BK24: 35.841 | BL24: 42.682 | BM24: 42.464 | BN24: 39.367 | BO24: 43.612 | BP24: 60.095 | BQ24: 50.652 | BR24: 48.46 | BS24: 42.996 | BT24: 42.977 | BU24: 41.702 | BV24: 40.57 | BW24: 44.891 | BX24: 43.174 | BY24: 45.294 | BZ24: 42.227 | CA24: 43.469 | CB24: 43.708 | CC24: 39.703 | CD24: 40.065 | CE24: 36.902 | CF24: 43.597 | CG24: 37.526 | CH24: 48.004 | CI24: 38.993 | CJ24: 44.872 | CK24: 46.169 | CL24: 48.396 | CM24: 39.289 | CN24: 38.202 | CO24: 38.216 | CP24: 34.1 | CQ24: 36.586 | CR24: 32.713 | CS24: 32.541 | CT24: 44.645 | CU24: 43.564 | CV24: 43.881 | CW24: 43.197 | CX24: 49.941 | CY24: 52.227 | CZ24: 63.716 | DA24: 83.622 | DB24: 65.927 | DC24: 70.026 | DD24: 75.618 | DE24: 90.899 | DF24: 100.073 | DG24: 105.861 | DH24: 134.26 | DI24: 163.063 | DJ24: 186.83 | DK24: 212.565 | DL24: 235.565 | DM24: 245.768 | DN24: 468.143 | DO24: 367.425 | DP24: 611.648 | DQ24: 502.965 | DR24: 422.587 | DS24: 518.384 | DT24: 558.16 | DU24: 862.924 | DV24: 741.145 | DW24: 900.266 | DX24: 950.522 | DY24: 929.236 | DZ24: 915.765 | EA24: 766.247 | EB24: 878.009 | EC24: 895.193 | ED24: 957.391 | EE24: 1422.297 | EF24: 1618.334 | EG24: 1449.671 | EH24: 1713.661 | EI24: 1669.306 | EJ24: 1598.728 | EK24: 1684.574 | EL24: 1685.148 | EM24: 1552.39 | EN24: 1582.773 | EO24: 1641.812 | EP24: 1569.671 | EQ24: 1632.836 | ER24: 1447.575 | ES24: 1900.984 | ET24: 2377.943 | EU24: 2458.909 | EV24: 2518.448 | EW24: 2875.176 | EX24: 3386.796 | EY24: 3410.884 | EZ24: 3466.689 | FA24: 3831.047 | FB24: 2854.833 | FC24: 3614.301 | FD24: 3971.656 | FE24: 4456.61 | FF24: 4469.641 | FG24: 4035.091 | FH24: 4117.62 | FI24: 2899.158 | FJ24: 3373.36 | FK24: 3564.74 | FL24: 3142.089 | FM24: 3457.515 | FN24: 4116.175 | FO24: 4154.422 | FP24: 4196.525 | FQ24: 4021.197 | FR24: 4142.954 | FS24: 4241.259 | FT24: 3724.7 | FU24: 3441.536 | FV24: 3400.993 | FW24: 3313.513 | FX24: 3971.721 | FY24: 4147.649 | FZ24: 4743.575 | GA24: 3004.961 | GB24: 2896.971 | GC24: 3048.554 | GD24: 2829.403 | GE24: 4904.63 | GF24: 4959.892 | GG24: 3979.613 | GH24: 3684.31 | GI24: 4258.923 | GJ24: 3790.693 | GK24: 3826.671 | GL24: 11014.75495 | GM24: 8053.069404 | GN24: 11465.5009
A25: 22 | B25: 0118 | C25: Sugar/ jam /honey/confs. | F25: 4.22 | G25: 48.741 | H25: 51.262 | I25: 50.285 | J25: 50.25 | K25: 50.997 | L25: 47.851 | M25: 53.066 | N25: 50.706 | O25: 50.254 | P25: 48.724 | Q25: 51.19 | R25: 51.003 | S25: 49.075 | T25: 54.791 | U25: 64.677 | V25: 59.037 | W25: 60.862 | X25: 59.042 | Y25: 58.165 | Z25: 54.845 | AA25: 50.726 | AB25: 56.231 | AC25: 55.785 | AD25: 60.162 | AE25: 71.687 | AF25: 63.599 | AG25: 58.053 | AH25: 56.946 | AI25: 58.218 | AJ25: 67.527 | AK25: 71.315 | AL25: 82.471 | AM25: 68.674 | AN25: 73.223 | AO25: 69.879 | AP25: 65.504 | AQ25: 75.595 | AR25: 76.016 | AS25: 76.412 | AT25: 79.35 | AU25: 70.438 | AV25: 74.8 | AW25: 69.932 | AX25: 68.894 | AY25: 75.437 | AZ25: 85.876 | BA25: 86.976 | BB25: 101.352 | BC25: 95.343 | BD25: 100 | BE25: 148.162 | BF25: 74.336 | BG25: 93.249 | BH25: 109.59 | BI25: 110.446 | BJ25: 107.518 | BK25: 105.034 | BL25: 91.394 | BM25: 87.166 | BN25: 86.329 | BO25: 85.36 | BP25: 100.356 | BQ25: 96.122 | BR25: 97.516 | BS25: 93.536 | BT25: 100.661 | BU25: 94.139 | BV25: 93.177 | BW25: 99.161 | BX25: 98.222 | BY25: 100 | BZ25: 97.683 | CA25: 97.678 | CB25: 98.528 | CC25: 88.955 | CD25: 96.628 | CE25: 91.977 | CF25: 77.742 | CG25: 91.255 | CH25: 96.205 | CI25: 95.383 | CJ25: 88.223 | CK25: 103.213 | CL25: 98.342 | CM25: 86.055 | CN25: 83.261 | CO25: 83.733 | CP25: 85.004 | CQ25: 80.38 | CR25: 85.073 | CS25: 92.494 | CT25: 99.308 | CU25: 90.602 | CV25: 93.145 | CW25: 90.911 | CX25: 113.693 | CY25: 120.718 | CZ25: 122.082 | DA25: 156.856 | DB25: 143.329 | DC25: 171.012 | DD25: 178.166 | DE25: 193.393 | DF25: 226.765 | DG25: 247.153 | DH25: 252.686 | DI25: 386.321 | DJ25: 454.672 | DK25: 498.705 | DL25: 475.008 | DM25: 563.107 | DN25: 993.304 | DO25: 975.332 | DP25: 1242.202 | DQ25: 1154.18 | DR25: 1168.33 | DS25: 1441.008 | DT25: 1418.223 | DU25: 1719.319 | DV25: 1685.686 | DW25: 2102.95 | DX25: 2297.465 | DY25: 2214.711 | DZ25: 2262.202 | EA25: 2355.98 | EB25: 2379.942 | EC25: 2300.585 | ED25: 2464.929 | EE25: 2596.946 | EF25: 2809.529 | EG25: 3030.116 | EH25: 2860.473 | EI25: 3066.88 | EJ25: 3997.445 | EK25: 4055.275 | EL25: 3088.639 | EM25: 3194.733 | EN25: 3020.653 | EO25: 3279.054 | EP25: 3243.654 | EQ25: 3178.12 | ER25: 6098.371 | ES25: 6712.265 | ET25: 8035.95 | EU25: 8254.082 | EV25: 8280.411 | EW25: 8344.539 | EX25: 8446.505 | EY25: 8696.406 | EZ25: 8791.192 | FA25: 8817.47 | FB25: 3702.479 | FC25: 3769.006 | FD25: 4129.495 | FE25: 5113.129 | FF25: 5233.461 | FG25: 4597.634 | FH25: 4083.459 | FI25: 4451.067 | FJ25: 4523.81 | FK25: 5077.079 | FL25: 5954.329 | FM25: 6103.408 | FN25: 6296.946 | FO25: 6531.532 | FP25: 6332.332 | FQ25: 6782.286 | FR25: 8365.424 | FS25: 6361.19 | FT25: 7710.072 | FU25: 7798.855 | FV25: 7123.705 | FW25: 7645.126 | FX25: 7628.603 | FY25: 7141.876 | FZ25: 7471.215 | GA25: 8072.918 | GB25: 7720.593 | GC25: 7802.201 | GD25: 8236.978 | GE25: 8445.162 | GF25: 8951.697 | GG25: 8754.371 | GH25: 9525.147 | GI25: 12008.362 | GJ25: 12234.196 | GK25: 10253.949 | GL25: 14872.57396 | GM25: 17233.41549 | GN25: 19566.55243
A26: 23 | B26: 0119 | C26: Food products n.e.c. | F26: 1.47 | G26: 71.759 | H26: 75.316 | I26: 75.811 | J26: 75.464 | K26: 76.335 | L26: 80.162 | M26: 78.194 | N26: 75.232 | O26: 104.054 | P26: 101.231 | Q26: 104.897 | R26: 104.485 | S26: 105.703 | T26: 109.013 | U26: 109.218 | V26: 107.865 | W26: 128.506 | X26: 107.935 | Y26: 117.816 | Z26: 122.755 | AA26: 103.334 | AB26: 127.686 | AC26: 119.044 | AD26: 122.282 | AE26: 123.301 | AF26: 137.744 | AG26: 117.196 | AH26: 119.739 | AI26: 127.686 | AJ26: 126.756 | AK26: 124.014 | AL26: 121.449 | AM26: 126.579 | AN26: 127.117 | AO26: 126.848 | AP26: 126.579 | AQ26: 127.117 | AR26: 127.117 | AS26: 119.04 | AT26: 127.117 | AU26: 126.401 | AV26: 126.04 | AW26: 126.94 | AX26: 127.125 | AY26: 127.125 | AZ26: 127.125 | BA26: 133.331 | BB26: 130.497 | BC26: 132.128 | BD26: 133.035 | BE26: 139.52 | BF26: 70.995 | BG26: 84.664 | BH26: 89.228 | BI26: 109.142 | BJ26: 81.973 | BK26: 76.964 | BL26: 65.046 | BM26: 72.012 | BN26: 66.765 | BO26: 92.066 | BP26: 101.961 | BQ26: 120.301 | BR26: 101.046 | BS26: 118.994 | BT26: 115.792 | BU26: 93.596 | BV26: 118.867 | BW26: 106.042 | BX26: 96.398 | BY26: 100 | BZ26: 95.535 | CA26: 96.435 | CB26: 86.397 | CC26: 104.83 | CD26: 84.265 | CE26: 90.198 | CF26: 96.983 | CG26: 106.192 | CH26: 98.127 | CI26: 95.094 | CJ26: 98.092 | CK26: 109.403 | CL26: 97.183 | CM26: 102.169 | CN26: 80.482 | CO26: 113.347 | CP26: 109.45 | CQ26: 129.098 | CR26: 107.784 | CS26: 137.292 | CT26: 148.971 | CU26: 119.86 | CV26: 134.012 | CW26: 111.25 | CX26: 140.057 | CY26: 169.21 | CZ26: 203.806 | DA26: 216.214 | DB26: 190.786 | DC26: 222.426 | DD26: 265.536 | DE26: 273.87 | DF26: 314.23 | DG26: 326.733 | DH26: 359.617 | DI26: 420.451 | DJ26: 530.439 | DK26: 626.123 | DL26: 894.941 | DM26: 745.894 | DN26: 1122.112 | DO26: 1377.096 | DP26: 1717.085 | DQ26: 1729.128 | DR26: 1688.965 | DS26: 1691.569 | DT26: 1708.777 | DU26: 1975.905 | DV26: 2022.646 | DW26: 2334.783 | DX26: 2492.486 | DY26: 2556.571 | DZ26: 2611.498 | EA26: 2883.182 | EB26: 2744.156 | EC26: 3013.631 | ED26: 3030.881 | EE26: 3439.564 | EF26: 3314.671 | EG26: 3311.061 | EH26: 3515.728 | EI26: 3710.184 | EJ26: 4659.469 | EK26: 4936.686 | EL26: 3744.025 | EM26: 4528.385 | EN26: 3884.74 | EO26: 3385.948 | EP26: 4376.745 | EQ26: 4519.749 | ER26: 10898.114 | ES26: 12740.367 | ET26: 14116.081 | EU26: 14594.633 | EV26: 14776.284 | EW26: 14824.232 | EX26: 15190.658 | EY26: 15232.35 | EZ26: 15357.734 | FA26: 17344.791 | FB26: 46716.532 | FC26: 98413.942 | FD26: 32110.977 | FE26: 43575.954 | FF26: 49938.936 | FG26: 91766.478 | FH26: 93001.145 | FI26: 41739.814 | FJ26: 41618.067 | FK26: 59198.541 | FL26: 118509.389 | FM26: 89976.746 | FN26: 35948.901 | FO26: 34266.34 | FP26: 37078.335 | FQ26: 20069.832 | FR26: 20654.134 | FS26: 12759.26 | FT26: 10924.457 | FU26: 10494.679 | FV26: 18682.186 | FW26: 38405.594 | FX26: 43253.367 | FY26: 77687.617 | FZ26: 48737.937 | GA26: 37685.457 | GB26: 54483.313 | GC26: 38964.735 | GD26: 79520.163 | GE26: 48285.148 | GF26: 52655.278 | GG26: 31192.474 | GH26: 28361.002 | GI26: 25241.433 | GJ26: 25558.06 | GK26: 14052.876 | GL26: 18032.42329 | GM26: 19675.27854 | GN26: 22617.81768

Sheet Group index series - Juba
B1: Aggregate Consumer Price Index Series Juba | C1: Weights from June 2011- | H1: June 2011 = 100 | T1: June 2011 = 100 | AF1: June 2011 = 100 | AR1: June 2011 = 100
A2: Coicop | B2: Item description | C2: Weight Coicop 3 | D2: Weight Coicop 2 | E2: Weight Coicop 4 | F2: Apr 2007 | G2: May 2007 | H2: June 2007 | I2: July 2007 | J2: Aug 2007 | K2: Sep 2007 | L2: Oct 2007 | M2: Nov 2007 | N2: Dec 2007 | O2: Jan 2008 | P2: Feb 2008 | Q2: Mar 2008 | R2: Apr 2008 | S2: May 2008 | T2: June 2008 | U2: July 2008 | V2: Aug 2008 | W2: Sep 2008 | X2: Oct 2008 | Y2: Nov 2008 | Z2: Dec 2008 | AA2: Jan 2009 | AB2: Feb 2009 | AC2: Mar 2009 | AD2: Apr 2009 | AE2: May 2009 | AF2: June 2009 | AG2: July 2009 | AH2: Aug 2009 | AI2: Sep 2009 | AJ2: Oct 2009 | AK2: Nov 2009 | AL2: Dec 2009 | AM2: Jan 2010 | AN2: Feb 2010 | AO2: Mar 2010 | AP2: Apr 2010 | AQ2: May 2010 | AR2: June 2010 | AS2: July 2010 | AT2: Aug 2010 | AU2: Sep 2010 | AV2: Oct 2010 | AW2: Nov 2010 | AX2: Dec 2010 | AY2: Jan 2011 | AZ2: Feb 2011 | BA2: Mar 2011 | BB2: Apr 2011 | BC2: May 2011 | BD2: June 2011 | BE2: July 2011 | BF2: Aug 2011 | BG2: Sep 2011 | BH2: Oct 2011 | BI2: Nov 2011 | BJ2: Dec 2011 | BK2: Jan 2012 | BL2: Feb 2012 | BM2: Mar 2012 | BN2: Apr 2012 | BO2: May 2012 | BP2: June 2012 | BQ2: July 2012 | BR2: Aug 2012 | BS2: Sep 2012 | BT2: Oct 2012 | BU2: Nov 2012 | BV2: Dec 2012 | BW2: Jan 2013 | BX2: Feb 2013 | BY2: Mar 2013 | BZ2: Apr 2013 | CA2: May 2013 | CB2: June 2013 | CC2: July 2013 | CD2: Aug 2013 | CE2: Sep 2013 | CF2: Oct 2013 | CG2: Nov 2013 | CH2: Dec 2013 | CI2: Jan 2014 | CJ2: Feb 2014 | CK2: Mar 2014 | CL2: Apr 2014 | CM2: May 2014 | CN2: June 2014 | CO2: July 2014 | CP2: Aug 2014 | CQ2: Sep 2014 | CR2: Oct 2014 | CS2: Nov 2014 | CT2: Dec 2014 | CU2: Jan 2015 | CV2: Feb 2015 | CW2: Mar 2015 | CX2: Apr 2015 | CY2: May 2015 | CZ2: Jun 2015 | DA2: July 2015 | DB2: Aug 2015 | DC2: Sep 2015 | DD2: Oct 2015 | DE2: Nov 2015 | DF2: Dec 2015 | DG2: Jan 2016 | DH2: Feb 2016 | DI2: Mar 2016 | DJ2: Apr 2016 | DK2: May 2016 | DL2: Jun 2016 | DM2: July 2016 | DN2: Aug 2016 | DO2: Sep 2016 | DP2: Oct 2016 | DQ2: Nov 2016 | DR2: Dec 2016 | DS2: Jan 2017 | DT2: Feb 2017 | DU2: Mar 2017 | DV2: Apr 2017 | DW2: May 2017 | DX2: Jun 2017 | DY2: July 2017 | DZ2: Aug 2017 | EA2: Sep 2017 | EB2: Oct 2017 | EC2: Nov 2017 | ED2: Dec 2017 | EE2: Jan 2018 | EF2: Feb 2018 | EG2: Mar 2018 | EH2: Apr 2018 | EI2: May 2018 | EJ2: Jun 2018 | EK2: July 2018 | EL2: Aug 2018 | EM2: Sep 2018 | EN2: Oct 2018 | EO2: Nov 2018 | EP2: Dec 2018 | EQ2: Jan 2019 | ER2: Feb 2019 | ES2: Mar 2019 | ET2: Apr 2019 | EU2: May 2019 | EV2: Jun 2019 | EW2: July 2019 | EX2: Aug 2019 | EY2: Sep 2019 | EZ2: Oct 2019 | FA2: Nov 2019 | FB2: Dec 2019 | FC2: Jan 2020 | FD2: Feb 2020 | FE2: Mar 2020 | FF2: Apr 2020 | FG2: May 2020 | FH2: June 2020 | FI2: July 2020 | FJ2: Aug 2020 | FK2: Sep 2020 | FL2: Oct 2020 | FM2: Nov 2020 | FN2: Dec 2020 | FO2: Jan 2021 | FP2: Feb 2021 | FQ2: Mar 2021 | FR2: Apr 2021 | FS2: May 2021 | FT2: June 2021 | FU2: July 2021 | FV2: Aug 2021 | FW2: Sep 2021 | FX2: Oct 2021 | FY2: Nov 2021 | FZ2: Dec 2021 | GA2: Jan 2022 | GB2: Feb 2022 | GC2: Mar 2022 | GD2: Apr 2022 | GE2: May 2022 | GF2: June 2022 | GG2: July 2022 | GH2: Aug 2022 | GI2: Sep 2022 | GJ2: Oct 2022 | GK2: Nov 2022 | GL2: Dec 2022 | GM2: Jan 2023 | GN2: Feb 2023 | GO2: Mar 2023 | GP2: Apr 2023 | GQ2: May 2023 | GR2: June 2023 | GS2: July 2023 | GT2: Aug 2023 | GU2: Sep 2023 | GV2: Oct 2023 | GW2: Nov 2023 | GX2: Dec 2023 | GY2: Jan 2024 | GZ2: Feb 2024 | HA2: Mar 2024 | HB2: Apr 2024 | HC2: May 2024 | HD2: June 2024 | HE2: July 2024 | HF2: Aug 2024 | HG2: Sep 2024 | HH2: Oct 2024 | HI2: Nov 2024 | HJ2: Dec 2024
B3: All item index | F3: 53.486 | G3: 56.447 | H3: 56.2 | I3: 57.874 | J3: 58.87 | K3: 62.164 | L3: 65.497 | M3: 65.528 | N3: 62.925 | O3: 71.159 | P3: 65.555 | Q3: 65.439 | R3: 67.257 | S3: 69.773 | T3: 69.122 | U3: 72.388 | V3: 72.264 | W3: 72.35 | X3: 72.214 | Y3: 71.533 | Z3: 70.972 | AA3: 75.612 | AB3: 69.611 | AC3: 71.17 | AD3: 73.224 | AE3: 72.583 | AF3: 73.733 | AG3: 72.467 | AH3: 72.65 | AI3: 73.443 | AJ3: 77.143 | AK3: 77.906 | AL3: 72.538 | AM3: 74.748 | AN3: 73.413 | AO3: 73.171 | AP3: 73.983 | AQ3: 73.593 | AR3: 73.791 | AS3: 72.418 | AT3: 73.491 | AU3: 72.005 | AV3: 74.761 | AW3: 75.211 | AX3: 81.812 | AY3: 91.71 | AZ3: 91.822 | BA3: 88.566 | BB3: 101.97 | BC3: 95.337 | BD3: 100 | BE3: 107.308368 | BF3: 114.8471365 | BG3: 111.7698787 | BH3: 117.2950477 | BI3: 122.6518392 | BJ3: 127.6598001 | BK3: 131.0561242 | BL3: 130.219311 | BM3: 133.8119665 | BN3: 129.2605272 | BO3: 159.0562501 | BP3: 163.7181298 | BQ3: 159.0062674 | BR3: 163.8099311 | BS3: 157.2620438 | BT3: 150.0244603 | BU3: 177.352707 | BV3: 154.6873889 | BW3: 162.1382865 | BX3: 144.282417 | BY3: 145.1650136 | BZ3: 139.3880569 | CA3: 146.0223779 | CB3: 141.7197267 | CC3: 142.7431482 | CD3: 138.2681254 | CE3: 157.8079874 | CF3: 147.4576958 | CG3: 150.3678196 | CH3: 144.2861328 | CI3: 152.7377959 | CJ3: 145.6247819 | CK3: 140.39873 | CL3: 137.9845772 | CM3: 140.8556012 | CN3: 148.5840061 | CO3: 152.9501277 | CP3: 159.2976786 | CQ3: 154.255751 | CR3: 149.1575982 | CS3: 193.636932 | CT3: 158.9832371 | CU3: 161.9004259 | CV3: 166.6167599 | CW3: 166.0192228 | CX3: 175.292648 | CY3: 192.9967105 | CZ3: 231.3365438 | DA3: 231.8930149 | DB3: 245.9825253 | DC3: 288.0854616 | DD3: 296.1337243 | DE3: 319.7744604 | DF3: 330.4799387 | DG3: 409.5420888 | DH3: 488.7911698 | DI3: 540.8457084 | DJ3: 638.9377039 | DK3: 767.642769 | DL3: 687.3060887 | DM3: 1217.042226 | DN3: 1246.588818 | DO3: 1568.132641 | DP3: 1528.464647 | DQ3: 1635.193411 | DR3: 1790.065529 | DS3: 1825.792851 | DT3: 2490.395263 | DU3: 2203.95595 | DV3: 2539.799603 | DW3: 3374.886743 | DX3: 3147.352459 | DY3: 3265.64166 | DZ3: 3527.432263 | EA3: 3810.384924 | EB3: 4145.489382 | EC3: 4315.411055 | ED3: 4536.452761 | EE3: 4514.92748 | EF3: 6207.569894 | EG3: 6949.301116 | EH3: 6582.541443 | EI3: 5769.065755 | EJ3: 5946.554819 | EK3: 6684.758052 | EL3: 6201.970256 | EM3: 5800.143668 | EN3: 5439.417016 | EO3: 5802.665815 | EP3: 5961.274489 | EQ3: 6293.749951 | ER3: 7211.635527 | ES3: 8302.469165 | ET3: 8952.083691 | EU3: 9465.146829 | EV3: 9793.49587 | EW3: 9900.334531 | EX3: 10177.9036 | EY3: 10430.97472 | EZ3: 10737.8767 | FA3: 8262.380733 | FB3: 7750.776257 | FC3: 7569.579957 | FD3: 8478.373893 | FE3: 9955.103905 | FF3: 10701.46854 | FG3: 10624.5886 | FH3: 10180.89222 | FI3: 11450.87003 | FJ3: 12368.13393 | FK3: 11281.87322 | FL3: 12327.73797 | FM3: 13521.08513 | FN3: 14548.90183 | FO3: 14673.59072 | FP3: 12513.40107 | FQ3: 13097.93898 | FR3: 15694.44755 | FS3: 17198.79415 | FT3: 15973.46089 | FU3: 14066.44548 | FV3: 14013.22032 | FW3: 13133.71863 | FX3: 13789.07517 | FY3: 14158.06333 | FZ3: 14902.96687 | GA3: 13312.47222 | GB3: 13293.71547 | GC3: 13343.5383 | GD3: 13864.0448 | GE3: 14061.54012 | GF3: 14128.23612 | GG3: 14694.13051 | GH3: 14251.70929 | GI3: 14648.68595 | GJ3: 14921.37109 | GK3: 14173.84694 | GL3: 12961.13704 | GM3: 15664.23773
A4: 01 | B4: Food and Non-alcholic beverages | D4: 54.57 | F4: 48.103 | G4: 50.988 | H4: 51.328 | I4: 51.186 | J4: 53.22 | K4: 55.645 | L4: 61.415 | M4: 60.359 | N4: 59.298 | O4: 69.463 | P4: 62.267 | Q4: 61.216 | R4: 62.47 | S4: 64.649 | T4: 64.325 | U4: 68.348 | V4: 66.724 | W4: 68.67 | X4: 67.444 | Y4: 67.55 | Z4: 66.379 | AA4: 73.99 | AB4: 66.324 | AC4: 68.267 | AD4: 67.996 | AE4: 66.349 | AF4: 68.429 | AG4: 67.138 | AH4: 67.865 | AI4: 68.477 | AJ4: 72.682 | AK4: 74.656 | AL4: 67.415 | AM4: 69.364 | AN4: 67.389 | AO4: 68.933 | AP4: 70.508 | AQ4: 67.844 | AR4: 67.856 | AS4: 66.63 | AT4: 67.247 | AU4: 67.197 | AV4: 70.865 | AW4: 69.86 | AX4: 80.854 | AY4: 90.233 | AZ4: 90.897 | BA4: 85.62 | BB4: 101.536 | BC4: 93.777 | BD4: 100 | BE4: 105.3204235 | BF4: 106.7019086 | BG4: 104.7151988 | BH4: 113.0738281 | BI4: 115.7950917 | BJ4: 118.4353814 | BK4: 117.7586369 | BL4: 125.4019057 | BM4: 119.4322297 | BN4: 121.3620687 | BO4: 171.5513996 | BP4: 171.3280153 | BQ4: 166.5846292 | BR4: 166.6226598 | BS4: 149.7403157 | BT4: 140.8766162 | BU4: 186.6695687 | BV4: 149.8809987 | BW4: 169.7366441 | BX4: 133.610649 | BY4: 130.0452705 | BZ4: 131.4701829 | CA4: 136.4201706 | CB4: 130.4361999 | CC4: 132.4580168 | CD4: 130.8378329 | CE4: 151.8349365 | CF4: 147.4353308 | CG4: 146.8827291 | CH4: 136.4991526 | CI4: 149.4630617 | CJ4: 146.2662564 | CK4: 135.9733851 | CL4: 131.0936688 | CM4: 136.2786143 | CN4: 150.7947637 | CO4: 152.5946449 | CP4: 156.2338996 | CQ4: 143.0150125 | CR4: 135.7990459 | CS4: 209.9976438 | CT4: 141.9340097 | CU4: 145.6106235 | CV4: 158.6683675 | CW4: 158.5018969 | CX4: 161.2616336 | CY4: 192.5111116 | CZ4: 232.6109303 | DA4: 247.0742264 | DB4: 260.4835949 | DC4: 330.4025833 | DD4: 329.2581004 | DE4: 340.2678008 | DF4: 348.4690898 | DG4: 437.8864504 | DH4: 517.0158811 | DI4: 562.1467558 | DJ4: 673.2550415 | DK4: 746.4492051 | DL4: 729.4002598 | DM4: 1436.881623 | DN4: 1356.856442 | DO4: 1677.580706 | DP4: 1746.973651 | DQ4: 1846.472833 | DR4: 2106.671695 | DS4: 2062.048092 | DT4: 3214.163502 | DU4: 2650.103156 | DV4: 2548.512659 | DW4: 3724.887524 | DX4: 3138.725085 | DY4: 3159.767878 | DZ4: 3225.631172 | EA4: 3406.173736 | EB4: 3457.469092 | EC4: 3921.17747 | ED4: 4086.776242 | EE4: 4641.016425 | EF4: 4374.210934 | EG4: 5845.373511 | EH4: 6847.215587 | EI4: 5475.412141 | EJ4: 5592.896355 | EK4: 7005.055108 | EL4: 5893.402305 | EM4: 5371.652867 | EN4: 4946.564141 | EO4: 5388.953704 | EP4: 5344.414522 | EQ4: 5574.314078 | ER4: 6658.373581 | ES4: 8166.765409 | ET4: 8875.807616 | EU4: 9718.463629 | EV4: 10081.13132 | EW4: 10161.78032 | EX4: 10540.81703 | EY4: 10781.67143 | EZ4: 11063.48209 | FA4: 8338.636939 | FB4: 6695.165011 | FC4: 7248.420837 | FD4: 7905.932956 | FE4: 10940.01164 | FF4: 10324.29415 | FG4: 9922.307135 | FH4: 9287.010807 | FI4: 9677.345123 | FJ4: 10930.25652 | FK4: 9987.424645 | FL4: 11029.58775 | FM4: 12125.45707 | FN4: 13535.71172 | FO4: 13796.48724 | FP4: 11843.08391 | FQ4: 12232.28123 | FR4: 17297.22038 | FS4: 17283.8572 | FT4: 16526.31026 | FU4: 15025.67812 | FV4: 14389.34603 | FW4: 12714.49557 | FX4: 14525.01926 | FY4: 14046.50104 | FZ4: 16171.68362 | GA4: 13441.98954 | GB4: 12927.20593 | GC4: 12792.4696 | GD4: 14091.11982 | GE4: 14478.82735 | GF4: 13854.52219 | GG4: 14798.32697 | GH4: 14811.80992 | GI4: 14617.32334 | GJ4: 15089.8833 | GK4: 13499.60714 | GL4: 9972.674647 | GM4: 13466.83837
A5: 02 | B5: Alcoholic beverages and Tobacco | D5: 3.05 | F5: 67.265 | G5: 67.265 | H5: 67.542 | I5: 67.542 | J5: 66.556 | K5: 81.904 | L5: 77.873 | M5: 70.737 | N5: 65.632 | O5: 67.334 | P5: 67.472 | Q5: 68.842 | R5: 65.913 | S5: 70.183 | T5: 67.957 | U5: 67.957 | V5: 68.096 | W5: 68.581 | X5: 70.589 | Y5: 69.585 | Z5: 84.98 | AA5: 68.996 | AB5: 68.581 | AC5: 67.819 | AD5: 68.581 | AE5: 73.349 | AF5: 72.542 | AG5: 68.234 | AH5: 67.957 | AI5: 68.581 | AJ5: 85.257 | AK5: 68.227 | AL5: 69.799 | AM5: 68.858 | AN5: 71.43 | AO5: 79.845 | AP5: 82.417 | AQ5: 87.829 | AR5: 71.43 | AS5: 71.43 | AT5: 71.43 | AU5: 68.858 | AV5: 71.43 | AW5: 71.43 | AX5: 71.43 | AY5: 71.43 | AZ5: 84.299 | BA5: 89.711 | BB5: 106.11 | BC5: 94.856 | BD5: 100 | BE5: 89.50107181 | BF5: 110.9719053 | BG5: 108.3031307 | BH5: 119.5841935 | BI5: 137.5084663 | BJ5: 219.0134678 | BK5: 142.6255707 | BL5: 141.7533157 | BM5: 138.3929685 | BN5: 140.7133891 | BO5: 191.0212987 | BP5: 174.8990373 | BQ5: 235.9436499 | BR5: 213.2042906 | BS5: 175.9402888 | BT5: 180.9431864 | BU5: 187.9133228 | BV5: 203.3488138 | BW5: 225.8446995 | BX5: 231.2610308 | BY5: 174.0624514 | BZ5: 166.3553598 | CA5: 174.7068095 | CB5: 235.0373365 | CC5: 229.5675577 | CD5: 161.9379648 | CE5: 154.4909941 | CF5: 166.2561049 | CG5: 194.9939896 | CH5: 193.1741796 | CI5: 174.9062482 | CJ5: 172.2936167 | CK5: 168.3521662 | CL5: 176.3918121 | CM5: 178.4531075 | CN5: 173.7175168 | CO5: 166.7816176 | CP5: 168.5354691 | CQ5: 176.7404551 | CR5: 180.3932106 | CS5: 214.6502923 | CT5: 231.6101694 | CU5: 211.9884864 | CV5: 203.1271495 | CW5: 198.7998174 | CX5: 447.0795512 | CY5: 252.7969932 | CZ5: 307.4166001 | DA5: 248.6677078 | DB5: 244.8105405 | DC5: 266.7353238 | DD5: 268.5922654 | DE5: 370.3064032 | DF5: 440.9956909 | DG5: 567.7744748 | DH5: 564.8587119 | DI5: 1184.265015 | DJ5: 925.4969072 | DK5: 1656.996846 | DL5: 843.0028019 | DM5: 1610.5003 | DN5: 2521.051082 | DO5: 1936.625095 | DP5: 1583.509973 | DQ5: 1862.8036 | DR5: 2362.99516 | DS5: 2101.568931 | DT5: 2826.441194 | DU5: 2530.143785 | DV5: 2875.228163 | DW5: 3985.499365 | DX5: 4534.464425 | DY5: 4715.888717 | DZ5: 4100.725795 | EA5: 4446.603402 | EB5: 5460.301747 | EC5: 5149.222017 | ED5: 5791.196216 | EE5: 4379.054589 | EF5: 60791.41063 | EG5: 19127.30906 | EH5: 21617.87533 | EI5: 12944.72515 | EJ5: 6404.650206 | EK5: 6102.336303 | EL5: 7374.091654 | EM5: 8404.479213 | EN5: 6832.028646 | EO5: 8416.707108 | EP5: 5255.445189 | EQ5: 5925.8891 | ER5: 7718.540245 | ES5: 8154.111113 | ET5: 8269.05126 | EU5: 12410.62949 | EV5: 13757.19109 | EW5: 13781.45338 | EX5: 13968.06034 | EY5: 14082.33865 | EZ5: 14162.25271 | FA5: 6012.995616 | FB5: 7805.073042 | FC5: 10149.50216 | FD5: 11412.49162 | FE5: 9290.73279 | FF5: 12237.05362 | FG5: 13037.18385 | FH5: 14455.64701 | FI5: 14252.62739 | FJ5: 16852.98415 | FK5: 15426.73741 | FL5: 14360.34668 | FM5: 24411.54891 | FN5: 25626.71931 | FO5: 18882.49939 | FP5: 12345.99514 | FQ5: 12480.1333 | FR5: 15230.16705 | FS5: 16725.71853 | FT5: 11099.9981 | FU5: 9884.146739 | FV5: 10448.5718 | FW5: 11188.63649 | FX5: 15309.58059 | FY5: 14175.66188 | FZ5: 14108.05929 | GA5: 15389.80415 | GB5: 12140.77668 | GC5: 12546.33642 | GD5: 12794.20049 | GE5: 12960.41398 | GF5: 11570.65193 | GG5: 12232.51314 | GH5: 13105.82247 | GI5: 12832.99053 | GJ5: 12772.36714 | GK5: 13467.45512 | GL5: 13756.22137 | GM5: 14119.13495
A6: 03 | B6: Clothing and footwear | D6: 3.53 | BD6: 100 | BE6: 93.53440026 | BF6: 106.8649973 | BG6: 105.2129888 | BH6: 111.8121792 | BI6: 115.7418978 | BJ6: 162.977988 | BK6: 154.5191247 | BL6: 135.0121624 | BM6: 146.2308421 | BN6: 118.3801932 | BO6: 141.0845192 | BP6: 152.0936457 | BQ6: 169.043984 | BR6: 163.569171 | BS6: 159.4037613 | BT6: 164.041535 | BU6: 164.1748525 | BV6: 155.4512168 | BW6: 158.8611556 | BX6: 178.1268142 | BY6: 160.4594763 | BZ6: 162.2936504 | CA6: 145.0402739 | CB6: 150.0116432 | CC6: 160.097663 | CD6: 164.2544557 | CE6: 156.3634221 | CF6: 155.4704544 | CG6: 175.5213043 | CH6: 183.7408769 | CI6: 162.5591393 | CJ6: 146.5080393 | CK6: 156.1266581 | CL6: 168.2511272 | CM6: 149.7009785 | CN6: 132.3405806 | CO6: 144.7807883 | CP6: 138.274005 | CQ6: 136.5623816 | CR6: 138.0922515 | CS6: 190.1020843 | CT6: 208.2349851 | CU6: 175.829946 | CV6: 191.0989865 | CW6: 180.1692739 | CX6: 193.609064 | CY6: 215.8402695 | CZ6: 284.8652819 | DA6: 250.2978913 | DB6: 249.3195773 | DC6: 369.238732 | DD6: 415.5844679 | DE6: 540.2501214 | DF6: 561.4425867 | DG6: 626.8658586 | DH6: 922.0695208 | DI6: 823.3579412 | DJ6: 1130.808926 | DK6: 1128.899177 | DL6: 1138.214483 | DM6: 1594.333706 | DN6: 1561.022452 | DO6: 1956.436535 | DP6: 2608.751314 | DQ6: 2398.750449 | DR6: 2893.189786 | DS6: 2963.762526 | DT6: 3130.852847 | DU6: 3505.7698 | DV6: 4438.701731 | DW6: 4476.799483 | DX6: 5097.961964 | DY6: 5083.696621 | DZ6: 5932.184768 | EA6: 5771.162296 | EB6: 5886.709879 | EC6: 7154.713622 | ED6: 8170.696201 | EE6: 8007.253481 | EF6: 7990.204757 | EG6: 7411.503759 | EH6: 8290.92887 | EI6: 9405.869151 | EJ6: 10738.44504 | EK6: 9214.343717 | EL6: 10452.48129 | EM6: 7781.564323 | EN6: 7995.839607 | EO6: 9724.496666 | EP6: 9261.747468 | EQ6: 10913.07323 | ER6: 9373.436635 | ES6: 9891.249842 | ET6: 10443.06675 | EU6: 10544.93301 | EV6: 10661.75112 | EW6: 10690.4434 | EX6: 10722.0787 | EY6: 11802.66215 | EZ6: 11859.9014 | FA6: 8585.365423 | FB6: 10833.48981 | FC6: 11289.18525 | FD6: 9344.761806 | FE6: 10576.83965 | FF6: 11397.56195 | FG6: 10623.85776 | FH6: 12408.1538 | FI6: 12593.82444 | FJ6: 14148.39888 | FK6: 12608.97953 | FL6: 13723.32799 | FM6: 15999.45478 | FN6: 16429.12761 | FO6: 14584.91501 | FP6: 17376.66162 | FQ6: 17848.84489 | FR6: 15498.45525 | FS6: 19219.4184 | FT6: 16704.45908 | FU6: 15545.68719 | FV6: 16498.72964 | FW6: 9575.81137 | FX6: 13874.37483 | FY6: 20082.84478 | FZ6: 17310.32232 | GA6: 13642.73859 | GB6: 12778.92714 | GC6: 11070.35836 | GD6: 10889.69726 | GE6: 10708.80965 | GF6: 13524.78571 | GG6: 12515.99096 | GH6: 12334.55652 | GI6: 12513.50436 | GJ6: 12440.39197 | GK6: 12917.4351 | GL6: 12147.10153 | GM6: 13814.13643
A7: 04 | B7: Housing, Water, Electricity, Gas and other fuel | D7: 5.04 | F7: 65.751 | G7: 73.227 | H7: 65.926 | I7: 76.785 | J7: 77.314 | K7: 87.36 | L7: 78.986 | M7: 89.977 | N7: 74.291 | O7: 76.463 | P7: 71.938 | Q7: 79.301 | R7: 77.141 | S7: 82.593 | T7: 78.299 | U7: 81.338 | V7: 84.558 | W7: 77.868 | X7: 79.238 | Y7: 77.372 | Z7: 78.93 | AA7: 79.578 | AB7: 74.562 | AC7: 77.166 | AD7: 88.13 | AE7: 85.808 | AF7: 90.562 | AG7: 87.812 | AH7: 85.063 | AI7: 81.037 | AJ7: 84.326 | AK7: 81.577 | AL7: 80.59 | AM7: 86.131 | AN7: 81.766 | AO7: 76.023 | AP7: 71.678 | AQ7: 79.392 | AR7: 84.369 | AS7: 81.947 | AT7: 86.331 | AU7: 79.548 | AV7: 79.351 | AW7: 80.628 | AX7: 76.574 | AY7: 82.313 | AZ7: 88.928 | BA7: 88.73 | BB7: 95.477 | BC7: 89.864 | BD7: 100 | BE7: 92.19598819 | BF7: 104.0055022 | BG7: 106.0984448 | BH7: 105.4696873 | BI7: 118.9998386 | BJ7: 114.1086131 | BK7: 119.7215095 | BL7: 116.1363517 | BM7: 133.012302 | BN7: 104.3985348 | BO7: 134.7816826 | BP7: 129.482726 | BQ7: 129.2276117 | BR7: 201.9552491 | BS7: 198.843587 | BT7: 190.4289787 | BU7: 171.858384 | BV7: 200.1081833 | BW7: 129.4725508 | BX7: 140.5682423 | BY7: 146.3194214 | BZ7: 134.3856541 | CA7: 132.4708477 | CB7: 177.0757895 | CC7: 150.0076605 | CD7: 113.6941409 | CE7: 132.9123788 | CF7: 128.2300921 | CG7: 136.9297575 | CH7: 115.424481 | CI7: 113.0364875 | CJ7: 118.6002271 | CK7: 114.2559159 | CL7: 110.1839302 | CM7: 162.4175563 | CN7: 169.8132588 | CO7: 191.3923522 | CP7: 182.7902941 | CQ7: 193.2836244 | CR7: 193.2099778 | CS7: 190.4287169 | CT7: 181.6478995 | CU7: 157.8494696 | CV7: 207.2985484 | CW7: 188.0309324 | CX7: 185.5560746 | CY7: 179.9206035 | CZ7: 194.4404183 | DA7: 163.9126069 | DB7: 187.0283869 | DC7: 204.653354 | DD7: 188.7752509 | DE7: 249.9169657 | DF7: 262.2391909 | DG7: 294.4862158 | DH7: 348.7391973 | DI7: 409.3444826 | DJ7: 566.9021595 | DK7: 572.2620532 | DL7: 745.9020383 | DM7: 1335.76749 | DN7: 1918.439578 | DO7: 1686.247835 | DP7: 1520.716827 | DQ7: 1725.478397 | DR7: 1202.056146 | DS7: 1238.364248 | DT7: 1566.874747 | DU7: 1630.780699 | DV7: 1642.353321 | DW7: 2066.129732 | DX7: 2403.499851 | DY7: 3889.009963 | DZ7: 4876.255672 | EA7: 5034.732858 | EB7: 5022.99364 | EC7: 5083.1247 | ED7: 4696.036366 | EE7: 3921.460409 | EF7: 3944.721472 | EG7: 26127.69007 | EH7: 5549.750396 | EI7: 5767.820681 | EJ7: 5562.976953 | EK7: 5529.299821 | EL7: 7906.162954 | EM7: 6337.457364 | EN7: 7976.759866 | EO7: 6216.032801 | EP7: 5785.046233 | EQ7: 9798.428425 | ER7: 12700.52166 | ES7: 15879.99201 | ET7: 17145.55171 | EU7: 17244.65447 | EV7: 18158.01582 | EW7: 18558.16163 | EX7: 18646.49347 | EY7: 19036.20646 | EZ7: 19116.18092 | FA7: 6331.95106 | FB7: 9815.450183 | FC7: 6618.283402 | FD7: 9682.615714 | FE7: 10388.21638 | FF7: 25300.9605 | FG7: 24159.86564 | FH7: 9084.828198 | FI7: 9931.101355 | FJ7: 12322.15098 | FK7: 10623.70817 | FL7: 13249.49944 | FM7: 11767.03968 | FN7: 15527.04765 | FO7: 20123.54003 | FP7: 20243.40359 | FQ7: 20681.44736 | FR7: 11050.85631 | FS7: 45774.66208 | FT7: 34769.08175 | FU7: 11434.98389 | FV7: 11532.23205 | FW7: 12161.53213 | FX7: 11180.60942 | FY7: 11291.98005 | FZ7: 11159.00331 | GA7: 12296.92946 | GB7: 11077.19307 | GC7: 13881.93172 | GD7: 13936.85228 | GE7: 14074.47014 | GF7: 15515.80114 | GG7: 11280.25471 | GH7: 11953.06658 | GI7: 13159.92112 | GJ7: 14218.08161 | GK7: 14492.42441 | GL7: 16878.95952 | GM7: 18003.63432
A8: 05 | B8: Furnishings, household equipment and routine household maintenance | D8: 5.71 | F8: 53.046 | G8: 53.691 | H8: 66.006 | I8: 60.035 | J8: 68.599 | K8: 61.508 | L8: 62.038 | M8: 62.376 | N8: 67.525 | O8: 63.821 | P8: 65.486 | Q8: 69.494 | R8: 67.941 | S8: 69.283 | T8: 70.817 | U8: 69.641 | V8: 70.019 | W8: 73.355 | X8: 73.86 | Y8: 68.901 | Z8: 74.148 | AA8: 71.777 | AB8: 71.893 | AC8: 70.149 | AD8: 75.442 | AE8: 75.211 | AF8: 73.817 | AG8: 74.083 | AH8: 74.758 | AI8: 76.578 | AJ8: 84.084 | AK8: 83.44 | AL8: 82.327 | AM8: 82.997 | AN8: 99.264 | AO8: 83.373 | AP8: 84.317 | AQ8: 82.35 | AR8: 82.692 | AS8: 82.982 | AT8: 76.198 | AU8: 75.512 | AV8: 74.769 | AW8: 77.541 | AX8: 75.831 | AY8: 81.936 | AZ8: 113.367 | BA8: 123.334 | BB8: 138.345 | BC8: 149.224 | BD8: 100 | BE8: 107.7856426 | BF8: 126.9653452 | BG8: 123.7082127 | BH8: 124.0967776 | BI8: 141.8773599 | BJ8: 141.3581663 | BK8: 163.8782491 | BL8: 149.0452083 | BM8: 140.596527 | BN8: 126.3075334 | BO8: 164.1689492 | BP8: 169.1247917 | BQ8: 191.5256725 | BR8: 191.7016382 | BS8: 195.428135 | BT8: 180.893346 | BU8: 189.229854 | BV8: 184.1700537 | BW8: 170.1680153 | BX8: 178.339611 | BY8: 171.7916931 | BZ8: 171.9434134 | CA8: 173.6408984 | CB8: 160.0138518 | CC8: 158.7851243 | CD8: 161.0935875 | CE8: 159.7358366 | CF8: 151.5481493 | CG8: 169.8035954 | CH8: 168.4814278 | CI8: 155.8939622 | CJ8: 167.4153426 | CK8: 169.0154662 | CL8: 163.7287886 | CM8: 150.6068197 | CN8: 159.5398095 | CO8: 157.0405815 | CP8: 145.3182932 | CQ8: 161.2162128 | CR8: 167.6965056 | CS8: 176.5428646 | CT8: 179.0320275 | CU8: 176.2846161 | CV8: 194.8422729 | CW8: 178.3601174 | CX8: 190.8267663 | CY8: 224.4114116 | CZ8: 284.4843982 | DA8: 286.1067615 | DB8: 305.5641872 | DC8: 326.6979518 | DD8: 387.0806649 | DE8: 384.8813185 | DF8: 425.0193599 | DG8: 523.1212453 | DH8: 722.9711766 | DI8: 738.7406601 | DJ8: 973.6871053 | DK8: 786.6160741 | DL8: 1086.343831 | DM8: 1318.333137 | DN8: 1564.860119 | DO8: 1561.195807 | DP8: 1605.592586 | DQ8: 1867.488757 | DR8: 2259.507239 | DS8: 2453.161338 | DT8: 2354.714349 | DU8: 2558.28676 | DV8: 2941.577022 | DW8: 3554.389043 | DX8: 3500.820445 | DY8: 3608.323518 | DZ8: 3770.909627 | EA8: 4094.996613 | EB8: 4330.486716 | EC8: 4402.239426 | ED8: 4515.057861 | EE8: 4762.668889 | EF8: 6350.114333 | EG8: 8585.891702 | EH8: 6586.345372 | EI8: 6970.868134 | EJ8: 10091.18062 | EK8: 6820.004906 | EL8: 6415.268467 | EM8: 6065.480625 | EN8: 5597.463327 | EO8: 5918.647146 | EP8: 5968.87455 | EQ8: 6361.84608 | ER8: 8412.627701 | ES8: 7552.150424 | ET8: 8000.818222 | EU8: 8643.106658 | EV8: 8967.099569 | EW8: 9148.108189 | EX8: 9374.600911 | EY8: 9530.712075 | EZ8: 9606.987622 | FA8: 7921.764875 | FB8: 17463.64795 | FC8: 7708.287676 | FD8: 8926.685563 | FE8: 9530.844321 | FF8: 9057.370011 | FG8: 11960.17768 | FH8: 12375.59048 | FI8: 10207.02418 | FJ8: 16180.76046 | FK8: 12662.46472 | FL8: 15543.08155 | FM8: 13809.93058 | FN8: 14353.66971 | FO8: 14050.09618 | FP8: 17125.26267 | FQ8: 17586.38599 | FR8: 16240.13792 | FS8: 14983.06164 | FT8: 11756.05234 | FU8: 14102.61157 | FV8: 15571.29322 | FW8: 19180.17631 | FX8: 14863.63497 | FY8: 13394.4799 | FZ8: 13578.71635 | GA8: 13152.42341 | GB8: 16276.41403 | GC8: 20354.18682 | GD8: 16385.09068 | GE8: 15860.26001 | GF8: 20292.32908 | GG8: 20008.26498 | GH8: 17633.22761 | GI8: 19905.66406 | GJ8: 21446.36735 | GK8: 20907.09296 | GL8: 19889.97824 | GM8: 20411.85714
A9: 06 | B9: Health | D9: 7.03 | BD9: 100 | BE9: 161.5220484 | BF9: 199.5021337 | BG9: 187.8378378 | BH9: 187.835467 | BI9: 192.6955903 | BJ9: 186.4214591 | BK9: 238.1081081 | BL9: 209.1148818 | BM9: 305.6209104 | BN9: 235.296349 | BO9: 164.4722088 | BP9: 179.419156 | BQ9: 142.4561404 | BR9: 155.1635846 | BS9: 210.5026079 | BT9: 186.1071598 | BU9: 217.6529161 | BV9: 191.5504979 | BW9: 183.7743006 | BX9: 169.2508298 | BY9: 241.0146989 | BZ9: 164.51531 | CA9: 225.0522889 | CB9: 138.2475107 | CC9: 136.2797534 | CD9: 162.7123755 | CE9: 270.9388336 | CF9: 167.4793741 | CG9: 161.6472262 | CH9: 170.7444286 | CI9: 220.5310574 | CJ9: 144.9027975 | CK9: 149.2769085 | CL9: 149.2769085 | CM9: 134.6254149 | CN9: 128.793267 | CO9: 144.9027975 | CP9: 242.1719761 | CQ9: 242.1719761 | CR9: 212.8689889 | CS9: 212.8689889 | CT9: 232.4043137 | CU9: 291.7613064 | CV9: 208.5775249 | CW9: 224.8490596 | CX9: 208.5775249 | CY9: 223.1578947 | CZ9: 296.4153627 | DA9: 252.4608819 | DB9: 252.4608819 | DC9: 252.4608819 | DD9: 237.8805121 | DE9: 252.4608819 | DF9: 252.4608819 | DG9: 255.0338884 | DH9: 252.4608819 | DI9: 252.4608819 | DJ9: 362.2403983 | DK9: 1131.266003 | DL9: 354.9502134 | DM9: 640.3342817 | DN9: 612.7860892 | DO9: 2167.102569 | DP9: 1272.886047 | DQ9: 1492.65845 | DR9: 696.1071598 | DS9: 895.1351351 | DT9: 613.7221432 | DU9: 526.7084162 | DV9: 3781.175913 | DW9: 4413.940256 | DX9: 4198.541427 | DY9: 4060.860187 | DZ9: 4677.694319 | EA9: 7123.68889 | EB9: 10474.89649 | EC9: 7326.188187 | ED9: 7491.465149 | EE9: 5086.254986 | EF9: 5424.427093 | EG9: 4736.130868 | EH9: 4998.577525 | EI9: 5661.827462 | EJ9: 5890.922656 | EK9: 6129.22306 | EL9: 6151.955238 | EM9: 6406.957072 | EN9: 6461.989337 | EO9: 7008.242025 | EP9: 7405.357473 | EQ9: 7343.432946 | ER9: 7343.432946 | ES9: 7538.786194 | ET9: 8042.412492 | EU9: 8140.089116 | EV9: 7802.560455 | EW9: 7802.560455 | EX9: 7996.965386 | EY9: 8239.97155 | EZ9: 9850.924609 | FA9: 13808.96159 | FB9: 6483.214794 | FC9: 7954.907539 | FD9: 12940.61202 | FE9: 8530.451844 | FF9: 7453.71061 | FG9: 8597.583437 | FH9: 8674.270635 | FI9: 28392.64609 | FJ9: 17826.66183 | FK9: 18798.68649 | FL9: 20562.55562 | FM9: 25103.8074 | FN9: 17632.2569 | FO9: 12945.20143 | FP9: 9636.676326 | FQ9: 10270.04735 | FR9: 9577.358703 | FS9: 9933.868331 | FT9: 10304.94668 | FU9: 10517.2796 | FV9: 9429.276826 | FW9: 15080.33955 | FX9: 9007.799831 | FY9: 16520.19711 | FZ9: 12132.38583 | GA9: 12193.54438 | GB9: 12230.45341 | GC9: 12230.45341 | GD9: 12230.45341 | GE9: 12230.45341 | GF9: 12230.45341 | GG9: 12230.45341 | GH9: 15510.68101 | GI9: 14249.92649 | GJ9: 12383.70072 | GK9: 15737.5812 | GL9: 18654.77947 | GM9: 24586.29682
A10: 07 | B10: Transport | D10: 5.02 | F10: 57.951 | G10: 57.951 | H10: 57.951 | I10: 44.037 | J10: 42.049 | K10: 46.025 | L10: 46.025 | M10: 43.639 | N10: 46.025 | O10: 72.172 | P10: 76.147 | Q10: 76.147 | R10: 76.147 | S10: 80.123 | T10: 80.123 | U10: 80.123 | V10: 80.123 | W10: 76.147 | X10: 86.086 | Y10: 80.123 | Z10: 76.147 | AA10: 72.172 | AB10: 70.979 | AC10: 72.172 | AD10: 83.656 | AE10: 86.041 | AF10: 71.615 | AG10: 71.615 | AH10: 71.615 | AI10: 78.771 | AJ10: 72.967 | AK10: 82.906 | AL10: 78.771 | AM10: 78.771 | AN10: 78.771 | AO10: 80.123 | AP10: 80.123 | AQ10: 80.123 | AR10: 80.123 | AS10: 80.123 | AT10: 78.771 | AU10: 80.123 | AV10: 80.123 | AW10: 80.123 | AX10: 80.123 | AY10: 134.803 | AZ10: 88.869 | BA10: 88.074 | BB10: 88.074 | BC10: 88.074 | BD10: 100 | BE10: 99.10358566 | BF10: 99.10358566 | BG10: 100.2988048 | BH10: 102.3041169 | BI10: 102.0053121 | BJ10: 102.0053121 | BK10: 102.0053121 | BL10: 102.0053121 | BM10: 102.0053121 | BN10: 120.7237716 | BO10: 101.6710934 | BP10: 141.7612995 | BQ10: 103.3421868 | BR10: 103.3421868 | BS10: 103.3421868 | BT10: 103.3421868 | BU10: 123.0633023 | BV10: 103.6409916 | BW10: 103.3421868 | BX10: 103.3421868 | BY10: 103.3421868 | BZ10: 103.3421868 | CA10: 103.3421868 | CB10: 103.3421868 | CC10: 123.0633023 | CD10: 108.0212483 | CE10: 108.0212483 | CF10: 106.6843736 | CG10: 106.6843736 | CH10: 106.6843736 | CI10: 106.6843736 | CJ10: 106.6843736 | CK10: 106.6843736 | CL10: 106.6843736 | CM10: 106.6843736 | CN10: 106.6843736 | CO10: 106.6843736 | CP10: 106.6843736 | CQ10: 106.6843736 | CR10: 106.6843736 | CS10: 106.6843736 | CT10: 106.6843736 | CU10: 106.6843736 | CV10: 106.6843736 | CW10: 106.6843736 | CX10: 106.6843736 | CY10: 106.6843736 | CZ10: 106.6843736 | DA10: 106.6843736 | DB10: 106.6843736 | DC10: 106.6843736 | DD10: 106.6843736 | DE10: 106.6843736 | DF10: 106.6843736 | DG10: 312.8596724 | DH10: 372.023019 | DI10: 372.023019 | DJ10: 372.023019 | DK10: 372.023019 | DL10: 372.023019 | DM10: 372.023019 | DN10: 372.023019 | DO10: 372.023019 | DP10: 372.023019 | DQ10: 372.023019 | DR10: 372.023019 | DS10: 372.023019 | DT10: 569.2341744 | DU10: 667.8397521 | DV10: 860.9119079 | DW10: 724.6569278 | DX10: 724.6569278 | DY10: 1316.290394 | DZ10: 1316.290394 | EA10: 1513.501549 | EB10: 1907.92386 | EC10: 1907.92386 | ED10: 2173.262506 | EE10: 1907.92386 | EF10: 2908.322266 | EG10: 2304.736609 | EH10: 2693.182824 | EI10: 3924.258521 | EJ10: 3715.095175 | EK10: 3452.146968 | EL10: 4217.087207 | EM10: 4581.629039 | EN10: 4584.617087 | EO10: 4190.194776 | EP10: 5794.77645 | EQ10: 4587.605135 | ER10: 4593.581231 | ES10: 4611.509517 | ET10: 5203.142984 | EU10: 5227.047366 | EV10: 5967.408145 | EW10: 6570.993803 | EX10: 6570.993803 | EY10: 6570.993803 | EZ10: 6570.993803 | FA10: 5961.43205 | FB10: 6267.581609 | FC10: 6255.629417 | FD10: 6249.653322 | FE10: 6847.262884 | FF10: 9793.478023 | FG10: 9781.525832 | FH10: 13713.79675 | FI10: 12781.52583 | FJ10: 12835.31069 | FK10: 13815.39037 | FL10: 10110.21109 | FM10: 11879.13539 | FN10: 12969.77284 | FO10: 10988.69715 | FP10: 12978.73699 | FQ10: 15940.48998 | FR10: 17102.24296 | FS10: 11033.51786 | FT10: 13902.04376 | FU10: 16851.24695 | FV10: 15856.22703 | FW10: 15936.90432 | FX10: 12978.73699 | FY10: 13008.61747 | FZ10: 14493.67723 | GA10: 14162.00392 | GB10: 14263.59754 | GC10: 16098.2589 | GD10: 16268.57762 | GE10: 16268.57762 | GF10: 16654.03579 | GG10: 16791.48599 | GH10: 19373.1593 | GI10: 19163.99595 | GJ10: 16824.35452 | GK10: 16761.17561 | GL10: 22707.82065 | GM10: 20807.42225
A11: 08 | B11: Communication | D11: 3.22 | BD11: 100 | BE11: 93.05555556 | BF11: 114.8148148 | BG11: 96.2962963 | BH11: 94.44444444 | BI11: 94.44444444 | BJ11: 97.22222222 | BK11: 87.03703704 | BL11: 95.83333333 | BM11: 100 | BN11: 86.11111111 | BO11: 103.7037037 | BP11: 107.4074074 | BQ11: 100 | BR11: 101.8518519 | BS11: 107.4074074 | BT11: 111.1111111 | BU11: 88.88888889 | BV11: 94.44444444 | BW11: 91.66666667 | BX11: 100 | BY11: 96.2962963 | BZ11: 85.18518519 | CA11: 100 | CB11: 110.1851852 | CC11: 97.22222222 | CD11: 101.8518519 | CE11: 96.2962963 | CF11: 92.59259259 | CG11: 97.22222222 | CH11: 91.66666667 | CI11: 100 | CJ11: 96.2962963 | CK11: 91.66666667 | CL11: 94.44444444 | CM11: 93.14814815 | CN11: 91.66666667 | CO11: 92.59259259 | CP11: 92.59259259 | CQ11: 87.96296296 | CR11: 88.88888889 | CS11: 92.59259259 | CT11: 85.18518519 | CU11: 95.83333333 | CV11: 95.83333333 | CW11: 97.22222222 | CX11: 98.61111111 | CY11: 87.5 | CZ11: 86.11111111 | DA11: 127.7777778 | DB11: 98.61111111 | DC11: 125 | DD11: 127.7777778 | DE11: 168.5185185 | DF11: 127.7777778 | DG11: 127.7777778 | DH11: 194.4444444 | DI11: 229.6296296 | DJ11: 286.1111111 | DK11: 227.7777778 | DL11: 233.3333333 | DM11: 333.3333333 | DN11: 310 | DO11: 833.3333333 | DP11: 944.4444444 | DQ11: 1055.555556 | DR11: 1083.333333 | DS11: 1333.333333 | DT11: 1277.777778 | DU11: 1052.631579 | DV11: 1222.222222 | DW11: 2083.333333 | DX11: 1916.666667 | DY11: 1944.444444 | DZ11: 2500 | EA11: 2148.148148 | EB11: 2013.888889 | EC11: 1944.444444 | ED11: 2870.37037 | EE11: 2027.777778 | EF11: 3194.444444 | EG11: 3166.666667 | EH11: 4055.555556 | EI11: 3129.62963 | EJ11: 3055.555556 | EK11: 3518.518519 | EL11: 3296.296296 | EM11: 2314.814815 | EN11: 2574.074074 | EO11: 2962.962963 | EP11: 3888.888889 | EQ11: 4277.777778 | ER11: 4305.555556 | ES11: 4416.666667 | ET11: 4444.444444 | EU11: 4444.444444 | EV11: 4444.444444 | EW11: 4444.444444 | EX11: 4444.444444 | EY11: 4444.444444 | EZ11: 4444.444444 | FA11: 3148.148148 | FB11: 3101.851852 | FC11: 4166.666667 | FD11: 3972.222222 | FE11: 4296.296296 | FF11: 4166.666667 | FG11: 4388.888889 | FH11: 8111.111111 | FI11: 3888.888889 | FJ11: 11666.66667 | FK11: 4203.703704 | FL11: 4296.296296 | FM11: 5185.185185 | FN11: 19722.22222 | FO11: 35740.74074 | FP11: 4175.925926 | FQ11: 4425.925926 | FR11: 4074.074074 | FS11: 6481.481481 | FT11: 5555.555556 | FU11: 5555.555556 | FV11: 4907.407407 | FW11: 4259.259259 | FX11: 5500 | FY11: 4259.259259 | FZ11: 4583.333333 | GA11: 3888.888889 | GB11: 4861.111111 | GC11: 5833.333333 | GD11: 4444.444444 | GE11: 4305.555556 | GF11: 5000 | GG11: 5833.333333 | GH11: 5416.666667 | GI11: 6388.888889 | GJ11: 5833.333333 | GK11: 3888.888889 | GL11: 4444.444444 | GM11: 6296.296296
A12: 09 | B12: Recreation and culture | D12: 0.95 | F12: 65.887 | G12: 65.887 | H12: 57.944 | I12: 59.532 | J12: 59.532 | K12: 59.532 | L12: 59.532 | M12: 62.71 | N12: 65.887 | O12: 59.532 | P12: 59.532 | Q12: 59.532 | R12: 59.532 | S12: 59.532 | T12: 59.532 | U12: 59.532 | V12: 59.532 | W12: 79.766 | X12: 80.592 | Y12: 82.944 | Z12: 81.355 | AA12: 79.766 | AB12: 86.121 | AC12: 79.766 | AD12: 79.766 | AE12: 79.766 | AF12: 79.766 | AG12: 79.766 | AH12: 79.766 | AI12: 100 | AJ12: 100 | AK12: 100 | AL12: 89.883 | AM12: 89.883 | AN12: 100 | AO12: 93.12 | AP12: 93.12 | AQ12: 100 | AR12: 86.646 | AS12: 100 | AT12: 65.887 | AU12: 106.355 | AV12: 100 | AW12: 100 | AX12: 100 | AY12: 100 | AZ12: 100 | BA12: 100 | BB12: 100 | BC12: 100 | BD12: 100 | BE12: 100 | BF12: 99.15789474 | BG12: 107.8947368 | BH12: 106.1052632 | BI12: 106.6666667 | BJ12: 144.9122807 | BK12: 151.5789474 | BL12: 144.9122807 | BM12: 100 | BN12: 142.7368421 | BO12: 151.5789474 | BP12: 143.5789474 | BQ12: 121.2280702 | BR12: 144.9122807 | BS12: 131.5789474 | BT12: 138.245614 | BU12: 172.6315789 | BV12: 172.6315789 | BW12: 126.3157895 | BX12: 172.6315789 | BY12: 172.6315789 | BZ12: 151.5789474 | CA12: 167.3684211 | CB12: 162.1052632 | CC12: 136.3157895 | CD12: 137.0175439 | CE12: 167.3684211 | CF12: 172.6315789 | CG12: 191.2280702 | CH12: 174.0350877 | CI12: 166.9824561 | CJ12: 166.1403509 | CK12: 158.245614 | CL12: 147.7192982 | CM12: 147.7192982 | CN12: 164.9122807 | CO12: 155.7894737 | CP12: 155.7894737 | CQ12: 171.5789474 | CR12: 187.3684211 | CS12: 187.3684211 | CT12: 192.6315789 | CU12: 176.8421053 | CV12: 171.5789474 | CW12: 195.2631579 | CX12: 176.8421053 | CY12: 178.1052632 | CZ12: 226.8421053 | DA12: 212.2105263 | DB12: 231.122807 | DC12: 256.9473684 | DD12: 283.1578947 | DE12: 276.4912281 | DF12: 313.6842105 | DG12: 283.1578947 | DH12: 441.4035088 | DI12: 478.5964912 | DJ12: 435.2631579 | DK12: 439.4736842 | DL12: 555.2631579 | DM12: 459.9614333 | DN12: 886.4219372 | DO12: 1112.198142 | DP12: 1236.842105 | DQ12: 1003.702359 | DR12: 1789.473684 | DS12: 1887.368421 | DT12: 2003.508772 | DU12: 1748 | DV12: 2246.842105 | DW12: 2156.912281 | DX12: 2767.994022 | DY12: 2803.368421 | DZ12: 2803.368421 | EA12: 3196.842105 | EB12: 2896.842105 | EC12: 2915.789474 | ED12: 3015.789474 | EE12: 3736.842105 | EF12: 4298.453647 | EG12: 4073.684211 | EH12: 4642.105263 | EI12: 4578.947368 | EJ12: 4869.473684 | EK12: 6736.842105 | EL12: 6821.052632 | EM12: 5915.789474 | EN12: 6471.413829 | EO12: 6964.912281 | EP12: 10048.23141 | EQ12: 5574.547203 | ER12: 16967.85601 | ES12: 23031.57895 | ET12: 23136.84211 | EU12: 8031.578947 | EV12: 9978.947368 | EW12: 9978.947368 | EX12: 10373.68421 | EY12: 10384.82972 | EZ12: 10853.86997 | FA12: 8485.448916 | FB12: 7895.975232 | FC12: 9131.166151 | FD12: 9631.681482 | FE12: 10282.55867 | FF12: 8791.514892 | FG12: 9059.316663 | FH12: 14183.92119 | FI12: 12340.21951 | FJ12: 10681.72841 | FK12: 12081.72841 | FL12: 12919.3156 | FM12: 11312.01648 | FN12: 12530.11481 | FO12: 13665.757 | FP12: 12724.05845 | FQ12: 13063.70757 | FR12: 17345.68354 | FS12: 14003.75441 | FT12: 9285.385517 | FU12: 11693.6432 | FV12: 12850.32542 | FW12: 14110.74326 | FX12: 19110.74326 | FY12: 14663.37484 | FZ12: 8833.742459 | GA12: 9637.059051 | GB12: 10456.16542 | GC12: 8914.77986 | GD12: 11098.99039 | GE12: 11118.2269 | GF12: 8934.016374 | GG12: 11268.77353 | GH12: 14781.1523 | GI12: 13602.46531 | GJ12: 13087.37082 | GK12: 11376.8445 | GL12: 9783.469747 | GM12: 14964.91228
A13: 10 | B13: Education | D13: 3.11 | BD13: 100 | BE13: 100 | BF13: 93.75287092 | BG13: 93.75287092 | BH13: 93.75287092 | BI13: 93.75287092 | BJ13: 93.75287092 | BK13: 93.75287092 | BL13: 93.75287092 | BM13: 93.75287092 | BN13: 156.2241617 | BO13: 156.2241617 | BP13: 156.2241617 | BQ13: 156.2241617 | BR13: 156.2241617 | BS13: 156.2241617 | BT13: 156.2241617 | BU13: 156.2241617 | BV13: 156.2241617 | BW13: 156.2241617 | BX13: 156.2241617 | BY13: 156.2241617 | BZ13: 156.2241617 | CA13: 156.2241617 | CB13: 156.2241617 | CC13: 156.2241617 | CD13: 165.081221 | CE13: 165.081221 | CF13: 165.081221 | CG13: 165.081221 | CH13: 165.081221 | CI13: 165.081221 | CJ13: 165.081221 | CK13: 165.081221 | CL13: 165.081221 | CM13: 165.081221 | CN13: 165.081221 | CO13: 165.081221 | CP13: 165.081221 | CQ13: 165.081221 | CR13: 165.081221 | CS13: 165.081221 | CT13: 165.081221 | CU13: 165.081221 | CV13: 165.081221 | CW13: 165.081221 | CX13: 165.081221 | CY13: 165.081221 | CZ13: 165.081221 | DA13: 165.081221 | DB13: 165.081221 | DC13: 165.081221 | DD13: 165.081221 | DE13: 165.081221 | DF13: 165.081221 | DG13: 165.081221 | DH13: 165.081221 | DI13: 165.081221 | DJ13: 165.081221 | DK13: 165.081221 | DL13: 165.081221 | DM13: 165.081221 | DN13: 165.081221 | DO13: 165.081221 | DP13: 165.081221 | DQ13: 165.081221 | DR13: 165.081221 | DS13: 165.081221 | DT13: 165.081221 | DU13: 165.081221 | DV13: 1453.417965 | DW13: 758.8842026 | DX13: 758.8842026 | DY13: 758.8842026 | DZ13: 758.8842026 | EA13: 758.8842026 | EB13: 758.8842026 | EC13: 758.8842026 | ED13: 758.8842026 | EE13: 758.8842026 | EF13: 758.8842026 | EG13: 758.8842026 | EH13: 758.8842026 | EI13: 758.8842026 | EJ13: 758.8842026 | EK13: 758.8842026 | EL13: 758.8842026 | EM13: 758.8842026 | EN13: 758.8842026 | EO13: 758.8842026 | EP13: 758.8842026 | EQ13: 758.8842026 | ER13: 758.8842026 | ES13: 758.8842026 | ET13: 758.8842026 | EU13: 758.8842026 | EV13: 758.8842026 | EW13: 758.8842026 | EX13: 758.8842026 | EY13: 758.8842026 | EZ13: 758.8842026 | FA13: 758.8842026 | FB13: 716.2671336 | FC13: 758.8842026 | FD13: 758.8842026 | FE13: 758.8842026 | FF13: 758.8842026 | FG13: 758.8842026 | FH13: 758.8842026 | FI13: 758.8842026 | FJ13: 758.8842026 | FK13: 758.8842026 | FL13: 758.8842026 | FM13: 758.8842026 | FN13: 758.8842026 | FO13: 758.8842026 | FP13: 758.8842026 | FQ13: 796.3669771 | FR13: 796.3669771 | FS13: 796.3669771 | FT13: 796.3669771 | FU13: 796.3669771 | FV13: 796.3669771 | FW13: 796.3669771 | FX13: 796.3669771 | FY13: 796.3669771 | FZ13: 796.3669771 | GA13: 796.3669771 | GB13: 796.3669771 | GC13: 796.3669771 | GD13: 796.3669771 | GE13: 796.3669771 | GF13: 796.3669771 | GG13: 796.3669771 | GH13: 796.3669771 | GI13: 796.3669771 | GJ13: 796.3669771 | GK13: 796.3669771 | GL13: 796.3669771 | GM13: 796.3669771
A14: 11 | B14: Restaurants and hotels | D14: 4.42 | F14: 73.896 | G14: 73.712 | H14: 78.4 | I14: 69.547 | J14: 75.871 | K14: 74.523 | L14: 72.273 | M14: 74.644 | N14: 73.604 | O14: 77.475 | P14: 78.431 | Q14: 77.436 | R14: 74.264 | S14: 74.928 | T14: 73.827 | U14: 73.827 | V14: 76.345 | W14: 79.447 | X14: 80.388 | Y14: 80.436 | Z14: 79.853 | AA14: 76.506 | AB14: 80.709 | AC14: 84.357 | AD14: 80.887 | AE14: 82.454 | AF14: 87.7 | AG14: 94.23 | AH14: 98.847 | AI14: 85.616 | AJ14: 86.066 | AK14: 84.357 | AL14: 92.19 | AM14: 92.259 | AN14: 86.985 | AO14: 72.791 | AP14: 91.481 | AQ14: 91.682 | AR14: 100.591 | AS14: 89.332 | AT14: 95.598 | AU14: 87.765 | AV14: 91.682 | AW14: 91.682 | AX14: 106.858 | AY14: 107.037 | AZ14: 97.157 | BA14: 99.204 | BB14: 107.833 | BC14: 107.833 | BD14: 100 | BE14: 117.4886878 | BF14: 124.6758578 | BG14: 114.8095015 | BH14: 124.7641368 | BI14: 143.8255378 | BJ14: 123.9660003 | BK14: 146.1028237 | BL14: 127.2111005 | BM14: 135.8372564 | BN14: 120.4631 | BO14: 161.3848013 | BP14: 172.9615157 | BQ14: 158.0176051 | BR14: 180.7572883 | BS14: 173.0083629 | BT14: 169.5284605 | BU14: 173.9134338 | BV14: 153.3697684 | BW14: 156.9644345 | BX14: 183.8267288 | BY14: 177.9864253 | BZ14: 182.3521032 | CA14: 179.6804265 | CB14: 190.083494 | CC14: 209.6932969 | CD14: 186.2950524 | CE14: 185.8928454 | CF14: 183.1061344 | CG14: 193.5428188 | CH14: 193.5610747 | CI14: 192.9584141 | CJ14: 189.5198592 | CK14: 190.1110654 | CL14: 189.8049989 | CM14: 186.320836 | CN14: 188.7486982 | CO14: 216.138313 | CP14: 184.3336288 | CQ14: 197.6184532 | CR14: 200.2664021 | CS14: 209.9926008 | CT14: 214.7310206 | CU14: 212.8474478 | CV14: 204.2420814 | CW14: 211.1963814 | CX14: 219.1606246 | CY14: 261.5796775 | CZ14: 277.2018102 | DA14: 272.3780794 | DB14: 314.3947964 | DC14: 288.6463047 | DD14: 355.9992459 | DE14: 418.6496041 | DF14: 446.4397939 | DG14: 558.2933232 | DH14: 556.2454051 | DI14: 608.6224545 | DJ14: 646.4429673 | DK14: 1075.232336 | DL14: 664.2879011 | DM14: 1211.632344 | DN14: 1357.287112 | DO14: 1751.951939 | DP14: 1568.87295 | DQ14: 1309.905578 | DR14: 2068.965834 | DS14: 2378.616494 | DT14: 1962.00831 | DU14: 2239.783608 | DV14: 2721.64893 | DW14: 4102.224451 | DX14: 4875.376789 | DY14: 5270.94617 | DZ14: 5929.035438 | EA14: 6075.702187 | EB14: 5767.599134 | EC14: 7222.270168 | ED14: 6959.578712 | EE14: 5186.213497 | EF14: 5126.260822 | EG14: 4438.561142 | EH14: 5996.948602 | EI14: 6997.970925 | EJ14: 8968.699689 | EK14: 13323.67919 | EL14: 10602.15116 | EM14: 10812.97956 | EN14: 9865.007541 | EO14: 9197.36139 | EP14: 12024.74575 | EQ14: 12363.84204 | ER14: 10921.49609 | ES14: 12324.84285 | ET14: 13398.68424 | EU14: 13431.54432 | EV14: 13427.58069 | EW14: 13432.82902 | EX14: 13569.86332 | EY14: 14342.73104 | EZ14: 14395.1265 | FA14: 12286.08554 | FB14: 10705.88235 | FC14: 10449.09502 | FD14: 12354.82655 | FE14: 12868.21267 | FF14: 15547.88839 | FG14: 16309.38914 | FH14: 17481.90045 | FI14: 16083.1448 | FJ14: 17757.91855 | FK14: 18696.83258 | FL14: 21963.8009 | FM14: 20788.08446 | FN14: 18052.79035 | FO14: 18680.24133 | FP14: 21678.73303 | FQ14: 21934.82906 | FR14: 21304.29864 | FS14: 22876.31976 | FT14: 23737.56599 | FU14: 22113.49925 | FV14: 24421.38009 | FW14: 18596.15385 | FX14: 21549.77376 | FY14: 21803.16742 | FZ14: 22381.22172 | GA14: 20936.65158 | GB14: 25805.99548 | GC14: 21531.1086 | GD14: 21541.8552 | GE14: 22279.41176 | GF14: 22077.67722 | GG14: 26902.71493 | GH14: 16112.36802 | GI14: 21855.20362 | GJ14: 23779.41176 | GK14: 22621.04072 | GL14: 25384.61538 | GM14: 27536.95324
A15: 12 | B15: Miscellaneous goods and services | D15: 4.37 | F15: 68.923 | G15: 68.923 | H15: 70.64 | I15: 90.825 | J15: 79.686 | K15: 77.905 | L15: 88.911 | M15: 81.525 | N15: 83.211 | O15: 82.326 | P15: 76.447 | Q15: 68.141 | R15: 91.498 | S15: 90.885 | T15: 93.851 | U15: 96.565 | V15: 104.471 | W15: 96.722 | X15: 96.49 | Y15: 94.938 | Z15: 88.365 | AA15: 91.633 | AB15: 88.438 | AC15: 86.73 | AD15: 89.663 | AE15: 97.895 | AF15: 93.064 | AG15: 92.77 | AH15: 92.111 | AI15: 102.35 | AJ15: 101.139 | AK15: 100.185 | AL15: 96.311 | AM15: 98.959 | AN15: 100.185 | AO15: 98.567 | AP15: 96.48 | AQ15: 100.185 | AR15: 99.583 | AS15: 97.734 | AT15: 104.865 | AU15: 94.378 | AV15: 97.734 | AW15: 112.033 | AX15: 103.181 | AY15: 107.094 | AZ15: 101.828 | BA15: 100.185 | BB15: 110.354 | BC15: 100.994 | BD15: 100 | BE15: 101.7002437 | BF15: 112.7888813 | BG15: 111.32149 | BH15: 109.8016578 | BI15: 117.0271746 | BJ15: 129.7747454 | BK15: 140.7256713 | BL15: 126.7274176 | BM15: 111.080262 | BN15: 119.0203194 | BO15: 115.827495 | BP15: 144.5153614 | BQ15: 139.657995 | BR15: 135.3583373 | BS15: 142.0192305 | BT15: 147.0956562 | BU15: 137.3600209 | BV15: 129.2844859 | BW15: 154.5120794 | BX15: 134.1178293 | BY15: 148.1462328 | BZ15: 147.0055858 | CA15: 136.1050328 | CB15: 155.3495027 | CC15: 157.8550847 | CD15: 146.9277951 | CE15: 146.9341582 | CF15: 145.9601588 | CG15: 140.6985757 | CH15: 145.5043311 | CI15: 142.0315376 | CJ15: 140.5206882 | CK15: 144.8325584 | CL15: 147.2628496 | CM15: 146.7263417 | CN15: 143.7512173 | CO15: 142.0591296 | CP15: 146.8579006 | CQ15: 145.851693 | CR15: 147.4535237 | CS15: 152.1024457 | CT15: 157.3770654 | CU15: 151.1461348 | CV15: 152.2729363 | CW15: 156.90032 | CX15: 158.2131211 | CY15: 195.0053347 | CZ15: 239.4402778 | DA15: 221.6494041 | DB15: 302.9610912 | DC15: 234.3730919 | DD15: 281.1404717 | DE15: 330.0161657 | DF15: 333.3417617 | DG15: 372.1298252 | DH15: 492.4470093 | DI15: 590.235384 | DJ15: 644.3927567 | DK15: 776.6668432 | DL15: 754.7628337 | DM15: 1091.473497 | DN15: 985.7898084 | DO15: 1366.994196 | DP15: 959.6936437 | DQ15: 1433.541115 | DR15: 1394.343585 | DS15: 1760.98082 | DT15: 2357.466519 | DU15: 2376.579242 | DV15: 2728.415053 | DW15: 2678.304249 | DX15: 3140.649562 | DY15: 2730.034473 | DZ15: 4225.033879 | EA15: 3593.109965 | EB15: 4159.003669 | EC15: 4928.421399 | ED15: 5940.978879 | EE15: 6646.515058 | EF15: 4645.155786 | EG15: 6857.471418 | EH15: 6626.466462 | EI15: 6739.157808 | EJ15: 6851.598207 | EK15: 6635.319804 | EL15: 7349.630049 | EM15: 8250.370795 | EN15: 5502.679774 | EO15: 7256.77962 | EP15: 7760.412346 | EQ15: 7384.561298 | ER15: 7776.480683 | ES15: 7488.201694 | ET15: 8311.290992 | EU15: 8671.149526 | EV15: 8419.824251 | EW15: 8421.245574 | EX15: 8950.256223 | EY15: 8953.733429 | EZ15: 9418.5745 | FA15: 10001.23238 | FB15: 12486.38584 | FC15: 12682.63654 | FD15: 10928.70724 | FE15: 11231.09292 | FF15: 12759.74205 | FG15: 10790.98663 | FH15: 13297.93673 | FI15: 13616.72816 | FJ15: 15202.81323 | FK15: 12464.54542 | FL15: 14304.18547 | FM15: 14599.46413 | FN15: 16828.29071 | FO15: 14849.12906 | FP15: 11417.12131 | FQ15: 13388.17846 | FR15: 22160.08168 | FS15: 18064.16705 | FT15: 19290.86021 | FU15: 17402.17716 | FV15: 21720.2636 | FW15: 19051.2267 | FX15: 20043.617 | FY15: 21537.22993 | FZ15: 20044.41264 | GA15: 21121.61641 | GB15: 21415.27483 | GC15: 18607.24902 | GD15: 19741.5575 | GE15: 19329.65819 | GF15: 19618.39456 | GG15: 20234.14739 | GH15: 14018.78511 | GI15: 17217.86951 | GJ15: 18690.77791 | GK15: 18611.16312 | GL15: 19512.15749 | GM15: 22141.57933
B16: CPI excluding unprocessed food and petrol | E16: =SUMPRODUCT('[1]Item index series - Juba'!C4:C121,'[1]Item index series - Juba'!D4:D121) -> 57.32 | F16: 75.08795388 | G16: 77.10015918 | H16: 77.94769982 | I16: 78.87759724 | J16: 80.47576204 | K16: 86.08756627 | L16: 83.86651872 | M16: 84.53980093 | N16: 81.99319006 | O16: 86.52729248 | P16: 85.36282481 | Q16: 86.70771716 | R16: 86.76669532 | S16: 87.9905538 | T16: 88.956474 | U16: 89.72143105 | V16: 91.76972428 | W16: 91.26196858 | X16: 91.49650189 | Y16: 87.81077129 | Z16: 88.04929108 | AA16: 90.04895674 | AB16: 92.43840155 | AC16: 89.21179718 | AD16: 95.07306317 | AE16: 92.93293055 | AF16: 94.46315371 | AG16: 92.27930808 | AH16: 89.95976802 | AI16: 89.80806824 | AJ16: 93.56391816 | AK16: 91.26496927 | AL16: 88.1139285 | AM16: 88.58272431 | AN16: 87.92657918 | AO16: 85.97402553 | AP16: 87.05565585 | AQ16: 89.21181193 | AR16: 89.365818 | AS16: 89.72057922 | AT16: 89.47913678 | AU16: 85.91579135 | AV16: 87.28980821 | AW16: 91.94227441 | AX16: 90.85785522 | AY16: 98.98524884 | AZ16: 100.1999555 | BA16: 100.7719921 | BB16: 107.1686106 | BC16: 99.90746186 | BD16: 100 | BE16: 109.567354 | BF16: 123.3214873 | BG16: 123.4759794 | BH16: 123.6529136 | BI16: 130.4037063 | BJ16: 136.5941639 | BK16: 141.4182276 | BL16: 133.1487076 | BM16: 145.992249 | BN16: 139.2515442 | BO16: 146.3282492 | BP16: 154.7502149 | BQ16: 150.9604659 | BR16: 160.6914719 | BS16: 162.8539554 | BT16: 157.4255627 | BU16: 166.0945633 | BV16: 157.9509233 | BW16: 150.9738123 | BX16: 155.0991469 | BY16: 158.8444161 | BZ16: 147.3850208 | CA16: 155.2924698 | CB16: 151.6027361 | CC16: 150.5443905 | CD16: 144.4860024 | CE16: 159.6086453 | CF16: 147.1682241 | CG16: 151.826332 | CH16: 149.3545189 | CI16: 153.8885052 | CJ16: 143.9170908 | CK16: 145.6263072 | CL16: 142.966693 | CM16: 146.3397843 | CN16: 143.9220581 | CO16: 149.4517623 | CP16: 157.5103993 | CQ16: 160.094388 | CR16: 158.6061407 | CS16: 168.4586552 | CT16: 173.3458974 | CU16: 176.2033199 | CV16: 171.706398 | CW16: 172.5811101 | CX16: 188.9135145 | CY16: 195.9117041 | CZ16: 234.2616406 | DA16: 219.7190111 | DB16: 236.8363521 | DC16: 253.9669925 | DD16: 272.6022372 | DE16: 316.2757343 | DF16: 328.7326577 | DG16: 402.8428545 | DH16: 483.7642619 | DI16: 550.2399702 | DJ16: 644.4739497 | DK16: 800.538699 | DL16: 688.1063997 | DM16: 1077.760671 | DN16: 1183.518804 | DO16: 1521.771886 | DP16: 1459.704583 | DQ16: 1491.697392 | DR16: 1593.067812 | DS16: 1741.385034 | DT16: 1975.621204 | DU16: 1925.349138 | DV16: 2676.959865 | DW16: 3426.796553 | DX16: 3251.300118 | DY16: 3480.363905 | DZ16: 3902.703056 | EA16: 4308.895161 | EB16: 4741.848212 | EC16: 5093.896661 | ED16: 4920.005547 | EE16: 4427.66256 | EF16: 7706.85889 | EG16: 8287.015176 | EH16: 7552.233614 | EI16: 6316.490577 | EJ16: 6323.488874 | EK16: 6421.317363 | EL16: 6397.117302 | EM16: 6137.901883 | EN16: 6020.682723 | EO16: 6295.207366 | EP16: 6584.39023 | EQ16: 7427.827863 | ER16: 8112.564372 | ES16: 8848.530607 | ET16: 9407.962487 | EU16: 9533.02895 | EV16: 9784.989382 | EW16: 9898.954631 | EX16: 10199.45253 | EY16: 10530.50365 | EZ16: 10817.96108 | FA16: 7949.973516 | FB16: 8499.353448 | FC16: 8025.296733 | FD16: 9037.362384 | FE16: 9393.121519 | FF16: 11712.86155 | FG16: 11896.12305 | FH16: 11196.41459 | FI16: 13213.58411 | FJ16: 13544.67291 | FK16: 12682.05824 | FL16: 13827.63047 | FM16: 15137.51559 | FN16: 16009.376 | FO16: 15661.78444 | FP16: 13125.47582 | FQ16: 13977.07442 | FR16: 16130.24545 | FS16: 17055.28988 | FT16: 15675.11666 | FU16: 13346.14681 | FV16: 13953.80467 | FW16: 13628.55859 | FX16: 13986.75415 | FY16: 15137.61133 | FZ16: 14167.91719 | GA16: 13784.79883 | GB16: 14100.17319 | GC16: 14418.00171 | GD16: 14141.01225 | GE16: 14227.8157 | GF16: 15049.93467 | GG16: 14983.8804 | GH16: 14883.98301 | GI16: 15320.41767 | GJ16: 15176.50486 | GK16: 15571.38576 | GL16: 16845.3818 | GM16: 18143.92581
A17: 011 | B17: Food | C17: =SUM(E18:E26) -> 51.62 | F17: 45.754 | G17: 48.895 | H17: 49.098 | I17: 48.986 | J17: 51.137 | K17: 53.548 | L17: 59.583 | M17: 58.508 | N17: 57.33 | O17: 67.893 | P17: 60.435 | Q17: 59.319 | R17: 60.615 | S17: 62.863 | T17: 62.526 | U17: 66.683 | V17: 64.928 | W17: 66.762 | X17: 65.746 | Y17: 65.78 | Z17: 64.575 | AA17: 72.433 | AB17: 64.515 | AC17: 66.517 | AD17: 66.233 | AE17: 64.542 | AF17: 66.688 | AG17: 65.351 | AH17: 66.099 | AI17: 67.246 | AJ17: 71.408 | AK17: 73.763 | AL17: 66.258 | AM17: 68.321 | AN17: 66.284 | AO17: 67.849 | AP17: 69.494 | AQ17: 66.758 | AR17: 66.763 | AS17: 65.511 | AT17: 66.079 | AU17: 66.055 | AV17: 69.858 | AW17: 68.808 | AX17: 80.073 | AY17: 89.752 | AZ17: 90.314 | BA17: 84.245 | BB17: 100.967 | BC17: 92.929 | BD17: 100 | BE17: 105.1945384 | BF17: 106.5817761 | BG17: 103.7703099 | BH17: 113.0332433 | BI17: 114.9314375 | BJ17: 118.0061504 | BK17: 118.1599033 | BL17: 125.6476054 | BM17: 119.1738864 | BN17: 120.8195997 | BO17: 173.2074799 | BP17: 172.2787811 | BQ17: 166.3489207 | BR17: 166.8750209 | BS17: 149.329561 | BT17: 140.0195847 | BU17: 187.9456417 | BV17: 150.3833492 | BW17: 170.3222786 | BX17: 132.05206 | BY17: 128.623018 | BZ17: 130.1808257 | CA17: 134.1652522 | CB17: 129.012583 | CC17: 131.8968548 | CD17: 129.7021532 | CE17: 150.7912721 | CF17: 146.9637084 | CG17: 146.6206044 | CH17: 135.5026887 | CI17: 148.9894319 | CJ17: 145.6842369 | CK17: 134.4604946 | CL17: 129.8064382 | CM17: 134.6082766 | CN17: 150.8229716 | CO17: 152.6809415 | CP17: 156.6168559 | CQ17: 142.2062227 | CR17: 135.0210712 | CS17: 212.643457 | CT17: 140.3188624 | CU17: 143.4541769 | CV17: 157.5138816 | CW17: 157.7113838 | CX17: 159.7074778 | CY17: 191.4274456 | CZ17: 231.5497189 | DA17: 246.5904193 | DB17: 259.1732123 | DC17: 331.9181544 | DD17: 326.3986621 | DE17: 336.9140235 | DF17: 345.3558398 | DG17: 430.9046561 | DH17: 512.8217813 | DI17: 554.1924323 | DJ17: 669.579956 | DK17: 751.2201714 | DL17: 720.800435 | DM17: 1452.550067 | DN17: 1360.171569 | DO17: 1683.713547 | DP17: 1631.515274 | DQ17: 1831.417261 | DR17: 2106.940118 | DS17: 2040.87565 | DT17: 3229.97945 | DU17: 2631.603807 | DV17: 2493.136047 | DW17: 3713.324604 | DX17: 3086.033376 | DY17: 3117.364162 | DZ17: 3188.690502 | EA17: 3351.133408 | EB17: 3405.094506 | EC17: 3894.605166 | ED17: 4068.509662 | EE17: 4623.42178 | EF17: 4298.870309 | EG17: 5854.467072 | EH17: 6860.886501 | EI17: 5345.536519 | EJ17: 5501.172462 | EK17: 7020.485026 | EL17: 5859.833003 | EM17: 5308.980796 | EN17: 4779.314522 | EO17: 5326.70539 | EP17: 5275.193549 | EQ17: 5523.781536 | ER17: 6627.382054 | ES17: 8222.015745 | ET17: 8958.09062 | EU17: 9842.872765 | EV17: 10218.83691 | EW17: 10302.84509 | EX17: 10573.68325 | EY17: 10825.84692 | EZ17: 11122.21282 | FA17: 8417.519448 | FB17: 6680.180252 | FC17: 7229.542561 | FD17: 7908.484869 | FE17: 11119.2669 | FF17: 10446.6081 | FG17: 10078.69628 | FH17: 9336.422432 | FI17: 9781.344942 | FJ17: 10999.61604 | FK17: 10013.69866 | FL17: 10966.5071 | FM17: 12124.55548 | FN17: 13591.18052 | FO17: 13872.40684 | FP17: 11734.15066 | FQ17: 12093.34255 | FR17: 17528.61531 | FS17: 17561.11665 | FT17: 16746.55225 | FU17: 15200.20567 | FV17: 14481.23391 | FW17: 12837.49268 | FX17: 14651.69205 | FY17: 14192.54983 | FZ17: 16165.99781 | GA17: 13541.17684 | GB17: 12981.75507 | GC17: 12848.55488 | GD17: 14265.76926 | GE17: 14675.11707 | GF17: 13941.76437 | GG17: 14877.61431 | GH17: 14770.0629 | GI17: 14540.06411 | GJ17: 15024.89323 | GK17: 13343.73534 | GL17: 9620.232635 | GM17: 13254.34957
A18: 0111 | B18: Bread & Cereals | E18: =SUM('[1]Item index series - Juba'!C4:C14) -> 18.38 | F18: 53.714 | G18: 55.315 | H18: 59.62 | I18: 58.871 | J18: 62.649 | K18: 67.188 | L18: 64.598 | M18: 67.747 | N18: 68.047 | O18: 83.774 | P18: 70.626 | Q18: 67.688 | R18: 70.066 | S18: 72.881 | T18: 75.396 | U18: 82.948 | V18: 88.186 | W18: 88.31 | X18: 88.935 | Y18: 77.484 | Z18: 74.396 | AA18: 92.806 | AB18: 88.654 | AC18: 83.589 | AD18: 90.738 | AE18: 77.636 | AF18: 88.074 | AG18: 88.145 | AH18: 89.406 | AI18: 85.4 | AJ18: 90.898 | AK18: 87.408 | AL18: 76.024 | AM18: 78.083 | AN18: 73.934 | AO18: 78.78 | AP18: 77.981 | AQ18: 73.805 | AR18: 72.493 | AS18: 75.93 | AT18: 73.879 | AU18: 75.248 | AV18: 88.052 | AW18: 78.849 | AX18: 92.065 | AY18: 99.712 | AZ18: 98.123 | BA18: 93.703 | BB18: 122.455 | BC18: 108.326 | BD18: 100 | BE18: 117.3481079 | BF18: 112.9583387 | BG18: 97.6904768 | BH18: 106.3086779 | BI18: 105.8895736 | BJ18: 106.0999807 | BK18: 100.9049276 | BL18: 101.8582462 | BM18: 115.8019352 | BN18: 111.7294531 | BO18: 166.0362409 | BP18: 172.1678654 | BQ18: 151.5692834 | BR18: 160.8609337 | BS18: 162.3436739 | BT18: 136.252923 | BU18: 165.5590026 | BV18: 153.1243457 | BW18: 154.3728826 | BX18: 138.4799368 | BY18: 130.3020567 | BZ18: 143.4919481 | CA18: 131.9025158 | CB18: 131.2212142 | CC18: 128.8339573 | CD18: 132.5528211 | CE18: 156.8134928 | CF18: 174.9530428 | CG18: 145.0664733 | CH18: 143.8041784 | CI18: 161.2339 | CJ18: 140.2669627 | CK18: 131.8084342 | CL18: 150.4347861 | CM18: 147.3524262 | CN18: 137.7619206 | CO18: 138.961978 | CP18: 137.3649215 | CQ18: 140.7812747 | CR18: 125.0548398 | CS18: 143.3426811 | CT18: 135.5738736 | CU18: 133.737543 | CV18: 153.3604565 | CW18: 151.5401939 | CX18: 150.9521886 | CY18: 187.9879839 | CZ18: 209.3785562 | DA18: 204.0330573 | DB18: 253.8756648 | DC18: 289.965001 | DD18: 256.1631808 | DE18: 328.3705843 | DF18: 352.9835741 | DG18: 498.8005079 | DH18: 527.5050347 | DI18: 550.8172151 | DJ18: 672.440374 | DK18: 757.8159968 | DL18: 698.671745 | DM18: 1604.504781 | DN18: 1709.390294 | DO18: 1649.550877 | DP18: 2032.03461 | DQ18: 2147.620953 | DR18: 2603.783935 | DS18: 2436.615188 | DT18: 3413.14445 | DU18: 2643.586941 | DV18: 2339.130141 | DW18: 3406.007644 | DX18: 3147.845483 | DY18: 3105.988554 | DZ18: 3292.413037 | EA18: 2961.651129 | EB18: 3059.447882 | EC18: 3995.71801 | ED18: 4218.523498 | EE18: 4272.010863 | EF18: 4443.395452 | EG18: 6089.006391 | EH18: 8905.286314 | EI18: 4593.097289 | EJ18: 4004.243119 | EK18: 7701.00168 | EL18: 4927.3663 | EM18: 4277.462003 | EN18: 4460.77068 | EO18: 4776.516882 | EP18: 4007.842127 | EQ18: 3662.193863 | ER18: 6711.968322 | ES18: 8108.278656 | ET18: 9179.386749 | EU18: 9590.457349 | EV18: 9617.888543 | EW18: 9741.667847 | EX18: 9841.003807 | EY18: 10104.50389 | EZ18: 10302.98257 | FA18: 7101.481693 | FB18: 5559.427096 | FC18: 5616.909788 | FD18: 5246.239689 | FE18: 8637.705592 | FF18: 10212.77911 | FG18: 9413.355026 | FH18: 7866.218749 | FI18: 8399.770285 | FJ18: 8651.303602 | FK18: 9462.186746 | FL18: 9357.768694 | FM18: 8668.08796 | FN18: 11061.04385 | FO18: 10761.99523 | FP18: 13491.08345 | FQ18: 13625.1721 | FR18: 16402.15108 | FS18: 16843.89206 | FT18: 13882.15592 | FU18: 11945.44571 | FV18: 11578.22063 | FW18: 10461.21566 | FX18: 10419.32589 | FY18: 13650.18907 | FZ18: 16276.23137 | GA18: 10077.08991 | GB18: 10877.80685 | GC18: 11495.76764 | GD18: 11046.66218 | GE18: 11517.87861 | GF18: 13899.04198 | GG18: 13956.27369 | GH18: 11970.79317 | GI18: 13844.17689 | GJ18: 16447.83918 | GK18: 12361.06653 | GL18: 6065.26679 | GM18: 10148.71318
A19: 0112 | B19: Meat | E19: =SUM('[1]Item index series - Juba'!C15:C19) -> 5.6 | F19: 61.911 | G19: 61.225 | H19: 62.853 | I19: 60.831 | J19: 64.402 | K19: 70.628 | L19: 66.69 | M19: 69.711 | N19: 61.485 | O19: 72.969 | P19: 67.117 | Q19: 74.277 | R19: 74.24 | S19: 75.001 | T19: 73.235 | U19: 73.426 | V19: 70.311 | W19: 71.142 | X19: 74.542 | Y19: 70.488 | Z19: 72.253 | AA19: 70.541 | AB19: 72.467 | AC19: 75.435 | AD19: 67.545 | AE19: 76.562 | AF19: 72.038 | AG19: 72.038 | AH19: 72.038 | AI19: 71.691 | AJ19: 71.913 | AK19: 71.913 | AL19: 72.377 | AM19: 70.137 | AN19: 73.265 | AO19: 77.042 | AP19: 82.807 | AQ19: 84.502 | AR19: 85.594 | AS19: 71.087 | AT19: 81.366 | AU19: 83.027 | AV19: 79.908 | AW19: 84.363 | AX19: 87.844 | AY19: 87.719 | AZ19: 84.239 | BA19: 89.687 | BB19: 99.733 | BC19: 93.244 | BD19: 100 | BE19: 112.2593032 | BF19: 115.0556107 | BG19: 111.5257509 | BH19: 125.9646815 | BI19: 118.9484856 | BJ19: 126.7018239 | BK19: 126.3781597 | BL19: 120.7149089 | BM19: 123.8021824 | BN19: 137.2057147 | BO19: 159.747156 | BP19: 161.731069 | BQ19: 172.3353646 | BR19: 175.7683777 | BS19: 168.8313414 | BT19: 165.2866278 | BU19: 169.056182 | BV19: 172.3076314 | BW19: 165.6212697 | BX19: 165.8490822 | BY19: 166.9981157 | BZ19: 168.4733686 | CA19: 163.2372873 | CB19: 166.591528 | CC19: 165.5215529 | CD19: 164.6443722 | CE19: 160.2050482 | CF19: 167.6160532 | CG19: 166.4578574 | CH19: 161.5726519 | CI19: 173.14787 | CJ19: 167.2250862 | CK19: 163.1823957 | CL19: 164.0788684 | CM19: 165.6957856 | CN19: 160.1461662 | CO19: 167.5386844 | CP19: 165.4820767 | CQ19: 168.0580722 | CR19: 167.1642167 | CS19: 181.8258391 | CT19: 188.2525355 | CU19: 188.8948618 | CV19: 189.8301495 | CW19: 196.2136959 | CX19: 234.5084899 | CY19: 268.1958884 | CZ19: 314.4971937 | DA19: 303.2112631 | DB19: 316.6641837 | DC19: 415.4920196 | DD19: 328.7791135 | DE19: 388.4641585 | DF19: 416.684562 | DG19: 515.1957986 | DH19: 553.6777511 | DI19: 530.6726926 | DJ19: 747.7457625 | DK19: 735.8147273 | DL19: 802.1584779 | DM19: 967.2945646 | DN19: 1057.107471 | DO19: 1394.028164 | DP19: 1469.473981 | DQ19: 1571.768083 | DR19: 1690.805367 | DS19: 2112.750672 | DT19: 2445.73256 | DU19: 2386.004425 | DV19: 2420.200593 | DW19: 2836.641433 | DX19: 2832.449728 | DY19: 2639.448428 | DZ19: 3184.798353 | EA19: 3889.753813 | EB19: 3899.206369 | EC19: 4227.281409 | ED19: 4636.414327 | EE19: 5077.326154 | EF19: 4748.478942 | EG19: 5716.378073 | EH19: 6657.086074 | EI19: 6802.275261 | EJ19: 6809.649149 | EK19: 7085.390658 | EL19: 6445.427932 | EM19: 6726.483066 | EN19: 6178.680348 | EO19: 6637.434827 | EP19: 7035.725201 | EQ19: 7931.79924 | ER19: 6790.006412 | ES19: 8560.613431 | ET19: 8729.072689 | EU19: 8863.285893 | EV19: 9747.224235 | EW19: 9762.831145 | EX19: 10353.10583 | EY19: 10950.4946 | EZ19: 11404.66807 | FA19: 8314.22025 | FB19: 7547.626951 | FC19: 8526.443042 | FD19: 8837.571846 | FE19: 9172.180342 | FF19: 9345.768465 | FG19: 9127.220683 | FH19: 11536.58037 | FI19: 11902.76983 | FJ19: 11686.61316 | FK19: 14193.98836 | FL19: 14989.3369 | FM19: 17021.64117 | FN19: 16440.81686 | FO19: 16505.84289 | FP19: 16620.68233 | FQ19: 17062.25216 | FR19: 16739.6803 | FS19: 18551.60246 | FT19: 19369.14652 | FU19: 18380.3492 | FV19: 18224.01851 | FW19: 17270.5686 | FX19: 18076.07784 | FY19: 17173.0575 | FZ19: 17363.45068 | GA19: 16375.3756 | GB19: 17179.50556 | GC19: 15907.66126 | GD19: 17396.67328 | GE19: 17551.39077 | GF19: 18327.92969 | GG19: 19157.2239 | GH19: 19326.20571 | GI19: 19502.65179 | GJ19: 19330.52938 | GK19: 19272.43002 | GL19: 18941.37556 | GM19: 21165.38761
A20: 0113 | B20: Fish & Sea foods | E20: =SUM('[1]Item index series - Juba'!C20:C21) -> 3.18 | F20: 58.795 | G20: 56.487 | H20: 63.175 | I20: 65.374 | J20: 65.597 | K20: 87.702 | L20: 76.949 | M20: 72.948 | N20: 72.363 | O20: 91.642 | P20: 78.727 | Q20: 72.863 | R20: 76.352 | S20: 71.927 | T20: 79.734 | U20: 76.755 | V20: 70.208 | W20: 69.98 | X20: 72.474 | Y20: 83.424 | Z20: 47.275 | AA20: 70.621 | AB20: 74.677 | AC20: 83.504 | AD20: 74.654 | AE20: 95.096 | AF20: 98.525 | AG20: 84.403 | AH20: 83.942 | AI20: 77.209 | AJ20: 82.283 | AK20: 76.981 | AL20: 75.423 | AM20: 71.873 | AN20: 72.367 | AO20: 72.51 | AP20: 78.772 | AQ20: 84.657 | AR20: 80.492 | AS20: 86.907 | AT20: 86.254 | AU20: 86.254 | AV20: 84.293 | AW20: 98.844 | AX20: 103.262 | AY20: 103.262 | AZ20: 108.671 | BA20: 98.934 | BB20: 134.462 | BC20: 111.892 | BD20: 100 | BE20: 91.37834961 | BF20: 133.9766113 | BG20: 138.7889465 | BH20: 118.6884018 | BI20: 154.5394154 | BJ20: 115.4140576 | BK20: 133.1128672 | BL20: 134.6191982 | BM20: 154.540336 | BN20: 142.9894033 | BO20: 171.149478 | BP20: 171.1577183 | BQ20: 156.1860992 | BR20: 229.1057112 | BS20: 148.2036876 | BT20: 140.4113754 | BU20: 160.7385632 | BV20: 138.6367659 | BW20: 137.3998641 | BX20: 123.275385 | BY20: 130.5527679 | BZ20: 129.6059999 | CA20: 130.6809458 | CB20: 151.1018382 | CC20: 188.4448685 | CD20: 137.430221 | CE20: 129.4322515 | CF20: 160.2211668 | CG20: 122.7825765 | CH20: 158.6428901 | CI20: 156.6237452 | CJ20: 213.9745069 | CK20: 113.2203316 | CL20: 142.4379373 | CM20: 153.0379021 | CN20: 169.1810879 | CO20: 180.6755353 | CP20: 246.8726006 | CQ20: 182.2747073 | CR20: 192.7726229 | CS20: 144.5311875 | CT20: 140.5183111 | CU20: 142.6858629 | CV20: 145.7688782 | CW20: 146.9844842 | CX20: 183.8863514 | CY20: 201.0028263 | CZ20: 259.8287343 | DA20: 315.9642005 | DB20: 238.2185506 | DC20: 409.0125026 | DD20: 290.0249218 | DE20: 370.9267094 | DF20: 354.0491965 | DG20: 353.0583744 | DH20: 759.067504 | DI20: 657.3918103 | DJ20: 814.3572043 | DK20: 985.0466932 | DL20: 769.0662966 | DM20: 1954.775488 | DN20: 2349.234645 | DO20: 2432.195545 | DP20: 1379.456486 | DQ20: 1482.841882 | DR20: 2224.341101 | DS20: 1528.802875 | DT20: 1458.680128 | DU20: 3359.688197 | DV20: 1459.897805 | DW20: 2944.177681 | DX20: 3781.140926 | DY20: 3587.068174 | DZ20: 3810.033357 | EA20: 4173.995479 | EB20: 3235.666049 | EC20: 3874.382987 | ED20: 5057.113871 | EE20: 5965.414505 | EF20: 5023.107869 | EG20: 6683.609483 | EH20: 7542.057105 | EI20: 8869.723266 | EJ20: 5044.851397 | EK20: 7140.840885 | EL20: 3544.375576 | EM20: 2739.883773 | EN20: 5996.228416 | EO20: 5360.95973 | EP20: 12567.60505 | EQ20: 5802.551628 | ER20: 4865.947343 | ES20: 11058.6777 | ET20: 11426.91882 | EU20: 11450.87528 | EV20: 11552.92771 | EW20: 11599.16368 | EX20: 11676.44675 | EY20: 11929.25942 | EZ20: 14305.3828 | FA20: 20956.61506 | FB20: 8659.546865 | FC20: 8307.316617 | FD20: 14814.63385 | FE20: 12838.63231 | FF20: 15584.9944 | FG20: 16073.64591 | FH20: 15419.78739 | FI20: 16854.25755 | FJ20: 23532.88451 | FK20: 8358.91837 | FL20: 10724.99083 | FM20: 9994.546532 | FN20: 11746.39511 | FO20: 11076.08879 | FP20: 11017.82159 | FQ20: 11155.90561 | FR20: 10270.07584 | FS20: 15052.3333 | FT20: 3637.293023 | FU20: 10965.16713 | FV20: 8504.802587 | FW20: 8588.499321 | FX20: 8794.532205 | FY20: 10943.64961 | FZ20: 12176.41874 | GA20: 10047.36904 | GB20: 10883.38504 | GC20: 12255.16623 | GD20: 6685.006597 | GE20: 7869.333391 | GF20: 7044.706307 | GG20: 11098.88589 | GH20: 4085.203964 | GI20: 4885.582376 | GJ20: 2904.305633 | GK20: 4373.656233 | GL20: 3072.647722 | GM20: 4487.772316
A21: 0114 | B21: Milk,Cheese & Eggs | E21: =SUM('[1]Item index series - Juba'!C22:C27) -> 1.67 | F21: 51.916 | G21: 51.916 | H21: 53.102 | I21: 52.251 | J21: 56.05 | K21: 57.017 | L21: 59.094 | M21: 53.811 | N21: 53.129 | O21: 64.74 | P21: 60.235 | Q21: 68.248 | R21: 64.163 | S21: 62.809 | T21: 65.893 | U21: 68.483 | V21: 72.482 | W21: 68.973 | X21: 68.257 | Y21: 69.17 | Z21: 67.277 | AA21: 71.574 | AB21: 67.206 | AC21: 70.581 | AD21: 70.018 | AE21: 67.538 | AF21: 68.344 | AG21: 68.344 | AH21: 68.344 | AI21: 72.111 | AJ21: 73.138 | AK21: 70.581 | AL21: 69.858 | AM21: 70.744 | AN21: 75.46 | AO21: 71.182 | AP21: 70.252 | AQ21: 70.02 | AR21: 79.608 | AS21: 73.714 | AT21: 74.559 | AU21: 71.697 | AV21: 76.677 | AW21: 80.422 | AX21: 85.614 | AY21: 87.598 | AZ21: 89.095 | BA21: 94.412 | BB21: 102.404 | BC21: 82.375 | BD21: 100 | BE21: 94.5338466 | BF21: 103.3840709 | BG21: 98.03539787 | BH21: 100.4580629 | BI21: 103.9566126 | BJ21: 108.2676595 | BK21: 122.0479778 | BL21: 120.6279002 | BM21: 117.0414218 | BN21: 156.1307278 | BO21: 152.314854 | BP21: 140.0279446 | BQ21: 194.3130763 | BR21: 131.3955682 | BS21: 131.9141905 | BT21: 127.3482695 | BU21: 126.1415981 | BV21: 132.094877 | BW21: 120.3734958 | BX21: 124.3485212 | BY21: 146.827446 | BZ21: 135.5792551 | CA21: 142.3367673 | CB21: 112.3393397 | CC21: 149.086057 | CD21: 135.4800136 | CE21: 125.4288821 | CF21: 128.0256857 | CG21: 153.3242332 | CH21: 140.3798673 | CI21: 155.5272638 | CJ21: 130.2468564 | CK21: 123.8054065 | CL21: 121.3360762 | CM21: 123.7470437 | CN21: 130.2338389 | CO21: 130.3213831 | CP21: 130.3213831 | CQ21: 108.6688349 | CR21: 130.9792196 | CS21: 163.901908 | CT21: 177.4264767 | CU21: 146.002935 | CV21: 142.7678809 | CW21: 158.9223516 | CX21: 165.3776174 | CY21: 231.5578812 | CZ21: 278.7092457 | DA21: 252.7579023 | DB21: 280.423597 | DC21: 324.4218411 | DD21: 351.330461 | DE21: 444.0396682 | DF21: 451.6604872 | DG21: 515.1179041 | DH21: 572.8589185 | DI21: 753.3710814 | DJ21: 812.9986457 | DK21: 1145.87575 | DL21: 877.7404392 | DM21: 1613.197662 | DN21: 1481.421194 | DO21: 1681.422789 | DP21: 1758.075481 | DQ21: 2034.066271 | DR21: 2177.27067 | DS21: 2181.579158 | DT21: 2705.388711 | DU21: 2776.369482 | DV21: 3062.271288 | DW21: 3542.463408 | DX21: 3159.899148 | DY21: 4289.38081 | DZ21: 3440.1885 | EA21: 8209.60997 | EB21: 4356.168602 | EC21: 4426.991189 | ED21: 5302.887419 | EE21: 5139.777996 | EF21: 6630.209778 | EG21: 3971.684704 | EH21: 9567.027067 | EI21: 10738.00616 | EJ21: 7891.741954 | EK21: 8270.22241 | EL21: 6720.457926 | EM21: 6147.179943 | EN21: 4830.056083 | EO21: 6457.632563 | EP21: 7107.183578 | EQ21: 6582.869275 | ER21: 6512.104681 | ES21: 6961.37626 | ET21: 7894.76664 | EU21: 8450.316915 | EV21: 8883.380082 | EW21: 8889.216362 | EX21: 8957.120809 | EY21: 9074.356757 | EZ21: 9078.733968 | FA21: 7476.652163 | FB21: 6116.487214 | FC21: 7962.244039 | FD21: 10917.65284 | FE21: 10376.44491 | FF21: 11646.71041 | FG21: 9050.922301 | FH21: 9669.31241 | FI21: 13269.62842 | FJ21: 9827.615641 | FK21: 10109.9095 | FL21: 11894.43881 | FM21: 12238.68979 | FN21: 13977.91376 | FO21: 12999.59963 | FP21: 14152.90483 | FQ21: 14876.67094 | FR21: 15842.16901 | FS21: 12319.14545 | FT21: 10194.04091 | FU21: 11933.16383 | FV21: 15520.1107 | FW21: 12902.20124 | FX21: 12541.17422 | FY21: 10624.18022 | FZ21: 10590.50723 | GA21: 12103.51486 | GB21: 11343.03769 | GC21: 10292.17161 | GD21: 9598.12305 | GE21: 9695.60251 | GF21: 10153.08321 | GG21: 11144.65146 | GH21: 11944.52792 | GI21: 11731.4944 | GJ21: 15098.19598 | GK21: 13873.3729 | GL21: 15821.50047 | GM21: 17192.34145
A22: 0115 | B22: Oils & Fats | E22: =SUM('[1]Item index series - Juba'!C28) -> 1.89 | F22: 50 | G22: 50 | H22: 50 | I22: 50 | J22: 50 | K22: 75 | L22: 65.625 | M22: 53.125 | N22: 59.375 | O22: 59.375 | P22: 43.75 | Q22: 62.5 | R22: 59.375 | S22: 68.75 | T22: 75 | U22: 75 | V22: 75 | W22: 75 | X22: 75 | Y22: 78.25 | Z22: 75 | AA22: 71.875 | AB22: 75 | AC22: 72 | AD22: 65.75 | AE22: 72 | AF22: 62.5 | AG22: 62.5 | AH22: 62.5 | AI22: 75 | AJ22: 68.75 | AK22: 62.5 | AL22: 70.75 | AM22: 70.75 | AN22: 70.875 | AO22: 75 | AP22: 75 | AQ22: 70.75 | AR22: 58.25 | AS22: 75 | AT22: 70.75 | AU22: 62.5 | AV22: 75 | AW22: 70.75 | AX22: 62.5 | AY22: 100 | AZ22: 100 | BA22: 100 | BB22: 100 | BC22: 100 | BD22: 100 | BE22: 100 | BF22: 116.6666667 | BG22: 141.6666667 | BH22: 108.3333333 | BI22: 133.3333333 | BJ22: 125 | BK22: 125 | BL22: 125 | BM22: 125 | BN22: 125 | BO22: 125 | BP22: 125 | BQ22: 125 | BR22: 125 | BS22: 125 | BT22: 125 | BU22: 125 | BV22: 125 | BW22: 125 | BX22: 125 | BY22: 125 | BZ22: 116.6666667 | CA22: 125 | CB22: 125 | CC22: 125 | CD22: 100 | CE22: 108.3333333 | CF22: 116.6666667 | CG22: 116.6666667 | CH22: 108.3333333 | CI22: 116.6666667 | CJ22: 125 | CK22: 125 | CL22: 108.3333333 | CM22: 116.6666667 | CN22: 125 | CO22: 116.6666667 | CP22: 125 | CQ22: 108.3333333 | CR22: 116.6666667 | CS22: 116.6666667 | CT22: 116.6666667 | CU22: 125 | CV22: 133.3333333 | CW22: 125 | CX22: 150 | CY22: 166.6666667 | CZ22: 183.3333333 | DA22: 216.6666667 | DB22: 258.3333333 | DC22: 275 | DD22: 250 | DE22: 300 | DF22: 350 | DG22: 416.6666667 | DH22: 500 | DI22: 558.3333333 | DJ22: 850 | DK22: 687.5 | DL22: 850 | DM22: 1250 | DN22: 1375 | DO22: 1458.333333 | DP22: 1187.5 | DQ22: 1250 | DR22: 1666.666667 | DS22: 1541.666667 | DT22: 2375 | DU22: 2125 | DV22: 2500 | DW22: 12833.33333 | DX22: 2750 | DY22: 2916.666667 | DZ22: 2583.333333 | EA22: 2916.666667 | EB22: 2750 | EC22: 12500 | ED22: 3000 | EE22: 3000 | EF22: 3416.666667 | EG22: 3083.333333 | EH22: 4333.333333 | EI22: 5083.333333 | EJ22: 5166.666667 | EK22: 4083.333333 | EL22: 4000 | EM22: 3666.666667 | EN22: 3250 | EO22: 4583.333333 | EP22: 3833.333333 | EQ22: 8734.627832 | ER22: 10416.66667 | ES22: 10500 | ET22: 10833.33333 | EU22: 10916.66667 | EV22: 11166.66667 | EW22: 11166.66667 | EX22: 11208.33333 | EY22: 12500 | EZ22: 12583.33333 | FA22: 10500 | FB22: 13166.66667 | FC22: 15416.66667 | FD22: 12833.33333 | FE22: 12500 | FF22: 16666.66667 | FG22: 15625 | FH22: 12916.66667 | FI22: 15416.66667 | FJ22: 17166.66667 | FK22: 19166.66667 | FL22: 24166.66667 | FM22: 29166.66667 | FN22: 36666.66667 | FO22: 30833.33333 | FP22: 17500 | FQ22: 17916.66667 | FR22: 66666.66667 | FS22: 33750 | FT22: 30625 | FU22: 31666.66667 | FV22: 25833.33333 | FW22: 21666.66667 | FX22: 45833.33333 | FY22: 33333.33333 | FZ22: 30416.66667 | GA22: 30000 | GB22: 30000 | GC22: 27500 | GD22: 36250 | GE22: 36250 | GF22: 33750 | GG22: 43750 | GH22: 47500 | GI22: 31250 | GJ22: 36666.66667 | GK22: 36250 | GL22: 38750 | GM22: 25000
A23: 0116 | B23: Fruits | E23: =SUM('[1]Item index series - Juba'!C29:C33) -> 4.39 | F23: 35.929 | G23: 41.001 | H23: 38.746 | I23: 43.995 | J23: 46.522 | K23: 41.282 | L23: 47.1 | M23: 60.917 | N23: 46.107 | O23: 55.217 | P23: 47.819 | Q23: 51.762 | R23: 53.545 | S23: 55.874 | T23: 55.104 | U23: 61.638 | V23: 53.457 | W23: 56.907 | X23: 48.335 | Y23: 61.658 | Z23: 56.549 | AA23: 54.986 | AB23: 45.312 | AC23: 51.589 | AD23: 48.636 | AE23: 58.744 | AF23: 58.435 | AG23: 56.779 | AH23: 54.441 | AI23: 61.142 | AJ23: 53.877 | AK23: 85.379 | AL23: 58 | AM23: 64.29 | AN23: 58.983 | AO23: 56.962 | AP23: 58.871 | AQ23: 60.145 | AR23: 61.677 | AS23: 57.69 | AT23: 62.431 | AU23: 56.74 | AV23: 53.28 | AW23: 65.834 | AX23: 60.551 | AY23: 74.441 | AZ23: 74.646 | BA23: 69.142 | BB23: 77.899 | BC23: 79.497 | BD23: 100 | BE23: 106.044407 | BF23: 108.3903789 | BG23: 102.7466559 | BH23: 156.3702295 | BI23: 131.3555805 | BJ23: 190.3974866 | BK23: 180.5004007 | BL23: 265.504947 | BM23: 126.9972603 | BN23: 101.2919285 | BO23: 302.1202666 | BP23: 331.174884 | BQ23: 344.8512957 | BR23: 328.3479733 | BS23: 219.6524081 | BT23: 232.4326292 | BU23: 652.2997833 | BV23: 237.8011005 | BW23: 530.8218267 | BX23: 138.5867069 | BY23: 137.9656468 | BZ23: 106.1049135 | CA23: 167.3826747 | CB23: 149.0616513 | CC23: 148.8954564 | CD23: 148.0074349 | CE23: 299.5992521 | CF23: 173.417916 | CG23: 238.4403378 | CH23: 169.1977138 | CI23: 218.5252744 | CJ23: 218.0855409 | CK23: 180.19773 | CL23: 125.066871 | CM23: 182.3443488 | CN23: 386.2085215 | CO23: 413.3865237 | CP23: 390.6594537 | CQ23: 306.2501336 | CR23: 268.0348956 | CS23: 1022.18016 | CT23: 194.0059803 | CU23: 222.458566 | CV23: 344.4354926 | CW23: 265.2978936 | CX23: 161.3093425 | CY23: 180.0292492 | CZ23: 290.2561637 | DA23: 583.1601336 | DB23: 459.8052448 | DC23: 788.0520507 | DD23: 950.105072 | DE23: 440.6680732 | DF23: 317.9828947 | DG23: 326.0681712 | DH23: 312.7180411 | DI23: 540.5338984 | DJ23: 530.0038057 | DK23: 859.4302219 | DL23: 632.2198533 | DM23: 1150.249893 | DN23: 358.9920721 | DO23: 1089.77069 | DP23: 740.1533895 | DQ23: 2825.401944 | DR23: 2146.954418 | DS23: 2093.819158 | DT23: 7535.60549 | DU23: 4969.500869 | DV23: 2890.553937 | DW23: 6157.097529 | DX23: 4664.758879 | DY23: 5139.107178 | DZ23: 5478.056491 | EA23: 5315.571559 | EB23: 7181.005862 | EC23: 2985.465938 | ED23: 2652.608777 | EE23: 5329.794379 | EF23: 3626.663338 | EG23: 8316.318167 | EH23: 8562.654846 | EI23: 5710.309668 | EJ23: 13112.58871 | EK23: 13945.75189 | EL23: 16270.48791 | EM23: 12350.93052 | EN23: 7349.063298 | EO23: 9874.245726 | EP23: 7046.738707 | EQ23: 12248.71892 | ER23: 9554.844908 | ES23: 10671.36314 | ET23: 12967.96836 | EU23: 20846.71494 | EV23: 21032.29407 | EW23: 21334.33607 | EX23: 22389.53705 | EY23: 22547.00787 | EZ23: 22621.51625 | FA23: 7394.007213 | FB23: 2808.125562 | FC23: 10091.50889 | FD23: 10295.20851 | FE23: 35311.45009 | FF23: 9842.083168 | FG23: 7794.944292 | FH23: 6851.483581 | FI23: 8006.68821 | FJ23: 9795.962333 | FK23: 12087.22585 | FL23: 11364.37213 | FM23: 26539.54095 | FN23: 21212.52576 | FO23: 28545.41898 | FP23: 9417.697391 | FQ23: 9545.625502 | FR23: 31021.96231 | FS23: 45191.77704 | FT23: 55741.28518 | FU23: 41365.4891 | FV23: 30274.47967 | FW23: 27910.40471 | FX23: 29848.23348 | FY23: 19356.47053 | FZ23: 30958.81099 | GA23: 26678.02307 | GB23: 18492.9503 | GC23: 20586.93503 | GD23: 24639.17147 | GE23: 24817.23512 | GF23: 14899.80127 | GG23: 14984.02658 | GH23: 18219.1977 | GI23: 18227.66037 | GJ23: 18552.41741 | GK23: 14377.74458 | GL23: 8584.161779 | GM23: 22456.84693
A24: 0117 | B24: Vegetables | E24: =SUM('[1]Item index series - Juba'!C34:C45) -> 12.24 | F24: 32.594 | G24: 39.351 | H24: 35.565 | I24: 33.827 | J24: 34.393 | K24: 33.769 | L24: 56.307 | M24: 46.036 | N24: 49.387 | O24: 58.475 | P24: 53.828 | Q24: 46.049 | R24: 48.625 | S24: 51.117 | T24: 43.639 | U24: 49.09 | V24: 41.56 | W24: 48.252 | X24: 46.777 | Y24: 50.535 | Z24: 59.502 | AA24: 64.012 | AB24: 45.205 | AC24: 49.877 | AD24: 45.318 | AE24: 42.165 | AF24: 43.862 | AG24: 42.3 | AH24: 44.216 | AI24: 45.628 | AJ24: 57.147 | AK24: 53.08 | AL24: 53.133 | AM24: 55.261 | AN24: 53.245 | AO24: 55.737 | AP24: 56.502 | AQ24: 49.25 | AR24: 49.253 | AS24: 45.513 | AT24: 46.61 | AU24: 47.982 | AV24: 50.855 | AW24: 45.921 | AX24: 71.511 | AY24: 84.9 | AZ24: 87.416 | BA24: 68.635 | BB24: 86.728 | BC24: 80.312 | BD24: 100 | BE24: 86.57542907 | BF24: 80.23978556 | BG24: 80.01394264 | BH24: 90.08288612 | BI24: 100.5387477 | BJ24: 99.44650921 | BK24: 111.3341382 | BL24: 113.4877389 | BM24: 106.2197781 | BN24: 119.6964775 | BO24: 164.4648332 | BP24: 140.8660986 | BQ24: 135.5726806 | BR24: 114.9056311 | BS24: 102.9825509 | BT24: 107.559293 | BU24: 104.5403963 | BV24: 115.9076173 | BW24: 102.8745619 | BX24: 105.9361387 | BY24: 99.8156275 | BZ24: 100.5654111 | CA24: 114.6321759 | CB24: 98.67678893 | CC24: 101.1328653 | CD24: 104.2089712 | CE24: 112.7023556 | CF24: 91.37007846 | CG24: 117.2083849 | CH24: 96.22983619 | CI24: 104.1962762 | CJ24: 104.1926281 | CK24: 115.1533234 | CL24: 86.67154353 | CM24: 89.46127664 | CN24: 91.81291121 | CO24: 81.83786935 | CP24: 92.64621454 | CQ24: 79.85407826 | CR24: 78.4359843 | CS24: 105.9442219 | CT24: 106.4042582 | CU24: 110.4078335 | CV24: 100.3273079 | CW24: 114.7401171 | CX24: 127.9197001 | CY24: 160.714007 | CZ24: 200.4059866 | DA24: 166.193266 | DB24: 175.464253 | DC24: 202.3217353 | DD24: 237.3111219 | DE24: 268.2183094 | DF24: 286.4016442 | DG24: 357.7725742 | DH24: 461.0926953 | DI24: 470.210496 | DJ24: 559.5744618 | DK24: 585.5115765 | DL24: 655.4292058 | DM24: 1461.139759 | DN24: 1053.946306 | DO24: 1908.874175 | DP24: 1516.620657 | DQ24: 1265.212085 | DR24: 1526.25274 | DS24: 1532.741211 | DT24: 2607.527659 | DU24: 1781.152617 | DV24: 2496.755736 | DW24: 2517.685198 | DX24: 2260.017334 | DY24: 2227.322498 | DZ24: 1922.53253 | EA24: 2098.526273 | EB24: 2300.663042 | EC24: 2438.042955 | ED24: 3694.610634 | EE24: 4500.335122 | EF24: 3602.063156 | EG24: 5608.240272 | EH24: 3824.941633 | EI24: 3746.907935 | EJ24: 4027.056325 | EK24: 4513.800343 | EL24: 4307.37469 | EM24: 4658.62037 | EN24: 3451.452886 | EO24: 3760.350262 | EP24: 3781.646102 | EQ24: 2673.353962 | ER24: 3626.735093 | ES24: 4594.983669 | ET24: 4716.233073 | EU24: 4820.756236 | EV24: 5741.313041 | EW24: 5771.671063 | EX24: 5816.351811 | EY24: 5842.319127 | EZ24: 5857.170913 | FA24: 4365.384349 | FB24: 6672.67143 | FC24: 5536.210579 | FD24: 6440.537587 | FE24: 5372.162635 | FF24: 7371.100665 | FG24: 8059.405192 | FH24: 6810.6941 | FI24: 7732.674872 | FJ24: 10227.93575 | FK24: 5729.713835 | FL24: 7056.392423 | FM24: 6414.624306 | FN24: 8727.124333 | FO24: 8520.417656 | FP24: 5901.079275 | FQ24: 6210.5998 | FR24: 11213.95581 | FS24: 9050.79647 | FT24: 9158.330435 | FU24: 8811.343249 | FV24: 9109.601583 | FW24: 8127.034757 | FX24: 7498.572304 | FY24: 8392.778779 | FZ24: 7934.782074 | GA24: 7111.757739 | GB24: 7911.732062 | GC24: 7609.793704 | GD24: 9566.775546 | GE24: 9546.971611 | GF24: 9076.397526 | GG24: 9945.069138 | GH24: 11886.89674 | GI24: 10508.58359 | GJ24: 9793.937616 | GK24: 9979.539775 | GL24: 5074.724812 | GM24: 8957.158343
A25: 0118 | B25: Sugar/ jam /honey/confs. | E25: =SUM('[1]Item index series - Juba'!C46:C47) -> 3.38 | F25: 48.741 | G25: 51.262 | H25: 50.285 | I25: 50.25 | J25: 50.997 | K25: 47.851 | L25: 53.066 | M25: 50.706 | N25: 50.254 | O25: 48.724 | P25: 51.19 | Q25: 51.003 | R25: 49.075 | S25: 54.791 | T25: 64.677 | U25: 59.037 | V25: 60.862 | W25: 59.042 | X25: 58.165 | Y25: 54.845 | Z25: 50.726 | AA25: 56.231 | AB25: 55.785 | AC25: 60.162 | AD25: 71.687 | AE25: 63.599 | AF25: 58.053 | AG25: 56.946 | AH25: 58.218 | AI25: 67.527 | AJ25: 71.315 | AK25: 82.471 | AL25: 68.674 | AM25: 73.223 | AN25: 69.879 | AO25: 65.504 | AP25: 75.595 | AQ25: 76.016 | AR25: 76.412 | AS25: 79.35 | AT25: 70.438 | AU25: 74.8 | AV25: 69.932 | AW25: 68.894 | AX25: 75.437 | AY25: 85.876 | AZ25: 86.976 | BA25: 101.352 | BB25: 95.343 | BC25: 100 | BD25: 100 | BE25: 116.5469146 | BF25: 124.4025206 | BG25: 155.1563821 | BH25: 155.1563821 | BI25: 149.6407439 | BJ25: 149.6407439 | BK25: 127.578191 | BL25: 127.578191 | BM25: 136.1026492 | BN25: 127.578191 | BO25: 144.1251057 | BP25: 140.887574 | BQ25: 145.6438433 | BR25: 140.887574 | BS25: 144.1251057 | BT25: 133.0938292 | BU25: 133.0938292 | BV25: 144.1251057 | BW25: 138.6094675 | BX25: 144.1251057 | BY25: 138.6094675 | BZ25: 138.6094675 | CA25: 138.6094675 | CB25: 122.0625528 | CC25: 133.0938292 | CD25: 133.0938292 | CE25: 105.5156382 | CF25: 133.0938292 | CG25: 144.1251057 | CH25: 138.6094675 | CI25: 127.578191 | CJ25: 149.6407439 | CK25: 144.1251057 | CL25: 127.578191 | CM25: 122.0625528 | CN25: 122.0625528 | CO25: 125.859397 | CP25: 114.8281206 | CQ25: 122.0625528 | CR25: 122.0625528 | CS25: 133.0938292 | CT25: 131.3750352 | CU25: 138.9687236 | CV25: 129.8562975 | CW25: 165.2282333 | CX25: 168.465765 | CY25: 172.0625528 | CZ25: 216.5469146 | DA25: 188.6094675 | DB25: 238.4298394 | DC25: 255.1563821 | DD25: 270.5642434 | DE25: 321.7032967 | DF25: 342.0470555 | DG25: 344.2346512 | DH25: 553.3601014 | DI25: 694.8436179 | DJ25: 750 | DK25: 751.7962806 | DL25: 809.953508 | DM25: 1370.063096 | DN25: 1358.516484 | DO25: 1665.469146 | DP25: 1650.28177 | DQ25: 1806.952663 | DR25: 2197.844463 | DS25: 2167.265427 | DT25: 2722.421809 | DU25: 2492.814877 | DV25: 3389.687236 | DW25: 3734.995773 | DX25: 3452.02874 | DY25: 3507.185123 | DZ25: 3676.24683 | EA25: 3496.407439 | EB25: 3448.436179 | EC25: 4149.056072 | ED25: 4414.447732 | EE25: 4771.555368 | EF25: 4779.374472 | EG25: 4340.123979 | EH25: 4672.654269 | EI25: 6083.896872 | EJ25: 5962.806424 | EK25: 4721.80896 | EL25: 4866.089039 | EM25: 4742.180896 | EN25: 5521.942801 | EO25: 5511.55255 | EP25: 5245.773457 | EQ25: 7834.981685 | ER25: 9191.885038 | ES25: 11646.73147 | ET25: 12288.60242 | EU25: 12316.18061 | EV25: 12409.30544 | EW25: 12436.88363 | EX25: 13386.09467 | EY25: 13496.40744 | EZ25: 13551.56382 | FA25: 6304.522401 | FB25: 5340.123979 | FC25: 6346.083404 | FD25: 6690.617075 | FE25: 7469.991547 | FF25: 8215.765004 | FG25: 6435.615666 | FH25: 7252.95858 | FI25: 6856.086221 | FJ25: 7517.962806 | FK25: 9356.086221 | FL25: 9676.24683 | FM25: 10473.58411 | FN25: 10017.96281 | FO25: 11073.11919 | FP25: 10551.56382 | FQ25: 12206.25528 | FR25: 9980.769231 | FS25: 11690.61708 | FT25: 12829.67033 | FU25: 11366.86391 | FV25: 12601.85968 | FW25: 12118.27275 | FX25: 11594.67456 | FY25: 11794.51958 | FZ25: 13345.30854 | GA25: 12517.96281 | GB25: 11738.58833 | GC25: 12945.61848 | GD25: 13173.42913 | GE25: 14200.61989 | GF25: 13573.11919 | GG25: 13952.80361 | GH25: 17909.69287 | GI25: 17472.03438 | GJ25: 13459.21386 | GK25: 14332.48802 | GL25: 16312.97549 | GM25: 18633.13609
A26: 0119 | B26: Food products n.e.c. | E26: =SUM('[1]Item index series - Juba'!C48:C51) -> 0.89 | F26: 71.759 | G26: 75.316 | H26: 75.811 | I26: 75.464 | J26: 76.335 | K26: 80.162 | L26: 78.194 | M26: 75.232 | N26: 104.054 | O26: 101.231 | P26: 104.897 | Q26: 104.485 | R26: 105.703 | S26: 109.013 | T26: 109.218 | U26: 107.865 | V26: 128.506 | W26: 107.935 | X26: 117.816 | Y26: 122.755 | Z26: 103.334 | AA26: 127.686 | AB26: 119.044 | AC26: 122.282 | AD26: 123.301 | AE26: 137.744 | AF26: 117.196 | AG26: 119.739 | AH26: 127.686 | AI26: 126.756 | AJ26: 124.014 | AK26: 121.449 | AL26: 126.579 | AM26: 127.117 | AN26: 126.848 | AO26: 126.579 | AP26: 127.117 | AQ26: 127.117 | AR26: 119.04 | AS26: 127.117 | AT26: 126.401 | AU26: 126.04 | AV26: 126.94 | AW26: 127.125 | AX26: 127.125 | AY26: 127.125 | AZ26: 133.331 | BA26: 130.497 | BB26: 132.128 | BC26: 133.035 | BD26: 100 | BE26: 98.91045284 | BF26: 93.95429009 | BG26: 122.3069858 | BH26: 125.8065363 | BI26: 101.4888222 | BJ26: 99.88761461 | BK26: 98.15056814 | BL26: 96.7559134 | BM26: 100.2267122 | BN26: 137.1944161 | BO26: 149.7397733 | BP26: 173.3194708 | BQ26: 126.9687562 | BR26: 185.2049616 | BS26: 156.5190147 | BT26: 129.9833778 | BU26: 180.8788704 | BV26: 152.7280791 | BW26: 106.7253553 | BX26: 128.5243198 | BY26: 131.2998096 | BZ26: 129.0064199 | CA26: 102.4580711 | CB26: 152.5331971 | CC26: 98.62241576 | CD26: 123.0207848 | CE26: 143.0269637 | CF26: 178.2494893 | CG26: 151.1721144 | CH26: 128.0013619 | CI26: 127.5624966 | CJ26: 149.3852381 | CK26: 127.7045404 | CL26: 129.5773909 | CM26: 101.5258524 | CN26: 149.4897986 | CO26: 151.1240185 | CP26: 176.4605846 | CQ26: 125.5238475 | CR26: 150.1200204 | CS26: 152.7880733 | CT26: 152.1631959 | CU26: 177.1709314 | CV26: 130.4413517 | CW26: 180.1651345 | CX26: 189.4523454 | CY26: 274.6502187 | CZ26: 276.0810351 | DA26: 239.0296221 | DB26: 283.9936322 | DC26: 355.8581493 | DD26: 368.0887352 | DE26: 435.5910008 | DF26: 456.9969356 | DG26: 500.7722579 | DH26: 531.7409183 | DI26: 708.8185223 | DJ26: 845.0732788 | DK26: 1014.266258 | DL26: 921.9611849 | DM26: 1388.202139 | DN26: 1418.32325 | DO26: 1922.902962 | DP26: 1891.317671 | DQ26: 2011.849807 | DR26: 2291.646805 | DS26: 2288.824846 | DT26: 2760.963568 | DU26: 2823.493361 | DV26: 3326.870227 | DW26: 3584.712291 | DX26: 3679.33022 | DY26: 3695.866166 | DZ26: 3933.797753 | EA26: 3856.972248 | EB26: 4045.624034 | EC26: 4062.002043 | ED26: 4630.137653 | EE26: 4354.204971 | EF26: 4470.304165 | EG26: 5328.907048 | EH26: 5447.784425 | EI26: 6947.248541 | EJ26: 7013.418697 | EK26: 5064.844651 | EL26: 5813.283635 | EM26: 5148.585658 | EN26: 4123.149057 | EO26: 6184.544954 | EP26: 5852.882522 | EQ26: 16267.9605 | ER26: 19408.36236 | ES26: 20626.88287 | ET26: 20930.66297 | EU26: 21204.43489 | EV26: 21244.5667 | EW26: 21274.34457 | EX26: 21301.15764 | EY26: 21307.00902 | EZ26: 22083.19957 | FA26: 57587.82042 | FB26: 28869.93531 | FC26: 22287.28795 | FD26: 29302.53267 | FE26: 40505.27749 | FF26: 42132.73618 | FG26: 51407.42778 | FH26: 50796.73136 | FI26: 29218.5904 | FJ26: 29266.93549 | FK26: 32581.68297 | FL26: 46680.09685 | FM26: 37593.63622 | FN26: 47646.99063 | FO26: 49008.66341 | FP26: 26618.77644 | FQ26: 27996.14176 | FR26: 19458.29077 | FS26: 13607.08206 | FT26: 15952.13316 | FU26: 22061.14111 | FV26: 49291.53244 | FW26: 23493.92804 | FX26: 74208.37589 | FY26: 47695.106 | FZ26: 51756.89479 | GA26: 74986.38066 | GB26: 51715.45781 | GC26: 30849.69144 | GD26: 67809.90545 | GE26: 71925.6399 | GF26: 40500.43589 | GG26: 36993.44079 | GH26: 28600.84293 | GI26: 28086.59783 | GJ26: 16244.95355 | GK26: 16158.05894 | GL26: 16491.81716 | GM26: 19883.71179

Sheet Group index series - Malakal
B1: Aggregate Consumer Price Index Series Wau | C1: Weights from June 2011-
A2: Coicop | B2: Item description | C2: Weight Coicop 3 | D2: Weight Coicop 2 | E2: Weight Coicop 4 | F2: June 2011 | G2: July 2011 | H2: Aug 2011 | I2: Sep 2011 | J2: Oct 2011 | K2: Nov 2011 | L2: Dec 2011 | M2: Jan 2012 | N2: Feb 2012 | O2: Mar 2012 | P2: Apr 2012 | Q2: May 2012 | R2: June 2012 | S2: July 2012 | T2: Aug 2012 | U2: Sep 2012 | V2: Oct 2012 | W2: Nov 2012 | X2: Dec 2012 | Y2: Jan 2013 | Z2: Feb 2013 | AA2: Mar 2013 | AB2: Apr 2013 | AC2: May 2013 | AD2: June 2013 | AE2: July 2013 | AF2: Aug 2013 | AG2: Sep 2013 | AH2: Oct 2013 | AI2: Nov 2013 | AJ2: Dec 2013 | AK2: Jan 2014 | AL2: Feb 2014 | AM2: Mar 2014 | AN2: Apr 2014 | AO2: May 2014 | AP2: June 2014 | AQ2: July 2014 | AR2: Aug 2014 | AS2: Sep 2014 | AT2: Oct 2014 | AU2: Nov 2014 | AV2: Dec 2014 | AW2: Jan 2015 | AX2: Feb 2015 | AY2: Mar 2015 | AZ2: Apr 2015 | BA2: May 2015 | BB2: Jun 2015 | BC2: July 2015 | BD2: Aug 2015 | BE2: Sep 2015 | BF2: Oct 2015 | BG2: Nov 2015 | BH2: Dec 2015 | BI2: Jan 2016 | BJ2: Feb 2016 | BK2: Mar 2016 | BL2: Apr 2016 | BM2: May 2016 | BN2: Jun 2016 | BO2: July 2016 | BP2: Aug 2016 | BQ2: Sep 2016 | BR2: Oct 2016 | BS2: Nov 2016 | BT2: Dec 2016 | BU2: Jan 2017 | BV2: Feb 2017 | BW2: Mar 2017 | BX2: Apr 2017 | BY2: May 2017 | BZ2: Jun 2017 | CA2: July 2017 | CB2: Aug 2017 | CC2: Sep 2017 | CD2: Oct 2017 | CE2: Nov 2017 | CF2: Dec 2017 | CG2: Jan 2018 | CH2: Feb 2018 | CI2: Mar 2018 | CJ2: Apr 2018 | CK2: May 2018 | CL2: Jun 2018 | CM2: July 2018 | CN2: Aug 2018 | CO2: Sep 2018 | CP2: Oct 2018 | CQ2: Nov 2018 | CR2: Dec 2018 | CS2: Jan 2019 | CT2: Feb 2019 | CU2: Mar 2019 | CV2: Apr 2019 | CW2: May 2019 | CX2: Jun 2019 | CY2: July 2019 | CZ2: Aug 2019 | DA2: Sep 2019 | DB2: Oct 2019 | DC2: Nov 2019 | DD2: Dec 2019 | DE2: Jan 2020 | DF2: Feb 2020 | DG2: Mar 2020 | DH2: Apr 2020 | DI2: May 2020 | DJ2: June 2020 | DK2: July 2020 | DL2: Aug 2020 | DM2: Sep 2020 | DN2: Oct 2020 | DO2: Nov 2020 | DP2: Dec 2020 | DQ2: Jan 2021 | DR2: Feb 2021 | DS2: Mar 2021 | DT2: Apr 2021 | DU2: May 2021 | DV2: June 2021 | DW2: July 2021 | DX2: Aug 2021 | DY2: Sep 2021 | DZ2: Oct 2021 | EA2: Nov 2021 | EB2: Dec 2021 | EC2: Jan 2022 | ED2: Feb 2022 | EE2: Mar 2022 | EF2: Apr 2022 | EG2: May 2022 | EH2: June 2022 | EI2: July 2022 | EJ2: Aug 2022 | EK2: Sep 2022 | EL2: Oct 2022 | EM2: Nov 2022 | EN2: Dec 2022 | EO2: Jan 2023 | EP2: Feb 2023 | EQ2: Mar 2023 | ER2: Apr 2023 | ES2: May 2023 | ET2: June 2023 | EU2: July 2023 | EV2: Aug 2023 | EW2: Sep 2023 | EX2: Oct 2023 | EY2: Nov 2023 | EZ2: Dec 2023 | FA2: Jan 2024 | FB2: Feb 2024 | FC2: Mar 2024 | FD2: Apr 2024 | FE2: May 2024 | FF2: June 2024 | FG2: July 2024 | FH2: Aug 2024 | FI2: Sep 2024 | FJ2: Oct 2024 | FK2: Nov 2024 | FL2: Dec 2024
B3: All item index | F3: 100 | G3: 109.8489918 | H3: 167.0995567 | I3: 177.953498 | J3: 201.7771252 | K3: 202.5363488 | L3: 210.2558266 | M3: 199.3033856 | N3: 193.1593188 | O3: 186.5112203 | P3: 201.9578455 | Q3: 270.1136289 | R3: 247.6709414 | S3: 234.2575444 | T3: 240.4818395 | U3: 273.9416611 | V3: 273.3347382 | W3: 310.994389 | X3: 265.2159992 | Y3: 274.5513431 | Z3: 238.3707732 | AA3: 215.8410877 | AB3: 224.8728421 | AC3: 241.064012 | AD3: 257.2757817 | AE3: 239.9272696 | AF3: 254.1973921 | AG3: 249.6365312 | AH3: 295.0006796 | AI3: 251.0037073 | AJ3: 238.7637366 | AK3: 253.6880047 | AL3: 240.5941108 | AM3: 237.5999506 | AN3: 229.0820606 | AO3: 245.3301056 | AP3: 231.8239486 | AQ3: 239.3073026 | AR3: 255.2056046 | AS3: 244.8296222 | AT3: 243.4990154 | AU3: 291.9461633 | AV3: 278.5317513 | AW3: 261.9626833 | AX3: 262.3017949 | AY3: 269.6885573 | AZ3: 289.7818909 | BA3: 308.3641124 | BB3: 366.5687911 | BC3: 321.6243277 | BD3: 356.9483159 | BE3: 400.6039459 | BF3: 408.9233484 | BG3: 465.6875968 | BH3: 499.8442947 | BI3: 613.6542989 | BJ3: 743.7013239 | BK3: 838.9412076 | BL3: 960.7766948 | BM3: 1186.234125 | BN3: 1027.132805 | BO3: 1884.931286 | BP3: 1127.83102 | BQ3: 5715.98589 | BR3: 4073.746784 | BS3: 4363.00505 | BT3: 3660.107063 | BU3: 3985.131581 | BV3: 3822.892752 | BW3: 3601.682838 | BX3: 3996.954239 | BY3: 5415.480829 | BZ3: 5324.702563 | CA3: 5313.232991 | CB3: 6946.379029 | CC3: 7236.456913 | CD3: 8403.924075 | CE3: 9993.816901 | CF3: 8003.831277 | CG3: 8774.847485 | CH3: 8813.803039 | CI3: 9272.219469 | CJ3: 13214.37908 | CK3: 11716.78006 | CL3: 12631.89001 | CM3: 13661.7719 | CN3: 12669.40962 | CO3: 11858.49088 | CP3: 12908.81249 | CQ3: 12108.64022 | CR3: 14079.64605 | CS3: 24643.83945 | CT3: 27812.33291 | CU3: 30092.74362 | CV3: 32997.07616 | CW3: 34242.25906 | CX3: 31780.32601 | CY3: 40246.48643 | CZ3: 45270.47208 | DA3: 52748.00025 | DB3: 58347.81363 | DC3: 31833.25232 | DD3: 65072.97539 | DE3: 45408.58825 | DF3: 50054.78015 | DG3: 36035.49962 | DH3: 54042.909 | DI3: 58573.71081 | DJ3: 34751.42642 | DK3: 40830.16016 | DL3: 49213.20367 | DM3: 83756.21055 | DN3: 71763.97432 | DO3: 48544.74169 | DP3: 35934.11892 | DQ3: 37362.57044 | DR3: 53322.20555 | DS3: 54256.65895 | DT3: 33749.97701 | DU3: 30892.14407 | DV3: 26809.7166 | DW3: 32448.55517 | DX3: 34122.1535 | DY3: 55864.04347 | DZ3: 57525.56011 | EA3: 52644.11493 | EB3: 17578.49044 | EC3: 17471.84853 | ED3: 22564.77441 | EE3: 55241.70129 | EF3: 47960.20148 | EG3: 44374.68258 | EH3: 32830.91552 | EI3: 23957.88037 | EJ3: 26818.04141 | EK3: 21605.24382 | EL3: 21695.14973 | EM3: 22509.39056 | EN3: 23719.44881 | EO3: 25111.3556
A4: 01 | B4: Food and Non-alcholic beverages | D4: 66.91 | F4: 100 | G4: 105.7577078 | H4: 165.0437208 | I4: 169.4241127 | J4: 224.6015705 | K4: 205.6607542 | L4: 200.7135588 | M4: 176.1047904 | N4: 176.7877007 | O4: 172.644752 | P4: 184.7810157 | Q4: 247.972297 | R4: 229.0016346 | S4: 223.2243981 | T4: 226.1471031 | U4: 279.3333619 | V4: 284.6497903 | W4: 320.5726528 | X4: 249.5484476 | Y4: 255.6995018 | Z4: 206.6526768 | AA4: 193.8522718 | AB4: 212.7611859 | AC4: 212.7844789 | AD4: 251.6686153 | AE4: 219.9804267 | AF4: 215.1625724 | AG4: 219.7370281 | AH4: 301.3278077 | AI4: 215.2286214 | AJ4: 197.7214955 | AK4: 220.9458822 | AL4: 208.7713571 | AM4: 204.9552397 | AN4: 192.8797891 | AO4: 201.8882294 | AP4: 202.3664715 | AQ4: 202.7493367 | AR4: 213.3204553 | AS4: 195.8364718 | AT4: 193.7554423 | AU4: 251.3342803 | AV4: 224.4662943 | AW4: 209.4767587 | AX4: 227.8667204 | AY4: 244.3043068 | AZ4: 258.4831636 | BA4: 286.9077448 | BB4: 335.3891002 | BC4: 298.9696378 | BD4: 337.3160467 | BE4: 396.6016127 | BF4: 392.6031827 | BG4: 448.5846882 | BH4: 468.1421155 | BI4: 594.684597 | BJ4: 689.8678079 | BK4: 776.7899418 | BL4: 870.5699931 | BM4: 1018.37996 | BN4: 950.9801492 | BO4: 1919.635208 | BP4: 972.7528839 | BQ4: 2581.238966 | BR4: 2308.681035 | BS4: 2565.67298 | BT4: 3395.321902 | BU4: 3222.765117 | BV4: 4070.014395 | BW4: 3677.373999 | BX4: 3724.160881 | BY4: 4774.406506 | BZ4: 4371.708743 | CA4: 4547.694585 | CB4: 4973.899498 | CC4: 5969.401202 | CD4: 4838.242091 | CE4: 6012.01489 | CF4: 6616.570317 | CG4: 7348.51398 | CH4: 7135.791212 | CI4: 7093.393334 | CJ4: 11252.50153 | CK4: 8487.378894 | CL4: 8487.378894 | CM4: 10569.83373 | CN4: 8744.006074 | CO4: 7789.240184 | CP4: 8802.022405 | CQ4: 7880.94498 | CR4: 8746.150234 | CS4: 24302.88194 | CT4: 28881.26483 | CU4: 31697.56498 | CV4: 34069.24989 | CW4: 34919.71592 | CX4: 35283.81475 | CY4: 45392.29413 | CZ4: 50106.27653 | DA4: 53491.46905 | DB4: 60770.21988 | DC4: 41011.8576 | DD4: 86197.02314 | DE4: 53519.26593 | DF4: 59637.8662 | DG4: 41046.04052 | DH4: 70310.38255 | DI4: 74395.37238 | DJ4: 28375.81839 | DK4: 48361.43132 | DL4: 64405.28925 | DM4: 119309.2901 | DN4: 93356.40589 | DO4: 61431.01508 | DP4: 44464.71696 | DQ4: 46361.5904 | DR4: 63316.2353 | DS4: 64229.25109 | DT4: 35574.08839 | DU4: 29460.82827 | DV4: 28330.01895 | DW4: 36934.85202 | DX4: 39281.41232 | DY4: 69664.2445 | DZ4: 70776.56462 | EA4: 63332.72527 | EB4: 13902.48534 | EC4: 12489.39968 | ED4: 17830.73186 | EE4: 67851.18015 | EF4: 59829.31421 | EG4: 54104.63857 | EH4: 36941.37944 | EI4: 22203.72159 | EJ4: 25163.93652 | EK4: 19500.01619 | EL4: 18324.26792 | EM4: 18721.50731 | EN4: 19675.29014 | EO4: 21020.87395
A5: 02 | B5: Alcoholic beverages and Tobacco | D5: 3.65 | F5: 100 | G5: 103.5092922 | H5: 147.1826809 | I5: 119.5640569 | J5: 142.5006333 | K5: 165.1986993 | L5: 655.426483 | M5: 662.6892256 | N5: 637.3275007 | O5: 370.599052 | P5: 394.7025094 | Q5: 408.6180308 | R5: 618.351518 | S5: 624.579276 | T5: 763.5493214 | U5: 585.4117176 | V5: 586.249326 | W5: 1021.053533 | X5: 1019.301813 | Y5: 1223.277764 | Z5: 1099.984264 | AA5: 659.9376898 | AB5: 649.4702146 | AC5: 1016.635102 | AD5: 752.7598228 | AE5: 894.6678529 | AF5: 911.450645 | AG5: 892.5919336 | AH5: 892.3318082 | AI5: 986.2616506 | AJ5: 927.7207253 | AK5: 902.2839908 | AL5: 831.2991443 | AM5: 834.2105416 | AN5: 815.0602794 | AO5: 856.1589562 | AP5: 733.8838289 | AQ5: 793.8267821 | AR5: 887.0651512 | AS5: 853.59248 | AT5: 839.8991219 | AU5: 949.2889148 | AV5: 1193.773755 | AW5: 875.1227884 | AX5: 479.3750773 | AY5: 458.0048944 | AZ5: 664.0861616 | BA5: 429.8136511 | BB5: 544.5717934 | BC5: 177.8160031 | BD5: 201.3617146 | BE5: 233.1501727 | BF5: 222.3208516 | BG5: 287.4202746 | BH5: 342.8291868 | BI5: 304.9287323 | BJ5: 322.2096381 | BK5: 1278.11416 | BL5: 857.4013569 | BM5: 1534.06351 | BN5: 412.4540062 | BO5: 514.7061222 | BP5: 1681.860568 | BQ5: 598.9565007 | BR5: 588.7488623 | BS5: 1387.631703 | BT5: 675.8042866 | BU5: 666.8061516 | BV5: 727.1938389 | BW5: 715.4370487 | BX5: 762.9680175 | BY5: 1108.860577 | BZ5: 1308.452017 | CA5: 1274.718246 | CB5: 3344.875201 | CC5: 3285.774188 | CD5: 1424.940624 | CE5: 1385.337334 | CF5: 1425.708841 | CG5: 1264.458082 | CH5: 5186.795755 | CI5: 19441.66849 | CJ5: 21575.37306 | CK5: 13741.29762 | CL5: 13741.29762 | CM5: 13864.95725 | CN5: 12168.38891 | CO5: 15565.23664 | CP5: 11993.88696 | CQ5: 8480.478459 | CR5: 10303.35568 | CS5: 30601.85358 | CT5: 32934.01122 | CU5: 41722.898 | CV5: 42832.44644 | CW5: 63469.03161 | CX5: 67779.60923 | CY5: 74267.27461 | CZ5: 71759.66492 | DA5: 142958.1965 | DB5: 143176.0683 | DC5: 58741.53332 | DD5: 66206.06571 | DE5: 60122.31624 | DF5: 68764.10447 | DG5: 56062.42586 | DH5: 54772.13437 | DI5: 56970.56669 | DJ5: 80344.89917 | DK5: 62855.64947 | DL5: 61571.71454 | DM5: 21922.22716 | DN5: 153465.4508 | DO5: 29827.40214 | DP5: 23941.87426 | DQ5: 25412.58812 | DR5: 114400.9957 | DS5: 114422.8599 | DT5: 107716.4887 | DU5: 84709.37129 | DV5: 21692.6937 | DW5: 32262.03292 | DX5: 29800.71765 | DY5: 92666.81495 | DZ5: 119131.8209 | EA5: 74925.86002 | EB5: 39631.82088 | EC5: 87261.8805 | ED5: 110290.6287 | EE5: 110290.6287 | EF5: 46634.04508 | EG5: 40268.38671 | EH5: 36647.89384 | EI5: 40178.65521 | EJ5: 54901.58911 | EK5: 23466.70514 | EL5: 24614.03303 | EM5: 24378.71122 | EN5: 29577.6987 | EO5: 29433.53688
A6: 03 | B6: Clothing and footwear | D6: 2.56 | F6: 100 | G6: 109.6935887 | H6: 109.2260398 | I6: 157.589168 | J6: 138.1075876 | K6: 165.4805628 | L6: 149.6998035 | M6: 151.1567549 | N6: 148.7470953 | O6: 150.3100823 | P6: 169.922812 | Q6: 168.3810375 | R6: 175.2146254 | S6: 188.9374928 | T6: 214.4076025 | U6: 198.8892441 | V6: 174.3307945 | W6: 205.3662274 | X6: 203.9755202 | Y6: 201.7739673 | Z6: 213.5483314 | AA6: 218.2323563 | AB6: 205.6773166 | AC6: 205.3290075 | AD6: 210.6903371 | AE6: 211.7057917 | AF6: 206.198426 | AG6: 184.1948316 | AH6: 243.9382991 | AI6: 225.8031583 | AJ6: 229.8282826 | AK6: 207.6708218 | AL6: 190.3017364 | AM6: 191.8784082 | AN6: 208.3501083 | AO6: 191.694959 | AP6: 186.0795474 | AQ6: 200.8497731 | AR6: 192.1475873 | AS6: 197.4022279 | AT6: 200.1087812 | AU6: 259.2455221 | AV6: 280.1555277 | AW6: 233.6280161 | AX6: 260.654226 | AY6: 246.248437 | AZ6: 268.7346982 | BA6: 263.6249293 | BB6: 330.2668206 | BC6: 300.3165308 | BD6: 301.6405976 | BE6: 437.8443117 | BF6: 509.2376158 | BG6: 661.4636392 | BH6: 751.3898955 | BI6: 786.3006378 | BJ6: 1102.564272 | BK6: 1028.166897 | BL6: 1343.765535 | BM6: 1357.937935 | BN6: 1383.693238 | BO6: 1963.47086 | BP6: 1473.42167 | BQ6: 2469.214462 | BR6: 3318.547448 | BS6: 3153.381054 | BT6: 3624.556846 | BU6: 3909.560618 | BV6: 4149.144502 | BW6: 4514.066465 | BX6: 5777.38668 | BY6: 5653.125403 | BZ6: 6323.401043 | CA6: 6825.442467 | CB6: 7771.675354 | CC6: 7406.843258 | CD6: 7460.31047 | CE6: 9105.14825 | CF6: 10503.98488 | CG6: 10486.47417 | CH6: 9580.6174 | CI6: 9381.630665 | CJ6: 12817.61015 | CK6: 14100.37067 | CL6: 14100.37067 | CM6: 15597.21238 | CN6: 16485.75453 | CO6: 12139.56892 | CP6: 15026.22383 | CQ6: 14671.67852 | CR6: 17146.44992 | CS6: 16616.07597 | CT6: 13306.46588 | CU6: 14958.75201 | CV6: 15929.60108 | CW6: 16158.6173 | CX6: 16289.76926 | CY6: 16421.84433 | CZ6: 17745.31407 | DA6: 18189.42481 | DB6: 18252.45158 | DC6: 8436.358093 | DD6: 10574.27655 | DE6: 11038.25962 | DF6: 18327.25608 | DG6: 16019.93254 | DH6: 10178.03784 | DI6: 11870.4845 | DJ6: 10181.97951 | DK6: 14007.31417 | DL6: 11478.12953 | DM6: 11503.71186 | DN6: 11991.03612 | DO6: 17881.4502 | DP6: 14322.36382 | DQ6: 14167.76467 | DR6: 14584.23684 | DS6: 15837.97771 | DT6: 16775.99818 | DU6: 16906.30364 | DV6: 13217.95341 | DW6: 12644.2674 | DX6: 14465.13023 | DY6: 14618.32083 | DZ6: 12648.46415 | EA6: 12960.82525 | EB6: 13187.49437 | EC6: 10853.35942 | ED6: 13279.05917 | EE6: 12978.92848 | EF6: 12930.11556 | EG6: 13619.35086 | EH6: 14159.48171 | EI6: 13895.57596 | EJ6: 13453.69172 | EK6: 11698.78595 | EL6: 11778.5382 | EM6: 12625.89995 | EN6: 14075.73931 | EO6: 18950.48714
A7: 04 | B7: Housing, Water, Electricity, Gas and other fuel | D7: 3.95 | F7: 100 | G7: 135.8200033 | H7: 136.6882973 | I7: 141.2128643 | J7: 114.7921437 | K7: 155.815647 | L7: 124.9180382 | M7: 132.3107055 | N7: 137.7279753 | O7: 141.6778556 | P7: 318.5160528 | Q7: 130.3821694 | R7: 171.0826406 | S7: 180.2535612 | T7: 216.8162482 | U7: 283.6827009 | V7: 184.8610596 | W7: 176.7678876 | X7: 196.0530999 | Y7: 192.7002833 | Z7: 195.9206496 | AA7: 153.7548229 | AB7: 162.876656 | AC7: 162.600843 | AD7: 179.8206235 | AE7: 174.6821149 | AF7: 503.7720273 | AG7: 243.3138804 | AH7: 206.5941805 | AI7: 467.5766466 | AJ7: 211.6597916 | AK7: 187.3814013 | AL7: 238.0551908 | AM7: 190.6505404 | AN7: 206.9238578 | AO7: 469.897234 | AP7: 212.2649213 | AQ7: 243.509916 | AR7: 232.7706818 | AS7: 246.5347651 | AT7: 247.858734 | AU7: 243.8596183 | AV7: 232.9473779 | AW7: 204.847129 | AX7: 361.9727918 | AY7: 295.6266718 | AZ7: 330.5046707 | BA7: 293.9498245 | BB7: 261.2399398 | BC7: 204.3227649 | BD7: 220.1492889 | BE7: 243.610511 | BF7: 263.9561739 | BG7: 282.3110515 | BH7: 293.9420495 | BI7: 358.4624646 | BJ7: 399.0759845 | BK7: 435.7861435 | BL7: 511.5206841 | BM7: 421.7937471 | BN7: 736.8523788 | BO7: 1193.736669 | BP7: 1100.739525 | BQ7: 1114.274268 | BR7: 1011.041221 | BS7: 1414.310854 | BT7: 967.7506748 | BU7: 1043.634118 | BV7: 1227.303593 | BW7: 1325.278174 | BX7: 1373.533755 | BY7: 1865.533144 | BZ7: 1939.080148 | CA7: 3000.549653 | CB7: 3144.096178 | CC7: 3271.181428 | CD7: 3434.676773 | CE7: 3399.088678 | CF7: 3075.815806 | CG7: 3147.318665 | CH7: 3278.628034 | CI7: 3607.843075 | CJ7: 3108.920936 | CK7: 2451.315199 | CL7: 2451.315199 | CM7: 2411.78058 | CN7: 1991.57099 | CO7: 2173.336526 | CP7: 2173.651231 | CQ7: 2124.631872 | CR7: 2458.634343 | CS7: 2617.775491 | CT7: 2700.086826 | CU7: 2897.643375 | CV7: 3116.034879 | CW7: 3207.411022 | CX7: 3343.879929 | CY7: 8662.584389 | CZ7: 17434.36016 | DA7: 63310.11198 | DB7: 69695.49389 | DC7: 9163.635686 | DD7: 64007.36943 | DE7: 98125.51739 | DF7: 101331.2549 | DG7: 54336.30847 | DH7: 61301.64296 | DI7: 76333.18736 | DJ7: 15923.35281 | DK7: 17902.41554 | DL7: 17591.04959 | DM7: 18840.52676 | DN7: 16231.09117 | DO7: 32556.5351 | DP7: 11582.07676 | DQ7: 18407.43579 | DR7: 35781.6697 | DS7: 35887.9511 | DT7: 16839.48314 | DU7: 59445.82549 | DV7: 25889.12895 | DW7: 23586.65762 | DX7: 26894.17029 | DY7: 26245.83317 | DZ7: 27526.18087 | EA7: 26757.36745 | EB7: 24612.24061 | EC7: 27888.80014 | ED7: 26856.78359 | EE7: 25734.94062 | EF7: 25670.23442 | EG7: 26854.42674 | EH7: 26625.78865 | EI7: 27188.89089 | EJ7: 34603.3663 | EK7: 22377.26121 | EL7: 32451.45597 | EM7: 39396.07092 | EN7: 41330.26667 | EO7: 38762.59164
A8: 05 | B8: Furnishings, household equipment and routine household maintenance | D8: 4.26 | F8: 100 | G8: 92.53609964 | H8: 210.9037973 | I8: 268.0719874 | J8: 143.2516761 | K8: 312.1481324 | L8: 293.9102477 | M8: 363.7799305 | N8: 198.5281259 | O8: 331.1115367 | P8: 425.8929018 | Q8: 910.2611244 | R8: 627.0077524 | S8: 448.2108453 | T8: 379.5897049 | U8: 398.1642685 | V8: 474.8210624 | W8: 394.9808454 | X8: 406.9312216 | Y8: 433.9446001 | Z8: 398.7724921 | AA8: 382.9146191 | AB8: 334.070593 | AC8: 352.4164789 | AD8: 392.5204855 | AE8: 351.8353338 | AF8: 374.2568313 | AG8: 411.9265415 | AH8: 356.0253965 | AI8: 348.05563 | AJ8: 467.8049143 | AK8: 446.0618812 | AL8: 474.7032761 | AM8: 476.882705 | AN8: 457.0733531 | AO8: 423.454347 | AP8: 461.5716667 | AQ8: 472.2530639 | AR8: 459.8962035 | AS8: 476.3785105 | AT8: 540.8828984 | AU8: 610.9930664 | AV8: 553.2731122 | AW8: 534.1907848 | AX8: 593.5317864 | AY8: 543.1660437 | AZ8: 611.6308409 | BA8: 655.0274831 | BB8: 812.8242547 | BC8: 828.849221 | BD8: 879.5547234 | BE8: 853.0721044 | BF8: 943.683034 | BG8: 984.3773085 | BH8: 1246.091569 | BI8: 1367.054659 | BJ8: 2006.39512 | BK8: 2076.080901 | BL8: 2546.485559 | BM8: 2140.650572 | BN8: 2693.812614 | BO8: 4078.371123 | BP8: 3066.525811 | BQ8: 5015.990557 | BR8: 5669.201166 | BS8: 5253.275901 | BT8: 8878.124985 | BU8: 6644.582298 | BV8: 8047.520298 | BW8: 8050.331213 | BX8: 8960.675922 | BY8: 11480.0933 | BZ8: 11052.86123 | CA8: 10923.8767 | CB8: 11167.80896 | CC8: 11963.06498 | CD8: 13309.44767 | CE8: 13430.25324 | CF8: 14505.13969 | CG8: 15566.45996 | CH8: 16025.61654 | CI8: 15677.14645 | CJ8: 19125.85215 | CK8: 21218.70832 | CL8: 21218.70832 | CM8: 14278.68665 | CN8: 13762.23825 | CO8: 13496.32424 | CP8: 12098.95048 | CQ8: 12396.7576 | CR8: 13555.65294 | CS8: 14367.57337 | CT8: 16730.52662 | CU8: 15715.17149 | CV8: 16450.1388 | CW8: 17827.45662 | CX8: 18960.70862 | CY8: 40581.15898 | CZ8: 47878.48671 | DA8: 50386.80635 | DB8: 50421.46418 | DC8: 22202.99983 | DD8: 35895.88795 | DE8: 35277.45139 | DF8: 32047.49449 | DG8: 37374.60155 | DH8: 30087.66835 | DI8: 40540.70883 | DJ8: 31368.86459 | DK8: 45898.63756 | DL8: 40650.64642 | DM8: 32895.88499 | DN8: 48507.3428 | DO8: 50289.76251 | DP8: 52437.65689 | DQ8: 47508.14492 | DR8: 65834.51856 | DS8: 66206.3528 | DT8: 54705.22155 | DU8: 50153.8161 | DV8: 50275.30401 | DW8: 50222.75768 | DX8: 50050.79767 | DY8: 54610.58349 | DZ8: 47471.20838 | EA8: 48093.45918 | EB8: 46461.94993 | EC8: 43483.67674 | ED8: 51843.81478 | EE8: 51613.57094 | EF8: 46834.29292 | EG8: 51625.59307 | EH8: 46658.56615 | EI8: 51784.17975 | EJ8: 56620.0091 | EK8: 55520.28498 | EL8: 56700.66332 | EM8: 60828.66334 | EN8: 60514.39963 | EO8: 61082.63505
A9: 06 | B9: Health | D9: 4.38 | F9: 100 | G9: 125.2477672 | H9: 250.108038 | I9: 282.1582911 | J9: 201.4223978 | K9: 212.4114088 | L9: 207.4316462 | M9: 242.6281022 | N9: 241.6233927 | O9: 212.4114088 | P9: 82.66020496 | Q9: 143.61423 | R9: 126.646088 | S9: 95.47968885 | T9: 111.9632053 | U9: 128.7535498 | V9: 118.6813187 | W9: 126.1612545 | X9: 132.4935177 | Y9: 132.4935177 | Z9: 101.9669095 | AA9: 132.4175824 | AB9: 128.7535498 | AC9: 197.6725522 | AD9: 124.1758242 | AE9: 158.9702432 | AF9: 128.7535498 | AG9: 228.2750957 | AH9: 153.4757377 | AI9: 118.6813187 | AJ9: 231.0223484 | AK9: 291.8865459 | AL9: 188.3978599 | AM9: 205.5618287 | AN9: 203.1759863 | AO9: 178.5683797 | AP9: 190.4023464 | AQ9: 230.2410488 | AR9: 363.0134546 | AS9: 369.5272328 | AT9: 315.2457476 | AU9: 315.2457476 | AV9: 342.7483668 | AW9: 442.0817259 | AX9: 242.9596702 | AY9: 277.2371261 | AZ9: 250.1007254 | BA9: 309.188619 | BB9: 481.8537024 | BC9: 365.5827611 | BD9: 365.5827611 | BE9: 365.5827611 | BF9: 340.4780167 | BG9: 372.4295096 | BH9: 372.4295096 | BI9: 395.9127924 | BJ9: 373.9142282 | BK9: 373.9142282 | BL9: 709.6021832 | BM9: 2727.329937 | BN9: 693.6264367 | BO9: 1574.149238 | BP9: 647.2330576 | BQ9: 53856.78349 | BR9: 30307.05905 | BS9: 30959.67729 | BT9: 7947.922213 | BU9: 16720.48099 | BV9: 2184.930454 | BW9: 2219.753073 | BX9: 5892.544123 | BY9: 14505.28585 | BZ9: 16334.94794 | CA9: 12913.13235 | CB9: 14406.50196 | CC9: 24418.85323 | CD9: 53376.40754 | CE9: 65010.44438 | CF9: 17966.78765 | CG9: 26166.96394 | CH9: 29192.38238 | CI9: 32590.98019 | CJ9: 44687.60958 | CK9: 49438.60708 | CL9: 64122.96371 | CM9: 64332.89959 | CN9: 69401.3469 | CO9: 66314.88904 | CP9: 75257.31205 | CQ9: 72581.88924 | CR9: 90183.20678 | CS9: 87400.46426 | CT9: 87400.46426 | CU9: 89000.78223 | CV9: 107555.1318 | CW9: 107745 | CX9: 60060.59167 | CY9: 60571.28769 | CZ9: 78082.84203 | DA9: 91406.85736 | DB9: 99401.2626 | DC9: 5185.678596 | DD9: 5597.766509 | DE9: 5275.395555 | DF9: 5727.692594 | DG9: 15320.45781 | DH9: 6510.59456 | DI9: 7387.737637 | DJ9: 12545.68561 | DK9: 26502.63685 | DL9: 9120.107353 | DM9: 10859.82831 | DN9: 11409.27886 | DO9: 11409.27886 | DP9: 11409.27886 | DQ9: 12187.61569 | DR9: 23700.81045 | DS9: 23926.18272 | DT9: 23274.81097 | DU9: 23631.84025 | DV9: 24186.24633 | DW9: 21777.15029 | DX9: 21125.29861 | DY9: 19145.20978 | DZ9: 20034.27691 | EA9: 38558.99392 | EB9: 13152.60674 | EC9: 12633.65308 | ED9: 12756.30796 | EE9: 12756.30796 | EF9: 12573.26067 | EG9: 12573.26067 | EH9: 12573.26067 | EI9: 18204.97446 | EJ9: 19665.60869 | EK9: 22688.62023 | EL9: 22811.50657 | EM9: 23987.32702 | EN9: 20921.29284 | EO9: 27553.40165
A10: 07 | B10: Transport | D10: 2.59 | F10: 100 | G10: 185.318996 | H10: 182.2783061 | I10: 228.4912649 | J10: 240.9602437 | K10: 190.1862499 | L10: 197.6497617 | M10: 186.2471743 | N10: 187.2837732 | O10: 184.3812964 | P10: 194.1432011 | Q10: 275.5811711 | R10: 281.1907219 | S10: 268.2332363 | T10: 269.7881346 | U10: 266.8856578 | V10: 190.4233623 | W10: 267.9222566 | X10: 269.9954543 | Y10: 227.7215711 | Z10: 266.678338 | AA10: 268.7515357 | AB10: 272.8979311 | AC10: 272.8979311 | AD10: 270.4100939 | AE10: 269.7881346 | AF10: 275.8838272 | AG10: 236.7197405 | AH10: 269.2495946 | AI10: 274.8472284 | AJ10: 233.5062841 | AK10: 233.5062841 | AL10: 233.5670665 | AM10: 233.5670665 | AN10: 233.4455017 | AO10: 233.6886313 | AP10: 233.4455017 | AQ10: 233.810196 | AR10: 233.6278489 | AS10: 233.6278489 | AT10: 233.9925432 | AU10: 270.4941267 | AV10: 221.5925509 | AW10: 233.9925432 | AX10: 233.0808074 | AY10: 268.1843959 | AZ10: 267.9412664 | BA10: 268.1843959 | BB10: 269.9175304 | BC10: 269.9175304 | BD10: 270.6603024 | BE10: 270.6603024 | BF10: 270.6603024 | BG10: 316.9774049 | BH10: 312.0255921 | BI10: 822.6808357 | BJ10: 982.0258946 | BK10: 984.316108 | BL10: 1071.255728 | BM10: 1058.876196 | BN10: 1050.458114 | BO10: 1078.683448 | BP10: 1413.819163 | BQ10: 1074.192543 | BR10: 1190.225171 | BS10: 1176.752458 | BT10: 1304.461436 | BU10: 1322.425053 | BV10: 1883.378087 | BW10: 2046.109264 | BX10: 2159.399515 | BY10: 2082.245781 | BZ10: 2080.449419 | CA10: 3259.825351 | CB10: 3551.170542 | CC10: 3946.691002 | CD10: 5036.823604 | CE10: 4770.066432 | CF10: 5193.623843 | CG10: 4996.742601 | CH10: 5198.302609 | CI10: 3865.569574 | CJ10: 4207.664985 | CK10: 6308.150762 | CL10: 6308.150762 | CM10: 5497.269463 | CN10: 6180.473217 | CO10: 6489.096338 | CP10: 6473.981074 | CQ10: 6003.212398 | CR10: 7715.2098 | CS10: 6483.599878 | CT10: 6708.954719 | CU10: 6746.05582 | CV10: 7386.899879 | CW10: 7467.555092 | CX10: 8325.398102 | CY10: 10050.35235 | CZ10: 10054.00857 | DA10: 10054.00857 | DB10: 10054.00857 | DC10: 8868.629657 | DD10: 8993.021519 | DE10: 8910.093611 | DF10: 9324.733151 | DG10: 9075.949427 | DH10: 9407.661059 | DI10: 9407.661059 | DJ10: 287887.3161 | DK10: 9739.372691 | DL10: 9697.908737 | DM10: 8495.454071 | DN10: 8661.309887 | DO10: 8910.093611 | DP10: 8910.093611 | DQ10: 11324.40144 | DR10: 11324.40144 | DS10: 17206.47795 | DT10: 12992.3581 | DU10: 13821.63718 | DV10: 13406.99764 | DW10: 12992.3581 | DX10: 12909.43019 | DY10: 12909.43019 | DZ10: 12909.43019 | EA10: 13738.70927 | EB10: 15199.34615 | EC10: 15374.62878 | ED10: 17655.11794 | EE10: 17447.79817 | EF10: 17447.79817 | EG10: 17447.79817 | EH10: 17240.4784 | EI10: 17655.11794 | EJ10: 25487.93527 | EK10: 25902.57481 | EL10: 25114.75969 | EM10: 25076.84288 | EN10: 26939.17366 | EO10: 26420.87424
A11: 08 | B11: Communication | D11: 1.44 | F11: 100 | G11: 72.07792208 | H11: 111.038961 | I11: 66.23376623 | J11: 80.84415584 | K11: 70.12987013 | L11: 66.23376623 | M11: 86.68831169 | N11: 89.61038961 | O11: 87.66233766 | P11: 105.1948052 | Q11: 111.038961 | R11: 64.28571429 | S11: 83.76623377 | T11: 83.76623377 | U11: 77.92207792 | V11: 64.28571429 | W11: 91.55844156 | X11: 29.22077922 | Y11: 72.07792208 | Z11: 81.81818182 | AA11: 89.61038961 | AB11: 89.61038961 | AC11: 101.2987013 | AD11: 97.4025974 | AE11: 85.71428571 | AF11: 95.45454545 | AG11: 49.67532468 | AH11: 87.66233766 | AI11: 81.81818182 | AJ11: 83.76623377 | AK11: 88.15190046 | AL11: 85.42304118 | AM11: 82.45053376 | AN11: 84.93574488 | AO11: 80.91067746 | AP11: 83.8259918 | AQ11: 85.43706191 | AR11: 82.7183811 | AS11: 81.45973257 | AT11: 81.25834881 | AU11: 82.26526763 | AV11: 77.53274917 | AW11: 84.73221874 | AX11: 86.99778608 | AY11: 87.60193738 | AZ11: 90.47165602 | BA11: 78.97336592 | BB11: 78.38837802 | BC11: 109.5389835 | BD11: 89.79564199 | BE11: 106.614044 | BF11: 111.2939472 | BG11: 141.7620667 | BH11: 119.6300247 | BI11: 118.7525428 | BJ11: 172.7176762 | BK11: 203.0395488 | BL11: 248.1811147 | BM11: 198.1646497 | BN11: 208.8406788 | BO11: 331.2493959 | BP11: 229.8077297 | BQ11: 693.7577623 | BR11: 772.170996 | BS11: 874.5069111 | BT11: 889.1263275 | BU11: 1124.366029 | BV11: 1083.165855 | BW11: 864.5741018 | BX11: 1014.055886 | BY11: 1662.626361 | BZ11: 1674.587702 | CA11: 1589.529279 | CB11: 1961.65988 | CC11: 1769.835415 | CD11: 1715.787876 | CE11: 1828.756094 | CF11: 2520.741806 | CG11: 1956.343728 | CH11: 2697.946853 | CI11: 3813.538102 | CJ11: 4884.004938 | CK11: 4082.115486 | CL11: 4082.115486 | CM11: 4343.864498 | CN11: 4026.258377 | CO11: 3179.30872 | CP11: 3404.685661 | CQ11: 3681.373202 | CR11: 4725.121744 | CS11: 5048.573377 | CT11: 5368.128002 | CU11: 5448.016659 | CV11: 5480.894288 | CW11: 5480.894288 | CX11: 5480.894288 | CY11: 5551.948052 | CZ11: 5571.428571 | DA11: 5590.909091 | DB11: 5590.909091 | DC11: 2532.467532 | DD11: 2922.077922 | DE11: 2532.467532 | DF11: 3409.090909 | DG11: 3409.090909 | DH11: 3506.493506 | DI11: 3506.493506 | DJ11: 3603.896104 | DK11: 30194.80519 | DL11: 4285.714286 | DM11: 3993.506494 | DN11: 33116.88312 | DO11: 31168.83117 | DP11: 5649.350649 | DQ11: 6038.961039 | DR11: 4339.908157 | DS11: 4427.570495 | DT11: 6038.961039 | DU11: 6233.766234 | DV11: 5844.155844 | DW11: 4870.12987 | DX11: 4480.519481 | DY11: 5844.155844 | DZ11: 5454.545455 | EA11: 5454.545455 | EB11: 5064.935065 | EC11: 4568.372804 | ED11: 4675.324675 | EE11: 4675.324675 | EF11: 4675.324675 | EG11: 4675.324675 | EH11: 4675.324675 | EI11: 4870.12987 | EJ11: 5649.350649 | EK11: 4480.519481 | EL11: 4870.12987 | EM11: 2922.077922 | EN11: 3116.883117 | EO11: 5649.350649
A12: 09 | B12: Recreation and culture | D12: 0.52 | F12: 100 | G12: 100.5714286 | H12: 176.2857143 | I12: 112.7857143 | J12: 104.9285714 | K12: 111 | L12: 111.0714286 | M12: 114.5714286 | N12: 185.5714286 | O12: 118.0714286 | P12: 114.5714286 | Q12: 214.3571429 | R12: 121.5714286 | S12: 185.5714286 | T12: 185.5714286 | U12: 169.1428571 | V12: 176.5714286 | W12: 169.2857143 | X12: 167.5714286 | Y12: 167.5714286 | Z12: 174.5714286 | AA12: 139.5714286 | AB12: 153.5714286 | AC12: 174.5714286 | AD12: 188.5714286 | AE12: 188.5714286 | AF12: 174.5714286 | AG12: 209.5714286 | AH12: 174.5714286 | AI12: 209.7857143 | AJ12: 238.0714286 | AK12: 248.3886744 | AL12: 244.6910681 | AM12: 237.8168214 | AN12: 227.9452768 | AO12: 228.2477978 | AP12: 250.4735904 | AQ12: 247.9359082 | AR12: 247.9359082 | AS12: 267.3313339 | AT12: 277.2911471 | AU12: 280.4363513 | AV12: 283.756289 | AW12: 270.7973755 | AX12: 265.7587318 | AY12: 289.3477631 | AZ12: 274.2347875 | BA12: 295.4446127 | BB12: 349.1766878 | BC12: 336.2345923 | BD12: 370.103849 | BE12: 394.1942616 | BF12: 426.3687745 | BG12: 416.8968104 | BH12: 462.3548622 | BI12: 436.8385414 | BJ12: 634.0022718 | BK12: 770.8178707 | BL12: 739.357293 | BM12: 746.9273068 | BN12: 878.4370161 | BO12: 702.5162991 | BP12: 2214.764733 | BQ12: 922.2658863 | BR12: 974.6250494 | BS12: 579.5564474 | BT12: 955.8823678 | BU12: 1007.34527 | BV12: 1074.061782 | BW12: 963.5916048 | BX12: 1222.994377 | BY12: 1187.205764 | BZ12: 1482.623884 | CA12: 1500.020649 | CB12: 1508.626325 | CC12: 1733.084006 | CD12: 1627.123934 | CE12: 1655.645363 | CF12: 1735.006264 | CG12: 2031.867932 | CH12: 2215.58882 | CI12: 2455.378054 | CJ12: 2825.345144 | CK12: 2466.504708 | CL12: 2466.504708 | CM12: 3287.80939 | CN12: 3294.309085 | CO12: 2896.998528 | CP12: 3082.985161 | CQ12: 3357.739628 | CR12: 4629.259843 | CS12: 2725.929071 | CT12: 6486.387272 | CU12: 13118.65485 | CV12: 13202.89878 | CW12: 4029.379055 | CX12: 4923.532488 | CY12: 5108.152192 | CZ12: 5983.152192 | DA12: 6164.951578 | DB12: 6385.280821 | DC12: 3235.280821 | DD12: 4019.66041 | DE12: 3760.280821 | DF12: 3994.847719 | DG12: 9382.292643 | DH12: 7472.671048 | DI12: 10964.52784 | DJ12: 9406.285581 | DK12: 7693.057128 | DL12: 13409.11326 | DM12: 7345.849615 | DN12: 8079.294187 | DO12: 9574.145646 | DP12: 7974.525365 | DQ12: 9874.905084 | DR12: 8252.59004 | DS12: 5436.672481 | DT12: 7282.181357 | DU12: 4528.715254 | DV12: 5829.19424 | DW12: 4682.121115 | DX12: 3946.588913 | DY12: 2887.954697 | DZ12: 6387.954697 | EA12: 6204.118914 | EB12: 6385.796142 | EC12: 12351.1926 | ED12: 7751.048503 | EE12: 7756.905596 | EF12: 8138.43634 | EG12: 8141.43593 | EH12: 8173.757128 | EI12: 7540.044859 | EJ12: 8868.016329 | EK12: 9101.012006 | EL12: 9102.761767 | EM12: 8816.613709 | EN12: 8814.364016 | EO12: 13800
A13: 10 | B13: Education | D13: 1.08 | F13: 100 | G13: 100 | H13: 102.2778068 | I13: 102.2778068 | J13: 102.2778068 | K13: 102.2778068 | L13: 102.2778068 | M13: 102.2778068 | N13: 102.2778068 | O13: 102.2778068 | P13: 153.7054453 | Q13: 153.7054453 | R13: 153.7054453 | S13: 153.7054453 | T13: 153.7054453 | U13: 153.7054453 | V13: 153.7054453 | W13: 153.7054453 | X13: 153.7054453 | Y13: 153.7054453 | Z13: 153.7054453 | AA13: 153.7054453 | AB13: 153.7054453 | AC13: 153.7054453 | AD13: 153.7054453 | AE13: 174.0028155 | AF13: 174.0028155 | AG13: 174.0028155 | AH13: 174.0028155 | AI13: 174.0028155 | AJ13: 174.0028155 | AK13: 174.0028155 | AL13: 177.1350999 | AM13: 177.1350999 | AN13: 177.1350999 | AO13: 177.1350999 | AP13: 177.1350999 | AQ13: 177.1350999 | AR13: 177.1350999 | AS13: 177.1350999 | AT13: 177.1350999 | AU13: 177.1350999 | AV13: 177.1350999 | AW13: 177.1350999 | AX13: 177.1350999 | AY13: 177.1350999 | AZ13: 177.1350999 | BA13: 177.1350999 | BB13: 177.1350999 | BC13: 177.1350999 | BD13: 177.1350999 | BE13: 177.1350999 | BF13: 177.1350999 | BG13: 177.1350999 | BH13: 177.1350999 | BI13: 177.1350999 | BJ13: 177.1350999 | BK13: 177.1350999 | BL13: 177.1350999 | BM13: 177.1350999 | BN13: 177.1350999 | BO13: 177.1350999 | BP13: 177.1350999 | BQ13: 177.1350999 | BR13: 177.1350999 | BS13: 177.1350999 | BT13: 177.1350999 | BU13: 177.1350999 | BV13: 177.1350999 | BW13: 177.1350999 | BX13: 585.9093812 | BY13: 606.7662796 | BZ13: 606.7662796 | CA13: 606.7662796 | CB13: 606.7662796 | CC13: 606.7662796 | CD13: 606.7662796 | CE13: 606.7662796 | CF13: 606.7662796 | CG13: 606.7662796 | CH13: 606.7662796 | CI13: 606.7662796 | CJ13: 606.7662796 | CK13: 499.6898773 | CL13: 499.6898773 | CM13: 499.6898773 | CN13: 499.6898773 | CO13: 499.6898773 | CP13: 499.6898773 | CQ13: 499.6898773 | CR13: 499.6898773 | CS13: 499.6898773 | CT13: 499.6898773 | CU13: 499.6898773 | CV13: 499.6898773 | CW13: 499.6898773 | CX13: 499.6898773 | CY13: 499.6898773 | CZ13: 499.6898773 | DA13: 499.6898773 | DB13: 499.6898773 | DC13: 499.6898773 | DD13: 499.6898773 | DE13: 499.6898773 | DF13: 499.6898773 | DG13: 499.6898773 | DH13: 499.6898773 | DI13: 499.6898773 | DJ13: 499.6898773 | DK13: 499.6898773 | DL13: 499.6898773 | DM13: 499.6898773 | DN13: 499.6898773 | DO13: 499.6898773 | DP13: 499.6898773 | DQ13: 499.6898773 | DR13: 499.6898773 | DS13: 540.8776167 | DT13: 540.8776167 | DU13: 540.8776167 | DV13: 540.8776167 | DW13: 540.8776167 | DX13: 540.8776167 | DY13: 540.8776167 | DZ13: 540.8776167 | EA13: 540.8776167 | EB13: 540.8776167 | EC13: 540.8776167 | ED13: 540.8776167 | EE13: 540.8776167 | EF13: 540.8776167 | EG13: 540.8776167 | EH13: 540.8776167 | EI13: 540.8776167 | EJ13: 540.8776167 | EK13: 540.8776167 | EL13: 540.8776167 | EM13: 540.8776167 | EN13: 540.8776167 | EO13: 540.8776167
A14: 11 | B14: Restaurants and hotels | D14: 6.01 | F14: 100 | G14: 100.0500668 | H14: 133.0649199 | I14: 150.4088785 | J14: 158.7546618 | K14: 180.4452958 | L14: 165.9133676 | M14: 157.4315618 | N14: 161.5320427 | O14: 163.2644808 | P14: 162.1585447 | Q14: 172.7735168 | R14: 199.108697 | S14: 167.3597519 | T14: 195.8373412 | U14: 188.3548087 | V14: 187.2542292 | W14: 205.8231527 | X14: 209.1980402 | Y14: 207.6301824 | Z14: 204.8939512 | AA14: 183.1333746 | AB14: 227.6857529 | AC14: 214.2010691 | AD14: 193.6081442 | AE14: 197.7263436 | AF14: 199.3870969 | AG14: 204.956404 | AH14: 190.0944198 | AI14: 193.9175073 | AJ14: 187.1758084 | AK14: 184.7204497 | AL14: 179.3049009 | AM14: 183.3906183 | AN14: 179.4977114 | AO14: 178.394033 | AP14: 179.1377106 | AQ14: 196.7818647 | AR14: 180.2592007 | AS14: 179.7690447 | AT14: 190.5329319 | AU14: 204.3277471 | AV14: 204.3239364 | AW14: 203.4038782 | AX14: 191.0509913 | AY14: 188.4584977 | AZ14: 204.5988225 | BA14: 217.4551996 | BB14: 212.0388932 | BC14: 205.0380033 | BD14: 305.3829443 | BE14: 227.5743399 | BF14: 260.47598 | BG14: 296.8409248 | BH14: 328.035947 | BI14: 389.5727749 | BJ14: 406.685145 | BK14: 453.7892938 | BL14: 465.6036415 | BM14: 650.8039539 | BN14: 485.2314241 | BO14: 985.7010803 | BP14: 481.6781227 | BQ14: 1251.397297 | BR14: 1368.307693 | BS14: 1226.762157 | BT14: 1636.028426 | BU14: 1821.282694 | BV14: 1668.93191 | BW14: 1973.544357 | BX14: 2172.374022 | BY14: 2887.255941 | BZ14: 3199.825983 | CA14: 3395.576891 | CB14: 3673.51205 | CC14: 3649.440045 | CD14: 3671.791397 | CE14: 3988.204824 | CF14: 4242.512989 | CG14: 3779.656553 | CH14: 3897.867709 | CI14: 4150.197932 | CJ14: 4917.78787 | CK14: 6331.87057 | CL14: 6331.87057 | CM14: 8869.570228 | CN14: 7268.645704 | CO14: 7527.358955 | CP14: 8399.042149 | CQ14: 7868.506255 | CR14: 9116.606587 | CS14: 10663.48537 | CT14: 11721.1197 | CU14: 13842.02961 | CV14: 14799.5732 | CW14: 15071.51646 | CX14: 16890.97187 | CY14: 20645.15014 | CZ14: 21206.76967 | DA14: 21400.01085 | DB14: 21614.41495 | DC14: 14237.58418 | DD14: 6810.747664 | DE14: 10121.66222 | DF14: 8248.331108 | DG14: 8986.73231 | DH14: 7281.625501 | DI14: 8213.11749 | DJ14: 6984.56275 | DK14: 14836.4486 | DL14: 8509.178905 | DM14: 9668.641522 | DN14: 11028.66322 | DO14: 10564.71128 | DP14: 11079.48097 | DQ14: 11025.53405 | DR14: 12876.84224 | DS14: 13532.56842 | DT14: 12429.0721 | DU14: 13745.74433 | DV14: 13905.20694 | DW14: 13779.3725 | DX14: 14892.7737 | DY14: 13709.11215 | DZ14: 16728.13752 | EA14: 18830.94126 | EB14: 18830.94126 | EC14: 20752.21225 | ED14: 19274.86649 | EE14: 19274.86649 | EF14: 19039.55274 | EG14: 19039.55274 | EH14: 18895.19359 | EI14: 20184.41255 | EJ14: 20201.93591 | EK14: 19811.41522 | EL14: 22140.77103 | EM14: 23542.64019 | EN14: 24794.30908 | EO14: 24829.35581
A15: 12 | B15: Miscellaneous goods and services | D15: 2.64 | F15: 100 | G15: 110.5125337 | H15: 156.2100081 | I15: 177.4836012 | J15: 177.6344421 | K15: 208.4544478 | L15: 226.6288938 | M15: 193.7961559 | N15: 264.6849381 | O15: 216.1666721 | P15: 198.6696862 | Q15: 271.602364 | R15: 225.2611486 | S15: 266.4358177 | T15: 259.2925696 | U15: 238.5995351 | V15: 259.711907 | W15: 309.6905119 | X15: 298.8006994 | Y15: 274.4653713 | Z15: 309.1908572 | AA15: 293.84605 | AB15: 256.9466394 | AC15: 275.2936252 | AD15: 278.6533121 | AE15: 265.4427026 | AF15: 302.7703565 | AG15: 303.0705103 | AH15: 252.5582329 | AI15: 248.9883501 | AJ15: 282.3720051 | AK15: 274.9377794 | AL15: 275.4990714 | AM15: 288.7628288 | AN15: 284.5348731 | AO15: 292.8392366 | AP15: 280.1470475 | AQ15: 281.3555316 | AR15: 280.7040772 | AS15: 276.2244353 | AT15: 273.5961044 | AU15: 289.7998325 | AV15: 293.8486593 | AW15: 281.5170852 | AX15: 289.443397 | AY15: 300.719757 | AZ15: 306.3511429 | BA15: 371.6487026 | BB15: 461.7633704 | BC15: 437.2985961 | BD15: 549.9280873 | BE15: 575.1697954 | BF15: 675.6979047 | BG15: 822.2085444 | BH15: 871.0939465 | BI15: 926.3531896 | BJ15: 1330.463834 | BK15: 1514.393668 | BL15: 1731.793841 | BM15: 1922.898602 | BN15: 1936.777974 | BO15: 2944.844678 | BP15: 1863.484028 | BQ15: 4668.986916 | BR15: 2923.022314 | BS15: 4844.30105 | BT15: 4977.785159 | BU15: 4700.004008 | BV15: 6929.90205 | BW15: 7155.893298 | BX15: 7833.400988 | BY15: 8020.985063 | BZ15: 9184.135886 | CA15: 8743.276577 | CB15: 40104.17197 | CC15: 11498.61764 | CD15: 12566.66418 | CE15: 13583.29159 | CF15: 25390.40263 | CG15: 18433.15233 | CH15: 14513.18675 | CI15: 11835.62993 | CJ15: 14137.55817 | CK15: 14896.9621 | CL15: 14896.9621 | CM15: 13242.17058 | CN15: 12381.58485 | CO15: 14153.3505 | CP15: 10946.67935 | CQ15: 13401.35445 | CR15: 13179.9093 | CS15: 12073.51071 | CT15: 13335.92167 | CU15: 13735.52852 | CV15: 14826.08051 | CW15: 15514.17469 | CX15: 15769.06008 | CY15: 17730.66491 | CZ15: 18717.61082 | DA15: 19465.11384 | DB15: 19746.93329 | DC15: 12331.39766 | DD15: 14658.48105 | DE15: 20051.21077 | DF15: 24217.73243 | DG15: 23697.64275 | DH15: 16008.22116 | DI15: 25864.25645 | DJ15: 21923.9738 | DK15: 22985.40061 | DL15: 20117.28576 | DM15: 20363.20803 | DN15: 22032.96818 | DO15: 24151.39872 | DP15: 25977.60803 | DQ15: 24476.78782 | DR15: 18460.20218 | DS15: 19992.06565 | DT15: 23483.24013 | DU15: 19823.99449 | DV15: 24600.59288 | DW15: 25428.44405 | DX15: 25950.42396 | DY15: 26077.69723 | DZ15: 38740.34401 | EA15: 38740.34401 | EB15: 38740.34401 | EC15: 25891.43416 | ED15: 37768.12179 | EE15: 38548.96168 | EF15: 39515.62835 | EG15: 39515.62835 | EH15: 41159.78845 | EI15: 40725.35057 | EJ15: 27987.48968 | EK15: 25751.37857 | EL15: 32114.23946 | EM15: 29251.06603 | EN15: 40725.35057 | EO15: 40598.28825
B16: CPI excluding unprocessed food and petrol | E16: =SUMPRODUCT('[1]Item index series - Wau'!C4:C121,'[1]Item index series - Wau'!D4:D121) -> 50.06 | F16: 100 | G16: 111.5463374 | H16: 175.9788647 | I16: 196.0180658 | J16: 174.5376447 | K16: 194.5029834 | L16: 222.9155879 | M16: 218.8380565 | N16: 205.3292064 | O16: 194.9339119 | P16: 229.4979061 | Q16: 271.2145722 | R16: 274.747249 | S16: 231.7002923 | T16: 241.7555315 | U16: 287.4408529 | V16: 281.3102421 | W16: 271.9922122 | X16: 260.5887999 | Y16: 269.3557011 | Z16: 255.810916 | AA16: 242.2751491 | AB16: 237.3225118 | AC16: 270.2109673 | AD16: 237.116017 | AE16: 246.8651445 | AF16: 276.5318734 | AG16: 258.8879073 | AH16: 344.6288793 | AI16: 266.503581 | AJ16: 265.3845937 | AK16: 273.1714476 | AL16: 259.8190035 | AM16: 260.7444232 | AN16: 254.6871749 | AO16: 278.0889453 | AP16: 248.3295856 | AQ16: 260.3086076 | AR16: 279.016847 | AS16: 278.2571714 | AT16: 281.7532815 | AU16: 310.4709763 | AV16: 313.2145385 | AW16: 300.2949731 | AX16: 281.8796557 | AY16: 283.5167099 | AZ16: 308.5503941 | BA16: 314.2548278 | BB16: 387.0587924 | BC16: 346.6225804 | BD16: 377.9959152 | BE16: 409.8278063 | BF16: 426.5224581 | BG16: 496.1927062 | BH16: 537.3810867 | BI16: 642.7000139 | BJ16: 805.3719993 | BK16: 904.3411888 | BL16: 1068.219935 | BM16: 1304.292903 | BN16: 1119.050509 | BO16: 1917.454125 | BP16: 1284.226372 | BQ16: 8278.906725 | BR16: 5502.119592 | BS16: 5695.987302 | BT16: 3669.593704 | BU16: 4615.290513 | BV16: 3807.467625 | BW16: 3542.430803 | BX16: 4186.14212 | BY16: 6134.113661 | BZ16: 6016.590171 | CA16: 5863.895391 | CB16: 8600.030688 | CC16: 7986.410082 | CD16: 11267.47122 | CE16: 13780.80534 | CF16: 8797.055614 | CG16: 9646.076373 | CH16: 9979.074041 | CI16: 10896.64562 | CJ16: 14322.51007 | CK16: 13677.75028 | CL16: 15329.37588 | CM16: 14933.24468 | CN16: 14825.84859 | CO16: 14404.01112 | CP16: 14941.03344 | CQ16: 14855.96156 | CR16: 17524.5855 | CS16: 28397.49368 | CT16: 29061.48723 | CU16: 28709.9385 | CV16: 32125.68152 | CW16: 33636.8077 | CX16: 28385.70091 | CY16: 29846.24999 | CZ16: 37108.57675 | DA16: 48971.59018 | DB16: 50521.46248 | DC16: 25862.28761 | DD16: 32461.42954 | DE16: 41342.37571 | DF16: 45942.78933 | DG16: 32461.90955 | DH16: 25275.76627 | DI16: 30007.0697 | DJ16: 39062.30756 | DK16: 27148.23605 | DL16: 26818.3224 | DM16: 29712.20982 | DN16: 38881.11794 | DO16: 33362.66964 | DP16: 32870.89382 | DQ16: 33214.74194 | DR16: 51347.8446 | DS16: 52833.37945 | DT16: 38019.29974 | DU16: 39652.08274 | DV16: 33846.63044 | DW16: 32418.12501 | DX16: 27933.97718 | DY16: 31365.94583 | DZ16: 34560.55165 | EA16: 34805.82198 | EB16: 21131.36404 | EC16: 22265.99625 | ED16: 27525.15638 | EE16: 29369.73846 | EF16: 42342.22817 | EG16: 42691.70581 | EH16: 32988.62423 | EI16: 28097.40893 | EJ16: 30066.39402 | EK16: 23787.1012 | EL16: 25402.9013 | EM16: 28188.3826 | EN16: 30832.96982 | EO16: 32390.98038
A17: 011 | B17: Food | C17: =SUM(E18:E26) -> 63.99 | F17: 100 | G17: 105.5868409 | H17: 163.7720436 | I17: 167.9932937 | J17: 226.5579133 | K17: 206.0226623 | L17: 200.7350411 | M17: 174.9712599 | N17: 176.7460038 | O17: 171.4059603 | P17: 185.4615484 | Q17: 249.9071438 | R17: 229.9665165 | S17: 225.240282 | T17: 227.34826 | U17: 282.0425471 | V17: 287.0021767 | W17: 325.966094 | X17: 252.7919975 | Y17: 258.4760343 | Z17: 207.6190535 | AA17: 193.8096043 | AB17: 214.6439373 | AC17: 214.7000343 | AD17: 255.3669421 | AE17: 221.9358773 | AF17: 216.8273865 | AG17: 221.8303634 | AH17: 305.6257519 | AI17: 217.218137 | AJ17: 199.0117698 | AK17: 222.9463262 | AL17: 210.2010293 | AM17: 206.4236645 | AN17: 194.08821 | AO17: 203.5683958 | AP17: 204.0863909 | AQ17: 204.4019465 | AR17: 215.4808309 | AS17: 197.171477 | AT17: 194.7264425 | AU17: 254.2747479 | AV17: 225.8018539 | AW17: 210.2381245 | AX17: 230.0705196 | AY17: 246.3862767 | AZ17: 260.7305514 | BA17: 290.0896078 | BB17: 339.0911756 | BC17: 301.1584819 | BD17: 339.3662838 | BE17: 400.3903887 | BF17: 393.8908297 | BG17: 450.8330129 | BH17: 470.4172809 | BI17: 599.0405026 | BJ17: 694.4028316 | BK17: 778.9902596 | BL17: 875.5061335 | BM17: 1030.476632 | BN17: 955.5837345 | BO17: 1948.270933 | BP17: 974.9734273 | BQ17: 2619.983226 | BR17: 2260.9235 | BS17: 2590.05943 | BT17: 3448.453238 | BU17: 3257.480039 | BV17: 4117.866062 | BW17: 3707.233239 | BX17: 3725.444587 | BY17: 4789.556241 | BZ17: 4375.408689 | CA17: 4568.405833 | CB17: 5015.585382 | CC17: 6011.510073 | CD17: 4845.394375 | CE17: 6071.883753 | CF17: 6693.719179 | CG17: 7425.420995 | CH17: 7193.6781 | CI17: 7130.766366 | CJ17: 11407.87006 | CK17: 8499.983455 | CL17: 8499.983455 | CM17: 10705.73511 | CN17: 8819.762253 | CO17: 7788.669284 | CP17: 8807.116732 | CQ17: 7922.688543 | CR17: 8811.192903 | CS17: 24717.00831 | CT17: 29474.74108 | CU17: 32401.34411 | CV17: 34829.14608 | CW17: 35697.98957 | CX17: 36069.26051 | CY17: 46497.47356 | CZ17: 51397.53626 | DA17: 54919.11434 | DB17: 62490.68271 | DC17: 42371.83458 | DD17: 89238.97892 | DE17: 55239.20795 | DF17: 61649.03008 | DG17: 42176.5402 | DH17: 72808.50645 | DI17: 77043.19406 | DJ17: 28830.00019 | DK17: 49403.95605 | DL17: 66141.16722 | DM17: 123698.0667 | DN17: 96671.39333 | DO17: 63089.28682 | DP17: 45684.54325 | DQ17: 47645.75618 | DR17: 65125.93804 | DS17: 66045.09551 | DT17: 36283.04572 | DU17: 29972.81192 | DV17: 28762.30094 | DW17: 37748.30696 | DX17: 40157.64218 | DY17: 71765.44886 | DZ17: 72987.16166 | EA17: 65093.25844 | EB17: 13819.66215 | EC17: 12397.67241 | ED17: 17716.19015 | EE17: 69782.02511 | EF17: 61432.13696 | EG17: 55473.37355 | EH17: 37786.1875 | EI17: 22242.53841 | EJ17: 25309.47971 | EK17: 19537.75499 | EL17: 18313.92918 | EM17: 18416.75816 | EN17: 19353.5786 | EO17: 20728.72725
A18: 0111 | B18: Bread & Cereals | E18: =SUM('[1]Item index series - Wau'!C4:C14) -> 23.49 | F18: 100 | G18: 96.43348531 | H18: 140.7021721 | I18: 156.1368417 | J18: 252.0470156 | K18: 220.3693087 | L18: 201.9273243 | M18: 158.1144079 | N18: 162.7587711 | O18: 154.2208338 | P18: 205.2052347 | Q18: 210.66432 | R18: 262.6174269 | S18: 192.2079282 | T18: 195.3478246 | U18: 327.3515321 | V18: 295.9839134 | W18: 232.5589425 | X18: 197.3040312 | Y18: 196.2778669 | Z18: 163.9502384 | AA18: 167.7326811 | AB18: 203.4782286 | AC18: 200.8225193 | AD18: 207.8134291 | AE18: 182.422765 | AF18: 184.4750987 | AG18: 177.0929622 | AH18: 386.355857 | AI18: 203.9094637 | AJ18: 172.2566209 | AK18: 199.7003581 | AL18: 174.9919197 | AM18: 178.0948738 | AN18: 174.3010522 | AO18: 186.4933212 | AP18: 173.0916625 | AQ18: 172.8871418 | AR18: 178.1211861 | AS18: 175.0073311 | AT18: 161.0031532 | AU18: 191.2741773 | AV18: 187.2961122 | AW18: 171.8718523 | AX18: 197.1175539 | AY18: 203.3023524 | AZ18: 203.9585414 | BA18: 254.6470243 | BB18: 310.8322599 | BC18: 298.9465739 | BD18: 358.2237207 | BE18: 400.821266 | BF18: 358.0637627 | BG18: 445.8395921 | BH18: 455.2612859 | BI18: 634.1383348 | BJ18: 707.677621 | BK18: 755.9340318 | BL18: 873.6761978 | BM18: 954.238598 | BN18: 898.7045676 | BO18: 2165.133287 | BP18: 963.9519459 | BQ18: 2340.162174 | BR18: 2417.022698 | BS18: 2546.510427 | BT18: 2935.114996 | BU18: 3042.209536 | BV18: 4000.012199 | BW18: 3145.22215 | BX18: 2929.38272 | BY18: 3862.217353 | BZ18: 3781.597414 | CA18: 3724.609189 | CB18: 4513.125233 | CC18: 3806.728114 | CD18: 3953.754253 | CE18: 5617.67362 | CF18: 5263.224443 | CG18: 5864.717463 | CH18: 5713.3203 | CI18: 5426.866862 | CJ18: 8181.038422 | CK18: 5573.463397 | CL18: 5573.463397 | CM18: 11664.48751 | CN18: 7613.906032 | CO18: 5783.208508 | CP18: 6033.726767 | CQ18: 5334.932661 | CR18: 5504.298901 | CS18: 14342.05359 | CT18: 15328.93386 | CU18: 12720.13142 | CV18: 14680.87957 | CW18: 15155.36689 | CX18: 15220.97759 | CY18: 24150.63579 | CZ18: 32106.05691 | DA18: 36587.74636 | DB18: 37494.42899 | DC18: 33773.20478 | DD18: 29752.47419 | DE18: 42584.55102 | DF18: 49513.97465 | DG18: 30273.83112 | DH18: 25047.64831 | DI18: 31143.28146 | DJ18: 19910.91115 | DK18: 29703.94243 | DL18: 34938.66957 | DM18: 47977.98636 | DN18: 52763.81798 | DO18: 59427.57396 | DP18: 58761.10202 | DQ18: 59219.84507 | DR18: 60831.16564 | DS18: 61181.85399 | DT18: 40704.52471 | DU18: 37589.73896 | DV18: 38091.38677 | DW18: 56482.45117 | DX18: 27912.18879 | DY18: 27439.45982 | DZ18: 26857.9873 | EA18: 27683.85455 | EB18: 9743.245659 | EC18: 7216.244219 | ED18: 10452.70077 | EE18: 14701.92892 | EF18: 50286.97052 | EG18: 51274.65145 | EH18: 29453.36447 | EI18: 19489.44104 | EJ18: 25270.73446 | EK18: 17214.63634 | EL18: 17160.86841 | EM18: 14671.98286 | EN18: 10755.10363 | EO18: 14967.67265
A19: 0112 | B19: Meat | E19: =SUM('[1]Item index series - Wau'!C15:C19) -> 7.83 | F19: 100 | G19: 104.6759587 | H19: 158.6420184 | I19: 156.0302178 | J19: 183.3108227 | K19: 153.5726922 | L19: 144.1316867 | M19: 138.0026305 | N19: 148.084147 | O19: 157.2024571 | P19: 155.4486077 | Q19: 152.5321757 | R19: 138.4381366 | S19: 131.2990082 | T19: 126.6267502 | U19: 159.9170858 | V19: 170.6323305 | W19: 173.6056 | X19: 170.0600712 | Y19: 211.6225901 | Z19: 259.3320155 | AA19: 226.961874 | AB19: 203.2169179 | AC19: 222.4659072 | AD19: 225.6381168 | AE19: 206.4371213 | AF19: 213.9605589 | AG19: 212.2206195 | AH19: 209.4112337 | AI19: 238.8987558 | AJ19: 220.9066386 | AK19: 255.791775 | AL19: 233.9229524 | AM19: 232.1689871 | AN19: 233.0561873 | AO19: 229.4404813 | AP19: 234.7938762 | AQ19: 230.1586775 | AR19: 243.8412215 | AS19: 245.3610078 | AT19: 241.2705299 | AU19: 275.8608993 | AV19: 277.4331241 | AW19: 275.2682924 | AX19: 271.3156301 | AY19: 282.4654072 | AZ19: 322.0890326 | BA19: 308.0574933 | BB19: 353.5007817 | BC19: 362.1331757 | BD19: 354.9110393 | BE19: 437.5465523 | BF19: 407.6943568 | BG19: 480.1525996 | BH19: 503.7124874 | BI19: 650.4369829 | BJ19: 663.918824 | BK19: 661.303877 | BL19: 783.6522515 | BM19: 829.3541541 | BN19: 862.2209977 | BO19: 1180.284648 | BP19: 995.928205 | BQ19: 1456.651223 | BR19: 1651.283517 | BS19: 1789.647147 | BT19: 1899.757767 | BU19: 2426.508729 | BV19: 2809.268328 | BW19: 2706.046381 | BX19: 2515.65209 | BY19: 3013.137199 | BZ19: 3090.6358 | CA19: 2983.953579 | CB19: 4055.196513 | CC19: 5049.751302 | CD19: 3696.395847 | CE19: 4805.183415 | CF19: 4911.875483 | CG19: 5681.845284 | CH19: 5292.439695 | CI19: 5051.448456 | CJ19: 6431.847373 | CK19: 7777.500028 | CL19: 7777.500028 | CM19: 8530.954377 | CN19: 7757.019897 | CO19: 7529.846561 | CP19: 7717.799969 | CQ19: 8019.425903 | CR19: 8078.682126 | CS19: 1259.575881 | CT19: 1259.01336 | CU19: 1316.802766 | CV19: 1332.626624 | CW19: 1341.832956 | CX19: 1390.428842 | CY19: 6213.08586 | CZ19: 9732.026779 | DA19: 12837.70089 | DB19: 19660.12527 | DC19: 9758.296991 | DD19: 19154.37862 | DE19: 10971.02388 | DF19: 14195.58393 | DG19: 20473.23935 | DH19: 10588.08886 | DI19: 11758.86163 | DJ19: 11212.19398 | DK19: 14328.60658 | DL19: 17308.07696 | DM19: 18588.71987 | DN19: 25866.75007 | DO19: 18547.19087 | DP19: 14507.95406 | DQ19: 18466.12119 | DR19: 27414.10959 | DS19: 27539.85863 | DT19: 44045.60944 | DU19: 33906.4588 | DV19: 28966.88186 | DW19: 34749.67619 | DX19: 19984.22946 | DY19: 19092.50242 | DZ19: 24157.32603 | EA19: 24183.03336 | EB19: 9433.991953 | EC19: 9258.711571 | ED19: 22764.02919 | EE19: 21889.6357 | EF19: 26451.60282 | EG19: 24138.48509 | EH19: 28366.36535 | EI19: 10277.7847 | EJ19: 10900.33251 | EK19: 12306.86595 | EL19: 12503.88136 | EM19: 14118.93638 | EN19: 14317.80189 | EO19: 15388.1357
A20: 0113 | B20: Fish & Sea foods | E20: =SUM('[1]Item index series - Wau'!C20:C21) -> 6.52 | F20: 100 | G20: 90.7671402 | H20: 192.2529055 | I20: 123.4525648 | J20: 191.431206 | K20: 196.4733901 | L20: 155.9915962 | M20: 206.3249235 | N20: 194.8884179 | O20: 246.9481059 | P20: 150.5779447 | Q20: 193.52955 | R20: 101.4799743 | S20: 167.7825515 | T20: 209.0115485 | U20: 104.519061 | V20: 222.2064808 | W20: 460.4745124 | X20: 482.1592006 | Y20: 427.8606528 | Z20: 107.9284264 | AA20: 82.92057375 | AB20: 211.6790983 | AC20: 152.61733 | AD20: 415.8477111 | AE20: 172.9287412 | AF20: 254.3875088 | AG20: 180.364988 | AH20: 191.2272929 | AI20: 178.8154016 | AJ20: 157.7200492 | AK20: 157.7437878 | AL20: 162.5620636 | AM20: 153.5885719 | AN20: 156.6678797 | AO20: 192.935207 | AP20: 179.3137062 | AQ20: 191.7702638 | AR20: 222.3386307 | AS20: 166.2003683 | AT20: 136.0981596 | AU20: 132.1782182 | AV20: 139.3104354 | AW20: 139.6778994 | AX20: 191.9899875 | AY20: 208.5550311 | AZ20: 273.1323524 | BA20: 242.1017448 | BB20: 61.27890349 | BC20: 33.81263689 | BD20: 28.06675902 | BE20: 63.6678204 | BF20: 31.70379343 | BG20: 43.65127534 | BH20: 44.33237512 | BI20: 47.01891151 | BJ20: 78.18163174 | BK20: 74.92818679 | BL20: 91.99506235 | BM20: 100.8757385 | BN20: 87.32698842 | BO20: 183.5211025 | BP20: 103.5978463 | BQ20: 190.1805548 | BR20: 126.0515474 | BS20: 127.9219598 | BT20: 186.0569418 | BU20: 147.0810703 | BV20: 152.8980197 | BW20: 269.9746383 | BX20: 161.6300147 | BY20: 278.5970583 | BZ20: 360.5877958 | CA20: 341.1584137 | CB20: 381.2277055 | CC20: 411.2777134 | CD20: 349.6042852 | CE20: 433.1874163 | CF20: 484.3382146 | CG20: 543.5858653 | CH20: 486.6726092 | CI20: 422.0191824 | CJ20: 495.6855941 | CK20: 518.4988388 | CL20: 518.4988388 | CM20: 684.5022765 | CN20: 389.0093705 | CO20: 331.8642389 | CP20: 584.4733528 | CQ20: 483.8626226 | CR20: 956.302709 | CS20: 49627.44398 | CT20: 75260.19044 | CU20: 100582.2526 | CV20: 105274.593 | CW20: 108833.7313 | CX20: 111407.3927 | CY20: 113102.5489 | CZ20: 115851.8974 | DA20: 119604.5516 | DB20: 120145.6516 | DC20: 7934.969712 | DD20: 17280.8083 | DE20: 15373.4943 | DF20: 13581.16263 | DG20: 19227.35554 | DH20: 14992.0315 | DI20: 20533.65723 | DJ20: 17506.54814 | DK20: 13386.18035 | DL20: 10846.18452 | DM20: 8980.612569 | DN20: 8753.696551 | DO20: 20410.4337 | DP20: 17395.79062 | DQ20: 16121.54183 | DR20: 55920.37752 | DS20: 56123.71915 | DT20: 23163.33951 | DU20: 21877.97852 | DV20: 9766.534632 | DW20: 14142.24916 | DX20: 26036.19477 | DY20: 36411.43944 | DZ20: 29735.84044 | EA20: 18768.78496 | EB20: 8183.192273 | EC20: 7100.168083 | ED20: 8755.386472 | EE20: 5169.364416 | EF20: 16327.1513 | EG20: 18402.20023 | EH20: 8331.104158 | EI20: 4953.923395 | EJ20: 6628.639559 | EK20: 6149.183686 | EL20: 4293.91744 | EM20: 4480.200427 | EN20: 4343.631152 | EO20: 8323.263979
A21: 0114 | B21: Milk,Cheese & Eggs | E21: =SUM('[1]Item index series - Wau'!C22:C27) -> 2.14 | F21: 100 | G21: 123.2352186 | H21: 132.5706829 | I21: 166.9202044 | J21: 166.9319696 | K21: 174.5801712 | L21: 151.8477884 | M21: 172.7042563 | N21: 174.5553217 | O21: 176.5180176 | P21: 173.6242345 | Q21: 184.4196543 | R21: 169.2253908 | S21: 173.8900977 | T21: 137.8598298 | U21: 173.5178892 | V21: 198.7547214 | W21: 209.2760271 | X21: 210.0440966 | Y21: 227.8959222 | Z21: 165.9719591 | AA21: 178.5715814 | AB21: 192.1982147 | AC21: 170.6878216 | AD21: 186.8828613 | AE21: 215.6523121 | AF21: 238.8847804 | AG21: 258.0804068 | AH21: 209.4041456 | AI21: 207.5576954 | AJ21: 234.4051388 | AK21: 280.9360357 | AL21: 244.2124104 | AM21: 217.5898954 | AN21: 212.2617967 | AO21: 219.1657956 | AP21: 216.6201536 | AQ21: 231.9827938 | AR21: 231.362806 | AS21: 195.5611956 | AT21: 270.8574255 | AU21: 346.9806515 | AV21: 332.4086779 | AW21: 224.0941161 | AX21: 232.5554938 | AY21: 270.7019744 | AZ21: 277.0279998 | BA21: 336.0407 | BB21: 445.3859624 | BC21: 361.1746322 | BD21: 433.7133952 | BE21: 455.6090755 | BF21: 489.7778345 | BG21: 609.6926905 | BH21: 622.1381399 | BI21: 674.6341691 | BJ21: 737.1497057 | BK21: 960.9415162 | BL21: 1020.284188 | BM21: 1192.133655 | BN21: 1140.630544 | BO21: 1517.706585 | BP21: 1449.570737 | BQ21: 1831.39567 | BR21: 1916.735435 | BS21: 2084.67656 | BT21: 2441.189765 | BU21: 2328.533239 | BV21: 2846.420412 | BW21: 2968.858016 | BX21: 3196.806499 | BY21: 3970.99515 | BZ21: 3833.414408 | CA21: 4761.417214 | CB21: 3898.203898 | CC21: 11160.78712 | CD21: 4781.279943 | CE21: 4841.935384 | CF21: 7254.174602 | CG21: 6466.1715 | CH21: 7469.895318 | CI21: 7276.429444 | CJ21: 21915.39369 | CK21: 15407.8709 | CL21: 15407.8709 | CM21: 15840.83712 | CN21: 13612.74536 | CO21: 12864.24875 | CP21: 10483.47596 | CQ21: 12988.72018 | CR21: 14537.56975 | CS21: 11235.73309 | CT21: 12043.0231 | CU21: 12191.84266 | CV21: 12960.2433 | CW21: 14320.4565 | CX21: 14580.07197 | CY21: 16122.11315 | CZ21: 18262.3122 | DA21: 18595.30605 | DB21: 18624.90453 | DC21: 6066.997519 | DD21: 6491.278466 | DE21: 6306.708308 | DF21: 14437.51604 | DG21: 11801.12213 | DH21: 8007.844491 | DI21: 14771.02153 | DJ21: 21943.47505 | DK21: 14705.16691 | DL21: 15418.20124 | DM21: 9398.965884 | DN21: 9496.892151 | DO21: 10182.37602 | DP21: 8719.257661 | DQ21: 12007.90867 | DR21: 12873.44128 | DS21: 15816.50857 | DT21: 15682.99331 | DU21: 15669.70016 | DV21: 13938.01415 | DW21: 16342.2423 | DX21: 17964.0993 | DY21: 17420.82167 | DZ21: 18047.75758 | EA21: 20328.86357 | EB21: 18631.73978 | EC21: 20315.96809 | ED21: 18631.73978 | EE21: 19536.23684 | EF21: 19536.23684 | EG21: 19675.97308 | EH21: 19536.23684 | EI21: 19828.22795 | EJ21: 20704.20125 | EK21: 16497.9556 | EL21: 17769.20938 | EM21: 20310.70848 | EN21: 21387.89742 | EO21: 21666.59536
A22: 0115 | B22: Oils & Fats | E22: =SUM('[1]Item index series - Wau'!C28) -> 2.01 | F22: 100 | G22: 113.3333333 | H22: 180 | I22: 120 | J22: 120 | K22: 150 | L22: 400 | M22: 180 | N22: 160 | O22: 150 | P22: 160 | Q22: 160 | R22: 160 | S22: 200 | T22: 200 | U22: 200 | V22: 200 | W22: 220 | X22: 300 | Y22: 200 | Z22: 200 | AA22: 300 | AB22: 160 | AC22: 200 | AD22: 180 | AE22: 200 | AF22: 160 | AG22: 160 | AH22: 160 | AI22: 180 | AJ22: 170 | AK22: 176.9762419 | AL22: 193.8660907 | AM22: 190.5615551 | AN22: 170 | AO22: 176.9762419 | AP22: 180.0634249 | AQ22: 170.1775899 | AR22: 183.2410148 | AS22: 163.4693446 | AT22: 176.5327696 | AU22: 201.9534884 | AV22: 176.5327696 | AW22: 183.2410148 | AX22: 196.3044397 | AY22: 186.4186047 | AZ22: 222.4312896 | BA22: 208.3153931 | BB22: 235.5384275 | BC22: 268.6795127 | BD22: 320.758361 | BE22: 334.6657807 | BF22: 315.1362126 | BG22: 375.5003322 | BH22: 459.8325581 | BI22: 552.7459579 | BJ22: 638.261794 | BK22: 688.2693245 | BL22: 972.9275748 | BM22: 843.3222591 | BN22: 1058.147508 | BO22: 1615.627907 | BP22: 1139.54347 | BQ22: 1816.207562 | BR22: 1442.524917 | BS22: 1475.496915 | BT22: 1921.992723 | BU22: 1831.319728 | BV22: 2637.759848 | BW22: 2456.413859 | BX22: 2802.619839 | BY22: 12589.80794 | BZ22: 3379.629805 | CA22: 3459.312134 | CB22: 3374.134472 | CC22: 3459.312134 | CD22: 3305.44281 | CE22: 12306.79829 | CF22: 4006.097769 | CG22: 4129.742762 | CH22: 3970.378105 | CI22: 3912.262124 | CJ22: 5189.67715 | CK22: 6167.028243 | CL22: 6167.028243 | CM22: 4886.227318 | CN22: 4781.844864 | CO22: 4465.876353 | CP22: 3842.402775 | CQ22: 5106.276816 | CR22: 4496.908975 | CS22: 81329.54481 | CT22: 84955.00371 | CU22: 86205.44533 | CV22: 88618.79766 | CW22: 89194.00081 | CX22: 80678.49337 | CY22: 80678.49337 | CZ22: 80700 | DA22: 86638.04297 | DB22: 86987.33962 | DC22: 25000 | DD22: 18500 | DE22: 26000 | DF22: 38000 | DG22: 24000 | DH22: 10000 | DI22: 7500 | DJ22: 18000 | DK22: 24000 | DL22: 17000 | DM22: 24000 | DN22: 28000 | DO22: 28000 | DP22: 28000 | DQ22: 33000 | DR22: 60000 | DS22: 60000 | DT22: 50000 | DU22: 36000 | DV22: 40000 | DW22: 30000 | DX22: 30000 | DY22: 30000 | DZ22: 60000 | EA22: 60000 | EB22: 30000 | EC22: 29674.9226 | ED22: 60000 | EE22: 90000 | EF22: 90000 | EG22: 90000 | EH22: 90000 | EI22: 90000 | EJ22: 90000 | EK22: 20000 | EL22: 45000 | EM22: 75000 | EN22: 100000 | EO22: 80000
A23: 0116 | B23: Fruits | E23: =SUM('[1]Item index series - Wau'!C29:C33) -> 1.83 | F23: 100 | G23: 134.0571429 | H23: 178.3648466 | I23: 179.3699897 | J23: 207.2221166 | K23: 258.2175378 | L23: 317.1831063 | M23: 306.4470949 | N23: 375.1147976 | O23: 292.4952813 | P23: 316.0813375 | Q23: 936.9090426 | R23: 972.7264884 | S23: 1012.183954 | T23: 1006.423551 | U23: 645.1843335 | V23: 674.6035606 | W23: 1509.59135 | X23: 542.0412981 | Y23: 978.0634659 | Z23: 297.3323398 | AA23: 323.6928045 | AB23: 308.3224209 | AC23: 680.9930444 | AD23: 565.212846 | AE23: 578.8106584 | AF23: 572.0809646 | AG23: 1043.88949 | AH23: 1247.30368 | AI23: 434.3646999 | AJ23: 441.356498 | AK23: 566.8254806 | AL23: 516.4941621 | AM23: 426.9900553 | AN23: 362.4784684 | AO23: 435.6071421 | AP23: 549.5245385 | AQ23: 562.0885413 | AR23: 553.3224927 | AS23: 467.4516916 | AT23: 438.069194 | AU23: 1196.62921 | AV23: 461.4422466 | AW23: 325.1575786 | AX23: 367.7454641 | AY23: 359.9166265 | AZ23: 310.9101785 | BA23: 363.1145348 | BB23: 509.678777 | BC23: 635.7327015 | BD23: 679.9247953 | BE23: 1196.27425 | BF23: 1225.833768 | BG23: 1083.841567 | BH23: 885.4590633 | BI23: 1051.680203 | BJ23: 1050.123095 | BK23: 1675.995396 | BL23: 2132.382699 | BM23: 1891.098357 | BN23: 1884.235357 | BO23: 4871.488405 | BP23: 557.6669682 | BQ23: 10723.82555 | BR23: 9452.524618 | BS23: 20458.0313 | BT23: 36457.90584 | BU23: 24378.09016 | BV23: 32607.31409 | BW23: 30016.2875 | BX23: 26673.37764 | BY23: 31088.88912 | BZ23: 32291.01257 | CA23: 35934.9525 | CB23: 45276.71694 | CC23: 57404.33166 | CD23: 45261.41154 | CE23: 38811.12528 | CF23: 38653.42426 | CG23: 51244.37197 | CH23: 41702.75796 | CI23: 42682.10654 | CJ23: 83517.01432 | CK23: 47857.58517 | CL23: 47857.58517 | CM23: 48513.82674 | CN23: 58821.60879 | CO23: 53950.14586 | CP23: 60318.67197 | CQ23: 58107.64781 | CR23: 65488.79073 | CS23: 208962.1689 | CT23: 224319.0075 | CU23: 237532.6456 | CV23: 262530.1852 | CW23: 265026.5458 | CX23: 266727.6284 | CY23: 272985.7569 | CZ23: 293488.3446 | DA23: 300966.0125 | DB23: 302380.5944 | DC23: 107443.4732 | DD23: 122477.3438 | DE23: 171721.2342 | DF23: 160856.5073 | DG23: 61865.91916 | DH23: 65696.06522 | DI23: 138200.6755 | DJ23: 152124.3425 | DK23: 198303.4411 | DL23: 228649.7146 | DM23: 241298.4918 | DN23: 320382.1814 | DO23: 243783.3706 | DP23: 83740.3854 | DQ23: 48427.20375 | DR23: 244153.3716 | DS23: 244331.0166 | DT23: 22704.10233 | DU23: 36272.54227 | DV23: 64666.67601 | DW23: 34518.79547 | DX23: 446063.9227 | DY23: 462878.5023 | DZ23: 491893.1043 | EA23: 418901.1521 | EB23: 13502.07324 | EC23: 11806.03095 | ED23: 27419.81386 | EE23: 191356.3144 | EF23: 423611.0152 | EG23: 186672.8172 | EH23: 26152.12227 | EI23: 30128.43922 | EJ23: 21759.79811 | EK23: 17156.25299 | EL23: 20666.29831 | EM23: 17097.96015 | EN23: 12965.81428 | EO23: 18499.75607
A24: 0117 | B24: Vegetables | E24: =SUM('[1]Item index series - Wau'!C34:C45) -> 12.68 | F24: 100 | G24: 139.3090361 | H24: 207.9365763 | I24: 272.7518183 | J24: 302.5075861 | K24: 253.5247356 | L24: 236.5821586 | M24: 210.790055 | N24: 215.8631208 | O24: 187.1513852 | P24: 196.142968 | Q24: 514.8962748 | R24: 266.5164013 | S24: 395.5181183 | T24: 397.0584151 | U24: 507.7320241 | V24: 514.6372838 | W24: 609.5910244 | X24: 279.5787058 | Y24: 252.9436999 | Z24: 456.0038339 | AA24: 326.3521446 | AB24: 304.7540225 | AC24: 266.0199882 | AD24: 331.5216398 | AE24: 383.2067488 | AF24: 251.9723453 | AG24: 286.7991958 | AH24: 233.3862387 | AI24: 301.6348118 | AJ24: 255.294373 | AK24: 283.356081 | AL24: 281.1029484 | AM24: 297.9475504 | AN24: 237.6647857 | AO24: 224.0546909 | AP24: 239.9187473 | AQ24: 231.0919248 | AR24: 254.6838505 | AS24: 225.1418255 | AT24: 221.1634295 | AU24: 344.8966504 | AV24: 329.6090222 | AW24: 337.6345822 | AX24: 363.5769554 | AY24: 397.806908 | AZ24: 381.149071 | BA24: 466.1411606 | BB24: 683.7116801 | BC24: 454.4833371 | BD24: 466.1733099 | BE24: 563.3647901 | BF24: 685.3535936 | BG24: 659.6361282 | BH24: 758.4199994 | BI24: 963.5681591 | BJ24: 1231.163972 | BK24: 1408.955777 | BL24: 1332.932732 | BM24: 1463.944586 | BN24: 1709.576798 | BO24: 3568.095838 | BP24: 1419.840197 | BQ24: 6628.723854 | BR24: 3645.633302 | BS24: 3138.630738 | BT24: 4532.734422 | BU24: 5141.807176 | BV24: 5812.254951 | BW24: 5845.002348 | BX24: 7255.64445 | BY24: 7063.041505 | BZ24: 6976.908708 | CA24: 7483.199719 | CB24: 5558.863568 | CC24: 8443.983692 | CD24: 5929.463472 | CE24: 7476.635144 | CF24: 15712.3735 | CG24: 16407.61765 | CH24: 16673.54464 | CI24: 16801.75083 | CJ24: 23428.30187 | CK24: 17175.24442 | CL24: 17175.24442 | CM24: 14758.35053 | CN24: 12692.27728 | CO24: 12848.89961 | CP24: 20604.12308 | CQ24: 13565.38902 | CR24: 17624.23797 | CS24: 6165.134466 | CT24: 7815.909003 | CU24: 9197.262336 | CV24: 9622.198944 | CW24: 9806.986177 | CX24: 12642.38973 | CY24: 61415.39195 | CZ24: 62491.61471 | DA24: 65520.2864 | DB24: 111074.4654 | DC24: 140245.8732 | DD24: 109191.8148 | DE24: 208587.7414 | DF24: 216783.9677 | DG24: 143640.815 | DH24: 71958.07754 | DI24: 72637.35224 | DJ24: 40232.62693 | DK24: 75270.94382 | DL24: 69484.30182 | DM24: 131225.3721 | DN24: 118099.3809 | DO24: 152220.5321 | DP24: 101725.9632 | DQ24: 110569.3212 | DR24: 148249.4782 | DS24: 148496.7724 | DT24: 54753.93821 | DU24: 22564.49674 | DV24: 21377.94975 | DW24: 23294.10512 | DX24: 29966.58625 | DY24: 146783.0681 | DZ24: 142219.1992 | EA24: 172173.717 | EB24: 25686.43318 | EC24: 25746.13857 | ED24: 20401.9593 | EE24: 22022.25592 | EF24: 141183.1286 | EG24: 142978.9515 | EH24: 108516.7966 | EI24: 25294.2824 | EJ24: 24197.65092 | EK24: 26139.32054 | EL24: 21850.83532 | EM24: 21547.76152 | EN24: 31783.11813 | EO24: 28548.45616
A25: 0118 | B25: Sugar/ jam /honey/confs. | E25: =SUM('[1]Item index series - Wau'!C46:C47) -> 6.22 | F25: 100 | G25: 107.4577573 | H25: 200.3048564 | I25: 200.3048564 | J25: 209.1575092 | K25: 205.0206782 | L25: 204.4416873 | M25: 200.8838473 | N25: 171.7523337 | O25: 126.4208909 | P25: 158.9365473 | Q25: 183.7575328 | R25: 173.5743826 | S25: 163.9020322 | T25: 142.6787191 | U25: 200.5943519 | V25: 204.7311828 | W25: 184.3365237 | X25: 188.7628501 | Y25: 205.3101737 | Z25: 192.3206901 | AA25: 188.4733546 | AB25: 200.8838473 | AC25: 205.0206782 | AD25: 205.0206782 | AE25: 217.7206664 | AF25: 184.6260191 | AG25: 168.235471 | AH25: 168.3681909 | AI25: 168.0786955 | AJ25: 188.4733546 | AK25: 173.7706001 | AL25: 205.420456 | AM25: 195.6714696 | AN25: 169.0775566 | AO25: 161.9203115 | AP25: 169.0775566 | AQ25: 169.3814099 | AR25: 159.0205878 | AS25: 171.5900358 | AT25: 188.7085881 | AU25: 203.9771682 | AV25: 181.9234578 | AW25: 182.5311646 | AX25: 181.9972508 | AY25: 232.7465602 | AZ25: 250.0140539 | BA25: 231.2582074 | BB25: 297.6240648 | BC25: 275.4609113 | BD25: 330.4392816 | BE25: 342.7355602 | BF25: 373.3647009 | BG25: 437.5911288 | BH25: 477.5585069 | BI25: 497.388981 | BJ25: 772.1232349 | BK25: 846.1304666 | BL25: 937.8128583 | BM25: 854.9853063 | BN25: 1080.013547 | BO25: 1900.77533 | BP25: 1201.422579 | BQ25: 2176.828551 | BR25: 1845.030222 | BS25: 1795.96571 | BT25: 2274.670175 | BU25: 2188.248562 | BV25: 2652.493168 | BW25: 2752.585677 | BX25: 3248.42961 | BY25: 3328.650228 | BZ25: 3304.433088 | CA25: 3380.506093 | CB25: 3484.531918 | CC25: 3760.738225 | CD25: 3500.187853 | CE25: 3454.426173 | CF25: 3707.111215 | CG25: 3952.693978 | CH25: 4669.848815 | CI25: 5729.849474 | CJ25: 6033.917889 | CK25: 7553.928684 | CL25: 7553.928684 | CM25: 5769.747761 | CN25: 5901.85227 | CO25: 5418.41099 | CP25: 5649.956793 | CQ25: 5619.319152 | CR25: 5617.386337 | CS25: 9270.092026 | CT25: 9933.605841 | CU25: 11872.31866 | CV25: 11994.46503 | CW25: 12034.56919 | CX25: 12115.48057 | CY25: 12491.55146 | CZ25: 12503.13128 | DA25: 12503.13128 | DB25: 12503.13128 | DC25: 5245.46851 | DD25: 8345.182763 | DE25: 9630.509276 | DF25: 7975.776911 | DG25: 12566.82028 | DH25: 7538.934184 | DI25: 8389.460002 | DJ25: 7975.776911 | DK25: 8412.619638 | DL25: 8926.409075 | DM25: 10954.29517 | DN25: 9216.826185 | DO25: 10044.19237 | DP25: 12228.406 | DQ25: 5907.361456 | DR25: 9117.342197 | DS25: 16778.92 | DT25: 10987.35673 | DU25: 15124.18764 | DV25: 15124.18764 | DW25: 15124.18764 | DX25: 15124.18764 | DY25: 15124.18764 | DZ25: 15754.69692 | EA25: 15963.13364 | EB25: 15951.55382 | EC25: 11867.29416 | ED25: 15951.55382 | EE25: 15951.55382 | EF25: 16778.92 | EG25: 16778.92 | EH25: 16778.92 | EI25: 20502.06782 | EJ25: 25081.53137 | EK25: 25966.79664 | EL25: 25966.79664 | EM25: 22686.28146 | EN25: 25966.79664 | EO25: 29305.21092
A26: 0119 | B26: Food products n.e.c. | E26: =SUM('[1]Item index series - Wau'!C48:C51) -> 1.27 | F26: 100 | G26: 89.32291667 | H26: 172.8304681 | I26: 163.9983394 | J26: 240.5381944 | K26: 166.0816727 | L26: 138.1597222 | M26: 96.56569535 | N26: 108.2291086 | O26: 89.86805556 | P26: 126.4756944 | Q26: 174.8845997 | R26: 182.2395833 | S26: 179.0761539 | T26: 176.829594 | U26: 197.1404915 | V26: 146.343254 | W26: 171.6145833 | X26: 152.3826058 | Y26: 204.2943219 | Z26: 173.1752165 | AA26: 173.1481481 | AB26: 161.5104167 | AC26: 160.4340982 | AD26: 154.3402778 | AE26: 153.0594758 | AF26: 161.6372283 | AG26: 170.4583333 | AH26: 141.1805556 | AI26: 151.8402778 | AJ26: 214.4791667 | AK26: 198.0778363 | AL26: 221.0551999 | AM26: 203.1135511 | AN26: 214.8976928 | AO26: 194.2821859 | AP26: 255.5882861 | AQ26: 233.8618932 | AR26: 275.5688895 | AS26: 216.3431523 | AT26: 282.37539 | AU26: 323.1553944 | AV26: 253.7333229 | AW26: 289.3072954 | AX26: 219.5351171 | AY26: 264.1866 | AZ26: 321.7215825 | BA26: 332.9872911 | BB26: 393.396231 | BC26: 316.8562429 | BD26: 367.2251499 | BE26: 420.8395084 | BF26: 438.7161192 | BG26: 529.7569753 | BH26: 536.4396829 | BI26: 571.4305476 | BJ26: 681.6899628 | BK26: 852.057292 | BL26: 1022.169948 | BM26: 4510.123837 | BN26: 1184.638854 | BO26: 1883.667542 | BP26: 1597.984595 | BQ26: 2264.066073 | BR26: 2271.824219 | BS26: 2300.09332 | BT26: 2264.100143 | BU26: 2195.065738 | BV26: 2598.513112 | BW26: 2733.77917 | BX26: 3164.980862 | BY26: 3369.637769 | BZ26: 3463.492094 | CA26: 3448.186092 | CB26: 3843.433193 | CC26: 3655.105143 | CD26: 4020.143236 | CE26: 4062.429999 | CF26: 4658.279161 | CG26: 4489.240959 | CH26: 4747.176993 | CI26: 4644.942325 | CJ26: 4583.935682 | CK26: 5879.846401 | CL26: 5879.846401 | CM26: 4525.664674 | CN26: 5206.902283 | CO26: 4531.164133 | CP26: 4116.898951 | CQ26: 4616.285064 | CR26: 4913.593535 | CS26: 25818.00371 | CT26: 33556.35499 | CU26: 36815.57991 | CV26: 40161.82191 | CW26: 40424.08404 | CX26: 40655.02186 | CY26: 46034.63159 | CZ26: 46507.28623 | DA26: 46667.53472 | DB26: 85893.22917 | DC26: 181256.0764 | DD26: 1801902.654 | DE26: 124939.2361 | DF26: 183237.8472 | DG26: 140622.5198 | DH26: 1567855.903 | DI26: 1514227.431 | DJ26: 180017.3611 | DK26: 560924.4792 | DL26: 1038676.215 | DM26: 2507356.771 | DN26: 1506618.924 | DO26: 234335.9375 | DP26: 31373.8952 | DQ26: 78689.23611 | DR26: 67107.99706 | DS26: 67315.51635 | DT26: 26467.01389 | DU26: 21788.19444 | DV26: 19166.66667 | DW26: 53434.44608 | DX26: 121833.6362 | DY26: 677760.4167 | DZ26: 678962.6736 | EA26: 404806.3244 | EB26: 25429.6875 | EC26: 25061.95768 | ED26: 56809.89583 | EE26: 1519309.896 | EF26: 44309.89583 | EG26: 44309.89583 | EH26: 64100.11574 | EI26: 63980.37673 | EJ26: 76379.83792 | EK26: 102406.8813 | EL26: 42966.65636 | EM26: 35197.63554 | EN26: 39041.7171 | EO26: 35060.76389

Sheet Group index series - Wau
B1: Aggregate Consumer Price Index Series Wau | C1: Weights from June 2011-
A2: Coicop | B2: Item description | C2: Weight Coicop 3 | D2: Weight Coicop 2 | E2: Weight Coicop 4 | F2: June 2011 | G2: July 2011 | H2: Aug 2011 | I2: Sep 2011 | J2: Oct 2011 | K2: Nov 2011 | L2: Dec 2011 | M2: Jan 2012 | N2: Feb 2012 | O2: Mar 2012 | P2: Apr 2012 | Q2: May 2012 | R2: June 2012 | S2: July 2012 | T2: Aug 2012 | U2: Sep 2012 | V2: Oct 2012 | W2: Nov 2012 | X2: Dec 2012 | Y2: Jan 2013 | Z2: Feb 2013 | AA2: Mar 2013 | AB2: Apr 2013 | AC2: May 2013 | AD2: June 2013 | AE2: July 2013 | AF2: Aug 2013 | AG2: Sep 2013 | AH2: Oct 2013 | AI2: Nov 2013 | AJ2: Dec 2013 | AK2: Jan 2014 | AL2: Feb 2014 | AM2: Mar 2014 | AN2: Apr 2014 | AO2: May 2014 | AP2: June 2014 | AQ2: July 2014 | AR2: Aug 2014 | AS2: Sep 2014 | AT2: Oct 2014 | AU2: Nov 2014 | AV2: Dec 2014 | AW2: Jan 2015 | AX2: Feb 2015 | AY2: Mar 2015 | AZ2: Apr 2015 | BA2: May 2015 | BB2: Jun 2015 | BC2: July 2015 | BD2: Aug 2015 | BE2: Sep 2015 | BF2: Oct 2015 | BG2: Nov 2015 | BH2: Dec 2015 | BI2: Jan 2016 | BJ2: Feb 2016 | BK2: Mar 2016 | BL2: Apr 2016 | BM2: May 2016 | BN2: Jun 2016 | BO2: July 2016 | BP2: Aug 2016 | BQ2: Sep 2016 | BR2: Oct 2016 | BS2: Nov 2016 | BT2: Dec 2016 | BU2: Jan 2017 | BV2: Feb 2017 | BW2: Mar 2017 | BX2: Apr 2017 | BY2: May 2017 | BZ2: Jun 2017 | CA2: July 2017 | CB2: Aug 2017 | CC2: Sep 2017 | CD2: Oct 2017 | CE2: Nov 2017 | CF2: Dec 2017 | CG2: Jan 2018 | CH2: Feb 2018 | CI2: Mar 2018 | CJ2: Apr 2018 | CK2: May 2018 | CL2: Jun 2018 | CM2: July 2018 | CN2: Aug 2018 | CO2: Sep 2018 | CP2: Oct 2018 | CQ2: Nov 2018 | CR2: Dec 2018 | CS2: Jan 2019 | CT2: Feb 2019 | CU2: Mar 2019 | CV2: Apr 2019 | CW2: May 2019 | CX2: Jun 2019 | CY2: July 2019 | CZ2: Aug 2019 | DA2: Sep 2019 | DB2: Oct 2019 | DC2: Nov 2019 | DD2: Dec 2019 | DE2: Jan 2020 | DF2: Feb 2020 | DG2: Mar 2020 | DH2: Apr 2020 | DI2: May 2020 | DJ2: June 2020 | DK2: July 2020 | DL2: Aug 2020 | DM2: Sep 2020 | DN2: Oct 2020 | DO2: Nov 2020 | DP2: Dec 2020 | DQ2: Jan 2021 | DR2: Feb 2021 | DS2: Mar 2021 | DT2: Apr 2021 | DU2: May 2021 | DV2: June 2021 | DW2: July 2021 | DX2: Aug 2021 | DY2: Sep 2021 | DZ2: Oct 2021 | EA2: Nov 2021 | EB2: Dec 2021 | EC2: Jan 2022 | ED2: Feb 2022 | EE2: Mar 2022 | EF2: Apr 2022 | EG2: May 2022 | EH2: June 2022 | EI2: July 2022 | EJ2: Aug 2022 | EK2: Sep 2022 | EL2: Oct 2022 | EM2: Nov 2022 | EN2: Dec 2022 | EO2: Jan 2023 | EP2: Feb 2023 | EQ2: Mar 2023 | ER2: Apr 2023 | ES2: May 2023 | ET2: June 2023 | EU2: July 2023 | EV2: Aug 2023 | EW2: Sep 2023 | EX2: Oct 2023 | EY2: Nov 2023 | EZ2: Dec 2023 | FA2: Jan 2024 | FB2: Feb 2024 | FC2: Mar 2024 | FD2: Apr 2024 | FE2: May 2024 | FF2: June 2024 | FG2: July 2024 | FH2: Aug 2024 | FI2: Sep 2024 | FJ2: Oct 2024 | FK2: Nov 2024 | FL2: Dec 2024
B3: All item index | F3: 100 | G3: 103.8585461 | H3: 118.7785757 | I3: 146.7635897 | J3: 151.323732 | K3: 149.9121445 | L3: 138.5238845 | M3: 145.5364583 | N3: 132.0435943 | O3: 134.2569604 | P3: 136.7716127 | Q3: 165.9880955 | R3: 163.2851201 | S3: 162.8255608 | T3: 164.0348322 | U3: 165.1842814 | V3: 151.6484312 | W3: 158.792383 | X3: 161.2166164 | Y3: 152.4329623 | Z3: 167.5604504 | AA3: 155.393891 | AB3: 153.6759378 | AC3: 150.56949 | AD3: 144.2210102 | AE3: 144.9951548 | AF3: 139.7850158 | AG3: 137.1834131 | AH3: 136.5390616 | AI3: 144.9002099 | AJ3: 130.7776841 | AK3: 144.2192821 | AL3: 140.0596966 | AM3: 136.2606906 | AN3: 129.8798317 | AO3: 124.5841808 | AP3: 127.1118738 | AQ3: 133.2575139 | AR3: 141.2510511 | AS3: 133.4167456 | AT3: 136.6104214 | AU3: 173.8530405 | AV3: 170.8000085 | AW3: 145.711277 | AX3: 152.1304569 | AY3: 156.8916229 | AZ3: 171.267213 | BA3: 204.1045285 | BB3: 249.6892903 | BC3: 247.1961761 | BD3: 264.6960193 | BE3: 290.8919247 | BF3: 297.19657 | BG3: 319.7460491 | BH3: 367.2711406 | BI3: 397.3036079 | BJ3: 477.5226188 | BK3: 557.6738086 | BL3: 621.3634424 | BM3: 635.3228877 | BN3: 661.115327 | BO3: 1192.034144 | BP3: 1519.156829 | BQ3: 1633.36711 | BR3: 1550.997258 | BS3: 1471.773098 | BT3: 1574.056447 | BU3: 1604.814223 | BV3: 1890.141969 | BW3: 1938.136985 | BX3: 2091.268884 | BY3: 2625.732242 | BZ3: 2717.680752 | CA3: 2809.571105 | CB3: 3071.055298 | CC3: 3414.071315 | CD3: 3381.330751 | CE3: 3522.907501 | CF3: 3690.21934 | CG3: 3998.441437 | CH3: 3650.291871 | CI3: 5474.914293 | CJ3: 5745.277739 | CK3: 7004.018201 | CL3: 6424.770592 | CM3: 5891.844047 | CN3: 5472.511001 | CO3: 5345.74123 | CP3: 5151.811813 | CQ3: 5339.344812 | CR3: 5520.335186 | CS3: 7908.243884 | CT3: 10358.27486 | CU3: 12209.00124 | CV3: 12866.54926 | CW3: 13099.28948 | CX3: 13446.17767 | CY3: 13526.16781 | CZ3: 13790.13294 | DA3: 14011.73527 | DB3: 14336.20208 | DC3: 6603.404417 | DD3: 7269.400806 | DE3: 8413.757175 | DF3: 9767.186524 | DG3: 12782.13274 | DH3: 11711.19527 | DI3: 9776.43304 | DJ3: 7572.138699 | DK3: 9514.891676 | DL3: 11090.16429 | DM3: 10436.71573 | DN3: 10497.43838 | DO3: 11253.32471 | DP3: 10883.30859 | DQ3: 11314.57424 | DR3: 11749.45974 | DS3: 12197.41335 | DT3: 13035.46822 | DU3: 14864.4991 | DV3: 10954.35767 | DW3: 10667.06436 | DX3: 10457.81582 | DY3: 10495.38 | DZ3: 10178.16443 | EA3: 11494.33795 | EB3: 11208.82893 | EC3: 13785.68825 | ED3: 11507.48499 | EE3: 13654.15986 | EF3: 12212.03104 | EG3: 12717.90368 | EH3: 13575.85453 | EI3: 15011.88332 | EJ3: 16441.76736 | EK3: 16116.80577 | EL3: 15376.30365 | EM3: 14432.03561 | EN3: 14713.62484 | EO3: 15785.68725
A4: 01 | B4: Food and Non-alcholic beverages | D4: 66.91 | F4: 100 | G4: 104.9896221 | H4: 108.8482102 | I4: 145.8786167 | J4: 154.3571202 | K4: 149.8607959 | L4: 132.0485226 | M4: 145.8124662 | N4: 128.3220949 | O4: 131.285558 | P4: 134.6890963 | Q4: 169.5177172 | R4: 162.3226884 | S4: 151.221981 | T4: 155.9234696 | U4: 163.1637971 | V4: 143.7055801 | W4: 145.8428197 | X4: 147.0041251 | Y4: 136.5715522 | Z4: 142.7855493 | AA4: 147.2194602 | AB4: 145.4287518 | AC4: 138.9402508 | AD4: 133.900091 | AE4: 134.8664465 | AF4: 129.2131453 | AG4: 128.4871637 | AH4: 121.2921841 | AI4: 132.1405819 | AJ4: 116.1712316 | AK4: 130.6868848 | AL4: 131.0493729 | AM4: 123.2638146 | AN4: 117.9036683 | AO4: 114.7997498 | AP4: 118.8502096 | AQ4: 127.7152839 | AR4: 136.1818584 | AS4: 127.7527584 | AT4: 124.6341496 | AU4: 163.3916735 | AV4: 175.1453707 | AW4: 139.8250735 | AX4: 146.9326073 | AY4: 152.9188658 | AZ4: 162.1284821 | BA4: 207.2181516 | BB4: 262.2279468 | BC4: 256.4332446 | BD4: 273.4084085 | BE4: 306.08515 | BF4: 300.4806109 | BG4: 311.5644592 | BH4: 360.4768995 | BI4: 398.4266558 | BJ4: 500.2272901 | BK4: 580.7006039 | BL4: 649.8947437 | BM4: 661.2767231 | BN4: 689.8761834 | BO4: 1332.987683 | BP4: 1633.301484 | BQ4: 1654.456257 | BR4: 1508.625762 | BS4: 1484.347296 | BT4: 1558.465475 | BU4: 1562.466304 | BV4: 1913.429745 | BW4: 1943.695887 | BX4: 2125.914227 | BY4: 2693.546529 | BZ4: 2734.423273 | CA4: 2880.523241 | CB4: 3130.947444 | CC4: 3089.194119 | CD4: 3125.291059 | CE4: 3244.40197 | CF4: 3429.490474 | CG4: 3778.580478 | CH4: 3358.873705 | CI4: 3313.260889 | CJ4: 4816.815126 | CK4: 5925.306018 | CL4: 5407.023516 | CM4: 5550.485028 | CN4: 5306.151146 | CO4: 5060.964954 | CP4: 4561.778965 | CQ4: 4898.846099 | CR4: 4815.05645 | CS4: 8723.544784 | CT4: 12258.74588 | CU4: 14401.25647 | CV4: 15129.69552 | CW4: 15503.23049 | CX4: 15705.57242 | CY4: 15812.70449 | CZ4: 16070.43273 | DA4: 16305.51755 | DB4: 16703.49139 | DC4: 6164.418455 | DD4: 6971.243203 | DE4: 8895.597283 | DF4: 10152.38814 | DG4: 12321.34791 | DH4: 13032.21731 | DI4: 9676.638348 | DJ4: 7092.964804 | DK4: 8120.82282 | DL4: 10086.99122 | DM4: 10061.55428 | DN4: 9786.871475 | DO4: 9701.704314 | DP4: 10429.6777 | DQ4: 10882.95274 | DR4: 12284.76042 | DS4: 12488.03751 | DT4: 11741.8651 | DU4: 11982.78951 | DV4: 10741.96324 | DW4: 10466.18999 | DX4: 9745.94062 | DY4: 10123.84279 | DZ4: 9990.737095 | EA4: 11434.42232 | EB4: 11054.80493 | EC4: 13275.87511 | ED4: 10940.52295 | EE4: 10875.41512 | EF4: 12089.37231 | EG4: 12527.78824 | EH4: 12873.80393 | EI4: 13843.9729 | EJ4: 16086.92975 | EK4: 15553.38688 | EL4: 14788.55283 | EM4: 13298.16422 | EN4: 13137.75907 | EO4: 15199.81224
A5: 02 | B5: Alcoholic beverages and Tobacco | D5: 3.65 | F5: 100 | G5: 108.7981083 | H5: 134.334638 | I5: 161.7318982 | J5: 190.7680501 | K5: 220.2028702 | L5: 185.151538 | M5: 228.1310151 | N5: 198.1714404 | O5: 179.8829224 | P5: 239.0401697 | Q5: 208.2420091 | R5: 244.7476344 | S5: 248.3197447 | T5: 234.8987236 | U5: 219.9971417 | V5: 224.6195408 | W5: 288.6957641 | X5: 293.2097847 | Y5: 395.7848562 | Z5: 356.7862428 | AA5: 235.5905827 | AB5: 244.9170582 | AC5: 229.334374 | AD5: 192.6581866 | AE5: 233.6876009 | AF5: 255.5734942 | AG5: 266.5410959 | AH5: 249.2161339 | AI5: 297.9223744 | AJ5: 257.0091324 | AK5: 284.9964875 | AL5: 268.0970405 | AM5: 292.6266998 | AN5: 255.9777062 | AO5: 233.5850679 | AP5: 266.917067 | AQ5: 225.870729 | AR5: 274.3476843 | AS5: 244.3455099 | AT5: 226.950424 | AU5: 352.5781921 | AV5: 292.7900678 | AW5: 248.4105734 | AX5: 256.5018151 | AY5: 241.5774408 | AZ5: 357.786768 | BA5: 370.4556483 | BB5: 470.5308699 | BC5: 420.4163949 | BD5: 478.3102514 | BE5: 552.9076973 | BF5: 522.2570124 | BG5: 733.455288 | BH5: 749.5219278 | BI5: 782.728607 | BJ5: 774.4357469 | BK5: 1014.086906 | BL5: 1053.666014 | BM5: 1123.625788 | BN5: 1189.332645 | BO5: 1655.169602 | BP5: 2676.679713 | BQ5: 3238.266061 | BR5: 3341.408458 | BS5: 2505.507552 | BT5: 2962.934877 | BU5: 3421.722288 | BV5: 3632.07219 | BW5: 4123.830628 | BX5: 3890.716361 | BY5: 4631.308646 | BZ5: 5074.234923 | CA5: 4630.329057 | CB5: 5529.321592 | CC5: 5649.032823 | CD5: 5593.705153 | CE5: 4969.722508 | CF5: 5426.59455 | CG5: 5151.444879 | CH5: 5780.671602 | CI5: 58706.4432 | CJ5: 32472.43444 | CK5: 35069.68668 | CL5: 27123.19868 | CM5: 7384.423387 | CN5: 6993.68627 | CO5: 7210.415308 | CP5: 7471.083228 | CQ5: 6104.174821 | CR5: 6466.340509 | CS5: 9131.451653 | CT5: 9935.551207 | CU5: 12295.74216 | CV5: 12994.53113 | CW5: 13332.43314 | CX5: 13120.31697 | CY5: 13552.52161 | CZ5: 14103.28836 | DA5: 14297.34092 | DB5: 14330.55986 | DC5: 8468.52953 | DD5: 9091.37629 | DE5: 6623.404992 | DF5: 8076.653795 | DG5: 15855.63956 | DH5: 9410.298255 | DI5: 9194.54483 | DJ5: 8270.924281 | DK5: 9150.90237 | DL5: 16022.22957 | DM5: 10342.49004 | DN5: 10282.97881 | DO5: 11258.0967 | DP5: 9225.266362 | DQ5: 10582.18194 | DR5: 8135.21974 | DS5: 8363.595813 | DT5: 17295.56802 | DU5: 20907.37117 | DV5: 11869.65546 | DW5: 12112.36138 | DX5: 12559.40405 | DY5: 11995.31929 | DZ5: 11619.73159 | EA5: 10535.93172 | EB5: 12673.93137 | EC5: 30369.92825 | ED5: 11129.70412 | EE5: 12213.19743 | EF5: 12861.75968 | EG5: 14109.85079 | EH5: 12328.78479 | EI5: 15397.1397 | EJ5: 16224.64368 | EK5: 15838.57313 | EL5: 14567.97216 | EM5: 16408.63228 | EN5: 14858.85298 | EO5: 14932.6944
A6: 03 | B6: Clothing and footwear | D6: 2.56 | F6: 100 | G6: 120.1908726 | H6: 125.839996 | I6: 130.8113098 | J6: 129.0031594 | K6: 131.0073457 | L6: 142.6512391 | M6: 124.9658811 | N6: 138.6105488 | O6: 147.748358 | P6: 135.4014142 | Q6: 140.9192456 | R6: 146.470376 | S6: 149.1192106 | T6: 141.4585149 | U6: 170.4749822 | V6: 167.138707 | W6: 175.5703394 | X6: 180.0490053 | Y6: 157.220383 | Z6: 163.7229567 | AA6: 175.9744099 | AB6: 174.9680044 | AC6: 174.9680044 | AD6: 178.9487903 | AE6: 236.6443254 | AF6: 175.7929354 | AG6: 162.1309446 | AH6: 170.8228341 | AI6: 173.7596822 | AJ6: 209.1713262 | AK6: 193.6445535 | AL6: 183.9553959 | AM6: 165.3549187 | AN6: 180.645404 | AO6: 166.627159 | AP6: 174.6230079 | AQ6: 172.4987758 | AR6: 173.0018761 | AS6: 182.7252698 | AT6: 196.3813593 | AU6: 210.2252698 | AV6: 222.8093312 | AW6: 196.8361074 | AX6: 198.9432566 | AY6: 198.5473248 | AZ6: 217.2594719 | BA6: 213.6297901 | BB6: 224.8304744 | BC6: 218.6277869 | BD6: 253.0534088 | BE6: 302.2125313 | BF6: 389.206927 | BG6: 472.5989361 | BH6: 874.394294 | BI6: 662.6141593 | BJ6: 830.1983759 | BK6: 907.0628503 | BL6: 1006.936918 | BM6: 1089.665687 | BN6: 1143.882346 | BO6: 1780.750282 | BP6: 2310.937119 | BQ6: 2512.268899 | BR6: 2462.867717 | BS6: 2686.147778 | BT6: 3363.214476 | BU6: 2904.99252 | BV6: 2751.520181 | BW6: 2859.667076 | BX6: 3148.912734 | BY6: 3697.654961 | BZ6: 4009.068486 | CA6: 4811.013118 | CB6: 4770.182804 | CC6: 4625.555613 | CD6: 4942.973736 | CE6: 5423.851746 | CF6: 6305.056219 | CG6: 6791.312386 | CH6: 6920.632954 | CI6: 5841.683829 | CJ6: 7402.292733 | CK6: 8757.988513 | CL6: 9170.043707 | CM6: 8828.403955 | CN6: 7739.162924 | CO6: 8250.084638 | CP6: 17536.6361 | CQ6: 17051.78637 | CR6: 17952.12076 | CS6: 7766.650032 | CT6: 8556.413068 | CU6: 9154.583445 | CV6: 9350.526779 | CW6: 9653.181128 | CX6: 9748.754147 | CY6: 9852.422062 | CZ6: 9971.963328 | DA6: 10230.62294 | DB6: 10477.68769 | DC6: 9291.523162 | DD6: 10944.32115 | DE6: 9323.324044 | DF6: 15264.71741 | DG6: 14619.17855 | DH6: 15552.71168 | DI6: 16052.71168 | DJ6: 9587.170174 | DK6: 11156.24531 | DL6: 10196.73759 | DM6: 11975.77381 | DN6: 11860.21845 | DO6: 13561.88527 | DP6: 15113.35125 | DQ6: 12584.10796 | DR6: 14477.25747 | DS6: 15845.66666 | DT6: 16778.65945 | DU6: 14551.8281 | DV6: 13005.96481 | DW6: 15570.9448 | DX6: 16909.73643 | DY6: 18420.38124 | DZ6: 17671.0169 | EA6: 18887.54302 | EB6: 16746.34928 | EC6: 17507.30482 | ED6: 18820.11774 | EE6: 13193.97352 | EF6: 15148.16308 | EG6: 14972.67704 | EH6: 17913.84783 | EI6: 16875.39537 | EJ6: 19898.68307 | EK6: 16358.82031 | EL6: 15862.61615 | EM6: 20381.20715 | EN6: 21411.15434 | EO6: 25603.00574
A7: 04 | B7: Housing, Water, Electricity, Gas and other fuel | D7: 3.95 | F7: 100 | G7: 102.3926213 | H7: 103.7348643 | I7: 98.86367764 | J7: 103.3152067 | K7: 83.83665647 | L7: 83.15601952 | M7: 81.58705496 | N7: 84.19613892 | O7: 69.17297856 | P7: 66.23610031 | Q7: 84.04241774 | R7: 78.71025825 | S7: 207.5821679 | T7: 189.2200365 | U7: 81.39256686 | V7: 81.14348471 | W7: 73.44298713 | X7: 79.94616289 | Y7: 67.95328946 | Z7: 70.72336284 | AA7: 76.17354564 | AB7: 77.68144827 | AC7: 72.64861399 | AD7: 73.44187285 | AE7: 69.98617959 | AF7: 65.52162637 | AG7: 71.49214198 | AH7: 150.8415672 | AI7: 67.707559 | AJ7: 58.49624972 | AK7: 63.11073171 | AL7: 61.94928577 | AM7: 60.96225295 | AN7: 70.0337399 | AO7: 73.74925227 | AP7: 74.86904525 | AQ7: 79.04300371 | AR7: 74.05623286 | AS7: 81.40189927 | AT7: 84.99240135 | AU7: 94.08826022 | AV7: 79.40193733 | AW7: 73.23669039 | AX7: 81.00202391 | AY7: 77.35505885 | AZ7: 88.85757717 | BA7: 107.574886 | BB7: 125.4608884 | BC7: 121.6241497 | BD7: 117.6542792 | BE7: 119.8905063 | BF7: 197.7069686 | BG7: 172.9697079 | BH7: 163.0289051 | BI7: 181.441064 | BJ7: 223.6330272 | BK7: 277.6859177 | BL7: 299.0160264 | BM7: 302.0762946 | BN7: 348.195768 | BO7: 552.4470323 | BP7: 801.9246641 | BQ7: 1051.521694 | BR7: 1065.737945 | BS7: 822.8161554 | BT7: 680.0697026 | BU7: 646.2455642 | BV7: 865.6406181 | BW7: 1019.199915 | BX7: 1050.084055 | BY7: 1391.888242 | BZ7: 1522.751066 | CA7: 1821.796791 | CB7: 1801.850023 | CC7: 2908.100706 | CD7: 3141.056022 | CE7: 3112.294384 | CF7: 2448.948101 | CG7: 2696.428938 | CH7: 1863.828707 | CI7: 2286.522378 | CJ7: 1670.94883 | CK7: 4202.513865 | CL7: 4087.392765 | CM7: 3611.232619 | CN7: 3736.395419 | CO7: 3804.515717 | CP7: 3422.023933 | CQ7: 3046.344393 | CR7: 2976.509493 | CS7: 2389.19357 | CT7: 2730.92809 | CU7: 2853.422899 | CV7: 4010.581371 | CW7: 4195.928351 | CX7: 4451.287001 | CY7: 4857.875767 | CZ7: 4900.75548 | DA7: 4964.230174 | DB7: 4986.416472 | DC7: 3775.703076 | DD7: 4202.616537 | DE7: 3546.217616 | DF7: 3610.668319 | DG7: 29743.80311 | DH7: 4441.022649 | DI7: 6171.134542 | DJ7: 3602.354454 | DK7: 4773.729618 | DL7: 3708.001213 | DM7: 4465.913316 | DN7: 5561.282589 | DO7: 5089.689096 | DP7: 4028.679518 | DQ7: 4332.144872 | DR7: 12359.81831 | DS7: 12422.24299 | DT7: 6053.913232 | DU7: 7639.420708 | DV7: 5401.316826 | DW7: 4909.44921 | DX7: 5139.304458 | DY7: 5097.038069 | DZ7: 4803.069779 | EA7: 4576.69795 | EB7: 4371.880049 | EC7: 5904.802758 | ED7: 6137.27717 | EE7: 6204.916788 | EF7: 5135.355192 | EG7: 5610.408485 | EH7: 5893.41211 | EI7: 7263.957628 | EJ7: 7070.741667 | EK7: 8259.742291 | EL7: 8524.434218 | EM7: 6960.275303 | EN7: 7702.06168 | EO7: 7175.458208
A8: 05 | B8: Furnishings, household equipment and routine household maintenance | D8: 4.26 | F8: 100 | G8: 110.5788988 | H8: 280.0743767 | I8: 335.6679368 | J8: 287.8374296 | K8: 239.3124263 | L8: 199.4827825 | M8: 213.5161552 | N8: 161.1181463 | O8: 222.9570117 | P8: 180.3967415 | Q8: 276.385512 | R8: 326.5951136 | S8: 345.9429087 | T8: 340.3890274 | U8: 338.0104357 | V8: 312.7841141 | W8: 336.8791542 | X8: 357.5068515 | Y8: 294.8682323 | Z8: 569.7482174 | AA8: 305.0929137 | AB8: 332.3011128 | AC8: 373.2470395 | AD8: 291.747261 | AE8: 290.2337979 | AF8: 284.9077175 | AG8: 288.8711601 | AH8: 290.3541138 | AI8: 288.7351283 | AJ8: 283.8007376 | AK8: 290.604464 | AL8: 283.9688422 | AM8: 288.9514593 | AN8: 269.2981412 | AO8: 213.397942 | AP8: 159.6056897 | AQ8: 166.6632917 | AR8: 173.3434171 | AS8: 162.7810667 | AT8: 233.7774745 | AU8: 322.2883709 | AV8: 208.5486227 | AW8: 208.8218452 | AX8: 210.2687317 | AY8: 223.2041726 | AZ8: 253.5930527 | BA8: 272.8606396 | BB8: 335.2727925 | BC8: 355.2793236 | BD8: 408.4257663 | BE8: 409.3898492 | BF8: 474.2236363 | BG8: 493.3063083 | BH8: 578.0865633 | BI8: 708.1367316 | BJ8: 822.9414157 | BK8: 972.9710118 | BL8: 1003.888842 | BM8: 1002.214753 | BN8: 1007.640619 | BO8: 1472.355028 | BP8: 2258.326882 | BQ8: 2352.917981 | BR8: 3032.816323 | BS8: 2061.23723 | BT8: 2742.13785 | BU8: 2689.37614 | BV8: 2918.814069 | BW8: 3124.455103 | BX8: 3350.19083 | BY8: 4339.585024 | BZ8: 4649.045282 | CA8: 3996.430076 | CB8: 4744.820418 | CC8: 5705.727274 | CD8: 6839.491651 | CE8: 7194.72984 | CF8: 7891.491216 | CG8: 9064.082142 | CH8: 6139.851854 | CI8: 6123.198476 | CJ8: 7581.80119 | CK8: 9489.351806 | CL8: 10409.13277 | CM8: 7017.487403 | CN8: 7650.723924 | CO8: 8301.889511 | CP8: 6958.74079 | CQ8: 6583.821382 | CR8: 8616.579274 | CS8: 8432.847122 | CT8: 8819.671447 | CU8: 9159.050437 | CV8: 9281.281512 | CW8: 9640.78105 | CX8: 12011.5213 | CY8: 12073.49059 | CZ8: 12246.53359 | DA8: 12275.52125 | DB8: 12603.50134 | DC8: 11787.9655 | DD8: 13280.04076 | DE8: 11724.76334 | DF8: 16483.59546 | DG8: 14489.24444 | DH8: 17642.1013 | DI8: 17547.53186 | DJ8: 13554.35361 | DK8: 12333.55205 | DL8: 19312.07677 | DM8: 23644.60698 | DN8: 23757.12108 | DO8: 24903.51967 | DP8: 21778.91986 | DQ8: 21877.12243 | DR8: 20556.13224 | DS8: 20994.30635 | DT8: 40038.21193 | DU8: 14004.06731 | DV8: 22303.33511 | DW8: 21443.13921 | DX8: 22465.05607 | DY8: 19679.1866 | DZ8: 16769.85319 | EA8: 18910.89363 | EB8: 18107.88917 | EC8: 13795.22213 | ED8: 19157.43763 | EE8: 20658.26121 | EF8: 21998.82438 | EG8: 26307.32839 | EH8: 29160.98874 | EI8: 32085.49678 | EJ8: 34367.65899 | EK8: 25871.37005 | EL8: 26549.31332 | EM8: 25097.38323 | EN8: 34225.92302 | EO8: 28031.44376
A9: 06 | B9: Health | D9: 4.38 | F9: 100 | G9: 73.85844749 | H9: 137.7283105 | I9: 151.3127854 | J9: 144.9429224 | K9: 146.4840183 | L9: 137.5228311 | M9: 145.9703196 | N9: 146.9977169 | O9: 159.1999381 | P9: 102.5689498 | Q9: 68.73858447 | R9: 76.89497717 | S9: 109.9890411 | T9: 112.3006849 | U9: 146.1575342 | V9: 144.4315068 | W9: 160.3890411 | X9: 152.2458904 | Y9: 144.8257991 | Z9: 150.2671233 | AA9: 164.7570124 | AB9: 87.44292237 | AC9: 87.44292237 | AD9: 100.5136986 | AE9: 87.44292237 | AF9: 80.81050228 | AG9: 107.0776256 | AH9: 75.91324201 | AI9: 100 | AJ9: 93.88127854 | AK9: 133.2191781 | AL9: 73.85844749 | AM9: 99.48630137 | AN9: 87.956621 | AO9: 74.88584475 | AP9: 74.88584475 | AQ9: 87.956621 | AR9: 106.3289795 | AS9: 119.3997558 | AT9: 132.470532 | AU9: 132.470532 | AV9: 106.3289795 | AW9: 134.3016031 | AX9: 158.2648402 | AY9: 158.7785388 | AZ9: 171.8493151 | BA9: 171.8493151 | BB9: 171.8493151 | BC9: 171.8493151 | BD9: 171.8493151 | BE9: 171.8493151 | BF9: 176.9863014 | BG9: 176.9863014 | BH9: 176.9863014 | BI9: 204.0343809 | BJ9: 184.9200913 | BK9: 184.9200913 | BL9: 260.5479452 | BM9: 260.5479452 | BN9: 260.5479452 | BO9: 479.7260274 | BP9: 378.8560857 | BQ9: 1118.065373 | BR9: 820.940294 | BS9: 1066.017349 | BT9: 594.8515982 | BU9: 654.3020222 | BV9: 664.4292237 | BW9: 538.6887514 | BX9: 726.7163352 | BY9: 995.0845189 | BZ9: 950.6367407 | CA9: 962.0918043 | CB9: 990.2450613 | CC9: 4215.641992 | CD9: 3130.772442 | CE9: 3295.362085 | CF9: 2838.288275 | CG9: 2957.3814 | CH9: 2980.990169 | CI9: 3007.511033 | CJ9: 3764.562402 | CK9: 4121.776678 | CL9: 4577.429365 | CM9: 4575.105812 | CN9: 4295.827286 | CO9: 4588.335414 | CP9: 4507.106289 | CQ9: 5155.696494 | CR9: 4789.493215 | CS9: 4765.069334 | CT9: 4765.069334 | CU9: 7379.224585 | CV9: 7800.752222 | CW9: 7800.752222 | CX9: 9033.105023 | CY9: 8313.926941 | CZ9: 8804.794521 | DA9: 8804.794521 | DB9: 8804.794521 | DC9: 7497.716895 | DD9: 7497.716895 | DE9: 7779.680365 | DF9: 8066.57245 | DG9: 16292.61642 | DH9: 7659.038097 | DI9: 7593.449973 | DJ9: 9941.460463 | DK9: 33123.08127 | DL9: 10126.25571 | DM9: 8819.178082 | DN9: 10023.51598 | DO9: 10126.25571 | DP9: 10228.99543 | DQ9: 10280.3653 | DR9: 6927.269731 | DS9: 6980.519551 | DT9: 8470.806537 | DU9: 9868.094714 | DV9: 8446.956514 | DW9: 8307.48082 | DX9: 8057.084886 | DY9: 7306.567304 | DZ9: 7548.162934 | EA9: 10514.37947 | EB9: 10740.66576 | EC9: 9345.0131 | ED9: 10376.90335 | EE9: 11081.81202 | EF9: 10979.0723 | EG9: 11081.81202 | EH9: 11184.55175 | EI9: 11184.55175 | EJ9: 13798.707 | EK9: 24410.84731 | EL9: 19267.77843 | EM9: 21641.21564 | EN9: 19945.18788 | EO9: 17939.49772
A10: 07 | B10: Transport | D10: 2.59 | F10: 100 | G10: 92.47104247 | H10: 92.47104247 | I10: 92.47104247 | J10: 97.97940798 | K10: 160.2767053 | L10: 158.3944659 | M10: 157.2651223 | N10: 157.2651223 | O10: 155.006435 | P10: 157.2651223 | Q10: 232.2361647 | R10: 192.0383211 | S10: 159.7661948 | T10: 158.2604033 | U10: 157.5075075 | V10: 157.1310596 | W10: 156.7546118 | X10: 159.013299 | Y10: 159.013299 | Z10: 158.6368511 | AA10: 156.8800944 | AB10: 158.6368511 | AC10: 156.8800944 | AD10: 156.8800944 | AE10: 156.8800944 | AF10: 160.3635779 | AG10: 46.76494676 | AH10: 160.4890605 | AI10: 160.990991 | AJ10: 97.43886744 | AK10: 97.43886744 | AL10: 97.56435006 | AM10: 97.56435006 | AN10: 97.31338481 | AO10: 97.81531532 | AP10: 97.31338481 | AQ10: 98.06628057 | AR10: 97.68983269 | AS10: 97.68983269 | AT10: 98.44272844 | AU10: 165.006435 | AV10: 97.94079794 | AW10: 98.44272844 | AX10: 96.56048906 | AY10: 160.2380952 | AZ10: 159.7361647 | BA10: 159.7361647 | BB10: 163.2496782 | BC10: 163.2496782 | BD10: 164.7554698 | BE10: 164.7554698 | BF10: 164.7554698 | BG10: 251.1454311 | BH10: 241.1068211 | BI10: 239.3500644 | BJ10: 235.460103 | BK10: 240.1029601 | BL10: 401.3384813 | BM10: 376.2419562 | BN10: 359.1763192 | BO10: 416.3963964 | BP10: 1099.60103 | BQ10: 1087.052767 | BR10: 1367.168597 | BS10: 1329.52381 | BT10: 1642.265122 | BU10: 1692.458172 | BV10: 2105.585586 | BW10: 2005.199485 | BX10: 1968.809524 | BY10: 2020.2574 | BZ10: 2015.238095 | CA10: 1980.10296 | CB10: 2705.971686 | CC10: 2700.952381 | CD10: 3425.828277 | CE10: 2781.261261 | CF10: 3356.550837 | CG10: 3326.435006 | CH10: 4032.263086 | CI10: 3326.435006 | CJ10: 3324.097248 | CK10: 6634.543115 | CL10: 6584.350064 | CM10: 5232.998713 | CN10: 5232.998713 | CO10: 5248.056628 | CP10: 5232.998713 | CQ10: 5177.786358 | CR10: 5241.782497 | CS10: 5232.998713 | CT10: 5358.481338 | CU10: 5458.867439 | CV10: 5506.550837 | CW10: 5514.079794 | CX10: 6958.773059 | CY10: 6958.773059 | CZ10: 6961.282711 | DA10: 6961.282711 | DB10: 7586.765337 | DC10: 4828.850279 | DD10: 4836.379236 | DE10: 7948.734449 | DF10: 9512.441012 | DG10: 6923.637924 | DH10: 4821.321321 | DI10: 7948.734449 | DJ10: 9535.027885 | DK10: 11113.79236 | DL10: 12168.66152 | DM10: 8178.314028 | DN10: 12243.95109 | DO10: 15064.99356 | DP10: 13898.00515 | DQ10: 12334.29858 | DR10: 7486.808237 | DS10: 15467.73488 | DT10: 15424.06692 | DU10: 102991.6345 | DV10: 12296.6538 | DW10: 9131.595882 | DX10: 15386.42214 | DY10: 10695.30245 | DZ10: 9131.595882 | EA10: 13822.71557 | EB10: 13822.71557 | EC10: 15537.00129 | ED10: 12409.58816 | EE10: 13973.29472 | EF10: 15537.00129 | EG10: 15537.00129 | EH10: 17251.287 | EI10: 43890.76577 | EJ10: 22205.92021 | EK10: 22205.92021 | EL10: 22205.92021 | EM10: 21980.05148 | EN10: 18927.92793 | EO10: 17326.57658
A11: 08 | B11: Communication | D11: 1.44 | F11: 100 | G11: 111.7647059 | H11: 111.7647059 | I11: 100 | J11: 94.11764706 | K11: 110.2941176 | L11: 102.9411765 | M11: 105.8823529 | N11: 123.5294118 | O11: 98.52941176 | P11: 111.7647059 | Q11: 117.6470588 | R11: 117.6470588 | S11: 108.8235294 | T11: 105.8823529 | U11: 111.7647059 | V11: 101.4705882 | W11: 113.2352941 | X11: 104.4117647 | Y11: 105.8823529 | Z11: 105.8823529 | AA11: 108.8235294 | AB11: 108.8235294 | AC11: 108.8235294 | AD11: 110.2941176 | AE11: 110.2941176 | AF11: 102.9411765 | AG11: 105.8823529 | AH11: 105.8823529 | AI11: 105.8823529 | AJ11: 108.8235294 | AK11: 97.05882353 | AL11: 97.05882353 | AM11: 100 | AN11: 102.9411765 | AO11: 82.35294118 | AP11: 91.17647059 | AQ11: 97.05882353 | AR11: 79.41176471 | AS11: 94.11764706 | AT11: 88.23529412 | AU11: 76.47058824 | AV11: 82.35294118 | AW11: 76.47058824 | AX11: 91.17647059 | AY11: 88.23529412 | AZ11: 100 | BA11: 97.05882353 | BB11: 100 | BC11: 102.9411765 | BD11: 114.7058824 | BE11: 97.05882353 | BF11: 114.7058824 | BG11: 117.6470588 | BH11: 170.5882353 | BI11: 164.7058824 | BJ11: 197.0588235 | BK11: 226.4705882 | BL11: 250 | BM11: 202.9411765 | BN11: 247.0588235 | BO11: 573.5294118 | BP11: 911.7647059 | BQ11: 1000 | BR11: 1029.411765 | BS11: 1235.294118 | BT11: 1205.882353 | BU11: 1705.882353 | BV11: 1676.470588 | BW11: 1176.470588 | BX11: 1441.176471 | BY11: 1970.588235 | BZ11: 2882.352941 | CA11: 2117.647059 | CB11: 2117.647059 | CC11: 2441.176471 | CD11: 2705.882353 | CE11: 3882.352941 | CF11: 4411.764706 | CG11: 4411.764706 | CH11: 4117.647059 | CI11: 3470.588235 | CJ11: 4444.788442 | CK11: 5000 | CL11: 5441.176471 | CM11: 4470.588235 | CN11: 3970.588235 | CO11: 4558.823529 | CP11: 4411.764706 | CQ11: 3882.352941 | CR11: 4558.823529 | CS11: 4264.705882 | CT11: 5735.294118 | CU11: 5794.117647 | CV11: 5823.529412 | CW11: 5823.529412 | CX11: 5823.529412 | CY11: 5852.941176 | CZ11: 5882.352941 | DA11: 5882.352941 | DB11: 5882.352941 | DC11: 3147.058824 | DD11: 4117.647059 | DE11: 4558.823529 | DF11: 4264.705882 | DG11: 4852.941176 | DH11: 5000 | DI11: 5000 | DJ11: 4264.705882 | DK11: 4705.882353 | DL11: 26470.58824 | DM11: 5882.352941 | DN11: 7352.941176 | DO11: 44117.64706 | DP11: 7058.823529 | DQ11: 7352.941176 | DR11: 5000 | DS11: 5098.529412 | DT11: 9117.647059 | DU11: 9705.882353 | DV11: 6470.588235 | DW11: 7058.823529 | DX11: 5000 | DY11: 5294.117647 | DZ11: 5147.058824 | EA11: 5000 | EB11: 4852.941176 | EC11: 5588.235294 | ED11: 4264.705882 | EE11: 3823.529412 | EF11: 4117.647059 | EG11: 3676.470588 | EH11: 5588.235294 | EI11: 6176.470588 | EJ11: 8676.470588 | EK11: 5882.352941 | EL11: 7058.823529 | EM11: 4705.882353 | EN11: 5000 | EO11: 6911.764706
A12: 09 | B12: Recreation and culture | D12: 0.52 | F12: 100 | G12: 101.9230769 | H12: 231.7307692 | I12: 147.1153846 | J12: 147.1153846 | K12: 143.6538462 | L12: 183.0769231 | M12: 147.1153846 | N12: 146.1538462 | O12: 145.1923077 | P12: 148.8461538 | Q12: 165.2644231 | R12: 148.4615385 | S12: 149.8076923 | T12: 151.3461538 | U12: 118.3173077 | V12: 134.5432692 | W12: 152.0777027 | X12: 153.5576923 | Y12: 116.5441176 | Z12: 152.4038462 | AA12: 147.3076923 | AB12: 150.7692308 | AC12: 150.7692308 | AD12: 233.6538462 | AE12: 150.1923077 | AF12: 152.1153846 | AG12: 150.1923077 | AH12: 149.0384615 | AI12: 190.1923077 | AJ12: 145.1923077 | AK12: 234.2307692 | AL12: 231.7307692 | AM12: 232.8846154 | AN12: 231.7307692 | AO12: 232.8846154 | AP12: 231.9230769 | AQ12: 231.7307692 | AR12: 231.7307692 | AS12: 234.6153846 | AT12: 231.7307692 | AU12: 233.6538462 | AV12: 232.6923077 | AW12: 234.2307692 | AX12: 233.6538462 | AY12: 234.6153846 | AZ12: 237.3076923 | BA12: 240.1923077 | BB12: 243.0769231 | BC12: 243.6538462 | BD12: 290.3846154 | BE12: 287.5 | BF12: 290.3846154 | BG12: 296.1538462 | BH12: 320.6730769 | BI12: 300.9615385 | BJ12: 309.6153846 | BK12: 560.5769231 | BL12: 599.0384615 | BM12: 621.5384615 | BN12: 634.6153846 | BO12: 376.3927898 | BP12: 990.3846154 | BQ12: 1045.192308 | BR12: 1333.653846 | BS12: 1274.807692 | BT12: 1354.807692 | BU12: 1606.971154 | BV12: 1841.517857 | BW12: 1702.163462 | BX12: 1987.980769 | BY12: 2363.798077 | BZ12: 2609.611484 | CA12: 2632.692308 | CB12: 2829.567308 | CC12: 2802.644231 | CD12: 3392.728365 | CE12: 3179.417067 | CF12: 3503.305288 | CG12: 3498.497596 | CH12: 3772.259363 | CI12: 4287.097925 | CJ12: 5642.412617 | CK12: 4605.110816 | CL12: 4580.325095 | CM12: 6733.590026 | CN12: 6768.132171 | CO12: 6272.417764 | CP12: 6122.281993 | CQ12: 6396.346366 | CR12: 5513.461538 | CS12: 6032.692308 | CT12: 5504.219701 | CU12: 24324.68408 | CV12: 24372.761 | CW12: 8330.449071 | CX12: 8368.91061 | CY12: 8368.91061 | CZ12: 8416.987533 | DA12: 8429.744889 | DB12: 8562.870852 | DC12: 8370.56316 | DD12: 8959.505468 | DE12: 10133.81522 | DF12: 10110.66045 | DG12: 8668.352755 | DH12: 15612.52488 | DI12: 21319.94246 | DJ12: 19377.11158 | DK12: 12036.23215 | DL12: 10131.18492 | DM12: 14832.00352 | DN12: 12643.82345 | DO12: 12605.35113 | DP12: 12624.8396 | DQ12: 17085.43385 | DR12: 7807.440074 | DS12: 7991.09392 | DT12: 10587.94994 | DU12: 5013.315199 | DV12: 4491.196705 | DW12: 5845.216523 | DX12: 4147.250604 | DY12: 3992.815899 | DZ12: 4040.892822 | EA12: 3556.361049 | EB12: 3992.187992 | EC12: 13770.40787 | ED12: 13679.71477 | EE12: 13590.48284 | EF12: 9263.559767 | EG12: 9170.950843 | EH12: 9219.027767 | EI12: 10631.09338 | EJ12: 13973.10421 | EK12: 13793.12989 | EL12: 13506.73623 | EM12: 9468.274689 | EN12: 9465.615997 | EO12: 14278.84615
A13: 10 | B13: Education | D13: 1.08 | F13: 100 | G13: 100 | H13: 100 | I13: 100 | J13: 100 | K13: 100 | L13: 100 | M13: 100 | N13: 100 | O13: 100 | P13: 145.3703704 | Q13: 145.3703704 | R13: 145.3703704 | S13: 145.3703704 | T13: 145.3703704 | U13: 145.3703704 | V13: 145.3703704 | W13: 145.3703704 | X13: 145.3703704 | Y13: 145.3703704 | Z13: 145.3703704 | AA13: 145.3703704 | AB13: 145.3703704 | AC13: 145.3703704 | AD13: 145.3703704 | AE13: 145.3703704 | AF13: 145.3703704 | AG13: 145.3703704 | AH13: 145.3703704 | AI13: 145.3703704 | AJ13: 145.3703704 | AK13: 145.3703704 | AL13: 164.8148148 | AM13: 164.8148148 | AN13: 164.8148148 | AO13: 164.8148148 | AP13: 164.8148148 | AQ13: 164.8148148 | AR13: 164.8148148 | AS13: 164.8148148 | AT13: 164.8148148 | AU13: 164.8148148 | AV13: 164.8148148 | AW13: 164.8148148 | AX13: 164.8148148 | AY13: 164.8148148 | AZ13: 164.8148148 | BA13: 164.8148148 | BB13: 164.8148148 | BC13: 164.8148148 | BD13: 164.8148148 | BE13: 164.8148148 | BF13: 164.8148148 | BG13: 164.8148148 | BH13: 164.8148148 | BI13: 164.8148148 | BJ13: 164.8148148 | BK13: 164.8148148 | BL13: 164.8148148 | BM13: 164.8148148 | BN13: 164.8148148 | BO13: 164.8148148 | BP13: 164.8148148 | BQ13: 164.8148148 | BR13: 164.8148148 | BS13: 164.8148148 | BT13: 164.8148148 | BU13: 164.8148148 | BV13: 164.8148148 | BW13: 164.8148148 | BX13: 164.8148148 | BY13: 865.8249158 | BZ13: 865.8249158 | CA13: 865.8249158 | CB13: 865.8249158 | CC13: 865.8249158 | CD13: 865.8249158 | CE13: 865.8249158 | CF13: 865.8249158 | CG13: 865.8249158 | CH13: 865.8249158 | CI13: 865.8249158 | CJ13: 865.8249158 | CK13: 865.8249158 | CL13: 865.8249158 | CM13: 865.8249158 | CN13: 865.8249158 | CO13: 865.8249158 | CP13: 865.8249158 | CQ13: 865.8249158 | CR13: 865.8249158 | CS13: 865.8249158 | CT13: 865.8249158 | CU13: 865.8249158 | CV13: 865.8249158 | CW13: 865.8249158 | CX13: 865.8249158 | CY13: 865.8249158 | CZ13: 865.8249158 | DA13: 865.8249158 | DB13: 865.8249158 | DC13: 865.8249158 | DD13: 865.8249158 | DE13: 865.8249158 | DF13: 865.8249158 | DG13: 865.8249158 | DH13: 865.8249158 | DI13: 865.8249158 | DJ13: 865.8249158 | DK13: 865.8249158 | DL13: 25501.6835 | DM13: 25501.6835 | DN13: 25501.6835 | DO13: 25501.6835 | DP13: 25501.6835 | DQ13: 25501.6835 | DR13: 865.8249158 | DS13: 904.7138047 | DT13: 904.7138047 | DU13: 904.7138047 | DV13: 904.7138047 | DW13: 904.7138047 | DX13: 904.7138047 | DY13: 904.7138047 | DZ13: 904.7138047 | EA13: 904.7138047 | EB13: 904.7138047 | EC13: 904.7138047 | ED13: 904.7138047 | EE13: 904.7138047 | EF13: 904.7138047 | EG13: 904.7138047 | EH13: 904.7138047 | EI13: 904.7138047 | EJ13: 904.7138047 | EK13: 904.7138047 | EL13: 904.7138047 | EM13: 904.7138047 | EN13: 904.7138047 | EO13: 904.7138047
A14: 11 | B14: Restaurants and hotels | D14: 6.01 | F14: 100 | G14: 109.234609 | H14: 117.1673328 | I14: 111.1164728 | J14: 116.0700948 | K14: 137.0865207 | L14: 183.985598 | M14: 127.1941468 | N14: 134.8222579 | O14: 117.5607649 | P14: 142.6536012 | Q14: 163.2156158 | R14: 158.550482 | S14: 163.1786488 | T14: 156.6065576 | U14: 141.0331537 | V14: 153.5258952 | W14: 178.302445 | X14: 188.035376 | Y14: 165.5990156 | Z14: 164.6015075 | AA14: 157.3222981 | AB14: 173.1267409 | AC14: 176.6042714 | AD14: 185.9707947 | AE14: 162.7865062 | AF14: 160.8479747 | AG14: 157.9608229 | AH14: 150.0911214 | AI14: 165.7852652 | AJ14: 164.469967 | AK14: 175.6209185 | AL14: 158.9216854 | AM14: 150.8380547 | AN14: 141.8084294 | AO14: 149.3680908 | AP14: 158.9486347 | AQ14: 165.1199943 | AR14: 172.6008479 | AS14: 138.9519652 | AT14: 174.3738405 | AU14: 178.5818636 | AV14: 169.5168391 | AW14: 167.6516325 | AX14: 163.2229855 | AY14: 147.668099 | AZ14: 158.9059832 | BA14: 159.2204318 | BB14: 182.9062942 | BC14: 205.3508676 | BD14: 212.6332689 | BE14: 216.7012631 | BF14: 231.5973274 | BG14: 276.793977 | BH14: 282.0370054 | BI14: 307.5076259 | BJ14: 287.0464021 | BK14: 372.5752941 | BL14: 391.5854703 | BM14: 438.0773042 | BN14: 417.2810879 | BO14: 724.8091814 | BP14: 860.2874307 | BQ14: 1158.737165 | BR14: 972.1613792 | BS14: 935.8464289 | BT14: 1094.666012 | BU14: 1271.259779 | BV14: 1386.424368 | BW14: 1501.11349 | BX14: 1606.397721 | BY14: 1926.0697 | BZ14: 1983.917924 | CA14: 2229.010016 | CB14: 2407.537821 | CC14: 4568.411016 | CD14: 2839.953161 | CE14: 3643.170508 | CF14: 3586.758376 | CG14: 3589.473838 | CH14: 4207.294314 | CI14: 3646.24337 | CJ14: 4879.901448 | CK14: 6060.630156 | CL14: 5878.019915 | CM14: 11203.59491 | CN14: 7455.925909 | CO14: 6801.655247 | CP14: 6659.534141 | CQ14: 7024.006827 | CR14: 8948.221629 | CS14: 8669.156679 | CT14: 8163.636632 | CU14: 9414.675018 | CV14: 10432.73063 | CW14: 10457.19374 | CX14: 10531.41919 | CY14: 10550.84308 | CZ14: 11165.03946 | DA14: 11731.23081 | DB14: 12025.60736 | DC14: 9822.872216 | DD14: 8973.057618 | DE14: 8578.55891 | DF14: 7613.219502 | DG14: 8682.452897 | DH14: 7919.875076 | DI14: 8351.562115 | DJ14: 9162.963457 | DK14: 11803.61749 | DL14: 14357.53343 | DM14: 10039.3425 | DN14: 10287.0111 | DO14: 10987.78855 | DP14: 10333.26323 | DQ14: 12527.17 | DR14: 11871.92997 | DS14: 12211.74516 | DT14: 15150.46779 | DU14: 18995.78331 | DV14: 13835.3995 | DW14: 13020.65806 | DX14: 13334.03775 | DY14: 13837.6042 | DZ14: 13475.62804 | EA14: 13856.93793 | EB14: 13541.87963 | EC14: 21333.41254 | ED14: 17433.91044 | EE14: 54020.12763 | EF14: 14681.68027 | EG14: 13844.73894 | EH14: 19432.96386 | EI14: 17360.83578 | EJ14: 19621.25115 | EK14: 20516.96515 | EL14: 19385.64141 | EM14: 19169.47838 | EN14: 20596.70232 | EO14: 20845.86459
A15: 12 | B15: Miscellaneous goods and services | D15: 2.64 | F15: 100 | G15: 90.2274772 | H15: 91.63932293 | I15: 102.249157 | J15: 89.3044356 | K15: 94.94480202 | L15: 123.7132365 | M15: 99.75974318 | N15: 112.3371273 | O15: 95.27016577 | P15: 115.6216585 | Q15: 124.4965888 | R15: 115.4147484 | S15: 118.5721478 | T15: 121.5399782 | U15: 122.5250516 | V15: 118.1524797 | W15: 118.0558101 | X15: 120.4995333 | Y15: 121.4436403 | Z15: 123.3666661 | AA15: 118.4210562 | AB15: 130.5463578 | AC15: 134.1481653 | AD15: 138.4758552 | AE15: 129.1481484 | AF15: 134.7494039 | AG15: 110.5839734 | AH15: 121.2188555 | AI15: 135.4700721 | AJ15: 132.0428853 | AK15: 129.9559907 | AL15: 137.3457793 | AM15: 142.3924551 | AN15: 129.106095 | AO15: 151.3837296 | AP15: 149.8092807 | AQ15: 159.4246653 | AR15: 139.2514759 | AS15: 140.5918022 | AT15: 132.1797465 | AU15: 148.0538723 | AV15: 137.2778939 | AW15: 137.8023695 | AX15: 137.8706637 | AY15: 145.5834188 | AZ15: 157.8600311 | BA15: 186.0176563 | BB15: 182.0986447 | BC15: 230.4826875 | BD15: 236.1371062 | BE15: 245.3502907 | BF15: 310.526984 | BG15: 326.6435416 | BH15: 317.4274666 | BI15: 321.0868614 | BJ15: 442.6114466 | BK15: 445.1897322 | BL15: 523.0146691 | BM15: 524.4503546 | BN15: 592.7614096 | BO15: 837.6605296 | BP15: 931.329228 | BQ15: 1270.676138 | BR15: 1203.899056 | BS15: 1301.324218 | BT15: 1236.297432 | BU15: 1373.332514 | BV15: 1730.130175 | BW15: 1780.689132 | BX15: 1877.026481 | BY15: 2196.354515 | BZ15: 2434.615669 | CA15: 2523.916294 | CB15: 2495.557345 | CC15: 2877.778527 | CD15: 3076.521756 | CE15: 3217.175127 | CF15: 3214.91461 | CG15: 3514.445445 | CH15: 3903.055243 | CI15: 3610.704688 | CJ15: 4207.651995 | CK15: 5389.846445 | CL15: 5334.891249 | CM15: 4632.412158 | CN15: 4591.012283 | CO15: 4822.198362 | CP15: 4085.814024 | CQ15: 4556.010226 | CR15: 4954.42055 | CS15: 4446.927713 | CT15: 4959.862076 | CU15: 5157.982235 | CV15: 5426.556376 | CW15: 6253.156054 | CX15: 6617.789595 | CY15: 6658.685395 | CZ15: 6662.943564 | DA15: 7145.660966 | DB15: 7190.363048 | DC15: 5221.304501 | DD15: 5768.736867 | DE15: 5719.785818 | DF15: 9934.432283 | DG15: 9563.403258 | DH15: 8435.973737 | DI15: 12514.12412 | DJ15: 5827.235917 | DK15: 6021.915506 | DL15: 7347.657502 | DM15: 7463.191756 | DN15: 8176.987795 | DO15: 10242.87951 | DP15: 8388.3413 | DQ15: 8613.830458 | DR15: 6224.20057 | DS15: 6797.763471 | DT15: 11171.71494 | DU15: 14939.19095 | DV15: 7192.28315 | DW15: 7205.338808 | DX15: 8648.440231 | DY15: 8938.073777 | DZ15: 8705.487517 | EA15: 8952.506845 | EB15: 8818.885947 | EC15: 10155.69952 | ED15: 10358.33035 | EE15: 9013.977272 | EF15: 9154.202677 | EG15: 9977.796547 | EH15: 12659.03105 | EI15: 10438.31264 | EJ15: 10048.10675 | EK15: 9073.860239 | EL15: 11682.70401 | EM15: 10303.503 | EN15: 12737.23302 | EO15: 10036.69711
B16: CPI excluding unprocessed food and petrol | E16: =SUMPRODUCT('[1]Item index series - Wau'!C4:C121,'[1]Item index series - Wau'!D4:D121) -> 50.06 | F16: 100 | G16: 110.0216768 | H16: 132.914956 | I16: 146.9171141 | J16: 143.8823464 | K16: 147.6041044 | L16: 144.6634542 | M16: 135.6326817 | N16: 132.0639071 | O16: 136.3158464 | P16: 138.864307 | Q16: 149.7512639 | R16: 155.4804813 | S16: 169.4302993 | T16: 166.6792548 | U16: 156.8716969 | V16: 154.5546761 | W16: 168.7307933 | X16: 173.7801822 | Y16: 166.139779 | Z16: 189.7194941 | AA16: 161.7165191 | AB16: 159.6514903 | AC16: 160.873137 | AD16: 154.4781797 | AE16: 153.6484403 | AF16: 148.2680454 | AG16: 144.5426084 | AH16: 154.0245767 | AI16: 156.9527755 | AJ16: 148.7302933 | AK16: 154.4606586 | AL16: 150.3368051 | AM16: 148.3407331 | AN16: 143.0899297 | AO16: 135.5381019 | AP16: 134.8942307 | AQ16: 136.42819 | AR16: 143.0263102 | AS16: 139.2344757 | AT16: 161.4600049 | AU16: 187.2258291 | AV16: 150.7020543 | AW16: 147.4453972 | AX16: 153.803224 | AY16: 156.6755869 | AZ16: 181.4717225 | BA16: 193.220362 | BB16: 226.5339087 | BC16: 229.4201617 | BD16: 253.4346777 | BE16: 260.0433018 | BF16: 288.198462 | BG16: 323.5943778 | BH16: 374.5482405 | BI16: 389.9062359 | BJ16: 439.9442941 | BK16: 522.7549347 | BL16: 570.306517 | BM16: 576.7315404 | BN16: 648.1851677 | BO16: 1051.614992 | BP16: 1424.771515 | BQ16: 1713.074795 | BR16: 1678.191232 | BS16: 1462.574158 | BT16: 1615.550236 | BU16: 1715.305641 | BV16: 1879.449819 | BW16: 1949.807911 | BX16: 2048.620881 | BY16: 2578.179893 | BZ16: 2774.088692 | CA16: 2792.534667 | CB16: 3136.888854 | CC16: 3779.088891 | CD16: 3824.518973 | CE16: 3904.18438 | CF16: 4062.386199 | CG16: 4556.638009 | CH16: 4220.663382 | CI16: 7923.946433 | CJ16: 6961.681738 | CK16: 7934.01205 | CL16: 7843.410807 | CM16: 6519.587103 | CN16: 5880.219253 | CO16: 5816.278619 | CP16: 5864.531602 | CQ16: 6112.736622 | CR16: 6728.42301 | CS16: 8559.255883 | CT16: 12929.57661 | CU16: 14164.81078 | CV16: 14895.15114 | CW16: 14962.82592 | CX16: 15031.62051 | CY16: 15152.21709 | CZ16: 15392.96459 | DA16: 15624.2416 | DB16: 15750.33046 | DC16: 7494.134811 | DD16: 7963.675607 | DE16: 7600.155637 | DF16: 9692.502545 | DG16: 15776.43577 | DH16: 9690.094691 | DI16: 10251.38343 | DJ16: 8430.175497 | DK16: 11328.75229 | DL16: 12610.94925 | DM16: 11313.18654 | DN16: 12390.29816 | DO16: 13847.56225 | DP16: 12383.73689 | DQ16: 12424.15867 | DR16: 13958.0977 | DS16: 14663.22771 | DT16: 15769.22849 | DU16: 18355.57701 | DV16: 12412.66453 | DW16: 11775.68782 | DX16: 12165.71252 | DY16: 11890.42396 | DZ16: 11168.08712 | EA16: 12653.97069 | EB16: 12391.21814 | EC16: 15002.23696 | ED16: 13096.59281 | EE16: 17402.65334 | EF16: 13744.03992 | EG16: 13703.23127 | EH16: 15331.58768 | EI16: 17302.02172 | EJ16: 17868.35854 | EK16: 16448.6623 | EL16: 17842.84529 | EM16: 16514.93104 | EN16: 17107.32118 | EO16: 16859.8553
A17: 011 | B17: Food | C17: =SUM(E18:E26) -> 63.99 | F17: 100 | G17: 104.2995218 | H17: 108.3526287 | I17: 145.7500433 | J17: 155.0508423 | K17: 149.5275872 | L17: 131.3136501 | M17: 146.7350194 | N17: 128.0509398 | O17: 131.3755525 | P17: 135.1957193 | Q17: 171.5853339 | R17: 163.1944464 | S17: 150.4860045 | T17: 155.9134295 | U17: 164.9982365 | V17: 143.6958691 | W17: 145.3358636 | X17: 146.2763859 | Y17: 136.0880629 | Z17: 142.0962557 | AA17: 146.8137604 | AB17: 143.8911718 | AC17: 138.100492 | AD17: 132.8803468 | AE17: 134.0036546 | AF17: 127.892012 | AG17: 127.9361529 | AH17: 119.7530352 | AI17: 130.7970974 | AJ17: 114.0615257 | AK17: 129.252061 | AL17: 129.8274892 | AM17: 121.5134903 | AN17: 116.5481226 | AO17: 113.1885135 | AP17: 117.2182684 | AQ17: 126.4099067 | AR17: 135.1537185 | AS17: 126.3804431 | AT17: 120.3161314 | AU17: 163.3117174 | AV17: 175.7398736 | AW17: 138.9631812 | AX17: 146.7513526 | AY17: 152.8423384 | AZ17: 160.6716503 | BA17: 208.1281118 | BB17: 264.441743 | BC17: 257.7368106 | BD17: 274.60275 | BE17: 309.2035956 | BF17: 302.785802 | BG17: 311.5997247 | BH17: 357.2736945 | BI17: 401.3631031 | BJ17: 500.2130894 | BK17: 585.1802797 | BL17: 650.1568189 | BM17: 661.3747884 | BN17: 685.2368531 | BO17: 1345.19083 | BP17: 1643.961134 | BQ17: 1646.555887 | BR17: 1487.577106 | BS17: 1484.684775 | BT17: 1555.459638 | BU17: 1549.971773 | BV17: 1908.409614 | BW17: 1943.057012 | BX17: 2129.168782 | BY17: 2696.267496 | BZ17: 2721.632904 | CA17: 2861.601091 | CB17: 3112.602372 | CC17: 3064.158981 | CD17: 3096.686714 | CE17: 3221.203343 | CF17: 3410.244971 | CG17: 3759.85652 | CH17: 3336.827339 | CI17: 3290.601719 | CJ17: 4816.764701 | CK17: 5929.365357 | CL17: 5361.34483 | CM17: 5552.131972 | CN17: 5300.39196 | CO17: 5030.923153 | CP17: 4501.086297 | CQ17: 4900.63173 | CR17: 4792.963083 | CS17: 8983.838579 | CT17: 12546.12248 | CU17: 14775.37143 | CV17: 15517.26763 | CW17: 15873.28882 | CX17: 16092.97962 | CY17: 16203.0938 | CZ17: 16454.96113 | DA17: 16698.99185 | DB17: 17114.87604 | DC17: 6135.714428 | DD17: 6974.610151 | DE17: 9040.923339 | DF17: 10286.14143 | DG17: 12592.88642 | DH17: 13186.38627 | DI17: 9530.073342 | DJ17: 7102.272329 | DK17: 8158.931204 | DL17: 10194.33061 | DM17: 10048.00349 | DN17: 9777.292285 | DO17: 9664.339036 | DP17: 10391.08104 | DQ17: 10942.64984 | DR17: 12442.26414 | DS17: 12643.63301 | DT17: 11531.53076 | DU17: 11864.98208 | DV17: 10665.89422 | DW17: 10506.98758 | DX17: 9639.290569 | DY17: 10037.58986 | DZ17: 9978.4101 | EA17: 11347.71536 | EB17: 10950.65695 | EC17: 13246.37749 | ED17: 10812.21283 | EE17: 10732.35005 | EF17: 11942.3353 | EG17: 12469.74109 | EH17: 12808.35952 | EI17: 13806.63733 | EJ17: 16108.15461 | EK17: 15529.67995 | EL17: 14700.79037 | EM17: 13194.86113 | EN17: 13071.89013 | EO17: 15180.5328
A18: 0111 | B18: Bread & Cereals | E18: =SUM('[1]Item index series - Wau'!C4:C14) -> 23.49 | F18: 100 | G18: 115.1584792 | H18: 114.8411509 | I18: 175.5007734 | J18: 183.5881793 | K18: 160.4997033 | L18: 144.7604005 | M18: 163.4417604 | N18: 129.1674776 | O18: 134.2055271 | P18: 117.6690291 | Q18: 192.0797927 | R18: 190.6824972 | S18: 154.643518 | T18: 181.3161873 | U18: 182.6301046 | V18: 155.2158709 | W18: 149.5767301 | X18: 157.0216996 | Y18: 130.6516413 | Z18: 140.266335 | AA18: 139.4468075 | AB18: 146.5882639 | AC18: 137.1266679 | AD18: 133.8560857 | AE18: 135.0370127 | AF18: 131.8494516 | AG18: 127.570742 | AH18: 121.3208439 | AI18: 137.57209 | AJ18: 118.9970948 | AK18: 140.4149257 | AL18: 144.4400415 | AM18: 119.9094372 | AN18: 118.0639971 | AO18: 109.6522386 | AP18: 112.0756839 | AQ18: 139.0466189 | AR18: 142.6714197 | AS18: 140.681467 | AT18: 102.4284922 | AU18: 162.788041 | AV18: 232.822929 | AW18: 130.6694554 | AX18: 152.3720451 | AY18: 155.0305953 | AZ18: 168.8699753 | BA18: 232.4787652 | BB18: 330.8547967 | BC18: 316.1622613 | BD18: 354.5176835 | BE18: 340.3410084 | BF18: 333.8791854 | BG18: 336.2720268 | BH18: 391.8864275 | BI18: 420.6749798 | BJ18: 562.4561701 | BK18: 721.8667391 | BL18: 821.4429144 | BM18: 792.5405372 | BN18: 791.656615 | BO18: 1887.421989 | BP18: 2347.900688 | BQ18: 2038.486406 | BR18: 1432.678222 | BS18: 1759.926685 | BT18: 1660.181589 | BU18: 1490.684311 | BV18: 1780.642591 | BW18: 2153.955798 | BX18: 2347.805964 | BY18: 2700.380884 | BZ18: 2518.966432 | CA18: 2753.883876 | CB18: 3076.713927 | CC18: 2077.589348 | CD18: 2208.09128 | CE18: 2551.515123 | CF18: 2816.620331 | CG18: 3582.73781 | CH18: 2821.598212 | CI18: 2716.452741 | CJ18: 4798.196568 | CK18: 7210.617378 | CL18: 4356.027592 | CM18: 4701.250772 | CN18: 4179.406413 | CO18: 3601.387393 | CP18: 3012.249719 | CQ18: 3994.724135 | CR18: 3703.68092 | CS18: 7941.826584 | CT18: 17494.11817 | CU18: 18256.87704 | CV18: 19470.53176 | CW18: 19757.18977 | CX18: 19814.31637 | CY18: 20036.11937 | CZ18: 20427.76423 | DA18: 20496.63516 | DB18: 21431.35306 | DC18: 4743.385427 | DD18: 6083.878525 | DE18: 5816.016541 | DF18: 7593.842456 | DG18: 7830.239289 | DH18: 4765.480244 | DI18: 5991.584827 | DJ18: 5399.006415 | DK18: 6572.872453 | DL18: 9173.032575 | DM18: 10502.50475 | DN18: 8892.659177 | DO18: 8551.168045 | DP18: 9591.278371 | DQ18: 9012.65346 | DR18: 13073.94413 | DS18: 13276.80288 | DT18: 11035.29884 | DU18: 11468.82238 | DV18: 9006.633815 | DW18: 9032.56155 | DX18: 7916.921415 | DY18: 8231.712857 | DZ18: 8609.785312 | EA18: 10396.11577 | EB18: 9626.999869 | EC18: 13750.27312 | ED18: 8997.998051 | EE18: 9635.746815 | EF18: 11018.3295 | EG18: 10312.2417 | EH18: 11778.42643 | EI18: 11891.47707 | EJ18: 16703.94471 | EK18: 18279.36507 | EL18: 16076.77427 | EM18: 13397.80419 | EN18: 13534.03338 | EO18: 16539.76168
A19: 0112 | B19: Meat | E19: =SUM('[1]Item index series - Wau'!C15:C19) -> 7.83 | F19: 100 | G19: 102.8587427 | H19: 105.1046163 | I19: 103.4048572 | J19: 111.6970535 | K19: 109.3381352 | L19: 117.7684979 | M19: 131.3713326 | N19: 137.0121251 | O19: 126.4130951 | P19: 136.084426 | Q19: 140.1086353 | R19: 142.9795578 | S19: 117.0917899 | T19: 139.0197189 | U19: 143.1652668 | V19: 151.9045806 | W19: 149.5999337 | X19: 145.5665352 | Y19: 140.2599993 | Z19: 133.8141564 | AA19: 150.4755543 | AB19: 144.2141338 | AC19: 144.2141338 | AD19: 162.0130193 | AE19: 151.388373 | AF19: 147.9274559 | AG19: 141.7418006 | AH19: 147.6974451 | AI19: 131.7556268 | AJ19: 130.8375638 | AK19: 137.2291065 | AL19: 140.4957592 | AM19: 151.1042378 | AN19: 138.2988412 | AO19: 137.0736367 | AP19: 144.0335275 | AQ19: 147.4243189 | AR19: 142.2618884 | AS19: 148.7863152 | AT19: 157.1588258 | AU19: 156.2618275 | AV19: 150.6474067 | AW19: 152.2130428 | AX19: 149.1569718 | AY19: 153.1164597 | AZ19: 158.3063019 | BA19: 157.049541 | BB19: 162.1842399 | BC19: 157.3591656 | BD19: 162.0726725 | BE19: 176.0887198 | BF19: 203.9324956 | BG19: 260.1648776 | BH19: 293.2488091 | BI19: 332.1207146 | BJ19: 376.16481 | BK19: 411.8264611 | BL19: 467.9380595 | BM19: 498.3710358 | BN19: 459.0680898 | BO19: 687.78221 | BP19: 937.5166794 | BQ19: 1050.308236 | BR19: 1016.844161 | BS19: 1024.514083 | BT19: 1154.954188 | BU19: 1324.426116 | BV19: 1319.941712 | BW19: 1511.551424 | BX19: 1658.82455 | BY19: 1901.134994 | BZ19: 1985.263505 | CA19: 1935.113721 | CB19: 2292.859795 | CC19: 3010.383626 | CD19: 3199.317481 | CE19: 3814.020778 | CF19: 4072.070328 | CG19: 4153.977025 | CH19: 3777.886648 | CI19: 3881.991458 | CJ19: 5973.389094 | CK19: 6243.901486 | CL19: 6378.292264 | CM19: 6510.91989 | CN19: 5376.438053 | CO19: 5057.485409 | CP19: 5896.042964 | CQ19: 6277.775565 | CR19: 6072.252914 | CS19: 8981.553561 | CT19: 5736.51038 | CU19: 10547.25935 | CV19: 10673.52084 | CW19: 10793.29527 | CX19: 10944.82946 | CY19: 10951.39325 | CZ19: 11007.75341 | DA19: 11813.23805 | DB19: 11931.03389 | DC19: 7207.200853 | DD19: 7878.241421 | DE19: 17224.24433 | DF19: 12858.21043 | DG19: 8239.299341 | DH19: 8591.193352 | DI19: 10173.57966 | DJ19: 8886.705415 | DK19: 9678.077375 | DL19: 11948.12866 | DM19: 8721.081476 | DN19: 8899.841564 | DO19: 9864.194454 | DP19: 9700.960569 | DQ19: 12138.48024 | DR19: 11473.40397 | DS19: 11627.44172 | DT19: 12711.34306 | DU19: 12687.36328 | DV19: 12724.79053 | DW19: 11376.45861 | DX19: 9935.119829 | DY19: 10048.46084 | DZ19: 10439.10485 | EA19: 10743.12497 | EB19: 10697.84813 | EC19: 10914.43664 | ED19: 10934.71912 | EE19: 11033.88113 | EF19: 11261.35319 | EG19: 11580.94463 | EH19: 10774.19652 | EI19: 11091.72672 | EJ19: 11943.4435 | EK19: 11754.09789 | EL19: 12171.29599 | EM19: 11901.66524 | EN19: 11606.94515 | EO19: 14064.14078
A20: 0113 | B20: Fish & Sea foods | E20: =SUM('[1]Item index series - Wau'!C20:C21) -> 6.52 | F20: 100 | G20: 94.74008545 | H20: 84.23531989 | I20: 102.9529707 | J20: 182.5880408 | K20: 144.6248521 | L20: 127.9727838 | M20: 146.0958444 | N20: 127.7297734 | O20: 131.7809108 | P20: 136.8372042 | Q20: 136.1865782 | R20: 166.0036358 | S20: 159.8433392 | T20: 157.9328247 | U20: 141.1441667 | V20: 153.5689387 | W20: 141.9164808 | X20: 144.4303522 | Y20: 153.4138224 | Z20: 136.8741203 | AA20: 138.2131692 | AB20: 130.2507704 | AC20: 130.2507704 | AD20: 138.1802437 | AE20: 147.3145837 | AF20: 170.2474294 | AG20: 142.4939324 | AH20: 124.2145634 | AI20: 137.9432684 | AJ20: 124.3646069 | AK20: 129.6960658 | AL20: 124.3780296 | AM20: 120.1878088 | AN20: 134.094709 | AO20: 128.4553116 | AP20: 144.5630271 | AQ20: 160.5248791 | AR20: 174.1524565 | AS20: 122.5373744 | AT20: 129.647787 | AU20: 137.2846487 | AV20: 126.4044409 | AW20: 131.1695887 | AX20: 111.464589 | AY20: 125.8905343 | AZ20: 127.3002222 | BA20: 142.1186559 | BB20: 219.3135221 | BC20: 199.5001658 | BD20: 200.8832361 | BE20: 485.6819499 | BF20: 193.9678406 | BG20: 173.2930392 | BH20: 240.8085013 | BI20: 327.0815074 | BJ20: 382.7163251 | BK20: 384.0913859 | BL20: 445.2543 | BM20: 418.3498094 | BN20: 457.8688683 | BO20: 608.1379067 | BP20: 776.5882214 | BQ20: 809.5123558 | BR20: 751.7665425 | BS20: 639.6292354 | BT20: 850.6171007 | BU20: 951.9537917 | BV20: 1022.754177 | BW20: 1072.766382 | BX20: 1125.511528 | BY20: 1495.31703 | BZ20: 1911.522592 | CA20: 2133.804604 | CB20: 2871.472115 | CC20: 3214.141303 | CD20: 3336.492112 | CE20: 4759.313642 | CF20: 4049.587342 | CG20: 3411.867475 | CH20: 3528.403661 | CI20: 3441.616788 | CJ20: 4829.081172 | CK20: 5264.457968 | CL20: 6090.698362 | CM20: 6302.653922 | CN20: 5142.630709 | CO20: 5086.365705 | CP20: 5840.494142 | CQ20: 5968.733146 | CR20: 4601.648352 | CS20: 4328.868476 | CT20: 4562.213642 | CU20: 6246.095929 | CV20: 6752.997769 | CW20: 8035.353259 | CX20: 9145.460153 | CY20: 9145.460153 | CZ20: 9148.583856 | DA20: 9267.270402 | DB20: 9379.257538 | DC20: 6753.731871 | DD20: 7927.502646 | DE20: 12870.5631 | DF20: 9625.054929 | DG20: 12094.10605 | DH20: 7387.169208 | DI20: 8060.349714 | DJ20: 7622.669391 | DK20: 8167.075788 | DL20: 8163.95626 | DM20: 7914.031844 | DN20: 7933.520751 | DO20: 8591.292264 | DP20: 8438.061172 | DQ20: 12319.33786 | DR20: 6011.250412 | DS20: 6143.031323 | DT20: 10761.57249 | DU20: 9941.252191 | DV20: 8071.018873 | DW20: 12981.58513 | DX20: 10193.68049 | DY20: 12166.93165 | DZ20: 10833.44708 | EA20: 10709.16776 | EB20: 10901.71091 | EC20: 6943.112534 | ED20: 10519.97542 | EE20: 11831.01398 | EF20: 13078.70371 | EG20: 12640.08084 | EH20: 11580.4937 | EI20: 11813.29433 | EJ20: 12433.91634 | EK20: 12467.04982 | EL20: 4294.35528 | EM20: 7158.179389 | EN20: 4539.569037 | EO20: 8133.382431
A21: 0114 | B21: Milk,Cheese & Eggs | E21: =SUM('[1]Item index series - Wau'!C22:C27) -> 2.14 | F21: 100 | G21: 90.38828845 | H21: 98.48261248 | I21: 97.60509672 | J21: 118.2844309 | K21: 132.983265 | L21: 98.3664538 | M21: 135.9956767 | N21: 145.0042175 | O21: 142.1277983 | P21: 197.9366209 | Q21: 190.0400684 | R21: 129.0466005 | S21: 183.7573402 | T21: 125.9258063 | U21: 137.3456756 | V21: 148.9224947 | W21: 147.7114812 | X21: 133.9031849 | Y21: 121.9245816 | Z21: 129.0924186 | AA21: 131.2672292 | AB21: 192.0727049 | AC21: 117.8470754 | AD21: 128.5586467 | AE21: 113.8946244 | AF21: 104.0893284 | AG21: 117.2125625 | AH21: 115.6936898 | AI21: 141.9401579 | AJ21: 107.1942694 | AK21: 111.1747446 | AL21: 122.9207419 | AM21: 127.2632761 | AN21: 127.9214663 | AO21: 120.6250453 | AP21: 96.64384554 | AQ21: 134.0779178 | AR21: 122.6070419 | AS21: 122.7939578 | AT21: 163.7390422 | AU21: 188.6136347 | AV21: 128.6579729 | AW21: 125.0213722 | AX21: 130.2316525 | AY21: 132.6253351 | AZ21: 150.3903137 | BA21: 166.8233355 | BB21: 161.2547997 | BC21: 227.1738028 | BD21: 239.2095921 | BE21: 243.6086358 | BF21: 287.5690067 | BG21: 319.295151 | BH21: 367.394407 | BI21: 380.0153952 | BJ21: 376.979461 | BK21: 510.1564877 | BL21: 504.6113164 | BM21: 520.0191987 | BN21: 629.1313483 | BO21: 826.8999493 | BP21: 1129.069767 | BQ21: 1381.938709 | BR21: 1437.897559 | BS21: 1316.751793 | BT21: 1588.189162 | BU21: 1248.502137 | BV21: 1715.971166 | BW21: 1692.197348 | BX21: 1741.815185 | BY21: 2717.865681 | BZ21: 2763.647395 | CA21: 2761.092878 | CB21: 2831.753314 | CC21: 5575.005434 | CD21: 3247.442585 | CE21: 3244.465987 | CF21: 5973.00655 | CG21: 5371.646422 | CH21: 3447.294067 | CI21: 3627.780193 | CJ21: 10887.53196 | CK21: 4290.009418 | CL21: 4745.164095 | CM21: 4292.208429 | CN21: 5442.498008 | CO21: 4967.550532 | CP21: 5729.475476 | CQ21: 6316.35514 | CR21: 4663.960733 | CS21: 4803.152609 | CT21: 4992.132145 | CU21: 7259.726146 | CV21: 7269.071941 | CW21: 7423.277548 | CX21: 7746.685503 | CY21: 7775.006092 | CZ21: 9050.028979 | DA21: 9745.874085 | DB21: 9800.709991 | DC21: 8587.55343 | DD21: 9122.056799 | DE21: 8244.095486 | DF21: 9533.633993 | DG21: 7013.113091 | DH21: 8357.150619 | DI21: 14664.22155 | DJ21: 9512.859523 | DK21: 8169.256683 | DL21: 20250.61581 | DM21: 9339.726871 | DN21: 10941.80613 | DO21: 10941.80613 | DP21: 13170.66942 | DQ21: 11246.90285 | DR21: 7588.817648 | DS21: 7911.106281 | DT21: 12108.14678 | DU21: 8219.988408 | DV21: 12302.27125 | DW21: 10634.68087 | DX21: 12208.68652 | DY21: 11900.02173 | DZ21: 13370.75273 | EA21: 12616.13417 | EB21: 12691.55256 | EC21: 13460.51583 | ED21: 11195.35608 | EE21: 11189.97682 | EF21: 18535.35463 | EG21: 12617.03977 | EH21: 14847.0079 | EI21: 16973.9006 | EJ21: 15109.21539 | EK21: 14435.44882 | EL21: 14778.90676 | EM21: 12818.40904 | EN21: 12168.2243 | EO21: 13180.55857
A22: 0115 | B22: Oils & Fats | E22: =SUM('[1]Item index series - Wau'!C28) -> 2.01 | F22: 100 | G22: 88.88888889 | H22: 144.4444444 | I22: 133.3333333 | J22: 133.3333333 | K22: 155.5555556 | L22: 144.4444444 | M22: 133.3333333 | N22: 131.7708333 | O22: 222.2222222 | P22: 225.8258258 | Q22: 133.3333333 | R22: 133.3333333 | S22: 141.8439716 | T22: 141.7777778 | U22: 141.7777778 | V22: 141.7777778 | W22: 146.0311111 | X22: 163.1111111 | Y22: 122.2222222 | Z22: 111.1111111 | AA22: 122.2222222 | AB22: 94.94363929 | AC22: 106.2801932 | AD22: 111.1111111 | AE22: 111.1111111 | AF22: 111.1111111 | AG22: 111.1111111 | AH22: 111.1111111 | AI22: 111.1111111 | AJ22: 122.2222222 | AK22: 111.1111111 | AL22: 133.3333333 | AM22: 122.2222222 | AN22: 122.2222222 | AO22: 111.1111111 | AP22: 111.1111111 | AQ22: 111.1111111 | AR22: 122.2222222 | AS22: 122.2222222 | AT22: 133.3333333 | AU22: 222.2222222 | AV22: 133.3333333 | AW22: 122.2222222 | AX22: 133.3333333 | AY22: 133.3333333 | AZ22: 155.5555556 | BA22: 177.7777778 | BB22: 222.2222222 | BC22: 222.2222222 | BD22: 266.6666667 | BE22: 255.5555556 | BF22: 277.7777778 | BG22: 322.2222222 | BH22: 466.6666667 | BI22: 577.7777778 | BJ22: 588.8888889 | BK22: 555.5555556 | BL22: 533.3333333 | BM22: 666.6666667 | BN22: 888.8888889 | BO22: 1555.555556 | BP22: 1555.555556 | BQ22: 2111.111111 | BR22: 1555.555556 | BS22: 1444.444444 | BT22: 1722.222222 | BU22: 1833.333333 | BV22: 2000 | BW22: 2222.222222 | BX22: 2222.222222 | BY22: 3333.333333 | BZ22: 3777.777778 | CA22: 3444.444444 | CB22: 4444.444444 | CC22: 3444.444444 | CD22: 3444.444444 | CE22: 3444.444444 | CF22: 5555.555556 | CG22: 6111.111111 | CH22: 3666.666667 | CI22: 4111.111111 | CJ22: 4444.444444 | CK22: 5555.555556 | CL22: 5555.555556 | CM22: 4444.444444 | CN22: 4333.333333 | CO22: 4333.333333 | CP22: 3333.333333 | CQ22: 3333.333333 | CR22: 3777.777778 | CS22: 44064.5774 | CT22: 40666.66667 | CU22: 41555.55556 | CV22: 42555.55556 | CW22: 42777.77778 | CX22: 33333.33333 | CY22: 33333.33333 | CZ22: 33370.37037 | DA22: 33888.88889 | DB22: 33888.88889 | DC22: 13000 | DD22: 16666.66667 | DE22: 15000 | DF22: 15000 | DG22: 32222.22222 | DH22: 17222.22222 | DI22: 16666.66667 | DJ22: 16666.66667 | DK22: 18333.33333 | DL22: 20000 | DM22: 28888.88889 | DN22: 32555.55556 | DO22: 32555.55556 | DP22: 33333.33333 | DQ22: 33333.33333 | DR22: 58888.88889 | DS22: 60000 | DT22: 43333.33333 | DU22: 33333.33333 | DV22: 36111.11111 | DW22: 30000 | DX22: 33333.33333 | DY22: 35000 | DZ22: 27777.77778 | EA22: 33333.33333 | EB22: 33333.33333 | EC22: 33333.33333 | ED22: 33888.88889 | EE22: 33333.33333 | EF22: 36666.66667 | EG22: 41666.66667 | EH22: 47777.77778 | EI22: 55555.55556 | EJ22: 60000 | EK22: 22222.22222 | EL22: 51111.11111 | EM22: 46666.66667 | EN22: 39444.44444 | EO22: 41111.11111
A23: 0116 | B23: Fruits | E23: =SUM('[1]Item index series - Wau'!C29:C33) -> 1.83 | F23: 100 | G23: 97.15986103 | H23: 97.23854448 | I23: 105.3090329 | J23: 147.0182805 | K23: 179.3422917 | L23: 252.9401303 | M23: 223.6300226 | N23: 197.9275821 | O23: 83.71504679 | P23: 73.45632428 | Q23: 140.7660771 | R23: 153.8259313 | S23: 161.6266485 | T23: 157.1365036 | U23: 109.490991 | V23: 119.9164292 | W23: 244.3008171 | X23: 102.596444 | Y23: 210.3022635 | Z23: 289.3399638 | AA23: 273.924299 | AB23: 157.7352185 | AC23: 157.735493 | AD23: 151.0057685 | AE23: 148.0618882 | AF23: 147.4135237 | AG23: 275.8939475 | AH23: 202.8172288 | AI23: 199.3316121 | AJ23: 93.95923717 | AK23: 172.3149785 | AL23: 99.5894342 | AM23: 80.09682866 | AN23: 85.85829501 | AO23: 84.32802395 | AP23: 142.9704033 | AQ23: 145.0371261 | AR23: 135.7486168 | AS23: 118.4560895 | AT23: 117.8476857 | AU23: 294.0029079 | AV23: 445.0984745 | AW23: 418.8874534 | AX23: 222.3815578 | AY23: 230.2946731 | AZ23: 149.0675183 | BA23: 209.0809634 | BB23: 297.6104749 | BC23: 502.4349857 | BD23: 388.7378169 | BE23: 651.3917059 | BF23: 793.4700563 | BG23: 398.0905302 | BH23: 446.4052584 | BI23: 473.4270027 | BJ23: 430.8326842 | BK23: 423.4577368 | BL23: 405.1817835 | BM23: 612.4255371 | BN23: 479.4785187 | BO23: 931.7299252 | BP23: 304.8741501 | BQ23: 774.7145501 | BR23: 726.9345219 | BS23: 2124.340923 | BT23: 2795.733306 | BU23: 2783.175466 | BV23: 2123.098181 | BW23: 2202.554222 | BX23: 4413.846935 | BY23: 5679.132511 | BZ23: 4452.963226 | CA23: 5081.934896 | CB23: 5731.891098 | CC23: 5271.88114 | CD23: 7417.258471 | CE23: 3689.020442 | CF23: 3409.50794 | CG23: 3694.237045 | CH23: 3453.852919 | CI23: 3676.714726 | CJ23: 4474.724172 | CK23: 6785.512277 | CL23: 12658.59583 | CM23: 14100.00432 | CN23: 15062.04603 | CO23: 12277.32491 | CP23: 8226.480772 | CQ23: 8692.464828 | CR23: 8319.982525 | CS23: 16726.7039 | CT23: 12555.76629 | CU23: 17699.89136 | CV23: 18267.58515 | CW23: 18376.33513 | CX23: 29405.21495 | CY23: 29406.7601 | CZ23: 31167.95294 | DA23: 31274.02624 | DB23: 31355.43572 | DC23: 11179.16921 | DD23: 5844.158334 | DE23: 12999.39412 | DF23: 45870.78003 | DG23: 6022.828105 | DH23: 121576.9665 | DI23: 11078.30918 | DJ23: 11790.10076 | DK23: 12699.41031 | DL23: 14750.4234 | DM23: 18808.31237 | DN23: 19044.14291 | DO23: 8566.242092 | DP23: 10876.44096 | DQ23: 13484.52839 | DR23: 9572.792492 | DS23: 9654.733357 | DT23: 7726.744723 | DU23: 15775.26854 | DV23: 25823.47372 | DW23: 18326.18787 | DX23: 14651.4992 | DY23: 13183.71624 | DZ23: 14061.77116 | EA23: 19277.9022 | EB23: 20216.62098 | EC23: 21364.5852 | ED23: 15344.28799 | EE23: 8009.476334 | EF23: 6657.621076 | EG23: 13811.27463 | EH23: 12676.0129 | EI23: 20323.93458 | EJ23: 23979.80909 | EK23: 21405.26643 | EL23: 22626.37397 | EM23: 17704.55589 | EN23: 11169.63555 | EO23: 20257.9366
A24: 0117 | B24: Vegetables | E24: =SUM('[1]Item index series - Wau'!C34:C45) -> 12.68 | F24: 100 | G24: 102.5150028 | H24: 101.600177 | I24: 166.7524375 | J24: 138.8159993 | K24: 163.1364776 | L24: 111.1120156 | M24: 146.217364 | N24: 128.6604778 | O24: 139.8931616 | P24: 165.2040567 | Q24: 211.4835004 | R24: 164.4259676 | S24: 174.6582716 | T24: 151.7678791 | U24: 204.4040883 | V24: 137.2285401 | W24: 142.3053113 | X24: 154.6093306 | Y24: 143.71699 | Z24: 152.0859313 | AA24: 162.8417123 | AB24: 161.0551066 | AC24: 153.5156369 | AD24: 121.0749905 | AE24: 126.8671698 | AF24: 105.0525516 | AG24: 105.9788524 | AH24: 99.62259432 | AI24: 124.2996936 | AJ24: 99.16810331 | AK24: 121.7619039 | AL24: 115.9365557 | AM24: 126.5134666 | AN24: 107.9550316 | AO24: 109.857787 | AP24: 110.3875433 | AQ24: 91.91246495 | AR24: 120.2042578 | AS24: 100.4020311 | AT24: 103.1709661 | AU24: 157.3395588 | AV24: 127.8592877 | AW24: 134.0582822 | AX24: 159.5615987 | AY24: 176.369019 | AZ24: 172.5822115 | BA24: 258.3527977 | BB24: 270.2749024 | BC24: 233.0338662 | BD24: 250.8003502 | BE24: 264.7742053 | BF24: 322.9113022 | BG24: 377.9724037 | BH24: 387.8844101 | BI24: 451.3281459 | BJ24: 593.0825259 | BK24: 659.2147725 | BL24: 707.7558153 | BM24: 766.286369 | BN24: 726.2379654 | BO24: 1219.768864 | BP24: 1381.100999 | BQ24: 1548.007205 | BR24: 2184.681508 | BS24: 1586.18749 | BT24: 1632.419036 | BU24: 1743.185829 | BV24: 2920.505355 | BW24: 2203.017086 | BX24: 2310.219796 | BY24: 3264.447257 | BZ24: 3516.599735 | CA24: 3549.309444 | CB24: 3264.841874 | CC24: 3963.167696 | CD24: 3691.462513 | CE24: 3342.629498 | CF24: 3289.043227 | CG24: 3743.471748 | CH24: 3830.229249 | CI24: 3777.240313 | CJ24: 3794.847096 | CK24: 4646.411321 | CL24: 5109.085836 | CM24: 6241.048793 | CN24: 6489.445312 | CO24: 7158.974493 | CP24: 5477.885824 | CQ24: 5234.716297 | CR24: 6125.114761 | CS24: 6816.151214 | CT24: 9515.420761 | CU24: 13757.52961 | CV24: 14486.7411 | CW24: 14888.51353 | CX24: 14988.60865 | CY24: 15075.44069 | CZ24: 15104.25449 | DA24: 15250.54598 | DB24: 15300.18408 | DC24: 4562.747648 | DD24: 4748.268006 | DE24: 5596.29881 | DF24: 6208.138624 | DG24: 17069.74037 | DH24: 18519.23998 | DI24: 13881.23048 | DJ24: 5228.588153 | DK24: 6332.174355 | DL24: 7855.788824 | DM24: 5981.975462 | DN24: 5596.577294 | DO24: 6665.05 | DP24: 7368.969832 | DQ24: 7641.134567 | DR24: 8242.443098 | DS24: 8434.467207 | DT24: 8364.689435 | DU24: 10092.32326 | DV24: 8396.94427 | DW24: 6633.654636 | DX24: 6017.462814 | DY24: 5902.237864 | DZ24: 6096.016484 | EA24: 8789.897749 | EB24: 8430.008825 | EC24: 10762.40432 | ED24: 8369.408872 | EE24: 8586.211644 | EF24: 8690.202741 | EG24: 10325.13721 | EH24: 10373.73615 | EI24: 11748.47329 | EJ24: 11045.70893 | EK24: 10701.61417 | EL24: 11992.08292 | EM24: 10950.24347 | EN24: 13588.58034 | EO24: 13337.27671
A25: 0118 | B25: Sugar/ jam /honey/confs. | E25: =SUM('[1]Item index series - Wau'!C46:C47) -> 6.22 | F25: 100 | G25: 88.51213096 | H25: 122.2741888 | I25: 131.9204911 | J25: 134.7559193 | K25: 138.585209 | L25: 123.1949722 | M25: 105.8170126 | N25: 93.33528208 | O25: 100.9938614 | P25: 111.487869 | Q25: 125.1096171 | R25: 115.4633148 | S25: 115.4633148 | T25: 120.2864659 | U25: 115.4633148 | V25: 105.8170126 | W25: 110.6401637 | X25: 110.6401637 | Y25: 110.6401637 | Z25: 121.2072493 | AA25: 134.6097632 | AB25: 116.3840982 | AC25: 129.7866121 | AD25: 120.1403099 | AE25: 124.963461 | AF25: 106.737796 | AG25: 120.1403099 | AH25: 105.8170126 | AI25: 105.8170126 | AJ25: 105.8170126 | AK25: 96.24378837 | AL25: 110.6401637 | AM25: 96.24378837 | AN25: 86.59748612 | AO25: 100 | AP25: 96.17071032 | AQ25: 96.17071032 | AR25: 105.8170126 | AS25: 106.737796 | AT25: 134.7559193 | AU25: 134.7559193 | AV25: 105.8170126 | AW25: 105.8170126 | AX25: 124.963461 | AY25: 120.2499269 | AZ25: 139.5425314 | BA25: 173.1218942 | BB25: 221.3534054 | BC25: 230.9266296 | BD25: 226.1034785 | BE25: 211.7071032 | BF25: 259.7193803 | BG25: 269.5118386 | BH25: 317.6702719 | BI25: 336.8167203 | BJ25: 394.5483777 | BK25: 447.6761181 | BL25: 510.2309266 | BM25: 438.1759719 | BN25: 692.7068109 | BO25: 1396.066958 | BP25: 1645.04306 | BQ25: 1888.786455 | BR25: 1492.984507 | BS25: 1347.559193 | BT25: 1702.864659 | BU25: 1818.10874 | BV25: 1923.414206 | BW25: 1963.168664 | BX25: 1982.315113 | BY25: 2729.214515 | BZ25: 2838.351359 | CA25: 3001.461561 | CB25: 3122.985506 | CC25: 3290.119848 | CD25: 3309.266296 | CE25: 2836.889798 | CF25: 2692.195265 | CG25: 2981.584332 | CH25: 3319.204911 | CI25: 3078.047355 | CJ25: 3846.271038 | CK25: 4719.380298 | CL25: 5485.969015 | CM25: 3846.828413 | CN25: 4183.718211 | CO25: 3942.560655 | CP25: 3557.439345 | CQ25: 3460.976323 | CR25: 3556.708565 | CS25: 9141.186787 | CT25: 10212.65712 | CU25: 10404.85238 | CV25: 10548.81614 | CW25: 10616.1941 | CX25: 10789.24291 | CY25: 10837.47442 | CZ25: 10837.47442 | DA25: 11078.63198 | DB25: 11078.63198 | DC25: 4808.535516 | DD25: 5001.461561 | DE25: 4617.071032 | DF25: 11787.48904 | DG25: 5872.551885 | DH25: 4666.764104 | DI25: 4188.102894 | DJ25: 5195.849167 | DK25: 7591.347559 | DL25: 8555.977784 | DM25: 6929.26045 | DN25: 7794.504531 | DO25: 7120.724934 | DP25: 7599.386144 | DQ25: 7652.733119 | DR25: 12650.54078 | DS25: 12722.88804 | DT25: 8656.094709 | DU25: 10000 | DV25: 8173.779597 | DW25: 6730.488161 | DX25: 7308.535516 | DY25: 7549.693072 | DZ25: 7212.803274 | EA25: 7117.071032 | EB25: 5600.701549 | EC25: 9184.448992 | ED25: 8992.984507 | EE25: 8368.897983 | EF25: 9375.913476 | EG25: 9375.913476 | EH25: 9858.228588 | EI25: 11546.33148 | EJ25: 11546.33148 | EK25: 14907.92166 | EL25: 13851.2131 | EM25: 12028.64659 | EN25: 12269.80415 | EO25: 12993.27682
A26: 0119 | B26: Food products n.e.c. | E26: =SUM('[1]Item index series - Wau'!C48:C51) -> 1.27 | F26: 100 | G26: 114.6681665 | H26: 106.9403825 | I26: 93.35583052 | J26: 122.5309336 | K26: 112.632171 | L26: 84.20291672 | M26: 69.80536524 | N26: 82.59554137 | O26: 78.08023997 | P26: 101.7697788 | Q26: 71.43607049 | R26: 104.7581552 | S26: 103.1837378 | T26: 66.86914136 | U26: 108.4446787 | V26: 107.9065112 | W26: 110.6400162 | X26: 109.8650169 | Y26: 109.3090636 | Z26: 115.1631046 | AA26: 86.35269276 | AB26: 101.7247844 | AC26: 101.7247844 | AD26: 103.8927634 | AE26: 104.7581552 | AF26: 83.90104276 | AG26: 63.74821875 | AH26: 65.63029621 | AI26: 63.73003375 | AJ26: 83.14861378 | AK26: 104.8893888 | AL26: 104.0799312 | AM26: 98.26021747 | AN26: 112.8883433 | AO26: 83.14861153 | AP26: 85.13610799 | AQ26: 64.96089218 | AR26: 85.75801709 | AS26: 123.0780624 | AT26: 186.3577216 | AU26: 225.3756742 | AV26: 106.7416573 | AW26: 108.6278234 | AX26: 128.0186751 | AY26: 127.1127654 | AZ26: 221.6495308 | BA26: 197.791373 | BB26: 243.8883041 | BC26: 227.9968172 | BD26: 251.6622448 | BE26: 271.4297067 | BF26: 263.9595051 | BG26: 271.4623543 | BH26: 279.4431946 | BI26: 322.6098279 | BJ26: 474.5318019 | BK26: 498.7727496 | BL26: 550.7848501 | BM26: 833.9874037 | BN26: 901.3361966 | BO26: 1292.37861 | BP26: 2988.543962 | BQ26: 3135.227208 | BR26: 3268.391451 | BS26: 2652.418448 | BT26: 2109.769233 | BU26: 2147.469066 | BV26: 2137.987163 | BW26: 2083.5457 | BX26: 2262.628991 | BY26: 2510.949224 | BZ26: 2423.256612 | CA26: 2798.761836 | CB26: 3088.593926 | CC26: 2776.814969 | CD26: 3658.66906 | CE26: 3659.692538 | CF26: 4041.512668 | CG26: 4025.12186 | CH26: 3446.987037 | CI26: 3247.844019 | CJ26: 3774.823602 | CK26: 4561.304837 | CL26: 6065.749525 | CM26: 4558.503335 | CN26: 7197.621166 | CO26: 5875.890514 | CP26: 5841.201347 | CQ26: 6028.776122 | CR26: 7531.335048 | CS26: 13407.1991 | CT26: 13896.49974 | CU26: 17870.43351 | CV26: 19020.68959 | CW26: 19225.5428 | CX26: 19268.47275 | CY26: 19520.59539 | CZ26: 19571.18637 | DA26: 20229.88376 | DB26: 21889.46551 | DC26: 22051.61653 | DD26: 27549.53457 | DE26: 40840.9804 | DF26: 23514.01663 | DG26: 106103.2371 | DH26: 61089.98875 | DI26: 39098.98763 | DJ26: 27022.79878 | DK26: 26442.73312 | DL26: 21038.31639 | DM26: 35400.00682 | DN26: 41101.35665 | DO26: 40133.97757 | DP26: 41618.60449 | DQ26: 41662.91714 | DR26: 19462.94472 | DS26: 19539.53265 | DT26: 17269.02887 | DU26: 17360.92199 | DV26: 11972.65882 | DW26: 34548.14201 | DX26: 35350.85223 | DY26: 38734.55345 | DZ26: 40599.55006 | EA26: 33851.91378 | EB26: 36902.19771 | EC26: 51508.18357 | ED26: 34713.53581 | EE26: 23901.01237 | EF26: 29811.71212 | EG26: 45154.35571 | EH26: 30869.85901 | EI26: 27017.78732 | EJ26: 43389.22236 | EK26: 37707.30582 | EL26: 20298.4953 | EM26: 17689.27037 | EN26: 18653.76965 | EO26: 17232.13652
